Workbook

Sheet Intro
B2: DEER Non-Residential Indoor Lighting Workbook
B3: This workbook calculates non-residential DEER Lighting Measure energy impacts by weighting results for
B4: multiple building types, building locations and building HVAC system types. New lighting measures can be
B5: defined based on a library of lighting fixtures.
C6: February, 2010
B8: Tab | C8: Description
B10: DEER Lighting Measures | C10: This tab contains the library of DEER lighting measures and any new
C11: lighting measures defined by the user.
B13: Browse Lighting Measures | C13: Use this tab to view and print details of individual lighting measures that
C14: are in the library.
B16: Impacts Review | C16: This tab will calculate the energy impacts of a lighting measure
C17: for specific building types and climate zones. Energy, demand and
C18: HVAC interaction factors can be reviewed for all applicable HVAC system types.
B20: Lighting Measure Impacts | C20: This tab will calculate the energy impacts of specified lighting measures
C21: based on weighted building types, climate zones and HVAC system
C22: types.
B24: Define Lighting Measures | C24: You can also use this tab to define new lighting measures by specifying
C25: measure and base case lighting fixtures. More than 750 pre-defined
C26: lighting fixtures can be utilized to create a new lighting measure.
B28: Define Building Weights | C28: Use this tab to define new Building-Climate Zone weights for programs that
C29: target specific building types and/or climate zones.
B31: The following tabs do not require any user interaction or modification:
B32: HVAC Weights Library | C32: Contains the standard HVAC weights tables.
B34: Bldg Weights Library | C34: Contains the standard Building - Climate Zone weights tables as well as
C35: any user-defined tables.
B37: Data | C37: The tab contains the DEER data used to calculate the impacts.
B39: Key | C39: Contains various lists and tables used for the workbook controls.
B41: CalcWtImp | C41: This tab is used to calculate the weighted impacts.
C42: To see the calculations for a specific lighting measure, enter the
C43: lighting measure index into cell "A3". Note: the index is the row from the
C44: "Lighting Impacts - Weighted" tab, not the index from the "DEER Lighting
C45: Measures" tab.
B47: Engage Ltg Fixture Table | C47: The Engage lighting fixture table, used for fixture property lookups and to create
C48: the abbreviated fixture table in the "Fixture Filter" tab.
B50: Fixture Filter | C50: This tab filters the available fixtures shown in the "Define Ltg Measure" tab.
C51: The measure name is determined here as is the code applicability.
B53: data-proc | C53: This tab processess the raw data from MISer into the format used in this workbook
C54: Sets of data are copied (as values) into the "data" tab where the results are referenced.
B56: Bldg Std Wts | C56: This tab contains the building stock data used to determine the standard
C57: building - climate zone weights.
B62: Near-term additions:
B65: NTG table | C65: delivery mechanism: upstream, downstream, midstream(=direct install)
C66: target market
B68: multiplier on UES | C68: sales verification
C69: leakage
C70: installation rate
B72: EUL | C72: fixture or lamp replacement
B74: Costs

Sheet DEER Lighting Measures
B2: DEER Library of Commercial Indoor Lighting Measures
B3: This table contains the DEER lighting measure definitions and any Custom lighting measure definitions.
C4: Click on the "Toggle View" button to see the full or abbreviated set of columns | O4: 17 | P4: 21 | Q4: 18 | R4: 19 | S4: 26 | T4: 22 | U4: 23 | V4: 30 | W4: 28 | X4: =+O4 -> 17 | Y4: =+P4 -> 21 | Z4: 18 | AA4: 19 | AB4: 26 | AC4: 22 | AD4: 23 | AE4: 30 | AF4: 28 | AG4: =+O4 -> 17 | AH4: =+P4 -> 21 | AI4: 18 | AJ4: 19 | AK4: 26 | AL4: 22 | AM4: 23 | AN4: 30 | AO4: 28
C5: Use "Print Preview" to view and print the essential measure data.
B8: =MAX(B12:B274) -> 214 | C8: entries | O8: Description of Measure Case fixtures: | X8: Description of Base Case fixtures: | AG8: Description of Code Case fixtures:
I9: Applicable Codes | M9: delta Watts | O9: Measure Case Fixture | X9: Base Case Fixture | AG9: Code Case Fixture
B10: Measure | D10: Fixture | E10: Lighting | F10: FixtureID | I10: Title-24 | K10: Federal Std | M10: per fixture | P10: Fixture | Q10: Lamp | R10: Lamp | S10: Lamps | T10: Lamp | U10: Ballast | V10: Ballasts | W10: kW | Y10: Fixture | Z10: Lamp | AA10: Lamp | AB10: Lamps | AD10: Ballast | AE10: Ballasts | AF10: kW | AH10: Fixture | AI10: Lamp | AJ10: Lamp | AK10: Lamps | AM10: Ballast | AN10: Ballasts | AO10: kW | AS10: Base-Msr
B11: Index | C11: Measure Identifier | D11: Category | E11: Schedule | F11: Base | G11: Code | H11: Measure | I11: 2005 | J11: 2008 | K11: 2005 | L11: 2008 | M11: Customer | N11: Above-Code | O11: Fixture Type | P11: Code | Q11: Type | R11: Size | S11: per Fixture | T11: Code | U11: Type | V11: per Fixture | W11: per fixture | X11: Fixture Type | Y11: Code | Z11: Type | AA11: Size | AB11: per Fixture | AD11: Type | AE11: per Fixture | AF11: per fixture | AG11: Fixture Type | AH11: Code | AI11: Type | AJ11: Size | AK11: per Fixture | AM11: Type | AN11: per Fixture | AO11: per fixture | AP11: Comment | AQ11: measure short description | AS11: labels
B12: 1 | C12: Com-ILtg-PrimLF-LF-ca10082-ms10068 | D12: Linear Fluorescent | E12: Linear Fluorescent (Primary Schedule) | F12: 10082 | G12: na | H12: 10068 | I12: No | J12: No | K12: No | L12: No | M12: =(AF12-W12)*1000 -> 68 | N12: =IF(G12<>"na",(AO12-W12)*1000,"na") -> na | O12: =VLOOKUP($H12,'Engage Ltg Fixture Table'!$B$8:$HK$770,O$4,FALSE) -> Linear Fluorescent | P12: =VLOOKUP($H12,'Engage Ltg Fixture Table'!$B$8:$HK$770,P$4,FALSE) -> F42EE/D2 | Q12: =VLOOKUP($H12,'Engage Ltg Fixture Table'!$B$8:$HK$770,Q$4,FALSE) -> T12 | R12: =VLOOKUP($H12,'Engage Ltg Fixture Table'!$B$8:$HK$770,R$4,FALSE) -> 48 inch | S12: =VLOOKUP($H12,'Engage Ltg Fixture Table'!$B$8:$HK$770,S$4,FALSE) -> 2 | T12: =VLOOKUP($H12,'Engage Ltg Fixture Table'!$B$8:$HK$770,T$4,FALSE) -> F40T12/ES | U12: =VLOOKUP($H12,'Engage Ltg Fixture Table'!$B$8:$HK$770,U$4,FALSE) -> Mag-ES | V12: =VLOOKUP($H12,'Engage Ltg Fixture Table'!$B$8:$HK$770,V$4,FALSE) -> 1 | W12: =VLOOKUP($H12,'Engage Ltg Fixture Table'!$B$8:$HK$770,W$4,FALSE) -> 0.076 | X12: =VLOOKUP($F12,'Engage Ltg Fixture Table'!$B$8:$HK$770,X$4,FALSE) -> Linear Fluorescent | Y12: =VLOOKUP($F12,'Engage Ltg Fixture Table'!$B$8:$HK$770,Y$4,FALSE) -> F44EE | Z12: =VLOOKUP($F12,'Engage Ltg Fixture Table'!$B$8:$HK$770,Z$4,FALSE) -> T12 | AA12: =VLOOKUP($F12,'Engage Ltg Fixture Table'!$B$8:$HK$770,AA$4,FALSE) -> 48 inch | AB12: =VLOOKUP($F12,'Engage Ltg Fixture Table'!$B$8:$HK$770,AB$4,FALSE) -> 4 | AC12: =VLOOKUP($F12,'Engage Ltg Fixture Table'!$B$8:$HK$770,AC$4,FALSE) -> F40T12/ES | AD12: =VLOOKUP($F12,'Engage Ltg Fixture Table'!$B$8:$HK$770,AD$4,FALSE) -> Mag-ES | AE12: =VLOOKUP($F12,'Engage Ltg Fixture Table'!$B$8:$HK$770,AE$4,FALSE) -> 2 | AF12: =VLOOKUP($F12,'Engage Ltg Fixture Table'!$B$8:$HK$770,AF$4,FALSE) -> 0.144 | AG12: =IF(G12="na","na",VLOOKUP($G12,'Engage Ltg Fixture Table'!$B$8:$HK$770,AG$4,FALSE)) -> na | AH12: =IF(G12="na","na",VLOOKUP($G12,'Engage Ltg Fixture Table'!$B$8:$HK$770,AH$4,FALSE)) -> na | AI12: =IF(G12="na","na",VLOOKUP($G12,'Engage Ltg Fixture Table'!$B$8:$HK$770,AI$4,FALSE)) -> na | AJ12: =IF(G12="na","na",VLOOKUP($G12,'Engage Ltg Fixture Table'!$B$8:$HK$770,AJ$4,FALSE)) -> na | AK12: =IF(G12="na","na",VLOOKUP($G12,'Engage Ltg Fixture Table'!$B$8:$HK$770,AK$4,FALSE)) -> na | AL12: =IF(G12="na","na",VLOOKUP($G12,'Engage Ltg Fixture Table'!$B$8:$HK$770,AL$4,FALSE)) -> na | AM12: =IF(G12="na","na",VLOOKUP($G12,'Engage Ltg Fixture Table'!$B$8:$HK$770,AM$4,FALSE)) -> na | AN12: =IF(G12="na","na",VLOOKUP($G12,'Engage Ltg Fixture Table'!$B$8:$HK$770,AN$4,FALSE)) -> na | AO12: =IF(G12="na","na",VLOOKUP($G12,'Engage Ltg Fixture Table'!$B$8:$HK$770,AO$4,FALSE)) -> na | AP12: added from DEER2008.3.02 measure list | AQ12: ="ID: "&TEXT(B12,"000")&"; "&VLOOKUP($F12,'Engage Ltg Fixture Table'!$B$8:$HK$770,7,FALSE)&" ==> "&VLOOKUP($H12,'Engage Ltg Fixture Table'!$B$8:$HK$770,7,FALSE) -> ID: 001; FL, (4) 48in, ES lamp, ES Mag, W/fixt=144 ==> FL, (2) 48in, ES lamp w' delamping, W/fixt=76 | AS12: =F12&"-"&H12 -> 10082-10068
B13: =+B12+1 -> 2 | C13: Com-ILtg-PrimLF-LF-ca10091-ms10083 | D13: Linear Fluorescent | E13: Linear Fluorescent (Primary Schedule) | F13: 10091 | G13: na | H13: 10083 | I13: No | J13: No | K13: No | L13: No | M13: =(AF13-W13)*1000 -> 64 | N13: =IF(G13<>"na",(AO13-W13)*1000,"na") -> na | O13: =VLOOKUP($H13,'Engage Ltg Fixture Table'!$B$8:$HK$770,O$4,FALSE) -> Linear Fluorescent | P13: =VLOOKUP($H13,'Engage Ltg Fixture Table'!$B$8:$HK$770,P$4,FALSE) -> F44EE/D4 | Q13: =VLOOKUP($H13,'Engage Ltg Fixture Table'!$B$8:$HK$770,Q$4,FALSE) -> T12 | R13: =VLOOKUP($H13,'Engage Ltg Fixture Table'!$B$8:$HK$770,R$4,FALSE) -> 48 inch | S13: =VLOOKUP($H13,'Engage Ltg Fixture Table'!$B$8:$HK$770,S$4,FALSE) -> 4 | T13: =VLOOKUP($H13,'Engage Ltg Fixture Table'!$B$8:$HK$770,T$4,FALSE) -> F40T12/ES | U13: =VLOOKUP($H13,'Engage Ltg Fixture Table'!$B$8:$HK$770,U$4,FALSE) -> Mag-ES | V13: =VLOOKUP($H13,'Engage Ltg Fixture Table'!$B$8:$HK$770,V$4,FALSE) -> 2 | W13: =VLOOKUP($H13,'Engage Ltg Fixture Table'!$B$8:$HK$770,W$4,FALSE) -> 0.152 | X13: =VLOOKUP($F13,'Engage Ltg Fixture Table'!$B$8:$HK$770,X$4,FALSE) -> Linear Fluorescent | Y13: =VLOOKUP($F13,'Engage Ltg Fixture Table'!$B$8:$HK$770,Y$4,FALSE) -> F46EE | Z13: =VLOOKUP($F13,'Engage Ltg Fixture Table'!$B$8:$HK$770,Z$4,FALSE) -> T12 | AA13: =VLOOKUP($F13,'Engage Ltg Fixture Table'!$B$8:$HK$770,AA$4,FALSE) -> 48 inch | AB13: =VLOOKUP($F13,'Engage Ltg Fixture Table'!$B$8:$HK$770,AB$4,FALSE) -> 6 | AC13: =VLOOKUP($F13,'Engage Ltg Fixture Table'!$B$8:$HK$770,AC$4,FALSE) -> F40T12/ES | AD13: =VLOOKUP($F13,'Engage Ltg Fixture Table'!$B$8:$HK$770,AD$4,FALSE) -> Mag-ES | AE13: =VLOOKUP($F13,'Engage Ltg Fixture Table'!$B$8:$HK$770,AE$4,FALSE) -> 2 | AF13: =VLOOKUP($F13,'Engage Ltg Fixture Table'!$B$8:$HK$770,AF$4,FALSE) -> 0.216 | AG13: =IF(G13="na","na",VLOOKUP($G13,'Engage Ltg Fixture Table'!$B$8:$HK$770,AG$4,FALSE)) -> na | AH13: =IF(G13="na","na",VLOOKUP($G13,'Engage Ltg Fixture Table'!$B$8:$HK$770,AH$4,FALSE)) -> na | AI13: =IF(G13="na","na",VLOOKUP($G13,'Engage Ltg Fixture Table'!$B$8:$HK$770,AI$4,FALSE)) -> na | AJ13: =IF(G13="na","na",VLOOKUP($G13,'Engage Ltg Fixture Table'!$B$8:$HK$770,AJ$4,FALSE)) -> na | AK13: =IF(G13="na","na",VLOOKUP($G13,'Engage Ltg Fixture Table'!$B$8:$HK$770,AK$4,FALSE)) -> na | AL13: =IF(G13="na","na",VLOOKUP($G13,'Engage Ltg Fixture Table'!$B$8:$HK$770,AL$4,FALSE)) -> na | AM13: =IF(G13="na","na",VLOOKUP($G13,'Engage Ltg Fixture Table'!$B$8:$HK$770,AM$4,FALSE)) -> na | AN13: =IF(G13="na","na",VLOOKUP($G13,'Engage Ltg Fixture Table'!$B$8:$HK$770,AN$4,FALSE)) -> na | AO13: =IF(G13="na","na",VLOOKUP($G13,'Engage Ltg Fixture Table'!$B$8:$HK$770,AO$4,FALSE)) -> na | AP13: added from DEER2008.3.02 measure list | AQ13: ="ID: "&TEXT(B13,"000")&"; "&VLOOKUP($F13,'Engage Ltg Fixture Table'!$B$8:$HK$770,7,FALSE)&" ==> "&VLOOKUP($H13,'Engage Ltg Fixture Table'!$B$8:$HK$770,7,FALSE) -> ID: 002; FL, (6) 48in, ES lamp, ES Mag, W/fixt=216 ==> FL, (4) 48in, ES lamp w' delamping, W/fixt=152 | AS13: =F13&"-"&H13 -> 10091-10083
B14: =+B13+1 -> 3 | C14: Com-ILtg-PrimLF-LF-ca10045-cd10232-ms10423 | D14: Linear Fluorescent | E14: Linear Fluorescent (Primary Schedule) | F14: 10045 | G14: 10232 | H14: 10423 | I14: No | J14: No | K14: Yes | L14: Yes | M14: 10 | N14: -1 | O14: =VLOOKUP($H14,'Engage Ltg Fixture Table'!$B$8:$HK$770,O$4,FALSE) -> Linear Fluorescent | P14: =VLOOKUP($H14,'Engage Ltg Fixture Table'!$B$8:$HK$770,P$4,FALSE) -> F41PL | Q14: =VLOOKUP($H14,'Engage Ltg Fixture Table'!$B$8:$HK$770,Q$4,FALSE) -> T5 | R14: =VLOOKUP($H14,'Engage Ltg Fixture Table'!$B$8:$HK$770,R$4,FALSE) -> 46 inch | S14: =VLOOKUP($H14,'Engage Ltg Fixture Table'!$B$8:$HK$770,S$4,FALSE) -> 1 | T14: =VLOOKUP($H14,'Engage Ltg Fixture Table'!$B$8:$HK$770,T$4,FALSE) -> F28T5 | U14: =VLOOKUP($H14,'Engage Ltg Fixture Table'!$B$8:$HK$770,U$4,FALSE) -> Electronic | V14: =VLOOKUP($H14,'Engage Ltg Fixture Table'!$B$8:$HK$770,V$4,FALSE) -> 1 | W14: =VLOOKUP($H14,'Engage Ltg Fixture Table'!$B$8:$HK$770,W$4,FALSE) -> 0.033 | X14: =VLOOKUP($F14,'Engage Ltg Fixture Table'!$B$8:$HK$770,X$4,FALSE) -> Linear Fluorescent | Y14: =VLOOKUP($F14,'Engage Ltg Fixture Table'!$B$8:$HK$770,Y$4,FALSE) -> F41EE | Z14: =VLOOKUP($F14,'Engage Ltg Fixture Table'!$B$8:$HK$770,Z$4,FALSE) -> T12 | AA14: =VLOOKUP($F14,'Engage Ltg Fixture Table'!$B$8:$HK$770,AA$4,FALSE) -> 48 inch | AB14: =VLOOKUP($F14,'Engage Ltg Fixture Table'!$B$8:$HK$770,AB$4,FALSE) -> 1 | AC14: =VLOOKUP($F14,'Engage Ltg Fixture Table'!$B$8:$HK$770,AC$4,FALSE) -> F40T12/ES | AD14: =VLOOKUP($F14,'Engage Ltg Fixture Table'!$B$8:$HK$770,AD$4,FALSE) -> Mag-ES | AE14: =VLOOKUP($F14,'Engage Ltg Fixture Table'!$B$8:$HK$770,AE$4,FALSE) -> 1 | AF14: =VLOOKUP($F14,'Engage Ltg Fixture Table'!$B$8:$HK$770,AF$4,FALSE) -> 0.043 | AG14: =IF(G14="na","na",VLOOKUP($G14,'Engage Ltg Fixture Table'!$B$8:$HK$770,AG$4,FALSE)) -> Linear Fluorescent | AH14: =IF(G14="na","na",VLOOKUP($G14,'Engage Ltg Fixture Table'!$B$8:$HK$770,AH$4,FALSE)) -> F41LL (G1) | AI14: =IF(G14="na","na",VLOOKUP($G14,'Engage Ltg Fixture Table'!$B$8:$HK$770,AI$4,FALSE)) -> T8 | AJ14: =IF(G14="na","na",VLOOKUP($G14,'Engage Ltg Fixture Table'!$B$8:$HK$770,AJ$4,FALSE)) -> 48in 1st Gen | AK14: =IF(G14="na","na",VLOOKUP($G14,'Engage Ltg Fixture Table'!$B$8:$HK$770,AK$4,FALSE)) -> 1 | AL14: =IF(G14="na","na",VLOOKUP($G14,'Engage Ltg Fixture Table'!$B$8:$HK$770,AL$4,FALSE)) -> F32T8-STD | AM14: =IF(G14="na","na",VLOOKUP($G14,'Engage Ltg Fixture Table'!$B$8:$HK$770,AM$4,FALSE)) -> Electronic | AN14: =IF(G14="na","na",VLOOKUP($G14,'Engage Ltg Fixture Table'!$B$8:$HK$770,AN$4,FALSE)) -> 1 | AO14: =IF(G14="na","na",VLOOKUP($G14,'Engage Ltg Fixture Table'!$B$8:$HK$770,AO$4,FALSE)) -> 0.032 | AP14: added from DEER2008.3.02 measure list | AQ14: ="ID: "&TEXT(B14,"000")&"; "&VLOOKUP($F14,'Engage Ltg Fixture Table'!$B$8:$HK$770,7,FALSE)&" ==> "&VLOOKUP($H14,'Engage Ltg Fixture Table'!$B$8:$HK$770,7,FALSE) -> ID: 003; FL, (1) 48in, ES lamp, ES Mag, W/fixt=43 ==> FL, (1) 46in, T5, PS Ballast, W/fixt=33 | AS14: 10045-10423
B15: 4 | C15: Com-ILtg-PrimLF-LF-ca10045-cd10295-ms10423 | D15: Linear Fluorescent | E15: Linear Fluorescent (Primary Schedule) | F15: 10045 | G15: 10295 | H15: 10423 | I15: Yes | J15: Yes | K15: No | L15: No | M15: 10 | N15: -2 | O15: =VLOOKUP($H15,'Engage Ltg Fixture Table'!$B$8:$HK$770,O$4,FALSE) -> Linear Fluorescent | P15: =VLOOKUP($H15,'Engage Ltg Fixture Table'!$B$8:$HK$770,P$4,FALSE) -> F41PL | Q15: =VLOOKUP($H15,'Engage Ltg Fixture Table'!$B$8:$HK$770,Q$4,FALSE) -> T5 | R15: =VLOOKUP($H15,'Engage Ltg Fixture Table'!$B$8:$HK$770,R$4,FALSE) -> 46 inch | S15: =VLOOKUP($H15,'Engage Ltg Fixture Table'!$B$8:$HK$770,S$4,FALSE) -> 1 | T15: =VLOOKUP($H15,'Engage Ltg Fixture Table'!$B$8:$HK$770,T$4,FALSE) -> F28T5 | U15: =VLOOKUP($H15,'Engage Ltg Fixture Table'!$B$8:$HK$770,U$4,FALSE) -> Electronic | V15: =VLOOKUP($H15,'Engage Ltg Fixture Table'!$B$8:$HK$770,V$4,FALSE) -> 1 | W15: =VLOOKUP($H15,'Engage Ltg Fixture Table'!$B$8:$HK$770,W$4,FALSE) -> 0.033 | X15: =VLOOKUP($F15,'Engage Ltg Fixture Table'!$B$8:$HK$770,X$4,FALSE) -> Linear Fluorescent | Y15: =VLOOKUP($F15,'Engage Ltg Fixture Table'!$B$8:$HK$770,Y$4,FALSE) -> F41EE | Z15: =VLOOKUP($F15,'Engage Ltg Fixture Table'!$B$8:$HK$770,Z$4,FALSE) -> T12 | AA15: =VLOOKUP($F15,'Engage Ltg Fixture Table'!$B$8:$HK$770,AA$4,FALSE) -> 48 inch | AB15: =VLOOKUP($F15,'Engage Ltg Fixture Table'!$B$8:$HK$770,AB$4,FALSE) -> 1 | AC15: =VLOOKUP($F15,'Engage Ltg Fixture Table'!$B$8:$HK$770,AC$4,FALSE) -> F40T12/ES | AD15: =VLOOKUP($F15,'Engage Ltg Fixture Table'!$B$8:$HK$770,AD$4,FALSE) -> Mag-ES | AE15: =VLOOKUP($F15,'Engage Ltg Fixture Table'!$B$8:$HK$770,AE$4,FALSE) -> 1 | AF15: =VLOOKUP($F15,'Engage Ltg Fixture Table'!$B$8:$HK$770,AF$4,FALSE) -> 0.043 | AG15: =IF(G15="na","na",VLOOKUP($G15,'Engage Ltg Fixture Table'!$B$8:$HK$770,AG$4,FALSE)) -> Linear Fluorescent | AH15: =IF(G15="na","na",VLOOKUP($G15,'Engage Ltg Fixture Table'!$B$8:$HK$770,AH$4,FALSE)) -> F41ILL (G2) | AI15: =IF(G15="na","na",VLOOKUP($G15,'Engage Ltg Fixture Table'!$B$8:$HK$770,AI$4,FALSE)) -> T8 | AJ15: =IF(G15="na","na",VLOOKUP($G15,'Engage Ltg Fixture Table'!$B$8:$HK$770,AJ$4,FALSE)) -> 48in 2nd Gen | AK15: =IF(G15="na","na",VLOOKUP($G15,'Engage Ltg Fixture Table'!$B$8:$HK$770,AK$4,FALSE)) -> 1 | AL15: =IF(G15="na","na",VLOOKUP($G15,'Engage Ltg Fixture Table'!$B$8:$HK$770,AL$4,FALSE)) -> F32T8-PREM | AM15: =IF(G15="na","na",VLOOKUP($G15,'Engage Ltg Fixture Table'!$B$8:$HK$770,AM$4,FALSE)) -> Electronic | AN15: =IF(G15="na","na",VLOOKUP($G15,'Engage Ltg Fixture Table'!$B$8:$HK$770,AN$4,FALSE)) -> 1 | AO15: =IF(G15="na","na",VLOOKUP($G15,'Engage Ltg Fixture Table'!$B$8:$HK$770,AO$4,FALSE)) -> 0.031 | AP15: added from DEER2008.3.02 measure list | AQ15: ="ID: "&TEXT(B15,"000")&"; "&VLOOKUP($F15,'Engage Ltg Fixture Table'!$B$8:$HK$770,7,FALSE)&" ==> "&VLOOKUP($H15,'Engage Ltg Fixture Table'!$B$8:$HK$770,7,FALSE) -> ID: 004; FL, (1) 48in, ES lamp, ES Mag, W/fixt=43 ==> FL, (1) 46in, T5, PS Ballast, W/fixt=33 | AS15: 10045-10423
B16: 5 | C16: Com-ILtg-PrimLF-LF-ca10066-cd10250-ms10424 | D16: Linear Fluorescent | E16: Linear Fluorescent (Primary Schedule) | F16: 10066 | G16: 10250 | H16: 10424 | I16: No | J16: No | K16: Yes | L16: Yes | M16: 8 | N16: -4 | O16: =VLOOKUP($H16,'Engage Ltg Fixture Table'!$B$8:$HK$770,O$4,FALSE) -> Linear Fluorescent | P16: =VLOOKUP($H16,'Engage Ltg Fixture Table'!$B$8:$HK$770,P$4,FALSE) -> F42PL | Q16: =VLOOKUP($H16,'Engage Ltg Fixture Table'!$B$8:$HK$770,Q$4,FALSE) -> T5 | R16: =VLOOKUP($H16,'Engage Ltg Fixture Table'!$B$8:$HK$770,R$4,FALSE) -> 46 inch | S16: =VLOOKUP($H16,'Engage Ltg Fixture Table'!$B$8:$HK$770,S$4,FALSE) -> 2 | T16: =VLOOKUP($H16,'Engage Ltg Fixture Table'!$B$8:$HK$770,T$4,FALSE) -> F28T5 | U16: =VLOOKUP($H16,'Engage Ltg Fixture Table'!$B$8:$HK$770,U$4,FALSE) -> Electronic | V16: =VLOOKUP($H16,'Engage Ltg Fixture Table'!$B$8:$HK$770,V$4,FALSE) -> 1 | W16: =VLOOKUP($H16,'Engage Ltg Fixture Table'!$B$8:$HK$770,W$4,FALSE) -> 0.064 | X16: =VLOOKUP($F16,'Engage Ltg Fixture Table'!$B$8:$HK$770,X$4,FALSE) -> Linear Fluorescent | Y16: =VLOOKUP($F16,'Engage Ltg Fixture Table'!$B$8:$HK$770,Y$4,FALSE) -> F42EE | Z16: =VLOOKUP($F16,'Engage Ltg Fixture Table'!$B$8:$HK$770,Z$4,FALSE) -> T12 | AA16: =VLOOKUP($F16,'Engage Ltg Fixture Table'!$B$8:$HK$770,AA$4,FALSE) -> 48 inch | AB16: =VLOOKUP($F16,'Engage Ltg Fixture Table'!$B$8:$HK$770,AB$4,FALSE) -> 2 | AC16: =VLOOKUP($F16,'Engage Ltg Fixture Table'!$B$8:$HK$770,AC$4,FALSE) -> F40T12/ES | AD16: =VLOOKUP($F16,'Engage Ltg Fixture Table'!$B$8:$HK$770,AD$4,FALSE) -> Mag-ES | AE16: =VLOOKUP($F16,'Engage Ltg Fixture Table'!$B$8:$HK$770,AE$4,FALSE) -> 1 | AF16: =VLOOKUP($F16,'Engage Ltg Fixture Table'!$B$8:$HK$770,AF$4,FALSE) -> 0.072 | AG16: =IF(G16="na","na",VLOOKUP($G16,'Engage Ltg Fixture Table'!$B$8:$HK$770,AG$4,FALSE)) -> Linear Fluorescent | AH16: =IF(G16="na","na",VLOOKUP($G16,'Engage Ltg Fixture Table'!$B$8:$HK$770,AH$4,FALSE)) -> F42LL (G1) | AI16: =IF(G16="na","na",VLOOKUP($G16,'Engage Ltg Fixture Table'!$B$8:$HK$770,AI$4,FALSE)) -> T8 | AJ16: =IF(G16="na","na",VLOOKUP($G16,'Engage Ltg Fixture Table'!$B$8:$HK$770,AJ$4,FALSE)) -> 48in 1st Gen | AK16: =IF(G16="na","na",VLOOKUP($G16,'Engage Ltg Fixture Table'!$B$8:$HK$770,AK$4,FALSE)) -> 2 | AL16: =IF(G16="na","na",VLOOKUP($G16,'Engage Ltg Fixture Table'!$B$8:$HK$770,AL$4,FALSE)) -> F32T8-STD | AM16: =IF(G16="na","na",VLOOKUP($G16,'Engage Ltg Fixture Table'!$B$8:$HK$770,AM$4,FALSE)) -> Electronic | AN16: =IF(G16="na","na",VLOOKUP($G16,'Engage Ltg Fixture Table'!$B$8:$HK$770,AN$4,FALSE)) -> 1 | AO16: =IF(G16="na","na",VLOOKUP($G16,'Engage Ltg Fixture Table'!$B$8:$HK$770,AO$4,FALSE)) -> 0.06 | AP16: added from DEER2008.3.02 measure list | AQ16: ="ID: "&TEXT(B16,"000")&"; "&VLOOKUP($F16,'Engage Ltg Fixture Table'!$B$8:$HK$770,7,FALSE)&" ==> "&VLOOKUP($H16,'Engage Ltg Fixture Table'!$B$8:$HK$770,7,FALSE) -> ID: 005; FL, (2) 48in, ES lamp, ES Mag, W/fixt=72 ==> FL, (2) 46in, T5, PS Ballast, W/fixt=64 | AS16: 10066-10424
B17: 6 | C17: Com-ILtg-PrimLF-LF-ca10066-cd10313-ms10424 | D17: Linear Fluorescent | E17: Linear Fluorescent (Primary Schedule) | F17: 10066 | G17: 10313 | H17: 10424 | I17: Yes | J17: Yes | K17: No | L17: No | M17: 8 | N17: -5 | O17: =VLOOKUP($H17,'Engage Ltg Fixture Table'!$B$8:$HK$770,O$4,FALSE) -> Linear Fluorescent | P17: =VLOOKUP($H17,'Engage Ltg Fixture Table'!$B$8:$HK$770,P$4,FALSE) -> F42PL | Q17: =VLOOKUP($H17,'Engage Ltg Fixture Table'!$B$8:$HK$770,Q$4,FALSE) -> T5 | R17: =VLOOKUP($H17,'Engage Ltg Fixture Table'!$B$8:$HK$770,R$4,FALSE) -> 46 inch | S17: =VLOOKUP($H17,'Engage Ltg Fixture Table'!$B$8:$HK$770,S$4,FALSE) -> 2 | T17: =VLOOKUP($H17,'Engage Ltg Fixture Table'!$B$8:$HK$770,T$4,FALSE) -> F28T5 | U17: =VLOOKUP($H17,'Engage Ltg Fixture Table'!$B$8:$HK$770,U$4,FALSE) -> Electronic | V17: =VLOOKUP($H17,'Engage Ltg Fixture Table'!$B$8:$HK$770,V$4,FALSE) -> 1 | W17: =VLOOKUP($H17,'Engage Ltg Fixture Table'!$B$8:$HK$770,W$4,FALSE) -> 0.064 | X17: =VLOOKUP($F17,'Engage Ltg Fixture Table'!$B$8:$HK$770,X$4,FALSE) -> Linear Fluorescent | Y17: =VLOOKUP($F17,'Engage Ltg Fixture Table'!$B$8:$HK$770,Y$4,FALSE) -> F42EE | Z17: =VLOOKUP($F17,'Engage Ltg Fixture Table'!$B$8:$HK$770,Z$4,FALSE) -> T12 | AA17: =VLOOKUP($F17,'Engage Ltg Fixture Table'!$B$8:$HK$770,AA$4,FALSE) -> 48 inch | AB17: =VLOOKUP($F17,'Engage Ltg Fixture Table'!$B$8:$HK$770,AB$4,FALSE) -> 2 | AC17: =VLOOKUP($F17,'Engage Ltg Fixture Table'!$B$8:$HK$770,AC$4,FALSE) -> F40T12/ES | AD17: =VLOOKUP($F17,'Engage Ltg Fixture Table'!$B$8:$HK$770,AD$4,FALSE) -> Mag-ES | AE17: =VLOOKUP($F17,'Engage Ltg Fixture Table'!$B$8:$HK$770,AE$4,FALSE) -> 1 | AF17: =VLOOKUP($F17,'Engage Ltg Fixture Table'!$B$8:$HK$770,AF$4,FALSE) -> 0.072 | AG17: =IF(G17="na","na",VLOOKUP($G17,'Engage Ltg Fixture Table'!$B$8:$HK$770,AG$4,FALSE)) -> Linear Fluorescent | AH17: =IF(G17="na","na",VLOOKUP($G17,'Engage Ltg Fixture Table'!$B$8:$HK$770,AH$4,FALSE)) -> F42ILL (G2) | AI17: =IF(G17="na","na",VLOOKUP($G17,'Engage Ltg Fixture Table'!$B$8:$HK$770,AI$4,FALSE)) -> T8 | AJ17: =IF(G17="na","na",VLOOKUP($G17,'Engage Ltg Fixture Table'!$B$8:$HK$770,AJ$4,FALSE)) -> 48in 2nd Gen | AK17: =IF(G17="na","na",VLOOKUP($G17,'Engage Ltg Fixture Table'!$B$8:$HK$770,AK$4,FALSE)) -> 2 | AL17: =IF(G17="na","na",VLOOKUP($G17,'Engage Ltg Fixture Table'!$B$8:$HK$770,AL$4,FALSE)) -> F32T8-PREM | AM17: =IF(G17="na","na",VLOOKUP($G17,'Engage Ltg Fixture Table'!$B$8:$HK$770,AM$4,FALSE)) -> Electronic | AN17: =IF(G17="na","na",VLOOKUP($G17,'Engage Ltg Fixture Table'!$B$8:$HK$770,AN$4,FALSE)) -> 1 | AO17: =IF(G17="na","na",VLOOKUP($G17,'Engage Ltg Fixture Table'!$B$8:$HK$770,AO$4,FALSE)) -> 0.059 | AP17: added from DEER2008.3.02 measure list | AQ17: ="ID: "&TEXT(B17,"000")&"; "&VLOOKUP($F17,'Engage Ltg Fixture Table'!$B$8:$HK$770,7,FALSE)&" ==> "&VLOOKUP($H17,'Engage Ltg Fixture Table'!$B$8:$HK$770,7,FALSE) -> ID: 006; FL, (2) 48in, ES lamp, ES Mag, W/fixt=72 ==> FL, (2) 46in, T5, PS Ballast, W/fixt=64 | AS17: 10066-10424
B18: 7 | C18: Com-ILtg-PrimLF-LF-ca10075-cd10250-ms10424 | D18: Linear Fluorescent | E18: Linear Fluorescent (Primary Schedule) | F18: 10075 | G18: 10250 | H18: 10424 | I18: No | J18: No | K18: Yes | L18: Yes | M18: 51 | N18: -4 | O18: =VLOOKUP($H18,'Engage Ltg Fixture Table'!$B$8:$HK$770,O$4,FALSE) -> Linear Fluorescent | P18: =VLOOKUP($H18,'Engage Ltg Fixture Table'!$B$8:$HK$770,P$4,FALSE) -> F42PL | Q18: =VLOOKUP($H18,'Engage Ltg Fixture Table'!$B$8:$HK$770,Q$4,FALSE) -> T5 | R18: =VLOOKUP($H18,'Engage Ltg Fixture Table'!$B$8:$HK$770,R$4,FALSE) -> 46 inch | S18: =VLOOKUP($H18,'Engage Ltg Fixture Table'!$B$8:$HK$770,S$4,FALSE) -> 2 | T18: =VLOOKUP($H18,'Engage Ltg Fixture Table'!$B$8:$HK$770,T$4,FALSE) -> F28T5 | U18: =VLOOKUP($H18,'Engage Ltg Fixture Table'!$B$8:$HK$770,U$4,FALSE) -> Electronic | V18: =VLOOKUP($H18,'Engage Ltg Fixture Table'!$B$8:$HK$770,V$4,FALSE) -> 1 | W18: =VLOOKUP($H18,'Engage Ltg Fixture Table'!$B$8:$HK$770,W$4,FALSE) -> 0.064 | X18: =VLOOKUP($F18,'Engage Ltg Fixture Table'!$B$8:$HK$770,X$4,FALSE) -> Linear Fluorescent | Y18: =VLOOKUP($F18,'Engage Ltg Fixture Table'!$B$8:$HK$770,Y$4,FALSE) -> F43EE | Z18: =VLOOKUP($F18,'Engage Ltg Fixture Table'!$B$8:$HK$770,Z$4,FALSE) -> T12 | AA18: =VLOOKUP($F18,'Engage Ltg Fixture Table'!$B$8:$HK$770,AA$4,FALSE) -> 48 inch | AB18: =VLOOKUP($F18,'Engage Ltg Fixture Table'!$B$8:$HK$770,AB$4,FALSE) -> 3 | AC18: =VLOOKUP($F18,'Engage Ltg Fixture Table'!$B$8:$HK$770,AC$4,FALSE) -> F40T12/ES | AD18: =VLOOKUP($F18,'Engage Ltg Fixture Table'!$B$8:$HK$770,AD$4,FALSE) -> Mag-ES | AE18: =VLOOKUP($F18,'Engage Ltg Fixture Table'!$B$8:$HK$770,AE$4,FALSE) -> 1 | AF18: =VLOOKUP($F18,'Engage Ltg Fixture Table'!$B$8:$HK$770,AF$4,FALSE) -> 0.115 | AG18: =IF(G18="na","na",VLOOKUP($G18,'Engage Ltg Fixture Table'!$B$8:$HK$770,AG$4,FALSE)) -> Linear Fluorescent | AH18: =IF(G18="na","na",VLOOKUP($G18,'Engage Ltg Fixture Table'!$B$8:$HK$770,AH$4,FALSE)) -> F42LL (G1) | AI18: =IF(G18="na","na",VLOOKUP($G18,'Engage Ltg Fixture Table'!$B$8:$HK$770,AI$4,FALSE)) -> T8 | AJ18: =IF(G18="na","na",VLOOKUP($G18,'Engage Ltg Fixture Table'!$B$8:$HK$770,AJ$4,FALSE)) -> 48in 1st Gen | AK18: =IF(G18="na","na",VLOOKUP($G18,'Engage Ltg Fixture Table'!$B$8:$HK$770,AK$4,FALSE)) -> 2 | AL18: =IF(G18="na","na",VLOOKUP($G18,'Engage Ltg Fixture Table'!$B$8:$HK$770,AL$4,FALSE)) -> F32T8-STD | AM18: =IF(G18="na","na",VLOOKUP($G18,'Engage Ltg Fixture Table'!$B$8:$HK$770,AM$4,FALSE)) -> Electronic | AN18: =IF(G18="na","na",VLOOKUP($G18,'Engage Ltg Fixture Table'!$B$8:$HK$770,AN$4,FALSE)) -> 1 | AO18: =IF(G18="na","na",VLOOKUP($G18,'Engage Ltg Fixture Table'!$B$8:$HK$770,AO$4,FALSE)) -> 0.06 | AP18: added from DEER2008.3.02 measure list | AQ18: ="ID: "&TEXT(B18,"000")&"; "&VLOOKUP($F18,'Engage Ltg Fixture Table'!$B$8:$HK$770,7,FALSE)&" ==> "&VLOOKUP($H18,'Engage Ltg Fixture Table'!$B$8:$HK$770,7,FALSE) -> ID: 007; FL, (3) 48in, ES lamp, ES Mag, W/fixt=115 ==> FL, (2) 46in, T5, PS Ballast, W/fixt=64 | AS18: 10075-10424
B19: 8 | C19: Com-ILtg-PrimLF-LF-ca10075-cd10313-ms10424 | D19: Linear Fluorescent | E19: Linear Fluorescent (Primary Schedule) | F19: 10075 | G19: 10313 | H19: 10424 | I19: Yes | J19: Yes | K19: No | L19: No | M19: 51 | N19: -5 | O19: =VLOOKUP($H19,'Engage Ltg Fixture Table'!$B$8:$HK$770,O$4,FALSE) -> Linear Fluorescent | P19: =VLOOKUP($H19,'Engage Ltg Fixture Table'!$B$8:$HK$770,P$4,FALSE) -> F42PL | Q19: =VLOOKUP($H19,'Engage Ltg Fixture Table'!$B$8:$HK$770,Q$4,FALSE) -> T5 | R19: =VLOOKUP($H19,'Engage Ltg Fixture Table'!$B$8:$HK$770,R$4,FALSE) -> 46 inch | S19: =VLOOKUP($H19,'Engage Ltg Fixture Table'!$B$8:$HK$770,S$4,FALSE) -> 2 | T19: =VLOOKUP($H19,'Engage Ltg Fixture Table'!$B$8:$HK$770,T$4,FALSE) -> F28T5 | U19: =VLOOKUP($H19,'Engage Ltg Fixture Table'!$B$8:$HK$770,U$4,FALSE) -> Electronic | V19: =VLOOKUP($H19,'Engage Ltg Fixture Table'!$B$8:$HK$770,V$4,FALSE) -> 1 | W19: =VLOOKUP($H19,'Engage Ltg Fixture Table'!$B$8:$HK$770,W$4,FALSE) -> 0.064 | X19: =VLOOKUP($F19,'Engage Ltg Fixture Table'!$B$8:$HK$770,X$4,FALSE) -> Linear Fluorescent | Y19: =VLOOKUP($F19,'Engage Ltg Fixture Table'!$B$8:$HK$770,Y$4,FALSE) -> F43EE | Z19: =VLOOKUP($F19,'Engage Ltg Fixture Table'!$B$8:$HK$770,Z$4,FALSE) -> T12 | AA19: =VLOOKUP($F19,'Engage Ltg Fixture Table'!$B$8:$HK$770,AA$4,FALSE) -> 48 inch | AB19: =VLOOKUP($F19,'Engage Ltg Fixture Table'!$B$8:$HK$770,AB$4,FALSE) -> 3 | AC19: =VLOOKUP($F19,'Engage Ltg Fixture Table'!$B$8:$HK$770,AC$4,FALSE) -> F40T12/ES | AD19: =VLOOKUP($F19,'Engage Ltg Fixture Table'!$B$8:$HK$770,AD$4,FALSE) -> Mag-ES | AE19: =VLOOKUP($F19,'Engage Ltg Fixture Table'!$B$8:$HK$770,AE$4,FALSE) -> 1 | AF19: =VLOOKUP($F19,'Engage Ltg Fixture Table'!$B$8:$HK$770,AF$4,FALSE) -> 0.115 | AG19: =IF(G19="na","na",VLOOKUP($G19,'Engage Ltg Fixture Table'!$B$8:$HK$770,AG$4,FALSE)) -> Linear Fluorescent | AH19: =IF(G19="na","na",VLOOKUP($G19,'Engage Ltg Fixture Table'!$B$8:$HK$770,AH$4,FALSE)) -> F42ILL (G2) | AI19: =IF(G19="na","na",VLOOKUP($G19,'Engage Ltg Fixture Table'!$B$8:$HK$770,AI$4,FALSE)) -> T8 | AJ19: =IF(G19="na","na",VLOOKUP($G19,'Engage Ltg Fixture Table'!$B$8:$HK$770,AJ$4,FALSE)) -> 48in 2nd Gen | AK19: =IF(G19="na","na",VLOOKUP($G19,'Engage Ltg Fixture Table'!$B$8:$HK$770,AK$4,FALSE)) -> 2 | AL19: =IF(G19="na","na",VLOOKUP($G19,'Engage Ltg Fixture Table'!$B$8:$HK$770,AL$4,FALSE)) -> F32T8-PREM | AM19: =IF(G19="na","na",VLOOKUP($G19,'Engage Ltg Fixture Table'!$B$8:$HK$770,AM$4,FALSE)) -> Electronic | AN19: =IF(G19="na","na",VLOOKUP($G19,'Engage Ltg Fixture Table'!$B$8:$HK$770,AN$4,FALSE)) -> 1 | AO19: =IF(G19="na","na",VLOOKUP($G19,'Engage Ltg Fixture Table'!$B$8:$HK$770,AO$4,FALSE)) -> 0.059 | AP19: added from DEER2008.3.02 measure list | AQ19: ="ID: "&TEXT(B19,"000")&"; "&VLOOKUP($F19,'Engage Ltg Fixture Table'!$B$8:$HK$770,7,FALSE)&" ==> "&VLOOKUP($H19,'Engage Ltg Fixture Table'!$B$8:$HK$770,7,FALSE) -> ID: 008; FL, (3) 48in, ES lamp, ES Mag, W/fixt=115 ==> FL, (2) 46in, T5, PS Ballast, W/fixt=64 | AS19: 10075-10424
B20: 9 | C20: Com-ILtg-PrimLF-LF-ca10082-cd10270-ms10425 | D20: Linear Fluorescent | E20: Linear Fluorescent (Primary Schedule) | F20: 10082 | G20: 10270 | H20: 10425 | I20: No | J20: No | K20: Yes | L20: Yes | M20: 47 | N20: 21 | O20: =VLOOKUP($H20,'Engage Ltg Fixture Table'!$B$8:$HK$770,O$4,FALSE) -> Linear Fluorescent | P20: =VLOOKUP($H20,'Engage Ltg Fixture Table'!$B$8:$HK$770,P$4,FALSE) -> F43PL/2 | Q20: =VLOOKUP($H20,'Engage Ltg Fixture Table'!$B$8:$HK$770,Q$4,FALSE) -> T5 | R20: =VLOOKUP($H20,'Engage Ltg Fixture Table'!$B$8:$HK$770,R$4,FALSE) -> 46 inch | S20: =VLOOKUP($H20,'Engage Ltg Fixture Table'!$B$8:$HK$770,S$4,FALSE) -> 3 | T20: =VLOOKUP($H20,'Engage Ltg Fixture Table'!$B$8:$HK$770,T$4,FALSE) -> F28T5 | U20: =VLOOKUP($H20,'Engage Ltg Fixture Table'!$B$8:$HK$770,U$4,FALSE) -> Electronic | V20: =VLOOKUP($H20,'Engage Ltg Fixture Table'!$B$8:$HK$770,V$4,FALSE) -> 2 | W20: =VLOOKUP($H20,'Engage Ltg Fixture Table'!$B$8:$HK$770,W$4,FALSE) -> 0.097 | X20: =VLOOKUP($F20,'Engage Ltg Fixture Table'!$B$8:$HK$770,X$4,FALSE) -> Linear Fluorescent | Y20: =VLOOKUP($F20,'Engage Ltg Fixture Table'!$B$8:$HK$770,Y$4,FALSE) -> F44EE | Z20: =VLOOKUP($F20,'Engage Ltg Fixture Table'!$B$8:$HK$770,Z$4,FALSE) -> T12 | AA20: =VLOOKUP($F20,'Engage Ltg Fixture Table'!$B$8:$HK$770,AA$4,FALSE) -> 48 inch | AB20: =VLOOKUP($F20,'Engage Ltg Fixture Table'!$B$8:$HK$770,AB$4,FALSE) -> 4 | AC20: =VLOOKUP($F20,'Engage Ltg Fixture Table'!$B$8:$HK$770,AC$4,FALSE) -> F40T12/ES | AD20: =VLOOKUP($F20,'Engage Ltg Fixture Table'!$B$8:$HK$770,AD$4,FALSE) -> Mag-ES | AE20: =VLOOKUP($F20,'Engage Ltg Fixture Table'!$B$8:$HK$770,AE$4,FALSE) -> 2 | AF20: =VLOOKUP($F20,'Engage Ltg Fixture Table'!$B$8:$HK$770,AF$4,FALSE) -> 0.144 | AG20: =IF(G20="na","na",VLOOKUP($G20,'Engage Ltg Fixture Table'!$B$8:$HK$770,AG$4,FALSE)) -> Linear Fluorescent | AH20: =IF(G20="na","na",VLOOKUP($G20,'Engage Ltg Fixture Table'!$B$8:$HK$770,AH$4,FALSE)) -> F44LL (G1) | AI20: =IF(G20="na","na",VLOOKUP($G20,'Engage Ltg Fixture Table'!$B$8:$HK$770,AI$4,FALSE)) -> T8 | AJ20: =IF(G20="na","na",VLOOKUP($G20,'Engage Ltg Fixture Table'!$B$8:$HK$770,AJ$4,FALSE)) -> 48in 1st Gen | AK20: =IF(G20="na","na",VLOOKUP($G20,'Engage Ltg Fixture Table'!$B$8:$HK$770,AK$4,FALSE)) -> 4 | AL20: =IF(G20="na","na",VLOOKUP($G20,'Engage Ltg Fixture Table'!$B$8:$HK$770,AL$4,FALSE)) -> F32T8-STD | AM20: =IF(G20="na","na",VLOOKUP($G20,'Engage Ltg Fixture Table'!$B$8:$HK$770,AM$4,FALSE)) -> Electronic | AN20: =IF(G20="na","na",VLOOKUP($G20,'Engage Ltg Fixture Table'!$B$8:$HK$770,AN$4,FALSE)) -> 1 | AO20: =IF(G20="na","na",VLOOKUP($G20,'Engage Ltg Fixture Table'!$B$8:$HK$770,AO$4,FALSE)) -> 0.118 | AP20: added from DEER2008.3.02 measure list | AQ20: ="ID: "&TEXT(B20,"000")&"; "&VLOOKUP($F20,'Engage Ltg Fixture Table'!$B$8:$HK$770,7,FALSE)&" ==> "&VLOOKUP($H20,'Engage Ltg Fixture Table'!$B$8:$HK$770,7,FALSE) -> ID: 009; FL, (4) 48in, ES lamp, ES Mag, W/fixt=144 ==> FL, (3) 46in, T5, (2) PS Ballasts, W/fixt=97 | AS20: 10082-10425
B21: 10 | C21: Com-ILtg-PrimLF-LF-ca10082-cd10329-ms10425 | D21: Linear Fluorescent | E21: Linear Fluorescent (Primary Schedule) | F21: 10082 | G21: 10329 | H21: 10425 | I21: Yes | J21: Yes | K21: No | L21: No | M21: 47 | N21: 5 | O21: =VLOOKUP($H21,'Engage Ltg Fixture Table'!$B$8:$HK$770,O$4,FALSE) -> Linear Fluorescent | P21: =VLOOKUP($H21,'Engage Ltg Fixture Table'!$B$8:$HK$770,P$4,FALSE) -> F43PL/2 | Q21: =VLOOKUP($H21,'Engage Ltg Fixture Table'!$B$8:$HK$770,Q$4,FALSE) -> T5 | R21: =VLOOKUP($H21,'Engage Ltg Fixture Table'!$B$8:$HK$770,R$4,FALSE) -> 46 inch | S21: =VLOOKUP($H21,'Engage Ltg Fixture Table'!$B$8:$HK$770,S$4,FALSE) -> 3 | T21: =VLOOKUP($H21,'Engage Ltg Fixture Table'!$B$8:$HK$770,T$4,FALSE) -> F28T5 | U21: =VLOOKUP($H21,'Engage Ltg Fixture Table'!$B$8:$HK$770,U$4,FALSE) -> Electronic | V21: =VLOOKUP($H21,'Engage Ltg Fixture Table'!$B$8:$HK$770,V$4,FALSE) -> 2 | W21: =VLOOKUP($H21,'Engage Ltg Fixture Table'!$B$8:$HK$770,W$4,FALSE) -> 0.097 | X21: =VLOOKUP($F21,'Engage Ltg Fixture Table'!$B$8:$HK$770,X$4,FALSE) -> Linear Fluorescent | Y21: =VLOOKUP($F21,'Engage Ltg Fixture Table'!$B$8:$HK$770,Y$4,FALSE) -> F44EE | Z21: =VLOOKUP($F21,'Engage Ltg Fixture Table'!$B$8:$HK$770,Z$4,FALSE) -> T12 | AA21: =VLOOKUP($F21,'Engage Ltg Fixture Table'!$B$8:$HK$770,AA$4,FALSE) -> 48 inch | AB21: =VLOOKUP($F21,'Engage Ltg Fixture Table'!$B$8:$HK$770,AB$4,FALSE) -> 4 | AC21: =VLOOKUP($F21,'Engage Ltg Fixture Table'!$B$8:$HK$770,AC$4,FALSE) -> F40T12/ES | AD21: =VLOOKUP($F21,'Engage Ltg Fixture Table'!$B$8:$HK$770,AD$4,FALSE) -> Mag-ES | AE21: =VLOOKUP($F21,'Engage Ltg Fixture Table'!$B$8:$HK$770,AE$4,FALSE) -> 2 | AF21: =VLOOKUP($F21,'Engage Ltg Fixture Table'!$B$8:$HK$770,AF$4,FALSE) -> 0.144 | AG21: =IF(G21="na","na",VLOOKUP($G21,'Engage Ltg Fixture Table'!$B$8:$HK$770,AG$4,FALSE)) -> Linear Fluorescent | AH21: =IF(G21="na","na",VLOOKUP($G21,'Engage Ltg Fixture Table'!$B$8:$HK$770,AH$4,FALSE)) -> F44ILL-R (G2) | AI21: =IF(G21="na","na",VLOOKUP($G21,'Engage Ltg Fixture Table'!$B$8:$HK$770,AI$4,FALSE)) -> T8 | AJ21: =IF(G21="na","na",VLOOKUP($G21,'Engage Ltg Fixture Table'!$B$8:$HK$770,AJ$4,FALSE)) -> 48in 2nd Gen | AK21: =IF(G21="na","na",VLOOKUP($G21,'Engage Ltg Fixture Table'!$B$8:$HK$770,AK$4,FALSE)) -> 4 | AL21: =IF(G21="na","na",VLOOKUP($G21,'Engage Ltg Fixture Table'!$B$8:$HK$770,AL$4,FALSE)) -> F32T8-PREM | AM21: =IF(G21="na","na",VLOOKUP($G21,'Engage Ltg Fixture Table'!$B$8:$HK$770,AM$4,FALSE)) -> Electronic | AN21: =IF(G21="na","na",VLOOKUP($G21,'Engage Ltg Fixture Table'!$B$8:$HK$770,AN$4,FALSE)) -> 1 | AO21: =IF(G21="na","na",VLOOKUP($G21,'Engage Ltg Fixture Table'!$B$8:$HK$770,AO$4,FALSE)) -> 0.102 | AP21: added from DEER2008.3.02 measure list | AQ21: ="ID: "&TEXT(B21,"000")&"; "&VLOOKUP($F21,'Engage Ltg Fixture Table'!$B$8:$HK$770,7,FALSE)&" ==> "&VLOOKUP($H21,'Engage Ltg Fixture Table'!$B$8:$HK$770,7,FALSE) -> ID: 010; FL, (4) 48in, ES lamp, ES Mag, W/fixt=144 ==> FL, (3) 46in, T5, (2) PS Ballasts, W/fixt=97 | AS21: 10082-10425
B22: 11 | C22: Com-ILtg-PrimLF-LF-ca10329-ms10425 | D22: Linear Fluorescent | E22: Linear Fluorescent (Primary Schedule) | F22: 10329 | G22: na | H22: 10425 | I22: No | J22: No | K22: No | L22: No | M22: 5 | N22: na | O22: =VLOOKUP($H22,'Engage Ltg Fixture Table'!$B$8:$HK$770,O$4,FALSE) -> Linear Fluorescent | P22: =VLOOKUP($H22,'Engage Ltg Fixture Table'!$B$8:$HK$770,P$4,FALSE) -> F43PL/2 | Q22: =VLOOKUP($H22,'Engage Ltg Fixture Table'!$B$8:$HK$770,Q$4,FALSE) -> T5 | R22: =VLOOKUP($H22,'Engage Ltg Fixture Table'!$B$8:$HK$770,R$4,FALSE) -> 46 inch | S22: =VLOOKUP($H22,'Engage Ltg Fixture Table'!$B$8:$HK$770,S$4,FALSE) -> 3 | T22: =VLOOKUP($H22,'Engage Ltg Fixture Table'!$B$8:$HK$770,T$4,FALSE) -> F28T5 | U22: =VLOOKUP($H22,'Engage Ltg Fixture Table'!$B$8:$HK$770,U$4,FALSE) -> Electronic | V22: =VLOOKUP($H22,'Engage Ltg Fixture Table'!$B$8:$HK$770,V$4,FALSE) -> 2 | W22: =VLOOKUP($H22,'Engage Ltg Fixture Table'!$B$8:$HK$770,W$4,FALSE) -> 0.097 | X22: =VLOOKUP($F22,'Engage Ltg Fixture Table'!$B$8:$HK$770,X$4,FALSE) -> Linear Fluorescent | Y22: =VLOOKUP($F22,'Engage Ltg Fixture Table'!$B$8:$HK$770,Y$4,FALSE) -> F44ILL-R (G2) | Z22: =VLOOKUP($F22,'Engage Ltg Fixture Table'!$B$8:$HK$770,Z$4,FALSE) -> T8 | AA22: =VLOOKUP($F22,'Engage Ltg Fixture Table'!$B$8:$HK$770,AA$4,FALSE) -> 48in 2nd Gen | AB22: =VLOOKUP($F22,'Engage Ltg Fixture Table'!$B$8:$HK$770,AB$4,FALSE) -> 4 | AC22: =VLOOKUP($F22,'Engage Ltg Fixture Table'!$B$8:$HK$770,AC$4,FALSE) -> F32T8-PREM | AD22: =VLOOKUP($F22,'Engage Ltg Fixture Table'!$B$8:$HK$770,AD$4,FALSE) -> Electronic | AE22: =VLOOKUP($F22,'Engage Ltg Fixture Table'!$B$8:$HK$770,AE$4,FALSE) -> 1 | AF22: =VLOOKUP($F22,'Engage Ltg Fixture Table'!$B$8:$HK$770,AF$4,FALSE) -> 0.102 | AG22: =IF(G22="na","na",VLOOKUP($G22,'Engage Ltg Fixture Table'!$B$8:$HK$770,AG$4,FALSE)) -> na | AH22: =IF(G22="na","na",VLOOKUP($G22,'Engage Ltg Fixture Table'!$B$8:$HK$770,AH$4,FALSE)) -> na | AI22: =IF(G22="na","na",VLOOKUP($G22,'Engage Ltg Fixture Table'!$B$8:$HK$770,AI$4,FALSE)) -> na | AJ22: =IF(G22="na","na",VLOOKUP($G22,'Engage Ltg Fixture Table'!$B$8:$HK$770,AJ$4,FALSE)) -> na | AK22: =IF(G22="na","na",VLOOKUP($G22,'Engage Ltg Fixture Table'!$B$8:$HK$770,AK$4,FALSE)) -> na | AL22: =IF(G22="na","na",VLOOKUP($G22,'Engage Ltg Fixture Table'!$B$8:$HK$770,AL$4,FALSE)) -> na | AM22: =IF(G22="na","na",VLOOKUP($G22,'Engage Ltg Fixture Table'!$B$8:$HK$770,AM$4,FALSE)) -> na | AN22: =IF(G22="na","na",VLOOKUP($G22,'Engage Ltg Fixture Table'!$B$8:$HK$770,AN$4,FALSE)) -> na | AO22: =IF(G22="na","na",VLOOKUP($G22,'Engage Ltg Fixture Table'!$B$8:$HK$770,AO$4,FALSE)) -> na | AP22: added from DEER2008.3.02 measure list | AQ22: ="ID: "&TEXT(B22,"000")&"; "&VLOOKUP($F22,'Engage Ltg Fixture Table'!$B$8:$HK$770,7,FALSE)&" ==> "&VLOOKUP($H22,'Engage Ltg Fixture Table'!$B$8:$HK$770,7,FALSE) -> ID: 011; FL, (4) 48in, T8 lamp, IS EB, W/fixt=102 ==> FL, (3) 46in, T5, (2) PS Ballasts, W/fixt=97 | AS22: 10329-10425
B23: 12 | C23: Com-ILtg-PrimLF-LF-ca10066-cd10250-ms10445 | D23: Linear Fluorescent | E23: Linear Fluorescent (Primary Schedule) | F23: 10066 | G23: 10250 | H23: 10445 | I23: No | J23: No | K23: Yes | L23: Yes | M23: 13 | N23: 1 | O23: =VLOOKUP($H23,'Engage Ltg Fixture Table'!$B$8:$HK$770,O$4,FALSE) -> Linear Fluorescent | P23: =VLOOKUP($H23,'Engage Ltg Fixture Table'!$B$8:$HK$770,P$4,FALSE) -> F41PHL/T2 | Q23: =VLOOKUP($H23,'Engage Ltg Fixture Table'!$B$8:$HK$770,Q$4,FALSE) -> T5HO | R23: =VLOOKUP($H23,'Engage Ltg Fixture Table'!$B$8:$HK$770,R$4,FALSE) -> 46 inch | S23: =VLOOKUP($H23,'Engage Ltg Fixture Table'!$B$8:$HK$770,S$4,FALSE) -> 1 | T23: =VLOOKUP($H23,'Engage Ltg Fixture Table'!$B$8:$HK$770,T$4,FALSE) -> F54T5/HO | U23: =VLOOKUP($H23,'Engage Ltg Fixture Table'!$B$8:$HK$770,U$4,FALSE) -> Electronic | V23: =VLOOKUP($H23,'Engage Ltg Fixture Table'!$B$8:$HK$770,V$4,FALSE) -> 0.5 | W23: =VLOOKUP($H23,'Engage Ltg Fixture Table'!$B$8:$HK$770,W$4,FALSE) -> 0.059 | X23: =VLOOKUP($F23,'Engage Ltg Fixture Table'!$B$8:$HK$770,X$4,FALSE) -> Linear Fluorescent | Y23: =VLOOKUP($F23,'Engage Ltg Fixture Table'!$B$8:$HK$770,Y$4,FALSE) -> F42EE | Z23: =VLOOKUP($F23,'Engage Ltg Fixture Table'!$B$8:$HK$770,Z$4,FALSE) -> T12 | AA23: =VLOOKUP($F23,'Engage Ltg Fixture Table'!$B$8:$HK$770,AA$4,FALSE) -> 48 inch | AB23: =VLOOKUP($F23,'Engage Ltg Fixture Table'!$B$8:$HK$770,AB$4,FALSE) -> 2 | AC23: =VLOOKUP($F23,'Engage Ltg Fixture Table'!$B$8:$HK$770,AC$4,FALSE) -> F40T12/ES | AD23: =VLOOKUP($F23,'Engage Ltg Fixture Table'!$B$8:$HK$770,AD$4,FALSE) -> Mag-ES | AE23: =VLOOKUP($F23,'Engage Ltg Fixture Table'!$B$8:$HK$770,AE$4,FALSE) -> 1 | AF23: =VLOOKUP($F23,'Engage Ltg Fixture Table'!$B$8:$HK$770,AF$4,FALSE) -> 0.072 | AG23: =IF(G23="na","na",VLOOKUP($G23,'Engage Ltg Fixture Table'!$B$8:$HK$770,AG$4,FALSE)) -> Linear Fluorescent | AH23: =IF(G23="na","na",VLOOKUP($G23,'Engage Ltg Fixture Table'!$B$8:$HK$770,AH$4,FALSE)) -> F42LL (G1) | AI23: =IF(G23="na","na",VLOOKUP($G23,'Engage Ltg Fixture Table'!$B$8:$HK$770,AI$4,FALSE)) -> T8 | AJ23: =IF(G23="na","na",VLOOKUP($G23,'Engage Ltg Fixture Table'!$B$8:$HK$770,AJ$4,FALSE)) -> 48in 1st Gen | AK23: =IF(G23="na","na",VLOOKUP($G23,'Engage Ltg Fixture Table'!$B$8:$HK$770,AK$4,FALSE)) -> 2 | AL23: =IF(G23="na","na",VLOOKUP($G23,'Engage Ltg Fixture Table'!$B$8:$HK$770,AL$4,FALSE)) -> F32T8-STD | AM23: =IF(G23="na","na",VLOOKUP($G23,'Engage Ltg Fixture Table'!$B$8:$HK$770,AM$4,FALSE)) -> Electronic | AN23: =IF(G23="na","na",VLOOKUP($G23,'Engage Ltg Fixture Table'!$B$8:$HK$770,AN$4,FALSE)) -> 1 | AO23: =IF(G23="na","na",VLOOKUP($G23,'Engage Ltg Fixture Table'!$B$8:$HK$770,AO$4,FALSE)) -> 0.06 | AP23: added from DEER2008.3.02 measure list | AQ23: ="ID: "&TEXT(B23,"000")&"; "&VLOOKUP($F23,'Engage Ltg Fixture Table'!$B$8:$HK$770,7,FALSE)&" ==> "&VLOOKUP($H23,'Engage Ltg Fixture Table'!$B$8:$HK$770,7,FALSE) -> ID: 012; FL, (2) 48in, ES lamp, ES Mag, W/fixt=72 ==> FL, (1) 46in, T5HO, PS Ballast, W/fixt=59 | AS23: 10066-10445
B24: 13 | C24: Com-ILtg-PrimLF-LF-ca10066-cd10250-ms10446 | D24: Linear Fluorescent | E24: Linear Fluorescent (Primary Schedule) | F24: 10066 | G24: 10250 | H24: 10446 | I24: No | J24: No | K24: Yes | L24: Yes | M24: 10 | N24: -2 | O24: =VLOOKUP($H24,'Engage Ltg Fixture Table'!$B$8:$HK$770,O$4,FALSE) -> Linear Fluorescent | P24: =VLOOKUP($H24,'Engage Ltg Fixture Table'!$B$8:$HK$770,P$4,FALSE) -> F41PHL | Q24: =VLOOKUP($H24,'Engage Ltg Fixture Table'!$B$8:$HK$770,Q$4,FALSE) -> T5HO | R24: =VLOOKUP($H24,'Engage Ltg Fixture Table'!$B$8:$HK$770,R$4,FALSE) -> 46 inch | S24: =VLOOKUP($H24,'Engage Ltg Fixture Table'!$B$8:$HK$770,S$4,FALSE) -> 1 | T24: =VLOOKUP($H24,'Engage Ltg Fixture Table'!$B$8:$HK$770,T$4,FALSE) -> F54T5/HO | U24: =VLOOKUP($H24,'Engage Ltg Fixture Table'!$B$8:$HK$770,U$4,FALSE) -> Electronic | V24: =VLOOKUP($H24,'Engage Ltg Fixture Table'!$B$8:$HK$770,V$4,FALSE) -> 1 | W24: =VLOOKUP($H24,'Engage Ltg Fixture Table'!$B$8:$HK$770,W$4,FALSE) -> 0.062 | X24: =VLOOKUP($F24,'Engage Ltg Fixture Table'!$B$8:$HK$770,X$4,FALSE) -> Linear Fluorescent | Y24: =VLOOKUP($F24,'Engage Ltg Fixture Table'!$B$8:$HK$770,Y$4,FALSE) -> F42EE | Z24: =VLOOKUP($F24,'Engage Ltg Fixture Table'!$B$8:$HK$770,Z$4,FALSE) -> T12 | AA24: =VLOOKUP($F24,'Engage Ltg Fixture Table'!$B$8:$HK$770,AA$4,FALSE) -> 48 inch | AB24: =VLOOKUP($F24,'Engage Ltg Fixture Table'!$B$8:$HK$770,AB$4,FALSE) -> 2 | AC24: =VLOOKUP($F24,'Engage Ltg Fixture Table'!$B$8:$HK$770,AC$4,FALSE) -> F40T12/ES | AD24: =VLOOKUP($F24,'Engage Ltg Fixture Table'!$B$8:$HK$770,AD$4,FALSE) -> Mag-ES | AE24: =VLOOKUP($F24,'Engage Ltg Fixture Table'!$B$8:$HK$770,AE$4,FALSE) -> 1 | AF24: =VLOOKUP($F24,'Engage Ltg Fixture Table'!$B$8:$HK$770,AF$4,FALSE) -> 0.072 | AG24: =IF(G24="na","na",VLOOKUP($G24,'Engage Ltg Fixture Table'!$B$8:$HK$770,AG$4,FALSE)) -> Linear Fluorescent | AH24: =IF(G24="na","na",VLOOKUP($G24,'Engage Ltg Fixture Table'!$B$8:$HK$770,AH$4,FALSE)) -> F42LL (G1) | AI24: =IF(G24="na","na",VLOOKUP($G24,'Engage Ltg Fixture Table'!$B$8:$HK$770,AI$4,FALSE)) -> T8 | AJ24: =IF(G24="na","na",VLOOKUP($G24,'Engage Ltg Fixture Table'!$B$8:$HK$770,AJ$4,FALSE)) -> 48in 1st Gen | AK24: =IF(G24="na","na",VLOOKUP($G24,'Engage Ltg Fixture Table'!$B$8:$HK$770,AK$4,FALSE)) -> 2 | AL24: =IF(G24="na","na",VLOOKUP($G24,'Engage Ltg Fixture Table'!$B$8:$HK$770,AL$4,FALSE)) -> F32T8-STD | AM24: =IF(G24="na","na",VLOOKUP($G24,'Engage Ltg Fixture Table'!$B$8:$HK$770,AM$4,FALSE)) -> Electronic | AN24: =IF(G24="na","na",VLOOKUP($G24,'Engage Ltg Fixture Table'!$B$8:$HK$770,AN$4,FALSE)) -> 1 | AO24: =IF(G24="na","na",VLOOKUP($G24,'Engage Ltg Fixture Table'!$B$8:$HK$770,AO$4,FALSE)) -> 0.06 | AP24: added from DEER2008.3.02 measure list | AQ24: ="ID: "&TEXT(B24,"000")&"; "&VLOOKUP($F24,'Engage Ltg Fixture Table'!$B$8:$HK$770,7,FALSE)&" ==> "&VLOOKUP($H24,'Engage Ltg Fixture Table'!$B$8:$HK$770,7,FALSE) -> ID: 013; FL, (2) 48in, ES lamp, ES Mag, W/fixt=72 ==> FL, (1) 46in, T5HO, PS Ballast, W/fixt=62 | AS24: 10066-10446
B25: 14 | C25: Com-ILtg-PrimLF-LF-ca10066-cd10309-ms10445 | D25: Linear Fluorescent | E25: Linear Fluorescent (Primary Schedule) | F25: 10066 | G25: 10309 | H25: 10445 | I25: Yes | J25: Yes | K25: No | L25: No | M25: 13 | N25: -7 | O25: =VLOOKUP($H25,'Engage Ltg Fixture Table'!$B$8:$HK$770,O$4,FALSE) -> Linear Fluorescent | P25: =VLOOKUP($H25,'Engage Ltg Fixture Table'!$B$8:$HK$770,P$4,FALSE) -> F41PHL/T2 | Q25: =VLOOKUP($H25,'Engage Ltg Fixture Table'!$B$8:$HK$770,Q$4,FALSE) -> T5HO | R25: =VLOOKUP($H25,'Engage Ltg Fixture Table'!$B$8:$HK$770,R$4,FALSE) -> 46 inch | S25: =VLOOKUP($H25,'Engage Ltg Fixture Table'!$B$8:$HK$770,S$4,FALSE) -> 1 | T25: =VLOOKUP($H25,'Engage Ltg Fixture Table'!$B$8:$HK$770,T$4,FALSE) -> F54T5/HO | U25: =VLOOKUP($H25,'Engage Ltg Fixture Table'!$B$8:$HK$770,U$4,FALSE) -> Electronic | V25: =VLOOKUP($H25,'Engage Ltg Fixture Table'!$B$8:$HK$770,V$4,FALSE) -> 0.5 | W25: =VLOOKUP($H25,'Engage Ltg Fixture Table'!$B$8:$HK$770,W$4,FALSE) -> 0.059 | X25: =VLOOKUP($F25,'Engage Ltg Fixture Table'!$B$8:$HK$770,X$4,FALSE) -> Linear Fluorescent | Y25: =VLOOKUP($F25,'Engage Ltg Fixture Table'!$B$8:$HK$770,Y$4,FALSE) -> F42EE | Z25: =VLOOKUP($F25,'Engage Ltg Fixture Table'!$B$8:$HK$770,Z$4,FALSE) -> T12 | AA25: =VLOOKUP($F25,'Engage Ltg Fixture Table'!$B$8:$HK$770,AA$4,FALSE) -> 48 inch | AB25: =VLOOKUP($F25,'Engage Ltg Fixture Table'!$B$8:$HK$770,AB$4,FALSE) -> 2 | AC25: =VLOOKUP($F25,'Engage Ltg Fixture Table'!$B$8:$HK$770,AC$4,FALSE) -> F40T12/ES | AD25: =VLOOKUP($F25,'Engage Ltg Fixture Table'!$B$8:$HK$770,AD$4,FALSE) -> Mag-ES | AE25: =VLOOKUP($F25,'Engage Ltg Fixture Table'!$B$8:$HK$770,AE$4,FALSE) -> 1 | AF25: =VLOOKUP($F25,'Engage Ltg Fixture Table'!$B$8:$HK$770,AF$4,FALSE) -> 0.072 | AG25: =IF(G25="na","na",VLOOKUP($G25,'Engage Ltg Fixture Table'!$B$8:$HK$770,AG$4,FALSE)) -> Linear Fluorescent | AH25: =IF(G25="na","na",VLOOKUP($G25,'Engage Ltg Fixture Table'!$B$8:$HK$770,AH$4,FALSE)) -> F42ILL-R (G2) | AI25: =IF(G25="na","na",VLOOKUP($G25,'Engage Ltg Fixture Table'!$B$8:$HK$770,AI$4,FALSE)) -> T8 | AJ25: =IF(G25="na","na",VLOOKUP($G25,'Engage Ltg Fixture Table'!$B$8:$HK$770,AJ$4,FALSE)) -> 48in 2nd Gen | AK25: =IF(G25="na","na",VLOOKUP($G25,'Engage Ltg Fixture Table'!$B$8:$HK$770,AK$4,FALSE)) -> 2 | AL25: =IF(G25="na","na",VLOOKUP($G25,'Engage Ltg Fixture Table'!$B$8:$HK$770,AL$4,FALSE)) -> F32T8-PREM | AM25: =IF(G25="na","na",VLOOKUP($G25,'Engage Ltg Fixture Table'!$B$8:$HK$770,AM$4,FALSE)) -> Electronic | AN25: =IF(G25="na","na",VLOOKUP($G25,'Engage Ltg Fixture Table'!$B$8:$HK$770,AN$4,FALSE)) -> 1 | AO25: =IF(G25="na","na",VLOOKUP($G25,'Engage Ltg Fixture Table'!$B$8:$HK$770,AO$4,FALSE)) -> 0.052 | AP25: added from DEER2008.3.02 measure list | AQ25: ="ID: "&TEXT(B25,"000")&"; "&VLOOKUP($F25,'Engage Ltg Fixture Table'!$B$8:$HK$770,7,FALSE)&" ==> "&VLOOKUP($H25,'Engage Ltg Fixture Table'!$B$8:$HK$770,7,FALSE) -> ID: 014; FL, (2) 48in, ES lamp, ES Mag, W/fixt=72 ==> FL, (1) 46in, T5HO, PS Ballast, W/fixt=59 | AS25: 10066-10445
B26: 15 | C26: Com-ILtg-PrimLF-LF-ca10066-cd10309-ms10446 | D26: Linear Fluorescent | E26: Linear Fluorescent (Primary Schedule) | F26: 10066 | G26: 10309 | H26: 10446 | I26: Yes | J26: Yes | K26: No | L26: No | M26: 10 | N26: -10 | O26: =VLOOKUP($H26,'Engage Ltg Fixture Table'!$B$8:$HK$770,O$4,FALSE) -> Linear Fluorescent | P26: =VLOOKUP($H26,'Engage Ltg Fixture Table'!$B$8:$HK$770,P$4,FALSE) -> F41PHL | Q26: =VLOOKUP($H26,'Engage Ltg Fixture Table'!$B$8:$HK$770,Q$4,FALSE) -> T5HO | R26: =VLOOKUP($H26,'Engage Ltg Fixture Table'!$B$8:$HK$770,R$4,FALSE) -> 46 inch | S26: =VLOOKUP($H26,'Engage Ltg Fixture Table'!$B$8:$HK$770,S$4,FALSE) -> 1 | T26: =VLOOKUP($H26,'Engage Ltg Fixture Table'!$B$8:$HK$770,T$4,FALSE) -> F54T5/HO | U26: =VLOOKUP($H26,'Engage Ltg Fixture Table'!$B$8:$HK$770,U$4,FALSE) -> Electronic | V26: =VLOOKUP($H26,'Engage Ltg Fixture Table'!$B$8:$HK$770,V$4,FALSE) -> 1 | W26: =VLOOKUP($H26,'Engage Ltg Fixture Table'!$B$8:$HK$770,W$4,FALSE) -> 0.062 | X26: =VLOOKUP($F26,'Engage Ltg Fixture Table'!$B$8:$HK$770,X$4,FALSE) -> Linear Fluorescent | Y26: =VLOOKUP($F26,'Engage Ltg Fixture Table'!$B$8:$HK$770,Y$4,FALSE) -> F42EE | Z26: =VLOOKUP($F26,'Engage Ltg Fixture Table'!$B$8:$HK$770,Z$4,FALSE) -> T12 | AA26: =VLOOKUP($F26,'Engage Ltg Fixture Table'!$B$8:$HK$770,AA$4,FALSE) -> 48 inch | AB26: =VLOOKUP($F26,'Engage Ltg Fixture Table'!$B$8:$HK$770,AB$4,FALSE) -> 2 | AC26: =VLOOKUP($F26,'Engage Ltg Fixture Table'!$B$8:$HK$770,AC$4,FALSE) -> F40T12/ES | AD26: =VLOOKUP($F26,'Engage Ltg Fixture Table'!$B$8:$HK$770,AD$4,FALSE) -> Mag-ES | AE26: =VLOOKUP($F26,'Engage Ltg Fixture Table'!$B$8:$HK$770,AE$4,FALSE) -> 1 | AF26: =VLOOKUP($F26,'Engage Ltg Fixture Table'!$B$8:$HK$770,AF$4,FALSE) -> 0.072 | AG26: =IF(G26="na","na",VLOOKUP($G26,'Engage Ltg Fixture Table'!$B$8:$HK$770,AG$4,FALSE)) -> Linear Fluorescent | AH26: =IF(G26="na","na",VLOOKUP($G26,'Engage Ltg Fixture Table'!$B$8:$HK$770,AH$4,FALSE)) -> F42ILL-R (G2) | AI26: =IF(G26="na","na",VLOOKUP($G26,'Engage Ltg Fixture Table'!$B$8:$HK$770,AI$4,FALSE)) -> T8 | AJ26: =IF(G26="na","na",VLOOKUP($G26,'Engage Ltg Fixture Table'!$B$8:$HK$770,AJ$4,FALSE)) -> 48in 2nd Gen | AK26: =IF(G26="na","na",VLOOKUP($G26,'Engage Ltg Fixture Table'!$B$8:$HK$770,AK$4,FALSE)) -> 2 | AL26: =IF(G26="na","na",VLOOKUP($G26,'Engage Ltg Fixture Table'!$B$8:$HK$770,AL$4,FALSE)) -> F32T8-PREM | AM26: =IF(G26="na","na",VLOOKUP($G26,'Engage Ltg Fixture Table'!$B$8:$HK$770,AM$4,FALSE)) -> Electronic | AN26: =IF(G26="na","na",VLOOKUP($G26,'Engage Ltg Fixture Table'!$B$8:$HK$770,AN$4,FALSE)) -> 1 | AO26: =IF(G26="na","na",VLOOKUP($G26,'Engage Ltg Fixture Table'!$B$8:$HK$770,AO$4,FALSE)) -> 0.052 | AP26: added from DEER2008.3.02 measure list | AQ26: ="ID: "&TEXT(B26,"000")&"; "&VLOOKUP($F26,'Engage Ltg Fixture Table'!$B$8:$HK$770,7,FALSE)&" ==> "&VLOOKUP($H26,'Engage Ltg Fixture Table'!$B$8:$HK$770,7,FALSE) -> ID: 015; FL, (2) 48in, ES lamp, ES Mag, W/fixt=72 ==> FL, (1) 46in, T5HO, PS Ballast, W/fixt=62 | AS26: 10066-10446
B27: 16 | C27: Com-ILtg-PrimLF-LF-ca10082-cd10270-ms10447 | D27: Linear Fluorescent | E27: Linear Fluorescent (Primary Schedule) | F27: 10082 | G27: 10270 | H27: 10447 | I27: No | J27: No | K27: Yes | L27: Yes | M27: 27 | N27: 1 | O27: =VLOOKUP($H27,'Engage Ltg Fixture Table'!$B$8:$HK$770,O$4,FALSE) -> Linear Fluorescent | P27: =VLOOKUP($H27,'Engage Ltg Fixture Table'!$B$8:$HK$770,P$4,FALSE) -> F42PHL | Q27: =VLOOKUP($H27,'Engage Ltg Fixture Table'!$B$8:$HK$770,Q$4,FALSE) -> T5HO | R27: =VLOOKUP($H27,'Engage Ltg Fixture Table'!$B$8:$HK$770,R$4,FALSE) -> 46 inch | S27: =VLOOKUP($H27,'Engage Ltg Fixture Table'!$B$8:$HK$770,S$4,FALSE) -> 2 | T27: =VLOOKUP($H27,'Engage Ltg Fixture Table'!$B$8:$HK$770,T$4,FALSE) -> F54T5/HO | U27: =VLOOKUP($H27,'Engage Ltg Fixture Table'!$B$8:$HK$770,U$4,FALSE) -> Electronic | V27: =VLOOKUP($H27,'Engage Ltg Fixture Table'!$B$8:$HK$770,V$4,FALSE) -> 1 | W27: =VLOOKUP($H27,'Engage Ltg Fixture Table'!$B$8:$HK$770,W$4,FALSE) -> 0.117 | X27: =VLOOKUP($F27,'Engage Ltg Fixture Table'!$B$8:$HK$770,X$4,FALSE) -> Linear Fluorescent | Y27: =VLOOKUP($F27,'Engage Ltg Fixture Table'!$B$8:$HK$770,Y$4,FALSE) -> F44EE | Z27: =VLOOKUP($F27,'Engage Ltg Fixture Table'!$B$8:$HK$770,Z$4,FALSE) -> T12 | AA27: =VLOOKUP($F27,'Engage Ltg Fixture Table'!$B$8:$HK$770,AA$4,FALSE) -> 48 inch | AB27: =VLOOKUP($F27,'Engage Ltg Fixture Table'!$B$8:$HK$770,AB$4,FALSE) -> 4 | AC27: =VLOOKUP($F27,'Engage Ltg Fixture Table'!$B$8:$HK$770,AC$4,FALSE) -> F40T12/ES | AD27: =VLOOKUP($F27,'Engage Ltg Fixture Table'!$B$8:$HK$770,AD$4,FALSE) -> Mag-ES | AE27: =VLOOKUP($F27,'Engage Ltg Fixture Table'!$B$8:$HK$770,AE$4,FALSE) -> 2 | AF27: =VLOOKUP($F27,'Engage Ltg Fixture Table'!$B$8:$HK$770,AF$4,FALSE) -> 0.144 | AG27: =IF(G27="na","na",VLOOKUP($G27,'Engage Ltg Fixture Table'!$B$8:$HK$770,AG$4,FALSE)) -> Linear Fluorescent | AH27: =IF(G27="na","na",VLOOKUP($G27,'Engage Ltg Fixture Table'!$B$8:$HK$770,AH$4,FALSE)) -> F44LL (G1) | AI27: =IF(G27="na","na",VLOOKUP($G27,'Engage Ltg Fixture Table'!$B$8:$HK$770,AI$4,FALSE)) -> T8 | AJ27: =IF(G27="na","na",VLOOKUP($G27,'Engage Ltg Fixture Table'!$B$8:$HK$770,AJ$4,FALSE)) -> 48in 1st Gen | AK27: =IF(G27="na","na",VLOOKUP($G27,'Engage Ltg Fixture Table'!$B$8:$HK$770,AK$4,FALSE)) -> 4 | AL27: =IF(G27="na","na",VLOOKUP($G27,'Engage Ltg Fixture Table'!$B$8:$HK$770,AL$4,FALSE)) -> F32T8-STD | AM27: =IF(G27="na","na",VLOOKUP($G27,'Engage Ltg Fixture Table'!$B$8:$HK$770,AM$4,FALSE)) -> Electronic | AN27: =IF(G27="na","na",VLOOKUP($G27,'Engage Ltg Fixture Table'!$B$8:$HK$770,AN$4,FALSE)) -> 1 | AO27: =IF(G27="na","na",VLOOKUP($G27,'Engage Ltg Fixture Table'!$B$8:$HK$770,AO$4,FALSE)) -> 0.118 | AP27: added from DEER2008.3.02 measure list | AQ27: ="ID: "&TEXT(B27,"000")&"; "&VLOOKUP($F27,'Engage Ltg Fixture Table'!$B$8:$HK$770,7,FALSE)&" ==> "&VLOOKUP($H27,'Engage Ltg Fixture Table'!$B$8:$HK$770,7,FALSE) -> ID: 016; FL, (4) 48in, ES lamp, ES Mag, W/fixt=144 ==> FL, (2) 46in, T5HO, PS Ballast, W/fixt=117 | AS27: 10082-10447
B28: 17 | C28: Com-ILtg-PrimLF-LF-ca10082-cd10329-ms10447 | D28: Linear Fluorescent | E28: Linear Fluorescent (Primary Schedule) | F28: 10082 | G28: 10329 | H28: 10447 | I28: Yes | J28: Yes | K28: No | L28: No | M28: 27 | N28: -15 | O28: =VLOOKUP($H28,'Engage Ltg Fixture Table'!$B$8:$HK$770,O$4,FALSE) -> Linear Fluorescent | P28: =VLOOKUP($H28,'Engage Ltg Fixture Table'!$B$8:$HK$770,P$4,FALSE) -> F42PHL | Q28: =VLOOKUP($H28,'Engage Ltg Fixture Table'!$B$8:$HK$770,Q$4,FALSE) -> T5HO | R28: =VLOOKUP($H28,'Engage Ltg Fixture Table'!$B$8:$HK$770,R$4,FALSE) -> 46 inch | S28: =VLOOKUP($H28,'Engage Ltg Fixture Table'!$B$8:$HK$770,S$4,FALSE) -> 2 | T28: =VLOOKUP($H28,'Engage Ltg Fixture Table'!$B$8:$HK$770,T$4,FALSE) -> F54T5/HO | U28: =VLOOKUP($H28,'Engage Ltg Fixture Table'!$B$8:$HK$770,U$4,FALSE) -> Electronic | V28: =VLOOKUP($H28,'Engage Ltg Fixture Table'!$B$8:$HK$770,V$4,FALSE) -> 1 | W28: =VLOOKUP($H28,'Engage Ltg Fixture Table'!$B$8:$HK$770,W$4,FALSE) -> 0.117 | X28: =VLOOKUP($F28,'Engage Ltg Fixture Table'!$B$8:$HK$770,X$4,FALSE) -> Linear Fluorescent | Y28: =VLOOKUP($F28,'Engage Ltg Fixture Table'!$B$8:$HK$770,Y$4,FALSE) -> F44EE | Z28: =VLOOKUP($F28,'Engage Ltg Fixture Table'!$B$8:$HK$770,Z$4,FALSE) -> T12 | AA28: =VLOOKUP($F28,'Engage Ltg Fixture Table'!$B$8:$HK$770,AA$4,FALSE) -> 48 inch | AB28: =VLOOKUP($F28,'Engage Ltg Fixture Table'!$B$8:$HK$770,AB$4,FALSE) -> 4 | AC28: =VLOOKUP($F28,'Engage Ltg Fixture Table'!$B$8:$HK$770,AC$4,FALSE) -> F40T12/ES | AD28: =VLOOKUP($F28,'Engage Ltg Fixture Table'!$B$8:$HK$770,AD$4,FALSE) -> Mag-ES | AE28: =VLOOKUP($F28,'Engage Ltg Fixture Table'!$B$8:$HK$770,AE$4,FALSE) -> 2 | AF28: =VLOOKUP($F28,'Engage Ltg Fixture Table'!$B$8:$HK$770,AF$4,FALSE) -> 0.144 | AG28: =IF(G28="na","na",VLOOKUP($G28,'Engage Ltg Fixture Table'!$B$8:$HK$770,AG$4,FALSE)) -> Linear Fluorescent | AH28: =IF(G28="na","na",VLOOKUP($G28,'Engage Ltg Fixture Table'!$B$8:$HK$770,AH$4,FALSE)) -> F44ILL-R (G2) | AI28: =IF(G28="na","na",VLOOKUP($G28,'Engage Ltg Fixture Table'!$B$8:$HK$770,AI$4,FALSE)) -> T8 | AJ28: =IF(G28="na","na",VLOOKUP($G28,'Engage Ltg Fixture Table'!$B$8:$HK$770,AJ$4,FALSE)) -> 48in 2nd Gen | AK28: =IF(G28="na","na",VLOOKUP($G28,'Engage Ltg Fixture Table'!$B$8:$HK$770,AK$4,FALSE)) -> 4 | AL28: =IF(G28="na","na",VLOOKUP($G28,'Engage Ltg Fixture Table'!$B$8:$HK$770,AL$4,FALSE)) -> F32T8-PREM | AM28: =IF(G28="na","na",VLOOKUP($G28,'Engage Ltg Fixture Table'!$B$8:$HK$770,AM$4,FALSE)) -> Electronic | AN28: =IF(G28="na","na",VLOOKUP($G28,'Engage Ltg Fixture Table'!$B$8:$HK$770,AN$4,FALSE)) -> 1 | AO28: =IF(G28="na","na",VLOOKUP($G28,'Engage Ltg Fixture Table'!$B$8:$HK$770,AO$4,FALSE)) -> 0.102 | AP28: added from DEER2008.3.02 measure list | AQ28: ="ID: "&TEXT(B28,"000")&"; "&VLOOKUP($F28,'Engage Ltg Fixture Table'!$B$8:$HK$770,7,FALSE)&" ==> "&VLOOKUP($H28,'Engage Ltg Fixture Table'!$B$8:$HK$770,7,FALSE) -> ID: 017; FL, (4) 48in, ES lamp, ES Mag, W/fixt=144 ==> FL, (2) 46in, T5HO, PS Ballast, W/fixt=117 | AS28: 10082-10447
B29: 18 | C29: Com-ILtg-PrimLF-LF-ca10611-ms10449 | D29: Linear Fluorescent | E29: Linear Fluorescent (Primary Schedule) | F29: 10611 | G29: na | H29: 10449 | I29: No | J29: No | K29: No | L29: No | M29: 131 | N29: na | O29: =VLOOKUP($H29,'Engage Ltg Fixture Table'!$B$8:$HK$770,O$4,FALSE) -> Linear Fluorescent | P29: =VLOOKUP($H29,'Engage Ltg Fixture Table'!$B$8:$HK$770,P$4,FALSE) -> F44PHL/2 | Q29: =VLOOKUP($H29,'Engage Ltg Fixture Table'!$B$8:$HK$770,Q$4,FALSE) -> T5HO | R29: =VLOOKUP($H29,'Engage Ltg Fixture Table'!$B$8:$HK$770,R$4,FALSE) -> 46 inch | S29: =VLOOKUP($H29,'Engage Ltg Fixture Table'!$B$8:$HK$770,S$4,FALSE) -> 4 | T29: =VLOOKUP($H29,'Engage Ltg Fixture Table'!$B$8:$HK$770,T$4,FALSE) -> F54T5/HO | U29: =VLOOKUP($H29,'Engage Ltg Fixture Table'!$B$8:$HK$770,U$4,FALSE) -> Electronic | V29: =VLOOKUP($H29,'Engage Ltg Fixture Table'!$B$8:$HK$770,V$4,FALSE) -> 1 | W29: =VLOOKUP($H29,'Engage Ltg Fixture Table'!$B$8:$HK$770,W$4,FALSE) -> 0.234 | X29: =VLOOKUP($F29,'Engage Ltg Fixture Table'!$B$8:$HK$770,X$4,FALSE) -> HID | Y29: =VLOOKUP($F29,'Engage Ltg Fixture Table'!$B$8:$HK$770,Y$4,FALSE) -> MH320PS/1 | Z29: =VLOOKUP($F29,'Engage Ltg Fixture Table'!$B$8:$HK$770,Z$4,FALSE) -> Pulse Start Metal Halide | AA29: =VLOOKUP($F29,'Engage Ltg Fixture Table'!$B$8:$HK$770,AA$4,FALSE) -> 320 Watts | AB29: =VLOOKUP($F29,'Engage Ltg Fixture Table'!$B$8:$HK$770,AB$4,FALSE) -> 1 | AC29: =VLOOKUP($F29,'Engage Ltg Fixture Table'!$B$8:$HK$770,AC$4,FALSE) -> MH320PS | AD29: =VLOOKUP($F29,'Engage Ltg Fixture Table'!$B$8:$HK$770,AD$4,FALSE) -> Mag-CWA | AE29: =VLOOKUP($F29,'Engage Ltg Fixture Table'!$B$8:$HK$770,AE$4,FALSE) -> 1 | AF29: =VLOOKUP($F29,'Engage Ltg Fixture Table'!$B$8:$HK$770,AF$4,FALSE) -> 0.365 | AG29: =IF(G29="na","na",VLOOKUP($G29,'Engage Ltg Fixture Table'!$B$8:$HK$770,AG$4,FALSE)) -> na | AH29: =IF(G29="na","na",VLOOKUP($G29,'Engage Ltg Fixture Table'!$B$8:$HK$770,AH$4,FALSE)) -> na | AI29: =IF(G29="na","na",VLOOKUP($G29,'Engage Ltg Fixture Table'!$B$8:$HK$770,AI$4,FALSE)) -> na | AJ29: =IF(G29="na","na",VLOOKUP($G29,'Engage Ltg Fixture Table'!$B$8:$HK$770,AJ$4,FALSE)) -> na | AK29: =IF(G29="na","na",VLOOKUP($G29,'Engage Ltg Fixture Table'!$B$8:$HK$770,AK$4,FALSE)) -> na | AL29: =IF(G29="na","na",VLOOKUP($G29,'Engage Ltg Fixture Table'!$B$8:$HK$770,AL$4,FALSE)) -> na | AM29: =IF(G29="na","na",VLOOKUP($G29,'Engage Ltg Fixture Table'!$B$8:$HK$770,AM$4,FALSE)) -> na | AN29: =IF(G29="na","na",VLOOKUP($G29,'Engage Ltg Fixture Table'!$B$8:$HK$770,AN$4,FALSE)) -> na | AO29: =IF(G29="na","na",VLOOKUP($G29,'Engage Ltg Fixture Table'!$B$8:$HK$770,AO$4,FALSE)) -> na | AP29: added from DEER2008.3.02 measure list | AQ29: ="ID: "&TEXT(B29,"000")&"; "&VLOOKUP($F29,'Engage Ltg Fixture Table'!$B$8:$HK$770,7,FALSE)&" ==> "&VLOOKUP($H29,'Engage Ltg Fixture Table'!$B$8:$HK$770,7,FALSE) -> ID: 018; PSMH, (1) 320W, PS CWA Ballast, W/fixt=365 ==> FL, (4) 46in, T5HO, (2) PS Ballast, W/fixt=234 | AS29: 10611-10449
B30: 19 | C30: Com-ILtg-PrimLF-LF-ca10613-cd10450-ms10450 | D30: Linear Fluorescent | E30: Linear Fluorescent (Primary Schedule) | F30: 10613 | G30: 10450 | H30: 10450 | I30: No | J30: No | K30: Yes | L30: Yes | M30: 105 | N30: 0 | O30: =VLOOKUP($H30,'Engage Ltg Fixture Table'!$B$8:$HK$770,O$4,FALSE) -> Linear Fluorescent | P30: =VLOOKUP($H30,'Engage Ltg Fixture Table'!$B$8:$HK$770,P$4,FALSE) -> F46PHL/3 | Q30: =VLOOKUP($H30,'Engage Ltg Fixture Table'!$B$8:$HK$770,Q$4,FALSE) -> T5HO | R30: =VLOOKUP($H30,'Engage Ltg Fixture Table'!$B$8:$HK$770,R$4,FALSE) -> 46 inch | S30: =VLOOKUP($H30,'Engage Ltg Fixture Table'!$B$8:$HK$770,S$4,FALSE) -> 6 | T30: =VLOOKUP($H30,'Engage Ltg Fixture Table'!$B$8:$HK$770,T$4,FALSE) -> F54T5/HO | U30: =VLOOKUP($H30,'Engage Ltg Fixture Table'!$B$8:$HK$770,U$4,FALSE) -> Electronic | V30: =VLOOKUP($H30,'Engage Ltg Fixture Table'!$B$8:$HK$770,V$4,FALSE) -> 2 | W30: =VLOOKUP($H30,'Engage Ltg Fixture Table'!$B$8:$HK$770,W$4,FALSE) -> 0.351 | X30: =VLOOKUP($F30,'Engage Ltg Fixture Table'!$B$8:$HK$770,X$4,FALSE) -> HID | Y30: =VLOOKUP($F30,'Engage Ltg Fixture Table'!$B$8:$HK$770,Y$4,FALSE) -> MH400PS/1 | Z30: =VLOOKUP($F30,'Engage Ltg Fixture Table'!$B$8:$HK$770,Z$4,FALSE) -> Pulse Start Metal Halide | AA30: =VLOOKUP($F30,'Engage Ltg Fixture Table'!$B$8:$HK$770,AA$4,FALSE) -> 400 Watts | AB30: =VLOOKUP($F30,'Engage Ltg Fixture Table'!$B$8:$HK$770,AB$4,FALSE) -> 1 | AC30: =VLOOKUP($F30,'Engage Ltg Fixture Table'!$B$8:$HK$770,AC$4,FALSE) -> MH400PS | AD30: =VLOOKUP($F30,'Engage Ltg Fixture Table'!$B$8:$HK$770,AD$4,FALSE) -> Mag-CWA | AE30: =VLOOKUP($F30,'Engage Ltg Fixture Table'!$B$8:$HK$770,AE$4,FALSE) -> 1 | AF30: =VLOOKUP($F30,'Engage Ltg Fixture Table'!$B$8:$HK$770,AF$4,FALSE) -> 0.456 | AG30: =IF(G30="na","na",VLOOKUP($G30,'Engage Ltg Fixture Table'!$B$8:$HK$770,AG$4,FALSE)) -> Linear Fluorescent | AH30: =IF(G30="na","na",VLOOKUP($G30,'Engage Ltg Fixture Table'!$B$8:$HK$770,AH$4,FALSE)) -> F46PHL/3 | AI30: =IF(G30="na","na",VLOOKUP($G30,'Engage Ltg Fixture Table'!$B$8:$HK$770,AI$4,FALSE)) -> T5HO | AJ30: =IF(G30="na","na",VLOOKUP($G30,'Engage Ltg Fixture Table'!$B$8:$HK$770,AJ$4,FALSE)) -> 46 inch | AK30: =IF(G30="na","na",VLOOKUP($G30,'Engage Ltg Fixture Table'!$B$8:$HK$770,AK$4,FALSE)) -> 6 | AL30: =IF(G30="na","na",VLOOKUP($G30,'Engage Ltg Fixture Table'!$B$8:$HK$770,AL$4,FALSE)) -> F54T5/HO | AM30: =IF(G30="na","na",VLOOKUP($G30,'Engage Ltg Fixture Table'!$B$8:$HK$770,AM$4,FALSE)) -> Electronic | AN30: =IF(G30="na","na",VLOOKUP($G30,'Engage Ltg Fixture Table'!$B$8:$HK$770,AN$4,FALSE)) -> 2 | AO30: =IF(G30="na","na",VLOOKUP($G30,'Engage Ltg Fixture Table'!$B$8:$HK$770,AO$4,FALSE)) -> 0.351 | AP30: added from DEER2008.3.02 measure list | AQ30: ="ID: "&TEXT(B30,"000")&"; "&VLOOKUP($F30,'Engage Ltg Fixture Table'!$B$8:$HK$770,7,FALSE)&" ==> "&VLOOKUP($H30,'Engage Ltg Fixture Table'!$B$8:$HK$770,7,FALSE) -> ID: 019; PSMH, (1) 400W, PS CWA Ballast, W/fixt=456 ==> FL, (6) 46in, T5HO, (3) PS Ballast, W/fixt=351 | AS30: 10613-10450
B31: 20 | C31: Com-ILtg-PrimLF-LF-ca10613-cd10613-ms10450 | D31: Linear Fluorescent | E31: Linear Fluorescent (Primary Schedule) | F31: 10613 | G31: 10613 | H31: 10450 | I31: Yes | J31: Yes | K31: No | L31: No | M31: 105 | N31: 105 | O31: =VLOOKUP($H31,'Engage Ltg Fixture Table'!$B$8:$HK$770,O$4,FALSE) -> Linear Fluorescent | P31: =VLOOKUP($H31,'Engage Ltg Fixture Table'!$B$8:$HK$770,P$4,FALSE) -> F46PHL/3 | Q31: =VLOOKUP($H31,'Engage Ltg Fixture Table'!$B$8:$HK$770,Q$4,FALSE) -> T5HO | R31: =VLOOKUP($H31,'Engage Ltg Fixture Table'!$B$8:$HK$770,R$4,FALSE) -> 46 inch | S31: =VLOOKUP($H31,'Engage Ltg Fixture Table'!$B$8:$HK$770,S$4,FALSE) -> 6 | T31: =VLOOKUP($H31,'Engage Ltg Fixture Table'!$B$8:$HK$770,T$4,FALSE) -> F54T5/HO | U31: =VLOOKUP($H31,'Engage Ltg Fixture Table'!$B$8:$HK$770,U$4,FALSE) -> Electronic | V31: =VLOOKUP($H31,'Engage Ltg Fixture Table'!$B$8:$HK$770,V$4,FALSE) -> 2 | W31: =VLOOKUP($H31,'Engage Ltg Fixture Table'!$B$8:$HK$770,W$4,FALSE) -> 0.351 | X31: =VLOOKUP($F31,'Engage Ltg Fixture Table'!$B$8:$HK$770,X$4,FALSE) -> HID | Y31: =VLOOKUP($F31,'Engage Ltg Fixture Table'!$B$8:$HK$770,Y$4,FALSE) -> MH400PS/1 | Z31: =VLOOKUP($F31,'Engage Ltg Fixture Table'!$B$8:$HK$770,Z$4,FALSE) -> Pulse Start Metal Halide | AA31: =VLOOKUP($F31,'Engage Ltg Fixture Table'!$B$8:$HK$770,AA$4,FALSE) -> 400 Watts | AB31: =VLOOKUP($F31,'Engage Ltg Fixture Table'!$B$8:$HK$770,AB$4,FALSE) -> 1 | AC31: =VLOOKUP($F31,'Engage Ltg Fixture Table'!$B$8:$HK$770,AC$4,FALSE) -> MH400PS | AD31: =VLOOKUP($F31,'Engage Ltg Fixture Table'!$B$8:$HK$770,AD$4,FALSE) -> Mag-CWA | AE31: =VLOOKUP($F31,'Engage Ltg Fixture Table'!$B$8:$HK$770,AE$4,FALSE) -> 1 | AF31: =VLOOKUP($F31,'Engage Ltg Fixture Table'!$B$8:$HK$770,AF$4,FALSE) -> 0.456 | AG31: =IF(G31="na","na",VLOOKUP($G31,'Engage Ltg Fixture Table'!$B$8:$HK$770,AG$4,FALSE)) -> HID | AH31: =IF(G31="na","na",VLOOKUP($G31,'Engage Ltg Fixture Table'!$B$8:$HK$770,AH$4,FALSE)) -> MH400PS/1 | AI31: =IF(G31="na","na",VLOOKUP($G31,'Engage Ltg Fixture Table'!$B$8:$HK$770,AI$4,FALSE)) -> Pulse Start Metal Halide | AJ31: =IF(G31="na","na",VLOOKUP($G31,'Engage Ltg Fixture Table'!$B$8:$HK$770,AJ$4,FALSE)) -> 400 Watts | AK31: =IF(G31="na","na",VLOOKUP($G31,'Engage Ltg Fixture Table'!$B$8:$HK$770,AK$4,FALSE)) -> 1 | AL31: =IF(G31="na","na",VLOOKUP($G31,'Engage Ltg Fixture Table'!$B$8:$HK$770,AL$4,FALSE)) -> MH400PS | AM31: =IF(G31="na","na",VLOOKUP($G31,'Engage Ltg Fixture Table'!$B$8:$HK$770,AM$4,FALSE)) -> Mag-CWA | AN31: =IF(G31="na","na",VLOOKUP($G31,'Engage Ltg Fixture Table'!$B$8:$HK$770,AN$4,FALSE)) -> 1 | AO31: =IF(G31="na","na",VLOOKUP($G31,'Engage Ltg Fixture Table'!$B$8:$HK$770,AO$4,FALSE)) -> 0.456 | AP31: added from DEER2008.3.02 measure list | AQ31: ="ID: "&TEXT(B31,"000")&"; "&VLOOKUP($F31,'Engage Ltg Fixture Table'!$B$8:$HK$770,7,FALSE)&" ==> "&VLOOKUP($H31,'Engage Ltg Fixture Table'!$B$8:$HK$770,7,FALSE) -> ID: 020; PSMH, (1) 400W, PS CWA Ballast, W/fixt=456 ==> FL, (6) 46in, T5HO, (3) PS Ballast, W/fixt=351 | AS31: 10613-10450
B32: 21 | C32: Com-ILtg-PrimLF-LF-ca10636-cd10449-ms10449 | D32: Linear Fluorescent | E32: Linear Fluorescent (Primary Schedule) | F32: 10636 | G32: 10449 | H32: 10449 | I32: No | J32: No | K32: Yes | L32: Yes | M32: 221 | N32: 0 | O32: =VLOOKUP($H32,'Engage Ltg Fixture Table'!$B$8:$HK$770,O$4,FALSE) -> Linear Fluorescent | P32: =VLOOKUP($H32,'Engage Ltg Fixture Table'!$B$8:$HK$770,P$4,FALSE) -> F44PHL/2 | Q32: =VLOOKUP($H32,'Engage Ltg Fixture Table'!$B$8:$HK$770,Q$4,FALSE) -> T5HO | R32: =VLOOKUP($H32,'Engage Ltg Fixture Table'!$B$8:$HK$770,R$4,FALSE) -> 46 inch | S32: =VLOOKUP($H32,'Engage Ltg Fixture Table'!$B$8:$HK$770,S$4,FALSE) -> 4 | T32: =VLOOKUP($H32,'Engage Ltg Fixture Table'!$B$8:$HK$770,T$4,FALSE) -> F54T5/HO | U32: =VLOOKUP($H32,'Engage Ltg Fixture Table'!$B$8:$HK$770,U$4,FALSE) -> Electronic | V32: =VLOOKUP($H32,'Engage Ltg Fixture Table'!$B$8:$HK$770,V$4,FALSE) -> 1 | W32: =VLOOKUP($H32,'Engage Ltg Fixture Table'!$B$8:$HK$770,W$4,FALSE) -> 0.234 | X32: =VLOOKUP($F32,'Engage Ltg Fixture Table'!$B$8:$HK$770,X$4,FALSE) -> HID | Y32: =VLOOKUP($F32,'Engage Ltg Fixture Table'!$B$8:$HK$770,Y$4,FALSE) -> MV400/1 | Z32: =VLOOKUP($F32,'Engage Ltg Fixture Table'!$B$8:$HK$770,Z$4,FALSE) -> Mercury Vapor | AA32: =VLOOKUP($F32,'Engage Ltg Fixture Table'!$B$8:$HK$770,AA$4,FALSE) -> 400 Watts | AB32: =VLOOKUP($F32,'Engage Ltg Fixture Table'!$B$8:$HK$770,AB$4,FALSE) -> 1 | AC32: =VLOOKUP($F32,'Engage Ltg Fixture Table'!$B$8:$HK$770,AC$4,FALSE) -> MV400 | AD32: =VLOOKUP($F32,'Engage Ltg Fixture Table'!$B$8:$HK$770,AD$4,FALSE) -> Mag-CWA | AE32: =VLOOKUP($F32,'Engage Ltg Fixture Table'!$B$8:$HK$770,AE$4,FALSE) -> 1 | AF32: =VLOOKUP($F32,'Engage Ltg Fixture Table'!$B$8:$HK$770,AF$4,FALSE) -> 0.455 | AG32: =IF(G32="na","na",VLOOKUP($G32,'Engage Ltg Fixture Table'!$B$8:$HK$770,AG$4,FALSE)) -> Linear Fluorescent | AH32: =IF(G32="na","na",VLOOKUP($G32,'Engage Ltg Fixture Table'!$B$8:$HK$770,AH$4,FALSE)) -> F44PHL/2 | AI32: =IF(G32="na","na",VLOOKUP($G32,'Engage Ltg Fixture Table'!$B$8:$HK$770,AI$4,FALSE)) -> T5HO | AJ32: =IF(G32="na","na",VLOOKUP($G32,'Engage Ltg Fixture Table'!$B$8:$HK$770,AJ$4,FALSE)) -> 46 inch | AK32: =IF(G32="na","na",VLOOKUP($G32,'Engage Ltg Fixture Table'!$B$8:$HK$770,AK$4,FALSE)) -> 4 | AL32: =IF(G32="na","na",VLOOKUP($G32,'Engage Ltg Fixture Table'!$B$8:$HK$770,AL$4,FALSE)) -> F54T5/HO | AM32: =IF(G32="na","na",VLOOKUP($G32,'Engage Ltg Fixture Table'!$B$8:$HK$770,AM$4,FALSE)) -> Electronic | AN32: =IF(G32="na","na",VLOOKUP($G32,'Engage Ltg Fixture Table'!$B$8:$HK$770,AN$4,FALSE)) -> 1 | AO32: =IF(G32="na","na",VLOOKUP($G32,'Engage Ltg Fixture Table'!$B$8:$HK$770,AO$4,FALSE)) -> 0.234 | AP32: added from DEER2008.3.02 measure list | AQ32: ="ID: "&TEXT(B32,"000")&"; "&VLOOKUP($F32,'Engage Ltg Fixture Table'!$B$8:$HK$770,7,FALSE)&" ==> "&VLOOKUP($H32,'Engage Ltg Fixture Table'!$B$8:$HK$770,7,FALSE) -> ID: 021; Mercury Vapor, (1) 400W lamp, W/fixt=455 ==> FL, (4) 46in, T5HO, (2) PS Ballast, W/fixt=234 | AS32: 10636-10449
B33: 22 | C33: Com-ILtg-PrimLF-LF-ca10636-cd10611-ms10449 | D33: Linear Fluorescent | E33: Linear Fluorescent (Primary Schedule) | F33: 10636 | G33: 10611 | H33: 10449 | I33: Yes | J33: Yes | K33: No | L33: No | M33: 221 | N33: 131 | O33: =VLOOKUP($H33,'Engage Ltg Fixture Table'!$B$8:$HK$770,O$4,FALSE) -> Linear Fluorescent | P33: =VLOOKUP($H33,'Engage Ltg Fixture Table'!$B$8:$HK$770,P$4,FALSE) -> F44PHL/2 | Q33: =VLOOKUP($H33,'Engage Ltg Fixture Table'!$B$8:$HK$770,Q$4,FALSE) -> T5HO | R33: =VLOOKUP($H33,'Engage Ltg Fixture Table'!$B$8:$HK$770,R$4,FALSE) -> 46 inch | S33: =VLOOKUP($H33,'Engage Ltg Fixture Table'!$B$8:$HK$770,S$4,FALSE) -> 4 | T33: =VLOOKUP($H33,'Engage Ltg Fixture Table'!$B$8:$HK$770,T$4,FALSE) -> F54T5/HO | U33: =VLOOKUP($H33,'Engage Ltg Fixture Table'!$B$8:$HK$770,U$4,FALSE) -> Electronic | V33: =VLOOKUP($H33,'Engage Ltg Fixture Table'!$B$8:$HK$770,V$4,FALSE) -> 1 | W33: =VLOOKUP($H33,'Engage Ltg Fixture Table'!$B$8:$HK$770,W$4,FALSE) -> 0.234 | X33: =VLOOKUP($F33,'Engage Ltg Fixture Table'!$B$8:$HK$770,X$4,FALSE) -> HID | Y33: =VLOOKUP($F33,'Engage Ltg Fixture Table'!$B$8:$HK$770,Y$4,FALSE) -> MV400/1 | Z33: =VLOOKUP($F33,'Engage Ltg Fixture Table'!$B$8:$HK$770,Z$4,FALSE) -> Mercury Vapor | AA33: =VLOOKUP($F33,'Engage Ltg Fixture Table'!$B$8:$HK$770,AA$4,FALSE) -> 400 Watts | AB33: =VLOOKUP($F33,'Engage Ltg Fixture Table'!$B$8:$HK$770,AB$4,FALSE) -> 1 | AC33: =VLOOKUP($F33,'Engage Ltg Fixture Table'!$B$8:$HK$770,AC$4,FALSE) -> MV400 | AD33: =VLOOKUP($F33,'Engage Ltg Fixture Table'!$B$8:$HK$770,AD$4,FALSE) -> Mag-CWA | AE33: =VLOOKUP($F33,'Engage Ltg Fixture Table'!$B$8:$HK$770,AE$4,FALSE) -> 1 | AF33: =VLOOKUP($F33,'Engage Ltg Fixture Table'!$B$8:$HK$770,AF$4,FALSE) -> 0.455 | AG33: =IF(G33="na","na",VLOOKUP($G33,'Engage Ltg Fixture Table'!$B$8:$HK$770,AG$4,FALSE)) -> HID | AH33: =IF(G33="na","na",VLOOKUP($G33,'Engage Ltg Fixture Table'!$B$8:$HK$770,AH$4,FALSE)) -> MH320PS/1 | AI33: =IF(G33="na","na",VLOOKUP($G33,'Engage Ltg Fixture Table'!$B$8:$HK$770,AI$4,FALSE)) -> Pulse Start Metal Halide | AJ33: =IF(G33="na","na",VLOOKUP($G33,'Engage Ltg Fixture Table'!$B$8:$HK$770,AJ$4,FALSE)) -> 320 Watts | AK33: =IF(G33="na","na",VLOOKUP($G33,'Engage Ltg Fixture Table'!$B$8:$HK$770,AK$4,FALSE)) -> 1 | AL33: =IF(G33="na","na",VLOOKUP($G33,'Engage Ltg Fixture Table'!$B$8:$HK$770,AL$4,FALSE)) -> MH320PS | AM33: =IF(G33="na","na",VLOOKUP($G33,'Engage Ltg Fixture Table'!$B$8:$HK$770,AM$4,FALSE)) -> Mag-CWA | AN33: =IF(G33="na","na",VLOOKUP($G33,'Engage Ltg Fixture Table'!$B$8:$HK$770,AN$4,FALSE)) -> 1 | AO33: =IF(G33="na","na",VLOOKUP($G33,'Engage Ltg Fixture Table'!$B$8:$HK$770,AO$4,FALSE)) -> 0.365 | AP33: added from DEER2008.3.02 measure list | AQ33: ="ID: "&TEXT(B33,"000")&"; "&VLOOKUP($F33,'Engage Ltg Fixture Table'!$B$8:$HK$770,7,FALSE)&" ==> "&VLOOKUP($H33,'Engage Ltg Fixture Table'!$B$8:$HK$770,7,FALSE) -> ID: 022; Mercury Vapor, (1) 400W lamp, W/fixt=455 ==> FL, (4) 46in, T5HO, (2) PS Ballast, W/fixt=234 | AS33: 10636-10449
B34: 23 | C34: Com-ILtg-PrimLF-LF-ca10637-cd10450-ms10450 | D34: Linear Fluorescent | E34: Linear Fluorescent (Primary Schedule) | F34: 10637 | G34: 10450 | H34: 10450 | I34: No | J34: No | K34: Yes | L34: Yes | M34: 429 | N34: 0 | O34: =VLOOKUP($H34,'Engage Ltg Fixture Table'!$B$8:$HK$770,O$4,FALSE) -> Linear Fluorescent | P34: =VLOOKUP($H34,'Engage Ltg Fixture Table'!$B$8:$HK$770,P$4,FALSE) -> F46PHL/3 | Q34: =VLOOKUP($H34,'Engage Ltg Fixture Table'!$B$8:$HK$770,Q$4,FALSE) -> T5HO | R34: =VLOOKUP($H34,'Engage Ltg Fixture Table'!$B$8:$HK$770,R$4,FALSE) -> 46 inch | S34: =VLOOKUP($H34,'Engage Ltg Fixture Table'!$B$8:$HK$770,S$4,FALSE) -> 6 | T34: =VLOOKUP($H34,'Engage Ltg Fixture Table'!$B$8:$HK$770,T$4,FALSE) -> F54T5/HO | U34: =VLOOKUP($H34,'Engage Ltg Fixture Table'!$B$8:$HK$770,U$4,FALSE) -> Electronic | V34: =VLOOKUP($H34,'Engage Ltg Fixture Table'!$B$8:$HK$770,V$4,FALSE) -> 2 | W34: =VLOOKUP($H34,'Engage Ltg Fixture Table'!$B$8:$HK$770,W$4,FALSE) -> 0.351 | X34: =VLOOKUP($F34,'Engage Ltg Fixture Table'!$B$8:$HK$770,X$4,FALSE) -> HID | Y34: =VLOOKUP($F34,'Engage Ltg Fixture Table'!$B$8:$HK$770,Y$4,FALSE) -> MV700/1 | Z34: =VLOOKUP($F34,'Engage Ltg Fixture Table'!$B$8:$HK$770,Z$4,FALSE) -> Mercury Vapor | AA34: =VLOOKUP($F34,'Engage Ltg Fixture Table'!$B$8:$HK$770,AA$4,FALSE) -> 700 Watts | AB34: =VLOOKUP($F34,'Engage Ltg Fixture Table'!$B$8:$HK$770,AB$4,FALSE) -> 1 | AC34: =VLOOKUP($F34,'Engage Ltg Fixture Table'!$B$8:$HK$770,AC$4,FALSE) -> MV700 | AD34: =VLOOKUP($F34,'Engage Ltg Fixture Table'!$B$8:$HK$770,AD$4,FALSE) -> Mag-CWA | AE34: =VLOOKUP($F34,'Engage Ltg Fixture Table'!$B$8:$HK$770,AE$4,FALSE) -> 1 | AF34: =VLOOKUP($F34,'Engage Ltg Fixture Table'!$B$8:$HK$770,AF$4,FALSE) -> 0.78 | AG34: =IF(G34="na","na",VLOOKUP($G34,'Engage Ltg Fixture Table'!$B$8:$HK$770,AG$4,FALSE)) -> Linear Fluorescent | AH34: =IF(G34="na","na",VLOOKUP($G34,'Engage Ltg Fixture Table'!$B$8:$HK$770,AH$4,FALSE)) -> F46PHL/3 | AI34: =IF(G34="na","na",VLOOKUP($G34,'Engage Ltg Fixture Table'!$B$8:$HK$770,AI$4,FALSE)) -> T5HO | AJ34: =IF(G34="na","na",VLOOKUP($G34,'Engage Ltg Fixture Table'!$B$8:$HK$770,AJ$4,FALSE)) -> 46 inch | AK34: =IF(G34="na","na",VLOOKUP($G34,'Engage Ltg Fixture Table'!$B$8:$HK$770,AK$4,FALSE)) -> 6 | AL34: =IF(G34="na","na",VLOOKUP($G34,'Engage Ltg Fixture Table'!$B$8:$HK$770,AL$4,FALSE)) -> F54T5/HO | AM34: =IF(G34="na","na",VLOOKUP($G34,'Engage Ltg Fixture Table'!$B$8:$HK$770,AM$4,FALSE)) -> Electronic | AN34: =IF(G34="na","na",VLOOKUP($G34,'Engage Ltg Fixture Table'!$B$8:$HK$770,AN$4,FALSE)) -> 2 | AO34: =IF(G34="na","na",VLOOKUP($G34,'Engage Ltg Fixture Table'!$B$8:$HK$770,AO$4,FALSE)) -> 0.351 | AP34: added from DEER2008.3.02 measure list | AQ34: ="ID: "&TEXT(B34,"000")&"; "&VLOOKUP($F34,'Engage Ltg Fixture Table'!$B$8:$HK$770,7,FALSE)&" ==> "&VLOOKUP($H34,'Engage Ltg Fixture Table'!$B$8:$HK$770,7,FALSE) -> ID: 023; Mercury Vapor, (1) 700W lamp, W/fixt=780 ==> FL, (6) 46in, T5HO, (3) PS Ballast, W/fixt=351 | AS34: 10637-10450
B35: 24 | C35: Com-ILtg-PrimLF-LF-ca10637-cd10613-ms10450 | D35: Linear Fluorescent | E35: Linear Fluorescent (Primary Schedule) | F35: 10637 | G35: 10613 | H35: 10450 | I35: Yes | J35: Yes | K35: No | L35: No | M35: 429 | N35: 105 | O35: =VLOOKUP($H35,'Engage Ltg Fixture Table'!$B$8:$HK$770,O$4,FALSE) -> Linear Fluorescent | P35: =VLOOKUP($H35,'Engage Ltg Fixture Table'!$B$8:$HK$770,P$4,FALSE) -> F46PHL/3 | Q35: =VLOOKUP($H35,'Engage Ltg Fixture Table'!$B$8:$HK$770,Q$4,FALSE) -> T5HO | R35: =VLOOKUP($H35,'Engage Ltg Fixture Table'!$B$8:$HK$770,R$4,FALSE) -> 46 inch | S35: =VLOOKUP($H35,'Engage Ltg Fixture Table'!$B$8:$HK$770,S$4,FALSE) -> 6 | T35: =VLOOKUP($H35,'Engage Ltg Fixture Table'!$B$8:$HK$770,T$4,FALSE) -> F54T5/HO | U35: =VLOOKUP($H35,'Engage Ltg Fixture Table'!$B$8:$HK$770,U$4,FALSE) -> Electronic | V35: =VLOOKUP($H35,'Engage Ltg Fixture Table'!$B$8:$HK$770,V$4,FALSE) -> 2 | W35: =VLOOKUP($H35,'Engage Ltg Fixture Table'!$B$8:$HK$770,W$4,FALSE) -> 0.351 | X35: =VLOOKUP($F35,'Engage Ltg Fixture Table'!$B$8:$HK$770,X$4,FALSE) -> HID | Y35: =VLOOKUP($F35,'Engage Ltg Fixture Table'!$B$8:$HK$770,Y$4,FALSE) -> MV700/1 | Z35: =VLOOKUP($F35,'Engage Ltg Fixture Table'!$B$8:$HK$770,Z$4,FALSE) -> Mercury Vapor | AA35: =VLOOKUP($F35,'Engage Ltg Fixture Table'!$B$8:$HK$770,AA$4,FALSE) -> 700 Watts | AB35: =VLOOKUP($F35,'Engage Ltg Fixture Table'!$B$8:$HK$770,AB$4,FALSE) -> 1 | AC35: =VLOOKUP($F35,'Engage Ltg Fixture Table'!$B$8:$HK$770,AC$4,FALSE) -> MV700 | AD35: =VLOOKUP($F35,'Engage Ltg Fixture Table'!$B$8:$HK$770,AD$4,FALSE) -> Mag-CWA | AE35: =VLOOKUP($F35,'Engage Ltg Fixture Table'!$B$8:$HK$770,AE$4,FALSE) -> 1 | AF35: =VLOOKUP($F35,'Engage Ltg Fixture Table'!$B$8:$HK$770,AF$4,FALSE) -> 0.78 | AG35: =IF(G35="na","na",VLOOKUP($G35,'Engage Ltg Fixture Table'!$B$8:$HK$770,AG$4,FALSE)) -> HID | AH35: =IF(G35="na","na",VLOOKUP($G35,'Engage Ltg Fixture Table'!$B$8:$HK$770,AH$4,FALSE)) -> MH400PS/1 | AI35: =IF(G35="na","na",VLOOKUP($G35,'Engage Ltg Fixture Table'!$B$8:$HK$770,AI$4,FALSE)) -> Pulse Start Metal Halide | AJ35: =IF(G35="na","na",VLOOKUP($G35,'Engage Ltg Fixture Table'!$B$8:$HK$770,AJ$4,FALSE)) -> 400 Watts | AK35: =IF(G35="na","na",VLOOKUP($G35,'Engage Ltg Fixture Table'!$B$8:$HK$770,AK$4,FALSE)) -> 1 | AL35: =IF(G35="na","na",VLOOKUP($G35,'Engage Ltg Fixture Table'!$B$8:$HK$770,AL$4,FALSE)) -> MH400PS | AM35: =IF(G35="na","na",VLOOKUP($G35,'Engage Ltg Fixture Table'!$B$8:$HK$770,AM$4,FALSE)) -> Mag-CWA | AN35: =IF(G35="na","na",VLOOKUP($G35,'Engage Ltg Fixture Table'!$B$8:$HK$770,AN$4,FALSE)) -> 1 | AO35: =IF(G35="na","na",VLOOKUP($G35,'Engage Ltg Fixture Table'!$B$8:$HK$770,AO$4,FALSE)) -> 0.456 | AP35: added from DEER2008.3.02 measure list | AQ35: ="ID: "&TEXT(B35,"000")&"; "&VLOOKUP($F35,'Engage Ltg Fixture Table'!$B$8:$HK$770,7,FALSE)&" ==> "&VLOOKUP($H35,'Engage Ltg Fixture Table'!$B$8:$HK$770,7,FALSE) -> ID: 024; Mercury Vapor, (1) 700W lamp, W/fixt=780 ==> FL, (6) 46in, T5HO, (3) PS Ballast, W/fixt=351 | AS35: 10637-10450
B36: 25 | C36: Com-ILtg-PrimLF-LF-ca10043-cd10232-ms10295 | D36: Linear Fluorescent | E36: Linear Fluorescent (Primary Schedule) | F36: 10043 | G36: 10232 | H36: 10295 | I36: No | J36: No | K36: Yes | L36: Yes | M36: 5 | N36: 1 | O36: =VLOOKUP($H36,'Engage Ltg Fixture Table'!$B$8:$HK$770,O$4,FALSE) -> Linear Fluorescent | P36: =VLOOKUP($H36,'Engage Ltg Fixture Table'!$B$8:$HK$770,P$4,FALSE) -> F41ILL (G2) | Q36: =VLOOKUP($H36,'Engage Ltg Fixture Table'!$B$8:$HK$770,Q$4,FALSE) -> T8 | R36: =VLOOKUP($H36,'Engage Ltg Fixture Table'!$B$8:$HK$770,R$4,FALSE) -> 48in 2nd Gen | S36: =VLOOKUP($H36,'Engage Ltg Fixture Table'!$B$8:$HK$770,S$4,FALSE) -> 1 | T36: =VLOOKUP($H36,'Engage Ltg Fixture Table'!$B$8:$HK$770,T$4,FALSE) -> F32T8-PREM | U36: =VLOOKUP($H36,'Engage Ltg Fixture Table'!$B$8:$HK$770,U$4,FALSE) -> Electronic | V36: =VLOOKUP($H36,'Engage Ltg Fixture Table'!$B$8:$HK$770,V$4,FALSE) -> 1 | W36: =VLOOKUP($H36,'Engage Ltg Fixture Table'!$B$8:$HK$770,W$4,FALSE) -> 0.031 | X36: =VLOOKUP($F36,'Engage Ltg Fixture Table'!$B$8:$HK$770,X$4,FALSE) -> Linear Fluorescent | Y36: =VLOOKUP($F36,'Engage Ltg Fixture Table'!$B$8:$HK$770,Y$4,FALSE) -> F41EH | Z36: =VLOOKUP($F36,'Engage Ltg Fixture Table'!$B$8:$HK$770,Z$4,FALSE) -> T12 | AA36: =VLOOKUP($F36,'Engage Ltg Fixture Table'!$B$8:$HK$770,AA$4,FALSE) -> 48 inch | AB36: =VLOOKUP($F36,'Engage Ltg Fixture Table'!$B$8:$HK$770,AB$4,FALSE) -> 1 | AC36: =VLOOKUP($F36,'Engage Ltg Fixture Table'!$B$8:$HK$770,AC$4,FALSE) -> F40T12/ES | AD36: =VLOOKUP($F36,'Engage Ltg Fixture Table'!$B$8:$HK$770,AD$4,FALSE) -> Mag-Hyb | AE36: =VLOOKUP($F36,'Engage Ltg Fixture Table'!$B$8:$HK$770,AE$4,FALSE) -> 1 | AF36: =VLOOKUP($F36,'Engage Ltg Fixture Table'!$B$8:$HK$770,AF$4,FALSE) -> 0.036 | AG36: =IF(G36="na","na",VLOOKUP($G36,'Engage Ltg Fixture Table'!$B$8:$HK$770,AG$4,FALSE)) -> Linear Fluorescent | AH36: =IF(G36="na","na",VLOOKUP($G36,'Engage Ltg Fixture Table'!$B$8:$HK$770,AH$4,FALSE)) -> F41LL (G1) | AI36: =IF(G36="na","na",VLOOKUP($G36,'Engage Ltg Fixture Table'!$B$8:$HK$770,AI$4,FALSE)) -> T8 | AJ36: =IF(G36="na","na",VLOOKUP($G36,'Engage Ltg Fixture Table'!$B$8:$HK$770,AJ$4,FALSE)) -> 48in 1st Gen | AK36: =IF(G36="na","na",VLOOKUP($G36,'Engage Ltg Fixture Table'!$B$8:$HK$770,AK$4,FALSE)) -> 1 | AL36: =IF(G36="na","na",VLOOKUP($G36,'Engage Ltg Fixture Table'!$B$8:$HK$770,AL$4,FALSE)) -> F32T8-STD | AM36: =IF(G36="na","na",VLOOKUP($G36,'Engage Ltg Fixture Table'!$B$8:$HK$770,AM$4,FALSE)) -> Electronic | AN36: =IF(G36="na","na",VLOOKUP($G36,'Engage Ltg Fixture Table'!$B$8:$HK$770,AN$4,FALSE)) -> 1 | AO36: =IF(G36="na","na",VLOOKUP($G36,'Engage Ltg Fixture Table'!$B$8:$HK$770,AO$4,FALSE)) -> 0.032 | AP36: added from DEER2008.3.02 measure list | AQ36: ="ID: "&TEXT(B36,"000")&"; "&VLOOKUP($F36,'Engage Ltg Fixture Table'!$B$8:$HK$770,7,FALSE)&" ==> "&VLOOKUP($H36,'Engage Ltg Fixture Table'!$B$8:$HK$770,7,FALSE) -> ID: 025; FL, (1) 48in, ES lamp, Hyb Mag, W/fixt=36 ==> FL, (1) 48in, T8 lamp, IS EB, W/fixt=31 | AS36: 10043-10295
B37: 26 | C37: Com-ILtg-PrimLF-LF-ca10043-cd10295-ms10295 | D37: Linear Fluorescent | E37: Linear Fluorescent (Primary Schedule) | F37: 10043 | G37: 10295 | H37: 10295 | I37: Yes | J37: Yes | K37: No | L37: No | M37: 5 | N37: 0 | O37: =VLOOKUP($H37,'Engage Ltg Fixture Table'!$B$8:$HK$770,O$4,FALSE) -> Linear Fluorescent | P37: =VLOOKUP($H37,'Engage Ltg Fixture Table'!$B$8:$HK$770,P$4,FALSE) -> F41ILL (G2) | Q37: =VLOOKUP($H37,'Engage Ltg Fixture Table'!$B$8:$HK$770,Q$4,FALSE) -> T8 | R37: =VLOOKUP($H37,'Engage Ltg Fixture Table'!$B$8:$HK$770,R$4,FALSE) -> 48in 2nd Gen | S37: =VLOOKUP($H37,'Engage Ltg Fixture Table'!$B$8:$HK$770,S$4,FALSE) -> 1 | T37: =VLOOKUP($H37,'Engage Ltg Fixture Table'!$B$8:$HK$770,T$4,FALSE) -> F32T8-PREM | U37: =VLOOKUP($H37,'Engage Ltg Fixture Table'!$B$8:$HK$770,U$4,FALSE) -> Electronic | V37: =VLOOKUP($H37,'Engage Ltg Fixture Table'!$B$8:$HK$770,V$4,FALSE) -> 1 | W37: =VLOOKUP($H37,'Engage Ltg Fixture Table'!$B$8:$HK$770,W$4,FALSE) -> 0.031 | X37: =VLOOKUP($F37,'Engage Ltg Fixture Table'!$B$8:$HK$770,X$4,FALSE) -> Linear Fluorescent | Y37: =VLOOKUP($F37,'Engage Ltg Fixture Table'!$B$8:$HK$770,Y$4,FALSE) -> F41EH | Z37: =VLOOKUP($F37,'Engage Ltg Fixture Table'!$B$8:$HK$770,Z$4,FALSE) -> T12 | AA37: =VLOOKUP($F37,'Engage Ltg Fixture Table'!$B$8:$HK$770,AA$4,FALSE) -> 48 inch | AB37: =VLOOKUP($F37,'Engage Ltg Fixture Table'!$B$8:$HK$770,AB$4,FALSE) -> 1 | AC37: =VLOOKUP($F37,'Engage Ltg Fixture Table'!$B$8:$HK$770,AC$4,FALSE) -> F40T12/ES | AD37: =VLOOKUP($F37,'Engage Ltg Fixture Table'!$B$8:$HK$770,AD$4,FALSE) -> Mag-Hyb | AE37: =VLOOKUP($F37,'Engage Ltg Fixture Table'!$B$8:$HK$770,AE$4,FALSE) -> 1 | AF37: =VLOOKUP($F37,'Engage Ltg Fixture Table'!$B$8:$HK$770,AF$4,FALSE) -> 0.036 | AG37: =IF(G37="na","na",VLOOKUP($G37,'Engage Ltg Fixture Table'!$B$8:$HK$770,AG$4,FALSE)) -> Linear Fluorescent | AH37: =IF(G37="na","na",VLOOKUP($G37,'Engage Ltg Fixture Table'!$B$8:$HK$770,AH$4,FALSE)) -> F41ILL (G2) | AI37: =IF(G37="na","na",VLOOKUP($G37,'Engage Ltg Fixture Table'!$B$8:$HK$770,AI$4,FALSE)) -> T8 | AJ37: =IF(G37="na","na",VLOOKUP($G37,'Engage Ltg Fixture Table'!$B$8:$HK$770,AJ$4,FALSE)) -> 48in 2nd Gen | AK37: =IF(G37="na","na",VLOOKUP($G37,'Engage Ltg Fixture Table'!$B$8:$HK$770,AK$4,FALSE)) -> 1 | AL37: =IF(G37="na","na",VLOOKUP($G37,'Engage Ltg Fixture Table'!$B$8:$HK$770,AL$4,FALSE)) -> F32T8-PREM | AM37: =IF(G37="na","na",VLOOKUP($G37,'Engage Ltg Fixture Table'!$B$8:$HK$770,AM$4,FALSE)) -> Electronic | AN37: =IF(G37="na","na",VLOOKUP($G37,'Engage Ltg Fixture Table'!$B$8:$HK$770,AN$4,FALSE)) -> 1 | AO37: =IF(G37="na","na",VLOOKUP($G37,'Engage Ltg Fixture Table'!$B$8:$HK$770,AO$4,FALSE)) -> 0.031 | AP37: added from DEER2008.3.02 measure list | AQ37: ="ID: "&TEXT(B37,"000")&"; "&VLOOKUP($F37,'Engage Ltg Fixture Table'!$B$8:$HK$770,7,FALSE)&" ==> "&VLOOKUP($H37,'Engage Ltg Fixture Table'!$B$8:$HK$770,7,FALSE) -> ID: 026; FL, (1) 48in, ES lamp, Hyb Mag, W/fixt=36 ==> FL, (1) 48in, T8 lamp, IS EB, W/fixt=31 | AS37: 10043-10295
B38: 27 | C38: Com-ILtg-PrimLF-LF-ca10044-cd10232-ms10295 | D38: Linear Fluorescent | E38: Linear Fluorescent (Primary Schedule) | F38: 10044 | G38: 10232 | H38: 10295 | I38: No | J38: No | K38: Yes | L38: Yes | M38: 10 | N38: 1 | O38: =VLOOKUP($H38,'Engage Ltg Fixture Table'!$B$8:$HK$770,O$4,FALSE) -> Linear Fluorescent | P38: =VLOOKUP($H38,'Engage Ltg Fixture Table'!$B$8:$HK$770,P$4,FALSE) -> F41ILL (G2) | Q38: =VLOOKUP($H38,'Engage Ltg Fixture Table'!$B$8:$HK$770,Q$4,FALSE) -> T8 | R38: =VLOOKUP($H38,'Engage Ltg Fixture Table'!$B$8:$HK$770,R$4,FALSE) -> 48in 2nd Gen | S38: =VLOOKUP($H38,'Engage Ltg Fixture Table'!$B$8:$HK$770,S$4,FALSE) -> 1 | T38: =VLOOKUP($H38,'Engage Ltg Fixture Table'!$B$8:$HK$770,T$4,FALSE) -> F32T8-PREM | U38: =VLOOKUP($H38,'Engage Ltg Fixture Table'!$B$8:$HK$770,U$4,FALSE) -> Electronic | V38: =VLOOKUP($H38,'Engage Ltg Fixture Table'!$B$8:$HK$770,V$4,FALSE) -> 1 | W38: =VLOOKUP($H38,'Engage Ltg Fixture Table'!$B$8:$HK$770,W$4,FALSE) -> 0.031 | X38: =VLOOKUP($F38,'Engage Ltg Fixture Table'!$B$8:$HK$770,X$4,FALSE) -> Linear Fluorescent | Y38: =VLOOKUP($F38,'Engage Ltg Fixture Table'!$B$8:$HK$770,Y$4,FALSE) -> F41SIH | Z38: =VLOOKUP($F38,'Engage Ltg Fixture Table'!$B$8:$HK$770,Z$4,FALSE) -> T12 | AA38: =VLOOKUP($F38,'Engage Ltg Fixture Table'!$B$8:$HK$770,AA$4,FALSE) -> 48 inch | AB38: =VLOOKUP($F38,'Engage Ltg Fixture Table'!$B$8:$HK$770,AB$4,FALSE) -> 1 | AC38: =VLOOKUP($F38,'Engage Ltg Fixture Table'!$B$8:$HK$770,AC$4,FALSE) -> F40T12 | AD38: =VLOOKUP($F38,'Engage Ltg Fixture Table'!$B$8:$HK$770,AD$4,FALSE) -> Mag-Hyb | AE38: =VLOOKUP($F38,'Engage Ltg Fixture Table'!$B$8:$HK$770,AE$4,FALSE) -> 1 | AF38: =VLOOKUP($F38,'Engage Ltg Fixture Table'!$B$8:$HK$770,AF$4,FALSE) -> 0.041 | AG38: =IF(G38="na","na",VLOOKUP($G38,'Engage Ltg Fixture Table'!$B$8:$HK$770,AG$4,FALSE)) -> Linear Fluorescent | AH38: =IF(G38="na","na",VLOOKUP($G38,'Engage Ltg Fixture Table'!$B$8:$HK$770,AH$4,FALSE)) -> F41LL (G1) | AI38: =IF(G38="na","na",VLOOKUP($G38,'Engage Ltg Fixture Table'!$B$8:$HK$770,AI$4,FALSE)) -> T8 | AJ38: =IF(G38="na","na",VLOOKUP($G38,'Engage Ltg Fixture Table'!$B$8:$HK$770,AJ$4,FALSE)) -> 48in 1st Gen | AK38: =IF(G38="na","na",VLOOKUP($G38,'Engage Ltg Fixture Table'!$B$8:$HK$770,AK$4,FALSE)) -> 1 | AL38: =IF(G38="na","na",VLOOKUP($G38,'Engage Ltg Fixture Table'!$B$8:$HK$770,AL$4,FALSE)) -> F32T8-STD | AM38: =IF(G38="na","na",VLOOKUP($G38,'Engage Ltg Fixture Table'!$B$8:$HK$770,AM$4,FALSE)) -> Electronic | AN38: =IF(G38="na","na",VLOOKUP($G38,'Engage Ltg Fixture Table'!$B$8:$HK$770,AN$4,FALSE)) -> 1 | AO38: =IF(G38="na","na",VLOOKUP($G38,'Engage Ltg Fixture Table'!$B$8:$HK$770,AO$4,FALSE)) -> 0.032 | AP38: added from DEER2008.3.02 measure list | AQ38: ="ID: "&TEXT(B38,"000")&"; "&VLOOKUP($F38,'Engage Ltg Fixture Table'!$B$8:$HK$770,7,FALSE)&" ==> "&VLOOKUP($H38,'Engage Ltg Fixture Table'!$B$8:$HK$770,7,FALSE) -> ID: 027; FL, (1) 48in, STD IS lamp, Hyb Mag, W/fixt=41 ==> FL, (1) 48in, T8 lamp, IS EB, W/fixt=31 | AS38: 10044-10295
B39: 28 | C39: Com-ILtg-PrimLF-LF-ca10044-cd10295-ms10295 | D39: Linear Fluorescent | E39: Linear Fluorescent (Primary Schedule) | F39: 10044 | G39: 10295 | H39: 10295 | I39: Yes | J39: Yes | K39: No | L39: No | M39: 10 | N39: 0 | O39: =VLOOKUP($H39,'Engage Ltg Fixture Table'!$B$8:$HK$770,O$4,FALSE) -> Linear Fluorescent | P39: =VLOOKUP($H39,'Engage Ltg Fixture Table'!$B$8:$HK$770,P$4,FALSE) -> F41ILL (G2) | Q39: =VLOOKUP($H39,'Engage Ltg Fixture Table'!$B$8:$HK$770,Q$4,FALSE) -> T8 | R39: =VLOOKUP($H39,'Engage Ltg Fixture Table'!$B$8:$HK$770,R$4,FALSE) -> 48in 2nd Gen | S39: =VLOOKUP($H39,'Engage Ltg Fixture Table'!$B$8:$HK$770,S$4,FALSE) -> 1 | T39: =VLOOKUP($H39,'Engage Ltg Fixture Table'!$B$8:$HK$770,T$4,FALSE) -> F32T8-PREM | U39: =VLOOKUP($H39,'Engage Ltg Fixture Table'!$B$8:$HK$770,U$4,FALSE) -> Electronic | V39: =VLOOKUP($H39,'Engage Ltg Fixture Table'!$B$8:$HK$770,V$4,FALSE) -> 1 | W39: =VLOOKUP($H39,'Engage Ltg Fixture Table'!$B$8:$HK$770,W$4,FALSE) -> 0.031 | X39: =VLOOKUP($F39,'Engage Ltg Fixture Table'!$B$8:$HK$770,X$4,FALSE) -> Linear Fluorescent | Y39: =VLOOKUP($F39,'Engage Ltg Fixture Table'!$B$8:$HK$770,Y$4,FALSE) -> F41SIH | Z39: =VLOOKUP($F39,'Engage Ltg Fixture Table'!$B$8:$HK$770,Z$4,FALSE) -> T12 | AA39: =VLOOKUP($F39,'Engage Ltg Fixture Table'!$B$8:$HK$770,AA$4,FALSE) -> 48 inch | AB39: =VLOOKUP($F39,'Engage Ltg Fixture Table'!$B$8:$HK$770,AB$4,FALSE) -> 1 | AC39: =VLOOKUP($F39,'Engage Ltg Fixture Table'!$B$8:$HK$770,AC$4,FALSE) -> F40T12 | AD39: =VLOOKUP($F39,'Engage Ltg Fixture Table'!$B$8:$HK$770,AD$4,FALSE) -> Mag-Hyb | AE39: =VLOOKUP($F39,'Engage Ltg Fixture Table'!$B$8:$HK$770,AE$4,FALSE) -> 1 | AF39: =VLOOKUP($F39,'Engage Ltg Fixture Table'!$B$8:$HK$770,AF$4,FALSE) -> 0.041 | AG39: =IF(G39="na","na",VLOOKUP($G39,'Engage Ltg Fixture Table'!$B$8:$HK$770,AG$4,FALSE)) -> Linear Fluorescent | AH39: =IF(G39="na","na",VLOOKUP($G39,'Engage Ltg Fixture Table'!$B$8:$HK$770,AH$4,FALSE)) -> F41ILL (G2) | AI39: =IF(G39="na","na",VLOOKUP($G39,'Engage Ltg Fixture Table'!$B$8:$HK$770,AI$4,FALSE)) -> T8 | AJ39: =IF(G39="na","na",VLOOKUP($G39,'Engage Ltg Fixture Table'!$B$8:$HK$770,AJ$4,FALSE)) -> 48in 2nd Gen | AK39: =IF(G39="na","na",VLOOKUP($G39,'Engage Ltg Fixture Table'!$B$8:$HK$770,AK$4,FALSE)) -> 1 | AL39: =IF(G39="na","na",VLOOKUP($G39,'Engage Ltg Fixture Table'!$B$8:$HK$770,AL$4,FALSE)) -> F32T8-PREM | AM39: =IF(G39="na","na",VLOOKUP($G39,'Engage Ltg Fixture Table'!$B$8:$HK$770,AM$4,FALSE)) -> Electronic | AN39: =IF(G39="na","na",VLOOKUP($G39,'Engage Ltg Fixture Table'!$B$8:$HK$770,AN$4,FALSE)) -> 1 | AO39: =IF(G39="na","na",VLOOKUP($G39,'Engage Ltg Fixture Table'!$B$8:$HK$770,AO$4,FALSE)) -> 0.031 | AP39: added from DEER2008.3.02 measure list | AQ39: ="ID: "&TEXT(B39,"000")&"; "&VLOOKUP($F39,'Engage Ltg Fixture Table'!$B$8:$HK$770,7,FALSE)&" ==> "&VLOOKUP($H39,'Engage Ltg Fixture Table'!$B$8:$HK$770,7,FALSE) -> ID: 028; FL, (1) 48in, STD IS lamp, Hyb Mag, W/fixt=41 ==> FL, (1) 48in, T8 lamp, IS EB, W/fixt=31 | AS39: 10044-10295
B40: 29 | C40: Com-ILtg-PrimLF-LF-ca10045-cd10232-ms10295 | D40: Linear Fluorescent | E40: Linear Fluorescent (Primary Schedule) | F40: 10045 | G40: 10232 | H40: 10295 | I40: No | J40: No | K40: Yes | L40: Yes | M40: 12 | N40: 1 | O40: =VLOOKUP($H40,'Engage Ltg Fixture Table'!$B$8:$HK$770,O$4,FALSE) -> Linear Fluorescent | P40: =VLOOKUP($H40,'Engage Ltg Fixture Table'!$B$8:$HK$770,P$4,FALSE) -> F41ILL (G2) | Q40: =VLOOKUP($H40,'Engage Ltg Fixture Table'!$B$8:$HK$770,Q$4,FALSE) -> T8 | R40: =VLOOKUP($H40,'Engage Ltg Fixture Table'!$B$8:$HK$770,R$4,FALSE) -> 48in 2nd Gen | S40: =VLOOKUP($H40,'Engage Ltg Fixture Table'!$B$8:$HK$770,S$4,FALSE) -> 1 | T40: =VLOOKUP($H40,'Engage Ltg Fixture Table'!$B$8:$HK$770,T$4,FALSE) -> F32T8-PREM | U40: =VLOOKUP($H40,'Engage Ltg Fixture Table'!$B$8:$HK$770,U$4,FALSE) -> Electronic | V40: =VLOOKUP($H40,'Engage Ltg Fixture Table'!$B$8:$HK$770,V$4,FALSE) -> 1 | W40: =VLOOKUP($H40,'Engage Ltg Fixture Table'!$B$8:$HK$770,W$4,FALSE) -> 0.031 | X40: =VLOOKUP($F40,'Engage Ltg Fixture Table'!$B$8:$HK$770,X$4,FALSE) -> Linear Fluorescent | Y40: =VLOOKUP($F40,'Engage Ltg Fixture Table'!$B$8:$HK$770,Y$4,FALSE) -> F41EE | Z40: =VLOOKUP($F40,'Engage Ltg Fixture Table'!$B$8:$HK$770,Z$4,FALSE) -> T12 | AA40: =VLOOKUP($F40,'Engage Ltg Fixture Table'!$B$8:$HK$770,AA$4,FALSE) -> 48 inch | AB40: =VLOOKUP($F40,'Engage Ltg Fixture Table'!$B$8:$HK$770,AB$4,FALSE) -> 1 | AC40: =VLOOKUP($F40,'Engage Ltg Fixture Table'!$B$8:$HK$770,AC$4,FALSE) -> F40T12/ES | AD40: =VLOOKUP($F40,'Engage Ltg Fixture Table'!$B$8:$HK$770,AD$4,FALSE) -> Mag-ES | AE40: =VLOOKUP($F40,'Engage Ltg Fixture Table'!$B$8:$HK$770,AE$4,FALSE) -> 1 | AF40: =VLOOKUP($F40,'Engage Ltg Fixture Table'!$B$8:$HK$770,AF$4,FALSE) -> 0.043 | AG40: =IF(G40="na","na",VLOOKUP($G40,'Engage Ltg Fixture Table'!$B$8:$HK$770,AG$4,FALSE)) -> Linear Fluorescent | AH40: =IF(G40="na","na",VLOOKUP($G40,'Engage Ltg Fixture Table'!$B$8:$HK$770,AH$4,FALSE)) -> F41LL (G1) | AI40: =IF(G40="na","na",VLOOKUP($G40,'Engage Ltg Fixture Table'!$B$8:$HK$770,AI$4,FALSE)) -> T8 | AJ40: =IF(G40="na","na",VLOOKUP($G40,'Engage Ltg Fixture Table'!$B$8:$HK$770,AJ$4,FALSE)) -> 48in 1st Gen | AK40: =IF(G40="na","na",VLOOKUP($G40,'Engage Ltg Fixture Table'!$B$8:$HK$770,AK$4,FALSE)) -> 1 | AL40: =IF(G40="na","na",VLOOKUP($G40,'Engage Ltg Fixture Table'!$B$8:$HK$770,AL$4,FALSE)) -> F32T8-STD | AM40: =IF(G40="na","na",VLOOKUP($G40,'Engage Ltg Fixture Table'!$B$8:$HK$770,AM$4,FALSE)) -> Electronic | AN40: =IF(G40="na","na",VLOOKUP($G40,'Engage Ltg Fixture Table'!$B$8:$HK$770,AN$4,FALSE)) -> 1 | AO40: =IF(G40="na","na",VLOOKUP($G40,'Engage Ltg Fixture Table'!$B$8:$HK$770,AO$4,FALSE)) -> 0.032 | AP40: added from DEER2008.3.02 measure list | AQ40: ="ID: "&TEXT(B40,"000")&"; "&VLOOKUP($F40,'Engage Ltg Fixture Table'!$B$8:$HK$770,7,FALSE)&" ==> "&VLOOKUP($H40,'Engage Ltg Fixture Table'!$B$8:$HK$770,7,FALSE) -> ID: 029; FL, (1) 48in, ES lamp, ES Mag, W/fixt=43 ==> FL, (1) 48in, T8 lamp, IS EB, W/fixt=31 | AS40: 10045-10295
B41: 30 | C41: Com-ILtg-PrimLF-LF-ca10045-cd10295-ms10295 | D41: Linear Fluorescent | E41: Linear Fluorescent (Primary Schedule) | F41: 10045 | G41: 10295 | H41: 10295 | I41: Yes | J41: Yes | K41: No | L41: No | M41: 12 | N41: 0 | O41: =VLOOKUP($H41,'Engage Ltg Fixture Table'!$B$8:$HK$770,O$4,FALSE) -> Linear Fluorescent | P41: =VLOOKUP($H41,'Engage Ltg Fixture Table'!$B$8:$HK$770,P$4,FALSE) -> F41ILL (G2) | Q41: =VLOOKUP($H41,'Engage Ltg Fixture Table'!$B$8:$HK$770,Q$4,FALSE) -> T8 | R41: =VLOOKUP($H41,'Engage Ltg Fixture Table'!$B$8:$HK$770,R$4,FALSE) -> 48in 2nd Gen | S41: =VLOOKUP($H41,'Engage Ltg Fixture Table'!$B$8:$HK$770,S$4,FALSE) -> 1 | T41: =VLOOKUP($H41,'Engage Ltg Fixture Table'!$B$8:$HK$770,T$4,FALSE) -> F32T8-PREM | U41: =VLOOKUP($H41,'Engage Ltg Fixture Table'!$B$8:$HK$770,U$4,FALSE) -> Electronic | V41: =VLOOKUP($H41,'Engage Ltg Fixture Table'!$B$8:$HK$770,V$4,FALSE) -> 1 | W41: =VLOOKUP($H41,'Engage Ltg Fixture Table'!$B$8:$HK$770,W$4,FALSE) -> 0.031 | X41: =VLOOKUP($F41,'Engage Ltg Fixture Table'!$B$8:$HK$770,X$4,FALSE) -> Linear Fluorescent | Y41: =VLOOKUP($F41,'Engage Ltg Fixture Table'!$B$8:$HK$770,Y$4,FALSE) -> F41EE | Z41: =VLOOKUP($F41,'Engage Ltg Fixture Table'!$B$8:$HK$770,Z$4,FALSE) -> T12 | AA41: =VLOOKUP($F41,'Engage Ltg Fixture Table'!$B$8:$HK$770,AA$4,FALSE) -> 48 inch | AB41: =VLOOKUP($F41,'Engage Ltg Fixture Table'!$B$8:$HK$770,AB$4,FALSE) -> 1 | AC41: =VLOOKUP($F41,'Engage Ltg Fixture Table'!$B$8:$HK$770,AC$4,FALSE) -> F40T12/ES | AD41: =VLOOKUP($F41,'Engage Ltg Fixture Table'!$B$8:$HK$770,AD$4,FALSE) -> Mag-ES | AE41: =VLOOKUP($F41,'Engage Ltg Fixture Table'!$B$8:$HK$770,AE$4,FALSE) -> 1 | AF41: =VLOOKUP($F41,'Engage Ltg Fixture Table'!$B$8:$HK$770,AF$4,FALSE) -> 0.043 | AG41: =IF(G41="na","na",VLOOKUP($G41,'Engage Ltg Fixture Table'!$B$8:$HK$770,AG$4,FALSE)) -> Linear Fluorescent | AH41: =IF(G41="na","na",VLOOKUP($G41,'Engage Ltg Fixture Table'!$B$8:$HK$770,AH$4,FALSE)) -> F41ILL (G2) | AI41: =IF(G41="na","na",VLOOKUP($G41,'Engage Ltg Fixture Table'!$B$8:$HK$770,AI$4,FALSE)) -> T8 | AJ41: =IF(G41="na","na",VLOOKUP($G41,'Engage Ltg Fixture Table'!$B$8:$HK$770,AJ$4,FALSE)) -> 48in 2nd Gen | AK41: =IF(G41="na","na",VLOOKUP($G41,'Engage Ltg Fixture Table'!$B$8:$HK$770,AK$4,FALSE)) -> 1 | AL41: =IF(G41="na","na",VLOOKUP($G41,'Engage Ltg Fixture Table'!$B$8:$HK$770,AL$4,FALSE)) -> F32T8-PREM | AM41: =IF(G41="na","na",VLOOKUP($G41,'Engage Ltg Fixture Table'!$B$8:$HK$770,AM$4,FALSE)) -> Electronic | AN41: =IF(G41="na","na",VLOOKUP($G41,'Engage Ltg Fixture Table'!$B$8:$HK$770,AN$4,FALSE)) -> 1 | AO41: =IF(G41="na","na",VLOOKUP($G41,'Engage Ltg Fixture Table'!$B$8:$HK$770,AO$4,FALSE)) -> 0.031 | AP41: added from DEER2008.3.02 measure list | AQ41: ="ID: "&TEXT(B41,"000")&"; "&VLOOKUP($F41,'Engage Ltg Fixture Table'!$B$8:$HK$770,7,FALSE)&" ==> "&VLOOKUP($H41,'Engage Ltg Fixture Table'!$B$8:$HK$770,7,FALSE) -> ID: 030; FL, (1) 48in, ES lamp, ES Mag, W/fixt=43 ==> FL, (1) 48in, T8 lamp, IS EB, W/fixt=31 | AS41: 10045-10295
B42: 31 | C42: Com-ILtg-PrimLF-LF-ca10047-cd10232-ms10295 | D42: Linear Fluorescent | E42: Linear Fluorescent (Primary Schedule) | F42: 10047 | G42: 10232 | H42: 10295 | I42: No | J42: No | K42: Yes | L42: Yes | M42: 20 | N42: 1 | O42: =VLOOKUP($H42,'Engage Ltg Fixture Table'!$B$8:$HK$770,O$4,FALSE) -> Linear Fluorescent | P42: =VLOOKUP($H42,'Engage Ltg Fixture Table'!$B$8:$HK$770,P$4,FALSE) -> F41ILL (G2) | Q42: =VLOOKUP($H42,'Engage Ltg Fixture Table'!$B$8:$HK$770,Q$4,FALSE) -> T8 | R42: =VLOOKUP($H42,'Engage Ltg Fixture Table'!$B$8:$HK$770,R$4,FALSE) -> 48in 2nd Gen | S42: =VLOOKUP($H42,'Engage Ltg Fixture Table'!$B$8:$HK$770,S$4,FALSE) -> 1 | T42: =VLOOKUP($H42,'Engage Ltg Fixture Table'!$B$8:$HK$770,T$4,FALSE) -> F32T8-PREM | U42: =VLOOKUP($H42,'Engage Ltg Fixture Table'!$B$8:$HK$770,U$4,FALSE) -> Electronic | V42: =VLOOKUP($H42,'Engage Ltg Fixture Table'!$B$8:$HK$770,V$4,FALSE) -> 1 | W42: =VLOOKUP($H42,'Engage Ltg Fixture Table'!$B$8:$HK$770,W$4,FALSE) -> 0.031 | X42: =VLOOKUP($F42,'Engage Ltg Fixture Table'!$B$8:$HK$770,X$4,FALSE) -> Linear Fluorescent | Y42: =VLOOKUP($F42,'Engage Ltg Fixture Table'!$B$8:$HK$770,Y$4,FALSE) -> F41EIS | Z42: =VLOOKUP($F42,'Engage Ltg Fixture Table'!$B$8:$HK$770,Z$4,FALSE) -> T12 | AA42: =VLOOKUP($F42,'Engage Ltg Fixture Table'!$B$8:$HK$770,AA$4,FALSE) -> 48 inch | AB42: =VLOOKUP($F42,'Engage Ltg Fixture Table'!$B$8:$HK$770,AB$4,FALSE) -> 1 | AC42: =VLOOKUP($F42,'Engage Ltg Fixture Table'!$B$8:$HK$770,AC$4,FALSE) -> F48T12/ES | AD42: =VLOOKUP($F42,'Engage Ltg Fixture Table'!$B$8:$HK$770,AD$4,FALSE) -> Mag-STD | AE42: =VLOOKUP($F42,'Engage Ltg Fixture Table'!$B$8:$HK$770,AE$4,FALSE) -> 1 | AF42: =VLOOKUP($F42,'Engage Ltg Fixture Table'!$B$8:$HK$770,AF$4,FALSE) -> 0.051 | AG42: =IF(G42="na","na",VLOOKUP($G42,'Engage Ltg Fixture Table'!$B$8:$HK$770,AG$4,FALSE)) -> Linear Fluorescent | AH42: =IF(G42="na","na",VLOOKUP($G42,'Engage Ltg Fixture Table'!$B$8:$HK$770,AH$4,FALSE)) -> F41LL (G1) | AI42: =IF(G42="na","na",VLOOKUP($G42,'Engage Ltg Fixture Table'!$B$8:$HK$770,AI$4,FALSE)) -> T8 | AJ42: =IF(G42="na","na",VLOOKUP($G42,'Engage Ltg Fixture Table'!$B$8:$HK$770,AJ$4,FALSE)) -> 48in 1st Gen | AK42: =IF(G42="na","na",VLOOKUP($G42,'Engage Ltg Fixture Table'!$B$8:$HK$770,AK$4,FALSE)) -> 1 | AL42: =IF(G42="na","na",VLOOKUP($G42,'Engage Ltg Fixture Table'!$B$8:$HK$770,AL$4,FALSE)) -> F32T8-STD | AM42: =IF(G42="na","na",VLOOKUP($G42,'Engage Ltg Fixture Table'!$B$8:$HK$770,AM$4,FALSE)) -> Electronic | AN42: =IF(G42="na","na",VLOOKUP($G42,'Engage Ltg Fixture Table'!$B$8:$HK$770,AN$4,FALSE)) -> 1 | AO42: =IF(G42="na","na",VLOOKUP($G42,'Engage Ltg Fixture Table'!$B$8:$HK$770,AO$4,FALSE)) -> 0.032 | AP42: added from DEER2008.3.02 measure list | AQ42: ="ID: "&TEXT(B42,"000")&"; "&VLOOKUP($F42,'Engage Ltg Fixture Table'!$B$8:$HK$770,7,FALSE)&" ==> "&VLOOKUP($H42,'Engage Ltg Fixture Table'!$B$8:$HK$770,7,FALSE) -> ID: 031; FL, (1) 48in, ES IS lamp, Mag, W/fixt=51 ==> FL, (1) 48in, T8 lamp, IS EB, W/fixt=31 | AS42: 10047-10295
B43: 32 | C43: Com-ILtg-PrimLF-LF-ca10047-cd10295-ms10295 | D43: Linear Fluorescent | E43: Linear Fluorescent (Primary Schedule) | F43: 10047 | G43: 10295 | H43: 10295 | I43: Yes | J43: Yes | K43: No | L43: No | M43: 20 | N43: 0 | O43: =VLOOKUP($H43,'Engage Ltg Fixture Table'!$B$8:$HK$770,O$4,FALSE) -> Linear Fluorescent | P43: =VLOOKUP($H43,'Engage Ltg Fixture Table'!$B$8:$HK$770,P$4,FALSE) -> F41ILL (G2) | Q43: =VLOOKUP($H43,'Engage Ltg Fixture Table'!$B$8:$HK$770,Q$4,FALSE) -> T8 | R43: =VLOOKUP($H43,'Engage Ltg Fixture Table'!$B$8:$HK$770,R$4,FALSE) -> 48in 2nd Gen | S43: =VLOOKUP($H43,'Engage Ltg Fixture Table'!$B$8:$HK$770,S$4,FALSE) -> 1 | T43: =VLOOKUP($H43,'Engage Ltg Fixture Table'!$B$8:$HK$770,T$4,FALSE) -> F32T8-PREM | U43: =VLOOKUP($H43,'Engage Ltg Fixture Table'!$B$8:$HK$770,U$4,FALSE) -> Electronic | V43: =VLOOKUP($H43,'Engage Ltg Fixture Table'!$B$8:$HK$770,V$4,FALSE) -> 1 | W43: =VLOOKUP($H43,'Engage Ltg Fixture Table'!$B$8:$HK$770,W$4,FALSE) -> 0.031 | X43: =VLOOKUP($F43,'Engage Ltg Fixture Table'!$B$8:$HK$770,X$4,FALSE) -> Linear Fluorescent | Y43: =VLOOKUP($F43,'Engage Ltg Fixture Table'!$B$8:$HK$770,Y$4,FALSE) -> F41EIS | Z43: =VLOOKUP($F43,'Engage Ltg Fixture Table'!$B$8:$HK$770,Z$4,FALSE) -> T12 | AA43: =VLOOKUP($F43,'Engage Ltg Fixture Table'!$B$8:$HK$770,AA$4,FALSE) -> 48 inch | AB43: =VLOOKUP($F43,'Engage Ltg Fixture Table'!$B$8:$HK$770,AB$4,FALSE) -> 1 | AC43: =VLOOKUP($F43,'Engage Ltg Fixture Table'!$B$8:$HK$770,AC$4,FALSE) -> F48T12/ES | AD43: =VLOOKUP($F43,'Engage Ltg Fixture Table'!$B$8:$HK$770,AD$4,FALSE) -> Mag-STD | AE43: =VLOOKUP($F43,'Engage Ltg Fixture Table'!$B$8:$HK$770,AE$4,FALSE) -> 1 | AF43: =VLOOKUP($F43,'Engage Ltg Fixture Table'!$B$8:$HK$770,AF$4,FALSE) -> 0.051 | AG43: =IF(G43="na","na",VLOOKUP($G43,'Engage Ltg Fixture Table'!$B$8:$HK$770,AG$4,FALSE)) -> Linear Fluorescent | AH43: =IF(G43="na","na",VLOOKUP($G43,'Engage Ltg Fixture Table'!$B$8:$HK$770,AH$4,FALSE)) -> F41ILL (G2) | AI43: =IF(G43="na","na",VLOOKUP($G43,'Engage Ltg Fixture Table'!$B$8:$HK$770,AI$4,FALSE)) -> T8 | AJ43: =IF(G43="na","na",VLOOKUP($G43,'Engage Ltg Fixture Table'!$B$8:$HK$770,AJ$4,FALSE)) -> 48in 2nd Gen | AK43: =IF(G43="na","na",VLOOKUP($G43,'Engage Ltg Fixture Table'!$B$8:$HK$770,AK$4,FALSE)) -> 1 | AL43: =IF(G43="na","na",VLOOKUP($G43,'Engage Ltg Fixture Table'!$B$8:$HK$770,AL$4,FALSE)) -> F32T8-PREM | AM43: =IF(G43="na","na",VLOOKUP($G43,'Engage Ltg Fixture Table'!$B$8:$HK$770,AM$4,FALSE)) -> Electronic | AN43: =IF(G43="na","na",VLOOKUP($G43,'Engage Ltg Fixture Table'!$B$8:$HK$770,AN$4,FALSE)) -> 1 | AO43: =IF(G43="na","na",VLOOKUP($G43,'Engage Ltg Fixture Table'!$B$8:$HK$770,AO$4,FALSE)) -> 0.031 | AP43: added from DEER2008.3.02 measure list | AQ43: ="ID: "&TEXT(B43,"000")&"; "&VLOOKUP($F43,'Engage Ltg Fixture Table'!$B$8:$HK$770,7,FALSE)&" ==> "&VLOOKUP($H43,'Engage Ltg Fixture Table'!$B$8:$HK$770,7,FALSE) -> ID: 032; FL, (1) 48in, ES IS lamp, Mag, W/fixt=51 ==> FL, (1) 48in, T8 lamp, IS EB, W/fixt=31 | AS43: 10047-10295
B44: 33 | C44: Com-ILtg-PrimLF-LF-ca10049-cd10232-ms10295 | D44: Linear Fluorescent | E44: Linear Fluorescent (Primary Schedule) | F44: 10049 | G44: 10232 | H44: 10295 | I44: No | J44: No | K44: Yes | L44: Yes | M44: 29 | N44: 1 | O44: =VLOOKUP($H44,'Engage Ltg Fixture Table'!$B$8:$HK$770,O$4,FALSE) -> Linear Fluorescent | P44: =VLOOKUP($H44,'Engage Ltg Fixture Table'!$B$8:$HK$770,P$4,FALSE) -> F41ILL (G2) | Q44: =VLOOKUP($H44,'Engage Ltg Fixture Table'!$B$8:$HK$770,Q$4,FALSE) -> T8 | R44: =VLOOKUP($H44,'Engage Ltg Fixture Table'!$B$8:$HK$770,R$4,FALSE) -> 48in 2nd Gen | S44: =VLOOKUP($H44,'Engage Ltg Fixture Table'!$B$8:$HK$770,S$4,FALSE) -> 1 | T44: =VLOOKUP($H44,'Engage Ltg Fixture Table'!$B$8:$HK$770,T$4,FALSE) -> F32T8-PREM | U44: =VLOOKUP($H44,'Engage Ltg Fixture Table'!$B$8:$HK$770,U$4,FALSE) -> Electronic | V44: =VLOOKUP($H44,'Engage Ltg Fixture Table'!$B$8:$HK$770,V$4,FALSE) -> 1 | W44: =VLOOKUP($H44,'Engage Ltg Fixture Table'!$B$8:$HK$770,W$4,FALSE) -> 0.031 | X44: =VLOOKUP($F44,'Engage Ltg Fixture Table'!$B$8:$HK$770,X$4,FALSE) -> Linear Fluorescent | Y44: =VLOOKUP($F44,'Engage Ltg Fixture Table'!$B$8:$HK$770,Y$4,FALSE) -> F41SIS | Z44: =VLOOKUP($F44,'Engage Ltg Fixture Table'!$B$8:$HK$770,Z$4,FALSE) -> T12 | AA44: =VLOOKUP($F44,'Engage Ltg Fixture Table'!$B$8:$HK$770,AA$4,FALSE) -> 48 inch | AB44: =VLOOKUP($F44,'Engage Ltg Fixture Table'!$B$8:$HK$770,AB$4,FALSE) -> 1 | AC44: =VLOOKUP($F44,'Engage Ltg Fixture Table'!$B$8:$HK$770,AC$4,FALSE) -> F40T12 | AD44: =VLOOKUP($F44,'Engage Ltg Fixture Table'!$B$8:$HK$770,AD$4,FALSE) -> Mag-STD | AE44: =VLOOKUP($F44,'Engage Ltg Fixture Table'!$B$8:$HK$770,AE$4,FALSE) -> 1 | AF44: =VLOOKUP($F44,'Engage Ltg Fixture Table'!$B$8:$HK$770,AF$4,FALSE) -> 0.06 | AG44: =IF(G44="na","na",VLOOKUP($G44,'Engage Ltg Fixture Table'!$B$8:$HK$770,AG$4,FALSE)) -> Linear Fluorescent | AH44: =IF(G44="na","na",VLOOKUP($G44,'Engage Ltg Fixture Table'!$B$8:$HK$770,AH$4,FALSE)) -> F41LL (G1) | AI44: =IF(G44="na","na",VLOOKUP($G44,'Engage Ltg Fixture Table'!$B$8:$HK$770,AI$4,FALSE)) -> T8 | AJ44: =IF(G44="na","na",VLOOKUP($G44,'Engage Ltg Fixture Table'!$B$8:$HK$770,AJ$4,FALSE)) -> 48in 1st Gen | AK44: =IF(G44="na","na",VLOOKUP($G44,'Engage Ltg Fixture Table'!$B$8:$HK$770,AK$4,FALSE)) -> 1 | AL44: =IF(G44="na","na",VLOOKUP($G44,'Engage Ltg Fixture Table'!$B$8:$HK$770,AL$4,FALSE)) -> F32T8-STD | AM44: =IF(G44="na","na",VLOOKUP($G44,'Engage Ltg Fixture Table'!$B$8:$HK$770,AM$4,FALSE)) -> Electronic | AN44: =IF(G44="na","na",VLOOKUP($G44,'Engage Ltg Fixture Table'!$B$8:$HK$770,AN$4,FALSE)) -> 1 | AO44: =IF(G44="na","na",VLOOKUP($G44,'Engage Ltg Fixture Table'!$B$8:$HK$770,AO$4,FALSE)) -> 0.032 | AP44: added from DEER2008.3.02 measure list | AQ44: ="ID: "&TEXT(B44,"000")&"; "&VLOOKUP($F44,'Engage Ltg Fixture Table'!$B$8:$HK$770,7,FALSE)&" ==> "&VLOOKUP($H44,'Engage Ltg Fixture Table'!$B$8:$HK$770,7,FALSE) -> ID: 033; FL, (1) 48in, STD IS lamp, Mag, W/fixt=60 ==> FL, (1) 48in, T8 lamp, IS EB, W/fixt=31 | AS44: 10049-10295
B45: 34 | C45: Com-ILtg-PrimLF-LF-ca10049-cd10295-ms10295 | D45: Linear Fluorescent | E45: Linear Fluorescent (Primary Schedule) | F45: 10049 | G45: 10295 | H45: 10295 | I45: Yes | J45: Yes | K45: No | L45: No | M45: 29 | N45: 0 | O45: =VLOOKUP($H45,'Engage Ltg Fixture Table'!$B$8:$HK$770,O$4,FALSE) -> Linear Fluorescent | P45: =VLOOKUP($H45,'Engage Ltg Fixture Table'!$B$8:$HK$770,P$4,FALSE) -> F41ILL (G2) | Q45: =VLOOKUP($H45,'Engage Ltg Fixture Table'!$B$8:$HK$770,Q$4,FALSE) -> T8 | R45: =VLOOKUP($H45,'Engage Ltg Fixture Table'!$B$8:$HK$770,R$4,FALSE) -> 48in 2nd Gen | S45: =VLOOKUP($H45,'Engage Ltg Fixture Table'!$B$8:$HK$770,S$4,FALSE) -> 1 | T45: =VLOOKUP($H45,'Engage Ltg Fixture Table'!$B$8:$HK$770,T$4,FALSE) -> F32T8-PREM | U45: =VLOOKUP($H45,'Engage Ltg Fixture Table'!$B$8:$HK$770,U$4,FALSE) -> Electronic | V45: =VLOOKUP($H45,'Engage Ltg Fixture Table'!$B$8:$HK$770,V$4,FALSE) -> 1 | W45: =VLOOKUP($H45,'Engage Ltg Fixture Table'!$B$8:$HK$770,W$4,FALSE) -> 0.031 | X45: =VLOOKUP($F45,'Engage Ltg Fixture Table'!$B$8:$HK$770,X$4,FALSE) -> Linear Fluorescent | Y45: =VLOOKUP($F45,'Engage Ltg Fixture Table'!$B$8:$HK$770,Y$4,FALSE) -> F41SIS | Z45: =VLOOKUP($F45,'Engage Ltg Fixture Table'!$B$8:$HK$770,Z$4,FALSE) -> T12 | AA45: =VLOOKUP($F45,'Engage Ltg Fixture Table'!$B$8:$HK$770,AA$4,FALSE) -> 48 inch | AB45: =VLOOKUP($F45,'Engage Ltg Fixture Table'!$B$8:$HK$770,AB$4,FALSE) -> 1 | AC45: =VLOOKUP($F45,'Engage Ltg Fixture Table'!$B$8:$HK$770,AC$4,FALSE) -> F40T12 | AD45: =VLOOKUP($F45,'Engage Ltg Fixture Table'!$B$8:$HK$770,AD$4,FALSE) -> Mag-STD | AE45: =VLOOKUP($F45,'Engage Ltg Fixture Table'!$B$8:$HK$770,AE$4,FALSE) -> 1 | AF45: =VLOOKUP($F45,'Engage Ltg Fixture Table'!$B$8:$HK$770,AF$4,FALSE) -> 0.06 | AG45: =IF(G45="na","na",VLOOKUP($G45,'Engage Ltg Fixture Table'!$B$8:$HK$770,AG$4,FALSE)) -> Linear Fluorescent | AH45: =IF(G45="na","na",VLOOKUP($G45,'Engage Ltg Fixture Table'!$B$8:$HK$770,AH$4,FALSE)) -> F41ILL (G2) | AI45: =IF(G45="na","na",VLOOKUP($G45,'Engage Ltg Fixture Table'!$B$8:$HK$770,AI$4,FALSE)) -> T8 | AJ45: =IF(G45="na","na",VLOOKUP($G45,'Engage Ltg Fixture Table'!$B$8:$HK$770,AJ$4,FALSE)) -> 48in 2nd Gen | AK45: =IF(G45="na","na",VLOOKUP($G45,'Engage Ltg Fixture Table'!$B$8:$HK$770,AK$4,FALSE)) -> 1 | AL45: =IF(G45="na","na",VLOOKUP($G45,'Engage Ltg Fixture Table'!$B$8:$HK$770,AL$4,FALSE)) -> F32T8-PREM | AM45: =IF(G45="na","na",VLOOKUP($G45,'Engage Ltg Fixture Table'!$B$8:$HK$770,AM$4,FALSE)) -> Electronic | AN45: =IF(G45="na","na",VLOOKUP($G45,'Engage Ltg Fixture Table'!$B$8:$HK$770,AN$4,FALSE)) -> 1 | AO45: =IF(G45="na","na",VLOOKUP($G45,'Engage Ltg Fixture Table'!$B$8:$HK$770,AO$4,FALSE)) -> 0.031 | AP45: added from DEER2008.3.02 measure list | AQ45: ="ID: "&TEXT(B45,"000")&"; "&VLOOKUP($F45,'Engage Ltg Fixture Table'!$B$8:$HK$770,7,FALSE)&" ==> "&VLOOKUP($H45,'Engage Ltg Fixture Table'!$B$8:$HK$770,7,FALSE) -> ID: 034; FL, (1) 48in, STD IS lamp, Mag, W/fixt=60 ==> FL, (1) 48in, T8 lamp, IS EB, W/fixt=31 | AS45: 10049-10295
B46: 35 | C46: Com-ILtg-PrimLF-LF-ca10065-cd10250-ms10311 | D46: Linear Fluorescent | E46: Linear Fluorescent (Primary Schedule) | F46: 10065 | G46: 10250 | H46: 10311 | I46: No | J46: No | K46: Yes | L46: Yes | M46: 14 | N46: 6 | O46: =VLOOKUP($H46,'Engage Ltg Fixture Table'!$B$8:$HK$770,O$4,FALSE) -> Linear Fluorescent | P46: =VLOOKUP($H46,'Engage Ltg Fixture Table'!$B$8:$HK$770,P$4,FALSE) -> F42LL-R (G2) | Q46: =VLOOKUP($H46,'Engage Ltg Fixture Table'!$B$8:$HK$770,Q$4,FALSE) -> T8 | R46: =VLOOKUP($H46,'Engage Ltg Fixture Table'!$B$8:$HK$770,R$4,FALSE) -> 48in 2nd Gen | S46: =VLOOKUP($H46,'Engage Ltg Fixture Table'!$B$8:$HK$770,S$4,FALSE) -> 2 | T46: =VLOOKUP($H46,'Engage Ltg Fixture Table'!$B$8:$HK$770,T$4,FALSE) -> F32T8-PREM | U46: =VLOOKUP($H46,'Engage Ltg Fixture Table'!$B$8:$HK$770,U$4,FALSE) -> Electronic | V46: =VLOOKUP($H46,'Engage Ltg Fixture Table'!$B$8:$HK$770,V$4,FALSE) -> 1 | W46: =VLOOKUP($H46,'Engage Ltg Fixture Table'!$B$8:$HK$770,W$4,FALSE) -> 0.054 | X46: =VLOOKUP($F46,'Engage Ltg Fixture Table'!$B$8:$HK$770,X$4,FALSE) -> Linear Fluorescent | Y46: =VLOOKUP($F46,'Engage Ltg Fixture Table'!$B$8:$HK$770,Y$4,FALSE) -> F42EH | Z46: =VLOOKUP($F46,'Engage Ltg Fixture Table'!$B$8:$HK$770,Z$4,FALSE) -> T12 | AA46: =VLOOKUP($F46,'Engage Ltg Fixture Table'!$B$8:$HK$770,AA$4,FALSE) -> 48 inch | AB46: =VLOOKUP($F46,'Engage Ltg Fixture Table'!$B$8:$HK$770,AB$4,FALSE) -> 2 | AC46: =VLOOKUP($F46,'Engage Ltg Fixture Table'!$B$8:$HK$770,AC$4,FALSE) -> F40T12/ES | AD46: =VLOOKUP($F46,'Engage Ltg Fixture Table'!$B$8:$HK$770,AD$4,FALSE) -> Mag-Hyb | AE46: =VLOOKUP($F46,'Engage Ltg Fixture Table'!$B$8:$HK$770,AE$4,FALSE) -> 1 | AF46: =VLOOKUP($F46,'Engage Ltg Fixture Table'!$B$8:$HK$770,AF$4,FALSE) -> 0.068 | AG46: =IF(G46="na","na",VLOOKUP($G46,'Engage Ltg Fixture Table'!$B$8:$HK$770,AG$4,FALSE)) -> Linear Fluorescent | AH46: =IF(G46="na","na",VLOOKUP($G46,'Engage Ltg Fixture Table'!$B$8:$HK$770,AH$4,FALSE)) -> F42LL (G1) | AI46: =IF(G46="na","na",VLOOKUP($G46,'Engage Ltg Fixture Table'!$B$8:$HK$770,AI$4,FALSE)) -> T8 | AJ46: =IF(G46="na","na",VLOOKUP($G46,'Engage Ltg Fixture Table'!$B$8:$HK$770,AJ$4,FALSE)) -> 48in 1st Gen | AK46: =IF(G46="na","na",VLOOKUP($G46,'Engage Ltg Fixture Table'!$B$8:$HK$770,AK$4,FALSE)) -> 2 | AL46: =IF(G46="na","na",VLOOKUP($G46,'Engage Ltg Fixture Table'!$B$8:$HK$770,AL$4,FALSE)) -> F32T8-STD | AM46: =IF(G46="na","na",VLOOKUP($G46,'Engage Ltg Fixture Table'!$B$8:$HK$770,AM$4,FALSE)) -> Electronic | AN46: =IF(G46="na","na",VLOOKUP($G46,'Engage Ltg Fixture Table'!$B$8:$HK$770,AN$4,FALSE)) -> 1 | AO46: =IF(G46="na","na",VLOOKUP($G46,'Engage Ltg Fixture Table'!$B$8:$HK$770,AO$4,FALSE)) -> 0.06 | AP46: added from DEER2008.3.02 measure list | AQ46: ="ID: "&TEXT(B46,"000")&"; "&VLOOKUP($F46,'Engage Ltg Fixture Table'!$B$8:$HK$770,7,FALSE)&" ==> "&VLOOKUP($H46,'Engage Ltg Fixture Table'!$B$8:$HK$770,7,FALSE) -> ID: 035; FL, (2) 48in, ES lamp, Hyb Mag, W/fixt=68 ==> FL, (2) 48in, T8 lamp, RS EB, W/fixt=54 | AS46: 10065-10311
B47: 36 | C47: Com-ILtg-PrimLF-LF-ca10065-cd10311-ms10311 | D47: Linear Fluorescent | E47: Linear Fluorescent (Primary Schedule) | F47: 10065 | G47: 10311 | H47: 10311 | I47: Yes | J47: Yes | K47: No | L47: No | M47: 14 | N47: 0 | O47: =VLOOKUP($H47,'Engage Ltg Fixture Table'!$B$8:$HK$770,O$4,FALSE) -> Linear Fluorescent | P47: =VLOOKUP($H47,'Engage Ltg Fixture Table'!$B$8:$HK$770,P$4,FALSE) -> F42LL-R (G2) | Q47: =VLOOKUP($H47,'Engage Ltg Fixture Table'!$B$8:$HK$770,Q$4,FALSE) -> T8 | R47: =VLOOKUP($H47,'Engage Ltg Fixture Table'!$B$8:$HK$770,R$4,FALSE) -> 48in 2nd Gen | S47: =VLOOKUP($H47,'Engage Ltg Fixture Table'!$B$8:$HK$770,S$4,FALSE) -> 2 | T47: =VLOOKUP($H47,'Engage Ltg Fixture Table'!$B$8:$HK$770,T$4,FALSE) -> F32T8-PREM | U47: =VLOOKUP($H47,'Engage Ltg Fixture Table'!$B$8:$HK$770,U$4,FALSE) -> Electronic | V47: =VLOOKUP($H47,'Engage Ltg Fixture Table'!$B$8:$HK$770,V$4,FALSE) -> 1 | W47: =VLOOKUP($H47,'Engage Ltg Fixture Table'!$B$8:$HK$770,W$4,FALSE) -> 0.054 | X47: =VLOOKUP($F47,'Engage Ltg Fixture Table'!$B$8:$HK$770,X$4,FALSE) -> Linear Fluorescent | Y47: =VLOOKUP($F47,'Engage Ltg Fixture Table'!$B$8:$HK$770,Y$4,FALSE) -> F42EH | Z47: =VLOOKUP($F47,'Engage Ltg Fixture Table'!$B$8:$HK$770,Z$4,FALSE) -> T12 | AA47: =VLOOKUP($F47,'Engage Ltg Fixture Table'!$B$8:$HK$770,AA$4,FALSE) -> 48 inch | AB47: =VLOOKUP($F47,'Engage Ltg Fixture Table'!$B$8:$HK$770,AB$4,FALSE) -> 2 | AC47: =VLOOKUP($F47,'Engage Ltg Fixture Table'!$B$8:$HK$770,AC$4,FALSE) -> F40T12/ES | AD47: =VLOOKUP($F47,'Engage Ltg Fixture Table'!$B$8:$HK$770,AD$4,FALSE) -> Mag-Hyb | AE47: =VLOOKUP($F47,'Engage Ltg Fixture Table'!$B$8:$HK$770,AE$4,FALSE) -> 1 | AF47: =VLOOKUP($F47,'Engage Ltg Fixture Table'!$B$8:$HK$770,AF$4,FALSE) -> 0.068 | AG47: =IF(G47="na","na",VLOOKUP($G47,'Engage Ltg Fixture Table'!$B$8:$HK$770,AG$4,FALSE)) -> Linear Fluorescent | AH47: =IF(G47="na","na",VLOOKUP($G47,'Engage Ltg Fixture Table'!$B$8:$HK$770,AH$4,FALSE)) -> F42LL-R (G2) | AI47: =IF(G47="na","na",VLOOKUP($G47,'Engage Ltg Fixture Table'!$B$8:$HK$770,AI$4,FALSE)) -> T8 | AJ47: =IF(G47="na","na",VLOOKUP($G47,'Engage Ltg Fixture Table'!$B$8:$HK$770,AJ$4,FALSE)) -> 48in 2nd Gen | AK47: =IF(G47="na","na",VLOOKUP($G47,'Engage Ltg Fixture Table'!$B$8:$HK$770,AK$4,FALSE)) -> 2 | AL47: =IF(G47="na","na",VLOOKUP($G47,'Engage Ltg Fixture Table'!$B$8:$HK$770,AL$4,FALSE)) -> F32T8-PREM | AM47: =IF(G47="na","na",VLOOKUP($G47,'Engage Ltg Fixture Table'!$B$8:$HK$770,AM$4,FALSE)) -> Electronic | AN47: =IF(G47="na","na",VLOOKUP($G47,'Engage Ltg Fixture Table'!$B$8:$HK$770,AN$4,FALSE)) -> 1 | AO47: =IF(G47="na","na",VLOOKUP($G47,'Engage Ltg Fixture Table'!$B$8:$HK$770,AO$4,FALSE)) -> 0.054 | AP47: added from DEER2008.3.02 measure list | AQ47: ="ID: "&TEXT(B47,"000")&"; "&VLOOKUP($F47,'Engage Ltg Fixture Table'!$B$8:$HK$770,7,FALSE)&" ==> "&VLOOKUP($H47,'Engage Ltg Fixture Table'!$B$8:$HK$770,7,FALSE) -> ID: 036; FL, (2) 48in, ES lamp, Hyb Mag, W/fixt=68 ==> FL, (2) 48in, T8 lamp, RS EB, W/fixt=54 | AS47: 10065-10311
B48: 37 | C48: Com-ILtg-PrimLF-LF-ca10066-cd10250-ms10307 | D48: Linear Fluorescent | E48: Linear Fluorescent (Primary Schedule) | F48: 10066 | G48: 10250 | H48: 10307 | I48: No | J48: No | K48: Yes | L48: Yes | M48: 31 | N48: 19 | O48: =VLOOKUP($H48,'Engage Ltg Fixture Table'!$B$8:$HK$770,O$4,FALSE) -> Linear Fluorescent | P48: =VLOOKUP($H48,'Engage Ltg Fixture Table'!$B$8:$HK$770,P$4,FALSE) -> F41ILL-V (G2) | Q48: =VLOOKUP($H48,'Engage Ltg Fixture Table'!$B$8:$HK$770,Q$4,FALSE) -> T8 | R48: =VLOOKUP($H48,'Engage Ltg Fixture Table'!$B$8:$HK$770,R$4,FALSE) -> 48in 2nd Gen | S48: =VLOOKUP($H48,'Engage Ltg Fixture Table'!$B$8:$HK$770,S$4,FALSE) -> 1 | T48: =VLOOKUP($H48,'Engage Ltg Fixture Table'!$B$8:$HK$770,T$4,FALSE) -> F32T8-PREM | U48: =VLOOKUP($H48,'Engage Ltg Fixture Table'!$B$8:$HK$770,U$4,FALSE) -> Electronic | V48: =VLOOKUP($H48,'Engage Ltg Fixture Table'!$B$8:$HK$770,V$4,FALSE) -> 1 | W48: =VLOOKUP($H48,'Engage Ltg Fixture Table'!$B$8:$HK$770,W$4,FALSE) -> 0.041 | X48: =VLOOKUP($F48,'Engage Ltg Fixture Table'!$B$8:$HK$770,X$4,FALSE) -> Linear Fluorescent | Y48: =VLOOKUP($F48,'Engage Ltg Fixture Table'!$B$8:$HK$770,Y$4,FALSE) -> F42EE | Z48: =VLOOKUP($F48,'Engage Ltg Fixture Table'!$B$8:$HK$770,Z$4,FALSE) -> T12 | AA48: =VLOOKUP($F48,'Engage Ltg Fixture Table'!$B$8:$HK$770,AA$4,FALSE) -> 48 inch | AB48: =VLOOKUP($F48,'Engage Ltg Fixture Table'!$B$8:$HK$770,AB$4,FALSE) -> 2 | AC48: =VLOOKUP($F48,'Engage Ltg Fixture Table'!$B$8:$HK$770,AC$4,FALSE) -> F40T12/ES | AD48: =VLOOKUP($F48,'Engage Ltg Fixture Table'!$B$8:$HK$770,AD$4,FALSE) -> Mag-ES | AE48: =VLOOKUP($F48,'Engage Ltg Fixture Table'!$B$8:$HK$770,AE$4,FALSE) -> 1 | AF48: =VLOOKUP($F48,'Engage Ltg Fixture Table'!$B$8:$HK$770,AF$4,FALSE) -> 0.072 | AG48: =IF(G48="na","na",VLOOKUP($G48,'Engage Ltg Fixture Table'!$B$8:$HK$770,AG$4,FALSE)) -> Linear Fluorescent | AH48: =IF(G48="na","na",VLOOKUP($G48,'Engage Ltg Fixture Table'!$B$8:$HK$770,AH$4,FALSE)) -> F42LL (G1) | AI48: =IF(G48="na","na",VLOOKUP($G48,'Engage Ltg Fixture Table'!$B$8:$HK$770,AI$4,FALSE)) -> T8 | AJ48: =IF(G48="na","na",VLOOKUP($G48,'Engage Ltg Fixture Table'!$B$8:$HK$770,AJ$4,FALSE)) -> 48in 1st Gen | AK48: =IF(G48="na","na",VLOOKUP($G48,'Engage Ltg Fixture Table'!$B$8:$HK$770,AK$4,FALSE)) -> 2 | AL48: =IF(G48="na","na",VLOOKUP($G48,'Engage Ltg Fixture Table'!$B$8:$HK$770,AL$4,FALSE)) -> F32T8-STD | AM48: =IF(G48="na","na",VLOOKUP($G48,'Engage Ltg Fixture Table'!$B$8:$HK$770,AM$4,FALSE)) -> Electronic | AN48: =IF(G48="na","na",VLOOKUP($G48,'Engage Ltg Fixture Table'!$B$8:$HK$770,AN$4,FALSE)) -> 1 | AO48: =IF(G48="na","na",VLOOKUP($G48,'Engage Ltg Fixture Table'!$B$8:$HK$770,AO$4,FALSE)) -> 0.06 | AP48: added from DEER2008.3.02 measure list | AQ48: ="ID: "&TEXT(B48,"000")&"; "&VLOOKUP($F48,'Engage Ltg Fixture Table'!$B$8:$HK$770,7,FALSE)&" ==> "&VLOOKUP($H48,'Engage Ltg Fixture Table'!$B$8:$HK$770,7,FALSE) -> ID: 037; FL, (2) 48in, ES lamp, ES Mag, W/fixt=72 ==> FL, (1) 48in, T8 lamp, IS EB, W/fixt=41 | AS48: 10066-10307
B49: 38 | C49: Com-ILtg-PrimLF-LF-ca10066-cd10250-ms10311 | D49: Linear Fluorescent | E49: Linear Fluorescent (Primary Schedule) | F49: 10066 | G49: 10250 | H49: 10311 | I49: No | J49: No | K49: Yes | L49: Yes | M49: 18 | N49: 6 | O49: =VLOOKUP($H49,'Engage Ltg Fixture Table'!$B$8:$HK$770,O$4,FALSE) -> Linear Fluorescent | P49: =VLOOKUP($H49,'Engage Ltg Fixture Table'!$B$8:$HK$770,P$4,FALSE) -> F42LL-R (G2) | Q49: =VLOOKUP($H49,'Engage Ltg Fixture Table'!$B$8:$HK$770,Q$4,FALSE) -> T8 | R49: =VLOOKUP($H49,'Engage Ltg Fixture Table'!$B$8:$HK$770,R$4,FALSE) -> 48in 2nd Gen | S49: =VLOOKUP($H49,'Engage Ltg Fixture Table'!$B$8:$HK$770,S$4,FALSE) -> 2 | T49: =VLOOKUP($H49,'Engage Ltg Fixture Table'!$B$8:$HK$770,T$4,FALSE) -> F32T8-PREM | U49: =VLOOKUP($H49,'Engage Ltg Fixture Table'!$B$8:$HK$770,U$4,FALSE) -> Electronic | V49: =VLOOKUP($H49,'Engage Ltg Fixture Table'!$B$8:$HK$770,V$4,FALSE) -> 1 | W49: =VLOOKUP($H49,'Engage Ltg Fixture Table'!$B$8:$HK$770,W$4,FALSE) -> 0.054 | X49: =VLOOKUP($F49,'Engage Ltg Fixture Table'!$B$8:$HK$770,X$4,FALSE) -> Linear Fluorescent | Y49: =VLOOKUP($F49,'Engage Ltg Fixture Table'!$B$8:$HK$770,Y$4,FALSE) -> F42EE | Z49: =VLOOKUP($F49,'Engage Ltg Fixture Table'!$B$8:$HK$770,Z$4,FALSE) -> T12 | AA49: =VLOOKUP($F49,'Engage Ltg Fixture Table'!$B$8:$HK$770,AA$4,FALSE) -> 48 inch | AB49: =VLOOKUP($F49,'Engage Ltg Fixture Table'!$B$8:$HK$770,AB$4,FALSE) -> 2 | AC49: =VLOOKUP($F49,'Engage Ltg Fixture Table'!$B$8:$HK$770,AC$4,FALSE) -> F40T12/ES | AD49: =VLOOKUP($F49,'Engage Ltg Fixture Table'!$B$8:$HK$770,AD$4,FALSE) -> Mag-ES | AE49: =VLOOKUP($F49,'Engage Ltg Fixture Table'!$B$8:$HK$770,AE$4,FALSE) -> 1 | AF49: =VLOOKUP($F49,'Engage Ltg Fixture Table'!$B$8:$HK$770,AF$4,FALSE) -> 0.072 | AG49: =IF(G49="na","na",VLOOKUP($G49,'Engage Ltg Fixture Table'!$B$8:$HK$770,AG$4,FALSE)) -> Linear Fluorescent | AH49: =IF(G49="na","na",VLOOKUP($G49,'Engage Ltg Fixture Table'!$B$8:$HK$770,AH$4,FALSE)) -> F42LL (G1) | AI49: =IF(G49="na","na",VLOOKUP($G49,'Engage Ltg Fixture Table'!$B$8:$HK$770,AI$4,FALSE)) -> T8 | AJ49: =IF(G49="na","na",VLOOKUP($G49,'Engage Ltg Fixture Table'!$B$8:$HK$770,AJ$4,FALSE)) -> 48in 1st Gen | AK49: =IF(G49="na","na",VLOOKUP($G49,'Engage Ltg Fixture Table'!$B$8:$HK$770,AK$4,FALSE)) -> 2 | AL49: =IF(G49="na","na",VLOOKUP($G49,'Engage Ltg Fixture Table'!$B$8:$HK$770,AL$4,FALSE)) -> F32T8-STD | AM49: =IF(G49="na","na",VLOOKUP($G49,'Engage Ltg Fixture Table'!$B$8:$HK$770,AM$4,FALSE)) -> Electronic | AN49: =IF(G49="na","na",VLOOKUP($G49,'Engage Ltg Fixture Table'!$B$8:$HK$770,AN$4,FALSE)) -> 1 | AO49: =IF(G49="na","na",VLOOKUP($G49,'Engage Ltg Fixture Table'!$B$8:$HK$770,AO$4,FALSE)) -> 0.06 | AP49: added from DEER2008.3.02 measure list | AQ49: ="ID: "&TEXT(B49,"000")&"; "&VLOOKUP($F49,'Engage Ltg Fixture Table'!$B$8:$HK$770,7,FALSE)&" ==> "&VLOOKUP($H49,'Engage Ltg Fixture Table'!$B$8:$HK$770,7,FALSE) -> ID: 038; FL, (2) 48in, ES lamp, ES Mag, W/fixt=72 ==> FL, (2) 48in, T8 lamp, RS EB, W/fixt=54 | AS49: 10066-10311
B50: 39 | C50: Com-ILtg-PrimLF-LF-ca10066-cd10309-ms10307 | D50: Linear Fluorescent | E50: Linear Fluorescent (Primary Schedule) | F50: 10066 | G50: 10309 | H50: 10307 | I50: Yes | J50: Yes | K50: No | L50: No | M50: 31 | N50: 11 | O50: =VLOOKUP($H50,'Engage Ltg Fixture Table'!$B$8:$HK$770,O$4,FALSE) -> Linear Fluorescent | P50: =VLOOKUP($H50,'Engage Ltg Fixture Table'!$B$8:$HK$770,P$4,FALSE) -> F41ILL-V (G2) | Q50: =VLOOKUP($H50,'Engage Ltg Fixture Table'!$B$8:$HK$770,Q$4,FALSE) -> T8 | R50: =VLOOKUP($H50,'Engage Ltg Fixture Table'!$B$8:$HK$770,R$4,FALSE) -> 48in 2nd Gen | S50: =VLOOKUP($H50,'Engage Ltg Fixture Table'!$B$8:$HK$770,S$4,FALSE) -> 1 | T50: =VLOOKUP($H50,'Engage Ltg Fixture Table'!$B$8:$HK$770,T$4,FALSE) -> F32T8-PREM | U50: =VLOOKUP($H50,'Engage Ltg Fixture Table'!$B$8:$HK$770,U$4,FALSE) -> Electronic | V50: =VLOOKUP($H50,'Engage Ltg Fixture Table'!$B$8:$HK$770,V$4,FALSE) -> 1 | W50: =VLOOKUP($H50,'Engage Ltg Fixture Table'!$B$8:$HK$770,W$4,FALSE) -> 0.041 | X50: =VLOOKUP($F50,'Engage Ltg Fixture Table'!$B$8:$HK$770,X$4,FALSE) -> Linear Fluorescent | Y50: =VLOOKUP($F50,'Engage Ltg Fixture Table'!$B$8:$HK$770,Y$4,FALSE) -> F42EE | Z50: =VLOOKUP($F50,'Engage Ltg Fixture Table'!$B$8:$HK$770,Z$4,FALSE) -> T12 | AA50: =VLOOKUP($F50,'Engage Ltg Fixture Table'!$B$8:$HK$770,AA$4,FALSE) -> 48 inch | AB50: =VLOOKUP($F50,'Engage Ltg Fixture Table'!$B$8:$HK$770,AB$4,FALSE) -> 2 | AC50: =VLOOKUP($F50,'Engage Ltg Fixture Table'!$B$8:$HK$770,AC$4,FALSE) -> F40T12/ES | AD50: =VLOOKUP($F50,'Engage Ltg Fixture Table'!$B$8:$HK$770,AD$4,FALSE) -> Mag-ES | AE50: =VLOOKUP($F50,'Engage Ltg Fixture Table'!$B$8:$HK$770,AE$4,FALSE) -> 1 | AF50: =VLOOKUP($F50,'Engage Ltg Fixture Table'!$B$8:$HK$770,AF$4,FALSE) -> 0.072 | AG50: =IF(G50="na","na",VLOOKUP($G50,'Engage Ltg Fixture Table'!$B$8:$HK$770,AG$4,FALSE)) -> Linear Fluorescent | AH50: =IF(G50="na","na",VLOOKUP($G50,'Engage Ltg Fixture Table'!$B$8:$HK$770,AH$4,FALSE)) -> F42ILL-R (G2) | AI50: =IF(G50="na","na",VLOOKUP($G50,'Engage Ltg Fixture Table'!$B$8:$HK$770,AI$4,FALSE)) -> T8 | AJ50: =IF(G50="na","na",VLOOKUP($G50,'Engage Ltg Fixture Table'!$B$8:$HK$770,AJ$4,FALSE)) -> 48in 2nd Gen | AK50: =IF(G50="na","na",VLOOKUP($G50,'Engage Ltg Fixture Table'!$B$8:$HK$770,AK$4,FALSE)) -> 2 | AL50: =IF(G50="na","na",VLOOKUP($G50,'Engage Ltg Fixture Table'!$B$8:$HK$770,AL$4,FALSE)) -> F32T8-PREM | AM50: =IF(G50="na","na",VLOOKUP($G50,'Engage Ltg Fixture Table'!$B$8:$HK$770,AM$4,FALSE)) -> Electronic | AN50: =IF(G50="na","na",VLOOKUP($G50,'Engage Ltg Fixture Table'!$B$8:$HK$770,AN$4,FALSE)) -> 1 | AO50: =IF(G50="na","na",VLOOKUP($G50,'Engage Ltg Fixture Table'!$B$8:$HK$770,AO$4,FALSE)) -> 0.052 | AP50: added from DEER2008.3.02 measure list | AQ50: ="ID: "&TEXT(B50,"000")&"; "&VLOOKUP($F50,'Engage Ltg Fixture Table'!$B$8:$HK$770,7,FALSE)&" ==> "&VLOOKUP($H50,'Engage Ltg Fixture Table'!$B$8:$HK$770,7,FALSE) -> ID: 039; FL, (2) 48in, ES lamp, ES Mag, W/fixt=72 ==> FL, (1) 48in, T8 lamp, IS EB, W/fixt=41 | AS50: 10066-10307
B51: 40 | C51: Com-ILtg-PrimLF-LF-ca10066-cd10311-ms10311 | D51: Linear Fluorescent | E51: Linear Fluorescent (Primary Schedule) | F51: 10066 | G51: 10311 | H51: 10311 | I51: Yes | J51: Yes | K51: No | L51: No | M51: 18 | N51: 0 | O51: =VLOOKUP($H51,'Engage Ltg Fixture Table'!$B$8:$HK$770,O$4,FALSE) -> Linear Fluorescent | P51: =VLOOKUP($H51,'Engage Ltg Fixture Table'!$B$8:$HK$770,P$4,FALSE) -> F42LL-R (G2) | Q51: =VLOOKUP($H51,'Engage Ltg Fixture Table'!$B$8:$HK$770,Q$4,FALSE) -> T8 | R51: =VLOOKUP($H51,'Engage Ltg Fixture Table'!$B$8:$HK$770,R$4,FALSE) -> 48in 2nd Gen | S51: =VLOOKUP($H51,'Engage Ltg Fixture Table'!$B$8:$HK$770,S$4,FALSE) -> 2 | T51: =VLOOKUP($H51,'Engage Ltg Fixture Table'!$B$8:$HK$770,T$4,FALSE) -> F32T8-PREM | U51: =VLOOKUP($H51,'Engage Ltg Fixture Table'!$B$8:$HK$770,U$4,FALSE) -> Electronic | V51: =VLOOKUP($H51,'Engage Ltg Fixture Table'!$B$8:$HK$770,V$4,FALSE) -> 1 | W51: =VLOOKUP($H51,'Engage Ltg Fixture Table'!$B$8:$HK$770,W$4,FALSE) -> 0.054 | X51: =VLOOKUP($F51,'Engage Ltg Fixture Table'!$B$8:$HK$770,X$4,FALSE) -> Linear Fluorescent | Y51: =VLOOKUP($F51,'Engage Ltg Fixture Table'!$B$8:$HK$770,Y$4,FALSE) -> F42EE | Z51: =VLOOKUP($F51,'Engage Ltg Fixture Table'!$B$8:$HK$770,Z$4,FALSE) -> T12 | AA51: =VLOOKUP($F51,'Engage Ltg Fixture Table'!$B$8:$HK$770,AA$4,FALSE) -> 48 inch | AB51: =VLOOKUP($F51,'Engage Ltg Fixture Table'!$B$8:$HK$770,AB$4,FALSE) -> 2 | AC51: =VLOOKUP($F51,'Engage Ltg Fixture Table'!$B$8:$HK$770,AC$4,FALSE) -> F40T12/ES | AD51: =VLOOKUP($F51,'Engage Ltg Fixture Table'!$B$8:$HK$770,AD$4,FALSE) -> Mag-ES | AE51: =VLOOKUP($F51,'Engage Ltg Fixture Table'!$B$8:$HK$770,AE$4,FALSE) -> 1 | AF51: =VLOOKUP($F51,'Engage Ltg Fixture Table'!$B$8:$HK$770,AF$4,FALSE) -> 0.072 | AG51: =IF(G51="na","na",VLOOKUP($G51,'Engage Ltg Fixture Table'!$B$8:$HK$770,AG$4,FALSE)) -> Linear Fluorescent | AH51: =IF(G51="na","na",VLOOKUP($G51,'Engage Ltg Fixture Table'!$B$8:$HK$770,AH$4,FALSE)) -> F42LL-R (G2) | AI51: =IF(G51="na","na",VLOOKUP($G51,'Engage Ltg Fixture Table'!$B$8:$HK$770,AI$4,FALSE)) -> T8 | AJ51: =IF(G51="na","na",VLOOKUP($G51,'Engage Ltg Fixture Table'!$B$8:$HK$770,AJ$4,FALSE)) -> 48in 2nd Gen | AK51: =IF(G51="na","na",VLOOKUP($G51,'Engage Ltg Fixture Table'!$B$8:$HK$770,AK$4,FALSE)) -> 2 | AL51: =IF(G51="na","na",VLOOKUP($G51,'Engage Ltg Fixture Table'!$B$8:$HK$770,AL$4,FALSE)) -> F32T8-PREM | AM51: =IF(G51="na","na",VLOOKUP($G51,'Engage Ltg Fixture Table'!$B$8:$HK$770,AM$4,FALSE)) -> Electronic | AN51: =IF(G51="na","na",VLOOKUP($G51,'Engage Ltg Fixture Table'!$B$8:$HK$770,AN$4,FALSE)) -> 1 | AO51: =IF(G51="na","na",VLOOKUP($G51,'Engage Ltg Fixture Table'!$B$8:$HK$770,AO$4,FALSE)) -> 0.054 | AP51: added from DEER2008.3.02 measure list | AQ51: ="ID: "&TEXT(B51,"000")&"; "&VLOOKUP($F51,'Engage Ltg Fixture Table'!$B$8:$HK$770,7,FALSE)&" ==> "&VLOOKUP($H51,'Engage Ltg Fixture Table'!$B$8:$HK$770,7,FALSE) -> ID: 040; FL, (2) 48in, ES lamp, ES Mag, W/fixt=72 ==> FL, (2) 48in, T8 lamp, RS EB, W/fixt=54 | AS51: 10066-10311
B52: 41 | C52: Com-ILtg-PrimLF-LF-ca10067-cd10250-ms10311 | D52: Linear Fluorescent | E52: Linear Fluorescent (Primary Schedule) | F52: 10067 | G52: 10250 | H52: 10311 | I52: No | J52: No | K52: Yes | L52: Yes | M52: 20 | N52: 6 | O52: =VLOOKUP($H52,'Engage Ltg Fixture Table'!$B$8:$HK$770,O$4,FALSE) -> Linear Fluorescent | P52: =VLOOKUP($H52,'Engage Ltg Fixture Table'!$B$8:$HK$770,P$4,FALSE) -> F42LL-R (G2) | Q52: =VLOOKUP($H52,'Engage Ltg Fixture Table'!$B$8:$HK$770,Q$4,FALSE) -> T8 | R52: =VLOOKUP($H52,'Engage Ltg Fixture Table'!$B$8:$HK$770,R$4,FALSE) -> 48in 2nd Gen | S52: =VLOOKUP($H52,'Engage Ltg Fixture Table'!$B$8:$HK$770,S$4,FALSE) -> 2 | T52: =VLOOKUP($H52,'Engage Ltg Fixture Table'!$B$8:$HK$770,T$4,FALSE) -> F32T8-PREM | U52: =VLOOKUP($H52,'Engage Ltg Fixture Table'!$B$8:$HK$770,U$4,FALSE) -> Electronic | V52: =VLOOKUP($H52,'Engage Ltg Fixture Table'!$B$8:$HK$770,V$4,FALSE) -> 1 | W52: =VLOOKUP($H52,'Engage Ltg Fixture Table'!$B$8:$HK$770,W$4,FALSE) -> 0.054 | X52: =VLOOKUP($F52,'Engage Ltg Fixture Table'!$B$8:$HK$770,X$4,FALSE) -> Linear Fluorescent | Y52: =VLOOKUP($F52,'Engage Ltg Fixture Table'!$B$8:$HK$770,Y$4,FALSE) -> F42SE | Z52: =VLOOKUP($F52,'Engage Ltg Fixture Table'!$B$8:$HK$770,Z$4,FALSE) -> T12 | AA52: =VLOOKUP($F52,'Engage Ltg Fixture Table'!$B$8:$HK$770,AA$4,FALSE) -> 48 inch | AB52: =VLOOKUP($F52,'Engage Ltg Fixture Table'!$B$8:$HK$770,AB$4,FALSE) -> 2 | AC52: =VLOOKUP($F52,'Engage Ltg Fixture Table'!$B$8:$HK$770,AC$4,FALSE) -> F40T12 | AD52: =VLOOKUP($F52,'Engage Ltg Fixture Table'!$B$8:$HK$770,AD$4,FALSE) -> Mag-ES | AE52: =VLOOKUP($F52,'Engage Ltg Fixture Table'!$B$8:$HK$770,AE$4,FALSE) -> 1 | AF52: =VLOOKUP($F52,'Engage Ltg Fixture Table'!$B$8:$HK$770,AF$4,FALSE) -> 0.074 | AG52: =IF(G52="na","na",VLOOKUP($G52,'Engage Ltg Fixture Table'!$B$8:$HK$770,AG$4,FALSE)) -> Linear Fluorescent | AH52: =IF(G52="na","na",VLOOKUP($G52,'Engage Ltg Fixture Table'!$B$8:$HK$770,AH$4,FALSE)) -> F42LL (G1) | AI52: =IF(G52="na","na",VLOOKUP($G52,'Engage Ltg Fixture Table'!$B$8:$HK$770,AI$4,FALSE)) -> T8 | AJ52: =IF(G52="na","na",VLOOKUP($G52,'Engage Ltg Fixture Table'!$B$8:$HK$770,AJ$4,FALSE)) -> 48in 1st Gen | AK52: =IF(G52="na","na",VLOOKUP($G52,'Engage Ltg Fixture Table'!$B$8:$HK$770,AK$4,FALSE)) -> 2 | AL52: =IF(G52="na","na",VLOOKUP($G52,'Engage Ltg Fixture Table'!$B$8:$HK$770,AL$4,FALSE)) -> F32T8-STD | AM52: =IF(G52="na","na",VLOOKUP($G52,'Engage Ltg Fixture Table'!$B$8:$HK$770,AM$4,FALSE)) -> Electronic | AN52: =IF(G52="na","na",VLOOKUP($G52,'Engage Ltg Fixture Table'!$B$8:$HK$770,AN$4,FALSE)) -> 1 | AO52: =IF(G52="na","na",VLOOKUP($G52,'Engage Ltg Fixture Table'!$B$8:$HK$770,AO$4,FALSE)) -> 0.06 | AP52: added from DEER2008.3.02 measure list | AQ52: ="ID: "&TEXT(B52,"000")&"; "&VLOOKUP($F52,'Engage Ltg Fixture Table'!$B$8:$HK$770,7,FALSE)&" ==> "&VLOOKUP($H52,'Engage Ltg Fixture Table'!$B$8:$HK$770,7,FALSE) -> ID: 041; FL, (2) 48in, STD IS lamp, ES Mag, W/fixt=74 ==> FL, (2) 48in, T8 lamp, RS EB, W/fixt=54 | AS52: 10067-10311
B53: 42 | C53: Com-ILtg-PrimLF-LF-ca10067-cd10311-ms10311 | D53: Linear Fluorescent | E53: Linear Fluorescent (Primary Schedule) | F53: 10067 | G53: 10311 | H53: 10311 | I53: Yes | J53: Yes | K53: No | L53: No | M53: 20 | N53: 0 | O53: =VLOOKUP($H53,'Engage Ltg Fixture Table'!$B$8:$HK$770,O$4,FALSE) -> Linear Fluorescent | P53: =VLOOKUP($H53,'Engage Ltg Fixture Table'!$B$8:$HK$770,P$4,FALSE) -> F42LL-R (G2) | Q53: =VLOOKUP($H53,'Engage Ltg Fixture Table'!$B$8:$HK$770,Q$4,FALSE) -> T8 | R53: =VLOOKUP($H53,'Engage Ltg Fixture Table'!$B$8:$HK$770,R$4,FALSE) -> 48in 2nd Gen | S53: =VLOOKUP($H53,'Engage Ltg Fixture Table'!$B$8:$HK$770,S$4,FALSE) -> 2 | T53: =VLOOKUP($H53,'Engage Ltg Fixture Table'!$B$8:$HK$770,T$4,FALSE) -> F32T8-PREM | U53: =VLOOKUP($H53,'Engage Ltg Fixture Table'!$B$8:$HK$770,U$4,FALSE) -> Electronic | V53: =VLOOKUP($H53,'Engage Ltg Fixture Table'!$B$8:$HK$770,V$4,FALSE) -> 1 | W53: =VLOOKUP($H53,'Engage Ltg Fixture Table'!$B$8:$HK$770,W$4,FALSE) -> 0.054 | X53: =VLOOKUP($F53,'Engage Ltg Fixture Table'!$B$8:$HK$770,X$4,FALSE) -> Linear Fluorescent | Y53: =VLOOKUP($F53,'Engage Ltg Fixture Table'!$B$8:$HK$770,Y$4,FALSE) -> F42SE | Z53: =VLOOKUP($F53,'Engage Ltg Fixture Table'!$B$8:$HK$770,Z$4,FALSE) -> T12 | AA53: =VLOOKUP($F53,'Engage Ltg Fixture Table'!$B$8:$HK$770,AA$4,FALSE) -> 48 inch | AB53: =VLOOKUP($F53,'Engage Ltg Fixture Table'!$B$8:$HK$770,AB$4,FALSE) -> 2 | AC53: =VLOOKUP($F53,'Engage Ltg Fixture Table'!$B$8:$HK$770,AC$4,FALSE) -> F40T12 | AD53: =VLOOKUP($F53,'Engage Ltg Fixture Table'!$B$8:$HK$770,AD$4,FALSE) -> Mag-ES | AE53: =VLOOKUP($F53,'Engage Ltg Fixture Table'!$B$8:$HK$770,AE$4,FALSE) -> 1 | AF53: =VLOOKUP($F53,'Engage Ltg Fixture Table'!$B$8:$HK$770,AF$4,FALSE) -> 0.074 | AG53: =IF(G53="na","na",VLOOKUP($G53,'Engage Ltg Fixture Table'!$B$8:$HK$770,AG$4,FALSE)) -> Linear Fluorescent | AH53: =IF(G53="na","na",VLOOKUP($G53,'Engage Ltg Fixture Table'!$B$8:$HK$770,AH$4,FALSE)) -> F42LL-R (G2) | AI53: =IF(G53="na","na",VLOOKUP($G53,'Engage Ltg Fixture Table'!$B$8:$HK$770,AI$4,FALSE)) -> T8 | AJ53: =IF(G53="na","na",VLOOKUP($G53,'Engage Ltg Fixture Table'!$B$8:$HK$770,AJ$4,FALSE)) -> 48in 2nd Gen | AK53: =IF(G53="na","na",VLOOKUP($G53,'Engage Ltg Fixture Table'!$B$8:$HK$770,AK$4,FALSE)) -> 2 | AL53: =IF(G53="na","na",VLOOKUP($G53,'Engage Ltg Fixture Table'!$B$8:$HK$770,AL$4,FALSE)) -> F32T8-PREM | AM53: =IF(G53="na","na",VLOOKUP($G53,'Engage Ltg Fixture Table'!$B$8:$HK$770,AM$4,FALSE)) -> Electronic | AN53: =IF(G53="na","na",VLOOKUP($G53,'Engage Ltg Fixture Table'!$B$8:$HK$770,AN$4,FALSE)) -> 1 | AO53: =IF(G53="na","na",VLOOKUP($G53,'Engage Ltg Fixture Table'!$B$8:$HK$770,AO$4,FALSE)) -> 0.054 | AP53: added from DEER2008.3.02 measure list | AQ53: ="ID: "&TEXT(B53,"000")&"; "&VLOOKUP($F53,'Engage Ltg Fixture Table'!$B$8:$HK$770,7,FALSE)&" ==> "&VLOOKUP($H53,'Engage Ltg Fixture Table'!$B$8:$HK$770,7,FALSE) -> ID: 042; FL, (2) 48in, STD IS lamp, ES Mag, W/fixt=74 ==> FL, (2) 48in, T8 lamp, RS EB, W/fixt=54 | AS53: 10067-10311
B54: 43 | C54: Com-ILtg-PrimLF-LF-ca10069-cd10250-ms10311 | D54: Linear Fluorescent | E54: Linear Fluorescent (Primary Schedule) | F54: 10069 | G54: 10250 | H54: 10311 | I54: No | J54: No | K54: Yes | L54: Yes | M54: 26 | N54: 6 | O54: =VLOOKUP($H54,'Engage Ltg Fixture Table'!$B$8:$HK$770,O$4,FALSE) -> Linear Fluorescent | P54: =VLOOKUP($H54,'Engage Ltg Fixture Table'!$B$8:$HK$770,P$4,FALSE) -> F42LL-R (G2) | Q54: =VLOOKUP($H54,'Engage Ltg Fixture Table'!$B$8:$HK$770,Q$4,FALSE) -> T8 | R54: =VLOOKUP($H54,'Engage Ltg Fixture Table'!$B$8:$HK$770,R$4,FALSE) -> 48in 2nd Gen | S54: =VLOOKUP($H54,'Engage Ltg Fixture Table'!$B$8:$HK$770,S$4,FALSE) -> 2 | T54: =VLOOKUP($H54,'Engage Ltg Fixture Table'!$B$8:$HK$770,T$4,FALSE) -> F32T8-PREM | U54: =VLOOKUP($H54,'Engage Ltg Fixture Table'!$B$8:$HK$770,U$4,FALSE) -> Electronic | V54: =VLOOKUP($H54,'Engage Ltg Fixture Table'!$B$8:$HK$770,V$4,FALSE) -> 1 | W54: =VLOOKUP($H54,'Engage Ltg Fixture Table'!$B$8:$HK$770,W$4,FALSE) -> 0.054 | X54: =VLOOKUP($F54,'Engage Ltg Fixture Table'!$B$8:$HK$770,X$4,FALSE) -> Linear Fluorescent | Y54: =VLOOKUP($F54,'Engage Ltg Fixture Table'!$B$8:$HK$770,Y$4,FALSE) -> F42SIH | Z54: =VLOOKUP($F54,'Engage Ltg Fixture Table'!$B$8:$HK$770,Z$4,FALSE) -> T12 | AA54: =VLOOKUP($F54,'Engage Ltg Fixture Table'!$B$8:$HK$770,AA$4,FALSE) -> 48 inch | AB54: =VLOOKUP($F54,'Engage Ltg Fixture Table'!$B$8:$HK$770,AB$4,FALSE) -> 2 | AC54: =VLOOKUP($F54,'Engage Ltg Fixture Table'!$B$8:$HK$770,AC$4,FALSE) -> F40T12 | AD54: =VLOOKUP($F54,'Engage Ltg Fixture Table'!$B$8:$HK$770,AD$4,FALSE) -> Mag-Hyb | AE54: =VLOOKUP($F54,'Engage Ltg Fixture Table'!$B$8:$HK$770,AE$4,FALSE) -> 1 | AF54: =VLOOKUP($F54,'Engage Ltg Fixture Table'!$B$8:$HK$770,AF$4,FALSE) -> 0.08 | AG54: =IF(G54="na","na",VLOOKUP($G54,'Engage Ltg Fixture Table'!$B$8:$HK$770,AG$4,FALSE)) -> Linear Fluorescent | AH54: =IF(G54="na","na",VLOOKUP($G54,'Engage Ltg Fixture Table'!$B$8:$HK$770,AH$4,FALSE)) -> F42LL (G1) | AI54: =IF(G54="na","na",VLOOKUP($G54,'Engage Ltg Fixture Table'!$B$8:$HK$770,AI$4,FALSE)) -> T8 | AJ54: =IF(G54="na","na",VLOOKUP($G54,'Engage Ltg Fixture Table'!$B$8:$HK$770,AJ$4,FALSE)) -> 48in 1st Gen | AK54: =IF(G54="na","na",VLOOKUP($G54,'Engage Ltg Fixture Table'!$B$8:$HK$770,AK$4,FALSE)) -> 2 | AL54: =IF(G54="na","na",VLOOKUP($G54,'Engage Ltg Fixture Table'!$B$8:$HK$770,AL$4,FALSE)) -> F32T8-STD | AM54: =IF(G54="na","na",VLOOKUP($G54,'Engage Ltg Fixture Table'!$B$8:$HK$770,AM$4,FALSE)) -> Electronic | AN54: =IF(G54="na","na",VLOOKUP($G54,'Engage Ltg Fixture Table'!$B$8:$HK$770,AN$4,FALSE)) -> 1 | AO54: =IF(G54="na","na",VLOOKUP($G54,'Engage Ltg Fixture Table'!$B$8:$HK$770,AO$4,FALSE)) -> 0.06 | AP54: added from DEER2008.3.02 measure list | AQ54: ="ID: "&TEXT(B54,"000")&"; "&VLOOKUP($F54,'Engage Ltg Fixture Table'!$B$8:$HK$770,7,FALSE)&" ==> "&VLOOKUP($H54,'Engage Ltg Fixture Table'!$B$8:$HK$770,7,FALSE) -> ID: 043; FL, (2) 48in, STD IS lamp, Hyb Mag, W/fixt=80 ==> FL, (2) 48in, T8 lamp, RS EB, W/fixt=54 | AS54: 10069-10311
B55: 44 | C55: Com-ILtg-PrimLF-LF-ca10069-cd10311-ms10311 | D55: Linear Fluorescent | E55: Linear Fluorescent (Primary Schedule) | F55: 10069 | G55: 10311 | H55: 10311 | I55: Yes | J55: Yes | K55: No | L55: No | M55: 26 | N55: 0 | O55: =VLOOKUP($H55,'Engage Ltg Fixture Table'!$B$8:$HK$770,O$4,FALSE) -> Linear Fluorescent | P55: =VLOOKUP($H55,'Engage Ltg Fixture Table'!$B$8:$HK$770,P$4,FALSE) -> F42LL-R (G2) | Q55: =VLOOKUP($H55,'Engage Ltg Fixture Table'!$B$8:$HK$770,Q$4,FALSE) -> T8 | R55: =VLOOKUP($H55,'Engage Ltg Fixture Table'!$B$8:$HK$770,R$4,FALSE) -> 48in 2nd Gen | S55: =VLOOKUP($H55,'Engage Ltg Fixture Table'!$B$8:$HK$770,S$4,FALSE) -> 2 | T55: =VLOOKUP($H55,'Engage Ltg Fixture Table'!$B$8:$HK$770,T$4,FALSE) -> F32T8-PREM | U55: =VLOOKUP($H55,'Engage Ltg Fixture Table'!$B$8:$HK$770,U$4,FALSE) -> Electronic | V55: =VLOOKUP($H55,'Engage Ltg Fixture Table'!$B$8:$HK$770,V$4,FALSE) -> 1 | W55: =VLOOKUP($H55,'Engage Ltg Fixture Table'!$B$8:$HK$770,W$4,FALSE) -> 0.054 | X55: =VLOOKUP($F55,'Engage Ltg Fixture Table'!$B$8:$HK$770,X$4,FALSE) -> Linear Fluorescent | Y55: =VLOOKUP($F55,'Engage Ltg Fixture Table'!$B$8:$HK$770,Y$4,FALSE) -> F42SIH | Z55: =VLOOKUP($F55,'Engage Ltg Fixture Table'!$B$8:$HK$770,Z$4,FALSE) -> T12 | AA55: =VLOOKUP($F55,'Engage Ltg Fixture Table'!$B$8:$HK$770,AA$4,FALSE) -> 48 inch | AB55: =VLOOKUP($F55,'Engage Ltg Fixture Table'!$B$8:$HK$770,AB$4,FALSE) -> 2 | AC55: =VLOOKUP($F55,'Engage Ltg Fixture Table'!$B$8:$HK$770,AC$4,FALSE) -> F40T12 | AD55: =VLOOKUP($F55,'Engage Ltg Fixture Table'!$B$8:$HK$770,AD$4,FALSE) -> Mag-Hyb | AE55: =VLOOKUP($F55,'Engage Ltg Fixture Table'!$B$8:$HK$770,AE$4,FALSE) -> 1 | AF55: =VLOOKUP($F55,'Engage Ltg Fixture Table'!$B$8:$HK$770,AF$4,FALSE) -> 0.08 | AG55: =IF(G55="na","na",VLOOKUP($G55,'Engage Ltg Fixture Table'!$B$8:$HK$770,AG$4,FALSE)) -> Linear Fluorescent | AH55: =IF(G55="na","na",VLOOKUP($G55,'Engage Ltg Fixture Table'!$B$8:$HK$770,AH$4,FALSE)) -> F42LL-R (G2) | AI55: =IF(G55="na","na",VLOOKUP($G55,'Engage Ltg Fixture Table'!$B$8:$HK$770,AI$4,FALSE)) -> T8 | AJ55: =IF(G55="na","na",VLOOKUP($G55,'Engage Ltg Fixture Table'!$B$8:$HK$770,AJ$4,FALSE)) -> 48in 2nd Gen | AK55: =IF(G55="na","na",VLOOKUP($G55,'Engage Ltg Fixture Table'!$B$8:$HK$770,AK$4,FALSE)) -> 2 | AL55: =IF(G55="na","na",VLOOKUP($G55,'Engage Ltg Fixture Table'!$B$8:$HK$770,AL$4,FALSE)) -> F32T8-PREM | AM55: =IF(G55="na","na",VLOOKUP($G55,'Engage Ltg Fixture Table'!$B$8:$HK$770,AM$4,FALSE)) -> Electronic | AN55: =IF(G55="na","na",VLOOKUP($G55,'Engage Ltg Fixture Table'!$B$8:$HK$770,AN$4,FALSE)) -> 1 | AO55: =IF(G55="na","na",VLOOKUP($G55,'Engage Ltg Fixture Table'!$B$8:$HK$770,AO$4,FALSE)) -> 0.054 | AP55: added from DEER2008.3.02 measure list | AQ55: ="ID: "&TEXT(B55,"000")&"; "&VLOOKUP($F55,'Engage Ltg Fixture Table'!$B$8:$HK$770,7,FALSE)&" ==> "&VLOOKUP($H55,'Engage Ltg Fixture Table'!$B$8:$HK$770,7,FALSE) -> ID: 044; FL, (2) 48in, STD IS lamp, Hyb Mag, W/fixt=80 ==> FL, (2) 48in, T8 lamp, RS EB, W/fixt=54 | AS55: 10069-10311
B56: 45 | C56: Com-ILtg-PrimLF-LF-ca10070-cd10250-ms10311 | D56: Linear Fluorescent | E56: Linear Fluorescent (Primary Schedule) | F56: 10070 | G56: 10250 | H56: 10311 | I56: No | J56: No | K56: Yes | L56: Yes | M56: 28 | N56: 6 | O56: =VLOOKUP($H56,'Engage Ltg Fixture Table'!$B$8:$HK$770,O$4,FALSE) -> Linear Fluorescent | P56: =VLOOKUP($H56,'Engage Ltg Fixture Table'!$B$8:$HK$770,P$4,FALSE) -> F42LL-R (G2) | Q56: =VLOOKUP($H56,'Engage Ltg Fixture Table'!$B$8:$HK$770,Q$4,FALSE) -> T8 | R56: =VLOOKUP($H56,'Engage Ltg Fixture Table'!$B$8:$HK$770,R$4,FALSE) -> 48in 2nd Gen | S56: =VLOOKUP($H56,'Engage Ltg Fixture Table'!$B$8:$HK$770,S$4,FALSE) -> 2 | T56: =VLOOKUP($H56,'Engage Ltg Fixture Table'!$B$8:$HK$770,T$4,FALSE) -> F32T8-PREM | U56: =VLOOKUP($H56,'Engage Ltg Fixture Table'!$B$8:$HK$770,U$4,FALSE) -> Electronic | V56: =VLOOKUP($H56,'Engage Ltg Fixture Table'!$B$8:$HK$770,V$4,FALSE) -> 1 | W56: =VLOOKUP($H56,'Engage Ltg Fixture Table'!$B$8:$HK$770,W$4,FALSE) -> 0.054 | X56: =VLOOKUP($F56,'Engage Ltg Fixture Table'!$B$8:$HK$770,X$4,FALSE) -> Linear Fluorescent | Y56: =VLOOKUP($F56,'Engage Ltg Fixture Table'!$B$8:$HK$770,Y$4,FALSE) -> F42EIS | Z56: =VLOOKUP($F56,'Engage Ltg Fixture Table'!$B$8:$HK$770,Z$4,FALSE) -> T12 | AA56: =VLOOKUP($F56,'Engage Ltg Fixture Table'!$B$8:$HK$770,AA$4,FALSE) -> 48 inch | AB56: =VLOOKUP($F56,'Engage Ltg Fixture Table'!$B$8:$HK$770,AB$4,FALSE) -> 2 | AC56: =VLOOKUP($F56,'Engage Ltg Fixture Table'!$B$8:$HK$770,AC$4,FALSE) -> F34T12/ES | AD56: =VLOOKUP($F56,'Engage Ltg Fixture Table'!$B$8:$HK$770,AD$4,FALSE) -> Mag-STD | AE56: =VLOOKUP($F56,'Engage Ltg Fixture Table'!$B$8:$HK$770,AE$4,FALSE) -> 1 | AF56: =VLOOKUP($F56,'Engage Ltg Fixture Table'!$B$8:$HK$770,AF$4,FALSE) -> 0.082 | AG56: =IF(G56="na","na",VLOOKUP($G56,'Engage Ltg Fixture Table'!$B$8:$HK$770,AG$4,FALSE)) -> Linear Fluorescent | AH56: =IF(G56="na","na",VLOOKUP($G56,'Engage Ltg Fixture Table'!$B$8:$HK$770,AH$4,FALSE)) -> F42LL (G1) | AI56: =IF(G56="na","na",VLOOKUP($G56,'Engage Ltg Fixture Table'!$B$8:$HK$770,AI$4,FALSE)) -> T8 | AJ56: =IF(G56="na","na",VLOOKUP($G56,'Engage Ltg Fixture Table'!$B$8:$HK$770,AJ$4,FALSE)) -> 48in 1st Gen | AK56: =IF(G56="na","na",VLOOKUP($G56,'Engage Ltg Fixture Table'!$B$8:$HK$770,AK$4,FALSE)) -> 2 | AL56: =IF(G56="na","na",VLOOKUP($G56,'Engage Ltg Fixture Table'!$B$8:$HK$770,AL$4,FALSE)) -> F32T8-STD | AM56: =IF(G56="na","na",VLOOKUP($G56,'Engage Ltg Fixture Table'!$B$8:$HK$770,AM$4,FALSE)) -> Electronic | AN56: =IF(G56="na","na",VLOOKUP($G56,'Engage Ltg Fixture Table'!$B$8:$HK$770,AN$4,FALSE)) -> 1 | AO56: =IF(G56="na","na",VLOOKUP($G56,'Engage Ltg Fixture Table'!$B$8:$HK$770,AO$4,FALSE)) -> 0.06 | AP56: added from DEER2008.3.02 measure list | AQ56: ="ID: "&TEXT(B56,"000")&"; "&VLOOKUP($F56,'Engage Ltg Fixture Table'!$B$8:$HK$770,7,FALSE)&" ==> "&VLOOKUP($H56,'Engage Ltg Fixture Table'!$B$8:$HK$770,7,FALSE) -> ID: 045; FL, (2) 48in, ES IS lamp, Mag, W/fixt=82 ==> FL, (2) 48in, T8 lamp, RS EB, W/fixt=54 | AS56: 10070-10311
B57: 46 | C57: Com-ILtg-PrimLF-LF-ca10070-cd10311-ms10311 | D57: Linear Fluorescent | E57: Linear Fluorescent (Primary Schedule) | F57: 10070 | G57: 10311 | H57: 10311 | I57: Yes | J57: Yes | K57: No | L57: No | M57: 28 | N57: 0 | O57: =VLOOKUP($H57,'Engage Ltg Fixture Table'!$B$8:$HK$770,O$4,FALSE) -> Linear Fluorescent | P57: =VLOOKUP($H57,'Engage Ltg Fixture Table'!$B$8:$HK$770,P$4,FALSE) -> F42LL-R (G2) | Q57: =VLOOKUP($H57,'Engage Ltg Fixture Table'!$B$8:$HK$770,Q$4,FALSE) -> T8 | R57: =VLOOKUP($H57,'Engage Ltg Fixture Table'!$B$8:$HK$770,R$4,FALSE) -> 48in 2nd Gen | S57: =VLOOKUP($H57,'Engage Ltg Fixture Table'!$B$8:$HK$770,S$4,FALSE) -> 2 | T57: =VLOOKUP($H57,'Engage Ltg Fixture Table'!$B$8:$HK$770,T$4,FALSE) -> F32T8-PREM | U57: =VLOOKUP($H57,'Engage Ltg Fixture Table'!$B$8:$HK$770,U$4,FALSE) -> Electronic | V57: =VLOOKUP($H57,'Engage Ltg Fixture Table'!$B$8:$HK$770,V$4,FALSE) -> 1 | W57: =VLOOKUP($H57,'Engage Ltg Fixture Table'!$B$8:$HK$770,W$4,FALSE) -> 0.054 | X57: =VLOOKUP($F57,'Engage Ltg Fixture Table'!$B$8:$HK$770,X$4,FALSE) -> Linear Fluorescent | Y57: =VLOOKUP($F57,'Engage Ltg Fixture Table'!$B$8:$HK$770,Y$4,FALSE) -> F42EIS | Z57: =VLOOKUP($F57,'Engage Ltg Fixture Table'!$B$8:$HK$770,Z$4,FALSE) -> T12 | AA57: =VLOOKUP($F57,'Engage Ltg Fixture Table'!$B$8:$HK$770,AA$4,FALSE) -> 48 inch | AB57: =VLOOKUP($F57,'Engage Ltg Fixture Table'!$B$8:$HK$770,AB$4,FALSE) -> 2 | AC57: =VLOOKUP($F57,'Engage Ltg Fixture Table'!$B$8:$HK$770,AC$4,FALSE) -> F34T12/ES | AD57: =VLOOKUP($F57,'Engage Ltg Fixture Table'!$B$8:$HK$770,AD$4,FALSE) -> Mag-STD | AE57: =VLOOKUP($F57,'Engage Ltg Fixture Table'!$B$8:$HK$770,AE$4,FALSE) -> 1 | AF57: =VLOOKUP($F57,'Engage Ltg Fixture Table'!$B$8:$HK$770,AF$4,FALSE) -> 0.082 | AG57: =IF(G57="na","na",VLOOKUP($G57,'Engage Ltg Fixture Table'!$B$8:$HK$770,AG$4,FALSE)) -> Linear Fluorescent | AH57: =IF(G57="na","na",VLOOKUP($G57,'Engage Ltg Fixture Table'!$B$8:$HK$770,AH$4,FALSE)) -> F42LL-R (G2) | AI57: =IF(G57="na","na",VLOOKUP($G57,'Engage Ltg Fixture Table'!$B$8:$HK$770,AI$4,FALSE)) -> T8 | AJ57: =IF(G57="na","na",VLOOKUP($G57,'Engage Ltg Fixture Table'!$B$8:$HK$770,AJ$4,FALSE)) -> 48in 2nd Gen | AK57: =IF(G57="na","na",VLOOKUP($G57,'Engage Ltg Fixture Table'!$B$8:$HK$770,AK$4,FALSE)) -> 2 | AL57: =IF(G57="na","na",VLOOKUP($G57,'Engage Ltg Fixture Table'!$B$8:$HK$770,AL$4,FALSE)) -> F32T8-PREM | AM57: =IF(G57="na","na",VLOOKUP($G57,'Engage Ltg Fixture Table'!$B$8:$HK$770,AM$4,FALSE)) -> Electronic | AN57: =IF(G57="na","na",VLOOKUP($G57,'Engage Ltg Fixture Table'!$B$8:$HK$770,AN$4,FALSE)) -> 1 | AO57: =IF(G57="na","na",VLOOKUP($G57,'Engage Ltg Fixture Table'!$B$8:$HK$770,AO$4,FALSE)) -> 0.054 | AP57: added from DEER2008.3.02 measure list | AQ57: ="ID: "&TEXT(B57,"000")&"; "&VLOOKUP($F57,'Engage Ltg Fixture Table'!$B$8:$HK$770,7,FALSE)&" ==> "&VLOOKUP($H57,'Engage Ltg Fixture Table'!$B$8:$HK$770,7,FALSE) -> ID: 046; FL, (2) 48in, ES IS lamp, Mag, W/fixt=82 ==> FL, (2) 48in, T8 lamp, RS EB, W/fixt=54 | AS57: 10070-10311
B58: 47 | C58: Com-ILtg-PrimLF-LF-ca10071-cd10250-ms10311 | D58: Linear Fluorescent | E58: Linear Fluorescent (Primary Schedule) | F58: 10071 | G58: 10250 | H58: 10311 | I58: No | J58: No | K58: Yes | L58: Yes | M58: 30 | N58: 6 | O58: =VLOOKUP($H58,'Engage Ltg Fixture Table'!$B$8:$HK$770,O$4,FALSE) -> Linear Fluorescent | P58: =VLOOKUP($H58,'Engage Ltg Fixture Table'!$B$8:$HK$770,P$4,FALSE) -> F42LL-R (G2) | Q58: =VLOOKUP($H58,'Engage Ltg Fixture Table'!$B$8:$HK$770,Q$4,FALSE) -> T8 | R58: =VLOOKUP($H58,'Engage Ltg Fixture Table'!$B$8:$HK$770,R$4,FALSE) -> 48in 2nd Gen | S58: =VLOOKUP($H58,'Engage Ltg Fixture Table'!$B$8:$HK$770,S$4,FALSE) -> 2 | T58: =VLOOKUP($H58,'Engage Ltg Fixture Table'!$B$8:$HK$770,T$4,FALSE) -> F32T8-PREM | U58: =VLOOKUP($H58,'Engage Ltg Fixture Table'!$B$8:$HK$770,U$4,FALSE) -> Electronic | V58: =VLOOKUP($H58,'Engage Ltg Fixture Table'!$B$8:$HK$770,V$4,FALSE) -> 1 | W58: =VLOOKUP($H58,'Engage Ltg Fixture Table'!$B$8:$HK$770,W$4,FALSE) -> 0.054 | X58: =VLOOKUP($F58,'Engage Ltg Fixture Table'!$B$8:$HK$770,X$4,FALSE) -> Linear Fluorescent | Y58: =VLOOKUP($F58,'Engage Ltg Fixture Table'!$B$8:$HK$770,Y$4,FALSE) -> F42SIS | Z58: =VLOOKUP($F58,'Engage Ltg Fixture Table'!$B$8:$HK$770,Z$4,FALSE) -> T12 | AA58: =VLOOKUP($F58,'Engage Ltg Fixture Table'!$B$8:$HK$770,AA$4,FALSE) -> 48 inch | AB58: =VLOOKUP($F58,'Engage Ltg Fixture Table'!$B$8:$HK$770,AB$4,FALSE) -> 2 | AC58: =VLOOKUP($F58,'Engage Ltg Fixture Table'!$B$8:$HK$770,AC$4,FALSE) -> F40T12 | AD58: =VLOOKUP($F58,'Engage Ltg Fixture Table'!$B$8:$HK$770,AD$4,FALSE) -> Mag-STD | AE58: =VLOOKUP($F58,'Engage Ltg Fixture Table'!$B$8:$HK$770,AE$4,FALSE) -> 1 | AF58: =VLOOKUP($F58,'Engage Ltg Fixture Table'!$B$8:$HK$770,AF$4,FALSE) -> 0.084 | AG58: =IF(G58="na","na",VLOOKUP($G58,'Engage Ltg Fixture Table'!$B$8:$HK$770,AG$4,FALSE)) -> Linear Fluorescent | AH58: =IF(G58="na","na",VLOOKUP($G58,'Engage Ltg Fixture Table'!$B$8:$HK$770,AH$4,FALSE)) -> F42LL (G1) | AI58: =IF(G58="na","na",VLOOKUP($G58,'Engage Ltg Fixture Table'!$B$8:$HK$770,AI$4,FALSE)) -> T8 | AJ58: =IF(G58="na","na",VLOOKUP($G58,'Engage Ltg Fixture Table'!$B$8:$HK$770,AJ$4,FALSE)) -> 48in 1st Gen | AK58: =IF(G58="na","na",VLOOKUP($G58,'Engage Ltg Fixture Table'!$B$8:$HK$770,AK$4,FALSE)) -> 2 | AL58: =IF(G58="na","na",VLOOKUP($G58,'Engage Ltg Fixture Table'!$B$8:$HK$770,AL$4,FALSE)) -> F32T8-STD | AM58: =IF(G58="na","na",VLOOKUP($G58,'Engage Ltg Fixture Table'!$B$8:$HK$770,AM$4,FALSE)) -> Electronic | AN58: =IF(G58="na","na",VLOOKUP($G58,'Engage Ltg Fixture Table'!$B$8:$HK$770,AN$4,FALSE)) -> 1 | AO58: =IF(G58="na","na",VLOOKUP($G58,'Engage Ltg Fixture Table'!$B$8:$HK$770,AO$4,FALSE)) -> 0.06 | AP58: added from DEER2008.3.02 measure list | AQ58: ="ID: "&TEXT(B58,"000")&"; "&VLOOKUP($F58,'Engage Ltg Fixture Table'!$B$8:$HK$770,7,FALSE)&" ==> "&VLOOKUP($H58,'Engage Ltg Fixture Table'!$B$8:$HK$770,7,FALSE) -> ID: 047; FL, (2) 48in, STD IS lamp, Mag, W/fixt=84 ==> FL, (2) 48in, T8 lamp, RS EB, W/fixt=54 | AS58: 10071-10311
B59: 48 | C59: Com-ILtg-PrimLF-LF-ca10071-cd10311-ms10311 | D59: Linear Fluorescent | E59: Linear Fluorescent (Primary Schedule) | F59: 10071 | G59: 10311 | H59: 10311 | I59: Yes | J59: Yes | K59: No | L59: No | M59: 30 | N59: 0 | O59: =VLOOKUP($H59,'Engage Ltg Fixture Table'!$B$8:$HK$770,O$4,FALSE) -> Linear Fluorescent | P59: =VLOOKUP($H59,'Engage Ltg Fixture Table'!$B$8:$HK$770,P$4,FALSE) -> F42LL-R (G2) | Q59: =VLOOKUP($H59,'Engage Ltg Fixture Table'!$B$8:$HK$770,Q$4,FALSE) -> T8 | R59: =VLOOKUP($H59,'Engage Ltg Fixture Table'!$B$8:$HK$770,R$4,FALSE) -> 48in 2nd Gen | S59: =VLOOKUP($H59,'Engage Ltg Fixture Table'!$B$8:$HK$770,S$4,FALSE) -> 2 | T59: =VLOOKUP($H59,'Engage Ltg Fixture Table'!$B$8:$HK$770,T$4,FALSE) -> F32T8-PREM | U59: =VLOOKUP($H59,'Engage Ltg Fixture Table'!$B$8:$HK$770,U$4,FALSE) -> Electronic | V59: =VLOOKUP($H59,'Engage Ltg Fixture Table'!$B$8:$HK$770,V$4,FALSE) -> 1 | W59: =VLOOKUP($H59,'Engage Ltg Fixture Table'!$B$8:$HK$770,W$4,FALSE) -> 0.054 | X59: =VLOOKUP($F59,'Engage Ltg Fixture Table'!$B$8:$HK$770,X$4,FALSE) -> Linear Fluorescent | Y59: =VLOOKUP($F59,'Engage Ltg Fixture Table'!$B$8:$HK$770,Y$4,FALSE) -> F42SIS | Z59: =VLOOKUP($F59,'Engage Ltg Fixture Table'!$B$8:$HK$770,Z$4,FALSE) -> T12 | AA59: =VLOOKUP($F59,'Engage Ltg Fixture Table'!$B$8:$HK$770,AA$4,FALSE) -> 48 inch | AB59: =VLOOKUP($F59,'Engage Ltg Fixture Table'!$B$8:$HK$770,AB$4,FALSE) -> 2 | AC59: =VLOOKUP($F59,'Engage Ltg Fixture Table'!$B$8:$HK$770,AC$4,FALSE) -> F40T12 | AD59: =VLOOKUP($F59,'Engage Ltg Fixture Table'!$B$8:$HK$770,AD$4,FALSE) -> Mag-STD | AE59: =VLOOKUP($F59,'Engage Ltg Fixture Table'!$B$8:$HK$770,AE$4,FALSE) -> 1 | AF59: =VLOOKUP($F59,'Engage Ltg Fixture Table'!$B$8:$HK$770,AF$4,FALSE) -> 0.084 | AG59: =IF(G59="na","na",VLOOKUP($G59,'Engage Ltg Fixture Table'!$B$8:$HK$770,AG$4,FALSE)) -> Linear Fluorescent | AH59: =IF(G59="na","na",VLOOKUP($G59,'Engage Ltg Fixture Table'!$B$8:$HK$770,AH$4,FALSE)) -> F42LL-R (G2) | AI59: =IF(G59="na","na",VLOOKUP($G59,'Engage Ltg Fixture Table'!$B$8:$HK$770,AI$4,FALSE)) -> T8 | AJ59: =IF(G59="na","na",VLOOKUP($G59,'Engage Ltg Fixture Table'!$B$8:$HK$770,AJ$4,FALSE)) -> 48in 2nd Gen | AK59: =IF(G59="na","na",VLOOKUP($G59,'Engage Ltg Fixture Table'!$B$8:$HK$770,AK$4,FALSE)) -> 2 | AL59: =IF(G59="na","na",VLOOKUP($G59,'Engage Ltg Fixture Table'!$B$8:$HK$770,AL$4,FALSE)) -> F32T8-PREM | AM59: =IF(G59="na","na",VLOOKUP($G59,'Engage Ltg Fixture Table'!$B$8:$HK$770,AM$4,FALSE)) -> Electronic | AN59: =IF(G59="na","na",VLOOKUP($G59,'Engage Ltg Fixture Table'!$B$8:$HK$770,AN$4,FALSE)) -> 1 | AO59: =IF(G59="na","na",VLOOKUP($G59,'Engage Ltg Fixture Table'!$B$8:$HK$770,AO$4,FALSE)) -> 0.054 | AP59: added from DEER2008.3.02 measure list | AQ59: ="ID: "&TEXT(B59,"000")&"; "&VLOOKUP($F59,'Engage Ltg Fixture Table'!$B$8:$HK$770,7,FALSE)&" ==> "&VLOOKUP($H59,'Engage Ltg Fixture Table'!$B$8:$HK$770,7,FALSE) -> ID: 048; FL, (2) 48in, STD IS lamp, Mag, W/fixt=84 ==> FL, (2) 48in, T8 lamp, RS EB, W/fixt=54 | AS59: 10071-10311
B60: 49 | C60: Com-ILtg-PrimLF-LF-ca10074-cd10262-ms10321 | D60: Linear Fluorescent | E60: Linear Fluorescent (Primary Schedule) | F60: 10074 | G60: 10262 | H60: 10321 | I60: No | J60: No | K60: Yes | L60: Yes | M60: 24 | N60: 15 | O60: =VLOOKUP($H60,'Engage Ltg Fixture Table'!$B$8:$HK$770,O$4,FALSE) -> Linear Fluorescent | P60: =VLOOKUP($H60,'Engage Ltg Fixture Table'!$B$8:$HK$770,P$4,FALSE) -> F43ILL-R (G2) | Q60: =VLOOKUP($H60,'Engage Ltg Fixture Table'!$B$8:$HK$770,Q$4,FALSE) -> T8 | R60: =VLOOKUP($H60,'Engage Ltg Fixture Table'!$B$8:$HK$770,R$4,FALSE) -> 48in 2nd Gen | S60: =VLOOKUP($H60,'Engage Ltg Fixture Table'!$B$8:$HK$770,S$4,FALSE) -> 3 | T60: =VLOOKUP($H60,'Engage Ltg Fixture Table'!$B$8:$HK$770,T$4,FALSE) -> F32T8-PREM | U60: =VLOOKUP($H60,'Engage Ltg Fixture Table'!$B$8:$HK$770,U$4,FALSE) -> Electronic | V60: =VLOOKUP($H60,'Engage Ltg Fixture Table'!$B$8:$HK$770,V$4,FALSE) -> 1 | W60: =VLOOKUP($H60,'Engage Ltg Fixture Table'!$B$8:$HK$770,W$4,FALSE) -> 0.078 | X60: =VLOOKUP($F60,'Engage Ltg Fixture Table'!$B$8:$HK$770,X$4,FALSE) -> Linear Fluorescent | Y60: =VLOOKUP($F60,'Engage Ltg Fixture Table'!$B$8:$HK$770,Y$4,FALSE) -> F43EH | Z60: =VLOOKUP($F60,'Engage Ltg Fixture Table'!$B$8:$HK$770,Z$4,FALSE) -> T12 | AA60: =VLOOKUP($F60,'Engage Ltg Fixture Table'!$B$8:$HK$770,AA$4,FALSE) -> 48 inch | AB60: =VLOOKUP($F60,'Engage Ltg Fixture Table'!$B$8:$HK$770,AB$4,FALSE) -> 3 | AC60: =VLOOKUP($F60,'Engage Ltg Fixture Table'!$B$8:$HK$770,AC$4,FALSE) -> F40T12/ES | AD60: =VLOOKUP($F60,'Engage Ltg Fixture Table'!$B$8:$HK$770,AD$4,FALSE) -> Mag-Hyb | AE60: =VLOOKUP($F60,'Engage Ltg Fixture Table'!$B$8:$HK$770,AE$4,FALSE) -> 1.5 | AF60: =VLOOKUP($F60,'Engage Ltg Fixture Table'!$B$8:$HK$770,AF$4,FALSE) -> 0.102 | AG60: =IF(G60="na","na",VLOOKUP($G60,'Engage Ltg Fixture Table'!$B$8:$HK$770,AG$4,FALSE)) -> Linear Fluorescent | AH60: =IF(G60="na","na",VLOOKUP($G60,'Engage Ltg Fixture Table'!$B$8:$HK$770,AH$4,FALSE)) -> F43LL (G1) | AI60: =IF(G60="na","na",VLOOKUP($G60,'Engage Ltg Fixture Table'!$B$8:$HK$770,AI$4,FALSE)) -> T8 | AJ60: =IF(G60="na","na",VLOOKUP($G60,'Engage Ltg Fixture Table'!$B$8:$HK$770,AJ$4,FALSE)) -> 48in 1st Gen | AK60: =IF(G60="na","na",VLOOKUP($G60,'Engage Ltg Fixture Table'!$B$8:$HK$770,AK$4,FALSE)) -> 3 | AL60: =IF(G60="na","na",VLOOKUP($G60,'Engage Ltg Fixture Table'!$B$8:$HK$770,AL$4,FALSE)) -> F32T8-STD | AM60: =IF(G60="na","na",VLOOKUP($G60,'Engage Ltg Fixture Table'!$B$8:$HK$770,AM$4,FALSE)) -> Electronic | AN60: =IF(G60="na","na",VLOOKUP($G60,'Engage Ltg Fixture Table'!$B$8:$HK$770,AN$4,FALSE)) -> 1 | AO60: =IF(G60="na","na",VLOOKUP($G60,'Engage Ltg Fixture Table'!$B$8:$HK$770,AO$4,FALSE)) -> 0.093 | AP60: added from DEER2008.3.02 measure list | AQ60: ="ID: "&TEXT(B60,"000")&"; "&VLOOKUP($F60,'Engage Ltg Fixture Table'!$B$8:$HK$770,7,FALSE)&" ==> "&VLOOKUP($H60,'Engage Ltg Fixture Table'!$B$8:$HK$770,7,FALSE) -> ID: 049; FL, (3) 48in, ES lamp, Hyb Mag, W/fixt=102 ==> FL, (3) 48in, T8 lamp, IS EB, W/fixt=78 | AS60: 10074-10321
B61: 50 | C61: Com-ILtg-PrimLF-LF-ca10074-cd10321-ms10321 | D61: Linear Fluorescent | E61: Linear Fluorescent (Primary Schedule) | F61: 10074 | G61: 10321 | H61: 10321 | I61: Yes | J61: Yes | K61: No | L61: No | M61: 24 | N61: 0 | O61: =VLOOKUP($H61,'Engage Ltg Fixture Table'!$B$8:$HK$770,O$4,FALSE) -> Linear Fluorescent | P61: =VLOOKUP($H61,'Engage Ltg Fixture Table'!$B$8:$HK$770,P$4,FALSE) -> F43ILL-R (G2) | Q61: =VLOOKUP($H61,'Engage Ltg Fixture Table'!$B$8:$HK$770,Q$4,FALSE) -> T8 | R61: =VLOOKUP($H61,'Engage Ltg Fixture Table'!$B$8:$HK$770,R$4,FALSE) -> 48in 2nd Gen | S61: =VLOOKUP($H61,'Engage Ltg Fixture Table'!$B$8:$HK$770,S$4,FALSE) -> 3 | T61: =VLOOKUP($H61,'Engage Ltg Fixture Table'!$B$8:$HK$770,T$4,FALSE) -> F32T8-PREM | U61: =VLOOKUP($H61,'Engage Ltg Fixture Table'!$B$8:$HK$770,U$4,FALSE) -> Electronic | V61: =VLOOKUP($H61,'Engage Ltg Fixture Table'!$B$8:$HK$770,V$4,FALSE) -> 1 | W61: =VLOOKUP($H61,'Engage Ltg Fixture Table'!$B$8:$HK$770,W$4,FALSE) -> 0.078 | X61: =VLOOKUP($F61,'Engage Ltg Fixture Table'!$B$8:$HK$770,X$4,FALSE) -> Linear Fluorescent | Y61: =VLOOKUP($F61,'Engage Ltg Fixture Table'!$B$8:$HK$770,Y$4,FALSE) -> F43EH | Z61: =VLOOKUP($F61,'Engage Ltg Fixture Table'!$B$8:$HK$770,Z$4,FALSE) -> T12 | AA61: =VLOOKUP($F61,'Engage Ltg Fixture Table'!$B$8:$HK$770,AA$4,FALSE) -> 48 inch | AB61: =VLOOKUP($F61,'Engage Ltg Fixture Table'!$B$8:$HK$770,AB$4,FALSE) -> 3 | AC61: =VLOOKUP($F61,'Engage Ltg Fixture Table'!$B$8:$HK$770,AC$4,FALSE) -> F40T12/ES | AD61: =VLOOKUP($F61,'Engage Ltg Fixture Table'!$B$8:$HK$770,AD$4,FALSE) -> Mag-Hyb | AE61: =VLOOKUP($F61,'Engage Ltg Fixture Table'!$B$8:$HK$770,AE$4,FALSE) -> 1.5 | AF61: =VLOOKUP($F61,'Engage Ltg Fixture Table'!$B$8:$HK$770,AF$4,FALSE) -> 0.102 | AG61: =IF(G61="na","na",VLOOKUP($G61,'Engage Ltg Fixture Table'!$B$8:$HK$770,AG$4,FALSE)) -> Linear Fluorescent | AH61: =IF(G61="na","na",VLOOKUP($G61,'Engage Ltg Fixture Table'!$B$8:$HK$770,AH$4,FALSE)) -> F43ILL-R (G2) | AI61: =IF(G61="na","na",VLOOKUP($G61,'Engage Ltg Fixture Table'!$B$8:$HK$770,AI$4,FALSE)) -> T8 | AJ61: =IF(G61="na","na",VLOOKUP($G61,'Engage Ltg Fixture Table'!$B$8:$HK$770,AJ$4,FALSE)) -> 48in 2nd Gen | AK61: =IF(G61="na","na",VLOOKUP($G61,'Engage Ltg Fixture Table'!$B$8:$HK$770,AK$4,FALSE)) -> 3 | AL61: =IF(G61="na","na",VLOOKUP($G61,'Engage Ltg Fixture Table'!$B$8:$HK$770,AL$4,FALSE)) -> F32T8-PREM | AM61: =IF(G61="na","na",VLOOKUP($G61,'Engage Ltg Fixture Table'!$B$8:$HK$770,AM$4,FALSE)) -> Electronic | AN61: =IF(G61="na","na",VLOOKUP($G61,'Engage Ltg Fixture Table'!$B$8:$HK$770,AN$4,FALSE)) -> 1 | AO61: =IF(G61="na","na",VLOOKUP($G61,'Engage Ltg Fixture Table'!$B$8:$HK$770,AO$4,FALSE)) -> 0.078 | AP61: added from DEER2008.3.02 measure list | AQ61: ="ID: "&TEXT(B61,"000")&"; "&VLOOKUP($F61,'Engage Ltg Fixture Table'!$B$8:$HK$770,7,FALSE)&" ==> "&VLOOKUP($H61,'Engage Ltg Fixture Table'!$B$8:$HK$770,7,FALSE) -> ID: 050; FL, (3) 48in, ES lamp, Hyb Mag, W/fixt=102 ==> FL, (3) 48in, T8 lamp, IS EB, W/fixt=78 | AS61: 10074-10321
B62: 51 | C62: Com-ILtg-PrimLF-LF-ca10075-cd10262-ms10321 | D62: Linear Fluorescent | E62: Linear Fluorescent (Primary Schedule) | F62: 10075 | G62: 10262 | H62: 10321 | I62: No | J62: No | K62: Yes | L62: Yes | M62: 37 | N62: 15 | O62: =VLOOKUP($H62,'Engage Ltg Fixture Table'!$B$8:$HK$770,O$4,FALSE) -> Linear Fluorescent | P62: =VLOOKUP($H62,'Engage Ltg Fixture Table'!$B$8:$HK$770,P$4,FALSE) -> F43ILL-R (G2) | Q62: =VLOOKUP($H62,'Engage Ltg Fixture Table'!$B$8:$HK$770,Q$4,FALSE) -> T8 | R62: =VLOOKUP($H62,'Engage Ltg Fixture Table'!$B$8:$HK$770,R$4,FALSE) -> 48in 2nd Gen | S62: =VLOOKUP($H62,'Engage Ltg Fixture Table'!$B$8:$HK$770,S$4,FALSE) -> 3 | T62: =VLOOKUP($H62,'Engage Ltg Fixture Table'!$B$8:$HK$770,T$4,FALSE) -> F32T8-PREM | U62: =VLOOKUP($H62,'Engage Ltg Fixture Table'!$B$8:$HK$770,U$4,FALSE) -> Electronic | V62: =VLOOKUP($H62,'Engage Ltg Fixture Table'!$B$8:$HK$770,V$4,FALSE) -> 1 | W62: =VLOOKUP($H62,'Engage Ltg Fixture Table'!$B$8:$HK$770,W$4,FALSE) -> 0.078 | X62: =VLOOKUP($F62,'Engage Ltg Fixture Table'!$B$8:$HK$770,X$4,FALSE) -> Linear Fluorescent | Y62: =VLOOKUP($F62,'Engage Ltg Fixture Table'!$B$8:$HK$770,Y$4,FALSE) -> F43EE | Z62: =VLOOKUP($F62,'Engage Ltg Fixture Table'!$B$8:$HK$770,Z$4,FALSE) -> T12 | AA62: =VLOOKUP($F62,'Engage Ltg Fixture Table'!$B$8:$HK$770,AA$4,FALSE) -> 48 inch | AB62: =VLOOKUP($F62,'Engage Ltg Fixture Table'!$B$8:$HK$770,AB$4,FALSE) -> 3 | AC62: =VLOOKUP($F62,'Engage Ltg Fixture Table'!$B$8:$HK$770,AC$4,FALSE) -> F40T12/ES | AD62: =VLOOKUP($F62,'Engage Ltg Fixture Table'!$B$8:$HK$770,AD$4,FALSE) -> Mag-ES | AE62: =VLOOKUP($F62,'Engage Ltg Fixture Table'!$B$8:$HK$770,AE$4,FALSE) -> 1 | AF62: =VLOOKUP($F62,'Engage Ltg Fixture Table'!$B$8:$HK$770,AF$4,FALSE) -> 0.115 | AG62: =IF(G62="na","na",VLOOKUP($G62,'Engage Ltg Fixture Table'!$B$8:$HK$770,AG$4,FALSE)) -> Linear Fluorescent | AH62: =IF(G62="na","na",VLOOKUP($G62,'Engage Ltg Fixture Table'!$B$8:$HK$770,AH$4,FALSE)) -> F43LL (G1) | AI62: =IF(G62="na","na",VLOOKUP($G62,'Engage Ltg Fixture Table'!$B$8:$HK$770,AI$4,FALSE)) -> T8 | AJ62: =IF(G62="na","na",VLOOKUP($G62,'Engage Ltg Fixture Table'!$B$8:$HK$770,AJ$4,FALSE)) -> 48in 1st Gen | AK62: =IF(G62="na","na",VLOOKUP($G62,'Engage Ltg Fixture Table'!$B$8:$HK$770,AK$4,FALSE)) -> 3 | AL62: =IF(G62="na","na",VLOOKUP($G62,'Engage Ltg Fixture Table'!$B$8:$HK$770,AL$4,FALSE)) -> F32T8-STD | AM62: =IF(G62="na","na",VLOOKUP($G62,'Engage Ltg Fixture Table'!$B$8:$HK$770,AM$4,FALSE)) -> Electronic | AN62: =IF(G62="na","na",VLOOKUP($G62,'Engage Ltg Fixture Table'!$B$8:$HK$770,AN$4,FALSE)) -> 1 | AO62: =IF(G62="na","na",VLOOKUP($G62,'Engage Ltg Fixture Table'!$B$8:$HK$770,AO$4,FALSE)) -> 0.093 | AP62: added from DEER2008.3.02 measure list | AQ62: ="ID: "&TEXT(B62,"000")&"; "&VLOOKUP($F62,'Engage Ltg Fixture Table'!$B$8:$HK$770,7,FALSE)&" ==> "&VLOOKUP($H62,'Engage Ltg Fixture Table'!$B$8:$HK$770,7,FALSE) -> ID: 051; FL, (3) 48in, ES lamp, ES Mag, W/fixt=115 ==> FL, (3) 48in, T8 lamp, IS EB, W/fixt=78 | AS62: 10075-10321
B63: 52 | C63: Com-ILtg-PrimLF-LF-ca10075-cd10321-ms10321 | D63: Linear Fluorescent | E63: Linear Fluorescent (Primary Schedule) | F63: 10075 | G63: 10321 | H63: 10321 | I63: Yes | J63: Yes | K63: No | L63: No | M63: 37 | N63: 0 | O63: =VLOOKUP($H63,'Engage Ltg Fixture Table'!$B$8:$HK$770,O$4,FALSE) -> Linear Fluorescent | P63: =VLOOKUP($H63,'Engage Ltg Fixture Table'!$B$8:$HK$770,P$4,FALSE) -> F43ILL-R (G2) | Q63: =VLOOKUP($H63,'Engage Ltg Fixture Table'!$B$8:$HK$770,Q$4,FALSE) -> T8 | R63: =VLOOKUP($H63,'Engage Ltg Fixture Table'!$B$8:$HK$770,R$4,FALSE) -> 48in 2nd Gen | S63: =VLOOKUP($H63,'Engage Ltg Fixture Table'!$B$8:$HK$770,S$4,FALSE) -> 3 | T63: =VLOOKUP($H63,'Engage Ltg Fixture Table'!$B$8:$HK$770,T$4,FALSE) -> F32T8-PREM | U63: =VLOOKUP($H63,'Engage Ltg Fixture Table'!$B$8:$HK$770,U$4,FALSE) -> Electronic | V63: =VLOOKUP($H63,'Engage Ltg Fixture Table'!$B$8:$HK$770,V$4,FALSE) -> 1 | W63: =VLOOKUP($H63,'Engage Ltg Fixture Table'!$B$8:$HK$770,W$4,FALSE) -> 0.078 | X63: =VLOOKUP($F63,'Engage Ltg Fixture Table'!$B$8:$HK$770,X$4,FALSE) -> Linear Fluorescent | Y63: =VLOOKUP($F63,'Engage Ltg Fixture Table'!$B$8:$HK$770,Y$4,FALSE) -> F43EE | Z63: =VLOOKUP($F63,'Engage Ltg Fixture Table'!$B$8:$HK$770,Z$4,FALSE) -> T12 | AA63: =VLOOKUP($F63,'Engage Ltg Fixture Table'!$B$8:$HK$770,AA$4,FALSE) -> 48 inch | AB63: =VLOOKUP($F63,'Engage Ltg Fixture Table'!$B$8:$HK$770,AB$4,FALSE) -> 3 | AC63: =VLOOKUP($F63,'Engage Ltg Fixture Table'!$B$8:$HK$770,AC$4,FALSE) -> F40T12/ES | AD63: =VLOOKUP($F63,'Engage Ltg Fixture Table'!$B$8:$HK$770,AD$4,FALSE) -> Mag-ES | AE63: =VLOOKUP($F63,'Engage Ltg Fixture Table'!$B$8:$HK$770,AE$4,FALSE) -> 1 | AF63: =VLOOKUP($F63,'Engage Ltg Fixture Table'!$B$8:$HK$770,AF$4,FALSE) -> 0.115 | AG63: =IF(G63="na","na",VLOOKUP($G63,'Engage Ltg Fixture Table'!$B$8:$HK$770,AG$4,FALSE)) -> Linear Fluorescent | AH63: =IF(G63="na","na",VLOOKUP($G63,'Engage Ltg Fixture Table'!$B$8:$HK$770,AH$4,FALSE)) -> F43ILL-R (G2) | AI63: =IF(G63="na","na",VLOOKUP($G63,'Engage Ltg Fixture Table'!$B$8:$HK$770,AI$4,FALSE)) -> T8 | AJ63: =IF(G63="na","na",VLOOKUP($G63,'Engage Ltg Fixture Table'!$B$8:$HK$770,AJ$4,FALSE)) -> 48in 2nd Gen | AK63: =IF(G63="na","na",VLOOKUP($G63,'Engage Ltg Fixture Table'!$B$8:$HK$770,AK$4,FALSE)) -> 3 | AL63: =IF(G63="na","na",VLOOKUP($G63,'Engage Ltg Fixture Table'!$B$8:$HK$770,AL$4,FALSE)) -> F32T8-PREM | AM63: =IF(G63="na","na",VLOOKUP($G63,'Engage Ltg Fixture Table'!$B$8:$HK$770,AM$4,FALSE)) -> Electronic | AN63: =IF(G63="na","na",VLOOKUP($G63,'Engage Ltg Fixture Table'!$B$8:$HK$770,AN$4,FALSE)) -> 1 | AO63: =IF(G63="na","na",VLOOKUP($G63,'Engage Ltg Fixture Table'!$B$8:$HK$770,AO$4,FALSE)) -> 0.078 | AP63: added from DEER2008.3.02 measure list | AQ63: ="ID: "&TEXT(B63,"000")&"; "&VLOOKUP($F63,'Engage Ltg Fixture Table'!$B$8:$HK$770,7,FALSE)&" ==> "&VLOOKUP($H63,'Engage Ltg Fixture Table'!$B$8:$HK$770,7,FALSE) -> ID: 052; FL, (3) 48in, ES lamp, ES Mag, W/fixt=115 ==> FL, (3) 48in, T8 lamp, IS EB, W/fixt=78 | AS63: 10075-10321
B64: 53 | C64: Com-ILtg-PrimLF-LF-ca10076-cd10262-ms10321 | D64: Linear Fluorescent | E64: Linear Fluorescent (Primary Schedule) | F64: 10076 | G64: 10262 | H64: 10321 | I64: No | J64: No | K64: Yes | L64: Yes | M64: 42 | N64: 15 | O64: =VLOOKUP($H64,'Engage Ltg Fixture Table'!$B$8:$HK$770,O$4,FALSE) -> Linear Fluorescent | P64: =VLOOKUP($H64,'Engage Ltg Fixture Table'!$B$8:$HK$770,P$4,FALSE) -> F43ILL-R (G2) | Q64: =VLOOKUP($H64,'Engage Ltg Fixture Table'!$B$8:$HK$770,Q$4,FALSE) -> T8 | R64: =VLOOKUP($H64,'Engage Ltg Fixture Table'!$B$8:$HK$770,R$4,FALSE) -> 48in 2nd Gen | S64: =VLOOKUP($H64,'Engage Ltg Fixture Table'!$B$8:$HK$770,S$4,FALSE) -> 3 | T64: =VLOOKUP($H64,'Engage Ltg Fixture Table'!$B$8:$HK$770,T$4,FALSE) -> F32T8-PREM | U64: =VLOOKUP($H64,'Engage Ltg Fixture Table'!$B$8:$HK$770,U$4,FALSE) -> Electronic | V64: =VLOOKUP($H64,'Engage Ltg Fixture Table'!$B$8:$HK$770,V$4,FALSE) -> 1 | W64: =VLOOKUP($H64,'Engage Ltg Fixture Table'!$B$8:$HK$770,W$4,FALSE) -> 0.078 | X64: =VLOOKUP($F64,'Engage Ltg Fixture Table'!$B$8:$HK$770,X$4,FALSE) -> Linear Fluorescent | Y64: =VLOOKUP($F64,'Engage Ltg Fixture Table'!$B$8:$HK$770,Y$4,FALSE) -> F43SIH | Z64: =VLOOKUP($F64,'Engage Ltg Fixture Table'!$B$8:$HK$770,Z$4,FALSE) -> T12 | AA64: =VLOOKUP($F64,'Engage Ltg Fixture Table'!$B$8:$HK$770,AA$4,FALSE) -> 48 inch | AB64: =VLOOKUP($F64,'Engage Ltg Fixture Table'!$B$8:$HK$770,AB$4,FALSE) -> 3 | AC64: =VLOOKUP($F64,'Engage Ltg Fixture Table'!$B$8:$HK$770,AC$4,FALSE) -> F40T12 | AD64: =VLOOKUP($F64,'Engage Ltg Fixture Table'!$B$8:$HK$770,AD$4,FALSE) -> Mag-Hyb | AE64: =VLOOKUP($F64,'Engage Ltg Fixture Table'!$B$8:$HK$770,AE$4,FALSE) -> 1.5 | AF64: =VLOOKUP($F64,'Engage Ltg Fixture Table'!$B$8:$HK$770,AF$4,FALSE) -> 0.12 | AG64: =IF(G64="na","na",VLOOKUP($G64,'Engage Ltg Fixture Table'!$B$8:$HK$770,AG$4,FALSE)) -> Linear Fluorescent | AH64: =IF(G64="na","na",VLOOKUP($G64,'Engage Ltg Fixture Table'!$B$8:$HK$770,AH$4,FALSE)) -> F43LL (G1) | AI64: =IF(G64="na","na",VLOOKUP($G64,'Engage Ltg Fixture Table'!$B$8:$HK$770,AI$4,FALSE)) -> T8 | AJ64: =IF(G64="na","na",VLOOKUP($G64,'Engage Ltg Fixture Table'!$B$8:$HK$770,AJ$4,FALSE)) -> 48in 1st Gen | AK64: =IF(G64="na","na",VLOOKUP($G64,'Engage Ltg Fixture Table'!$B$8:$HK$770,AK$4,FALSE)) -> 3 | AL64: =IF(G64="na","na",VLOOKUP($G64,'Engage Ltg Fixture Table'!$B$8:$HK$770,AL$4,FALSE)) -> F32T8-STD | AM64: =IF(G64="na","na",VLOOKUP($G64,'Engage Ltg Fixture Table'!$B$8:$HK$770,AM$4,FALSE)) -> Electronic | AN64: =IF(G64="na","na",VLOOKUP($G64,'Engage Ltg Fixture Table'!$B$8:$HK$770,AN$4,FALSE)) -> 1 | AO64: =IF(G64="na","na",VLOOKUP($G64,'Engage Ltg Fixture Table'!$B$8:$HK$770,AO$4,FALSE)) -> 0.093 | AP64: added from DEER2008.3.02 measure list | AQ64: ="ID: "&TEXT(B64,"000")&"; "&VLOOKUP($F64,'Engage Ltg Fixture Table'!$B$8:$HK$770,7,FALSE)&" ==> "&VLOOKUP($H64,'Engage Ltg Fixture Table'!$B$8:$HK$770,7,FALSE) -> ID: 053; FL, (3) 48in, STD IS lamp, Hyb Mag, W/fixt=120 ==> FL, (3) 48in, T8 lamp, IS EB, W/fixt=78 | AS64: 10076-10321
B65: 54 | C65: Com-ILtg-PrimLF-LF-ca10076-cd10321-ms10321 | D65: Linear Fluorescent | E65: Linear Fluorescent (Primary Schedule) | F65: 10076 | G65: 10321 | H65: 10321 | I65: Yes | J65: Yes | K65: No | L65: No | M65: 42 | N65: 0 | O65: =VLOOKUP($H65,'Engage Ltg Fixture Table'!$B$8:$HK$770,O$4,FALSE) -> Linear Fluorescent | P65: =VLOOKUP($H65,'Engage Ltg Fixture Table'!$B$8:$HK$770,P$4,FALSE) -> F43ILL-R (G2) | Q65: =VLOOKUP($H65,'Engage Ltg Fixture Table'!$B$8:$HK$770,Q$4,FALSE) -> T8 | R65: =VLOOKUP($H65,'Engage Ltg Fixture Table'!$B$8:$HK$770,R$4,FALSE) -> 48in 2nd Gen | S65: =VLOOKUP($H65,'Engage Ltg Fixture Table'!$B$8:$HK$770,S$4,FALSE) -> 3 | T65: =VLOOKUP($H65,'Engage Ltg Fixture Table'!$B$8:$HK$770,T$4,FALSE) -> F32T8-PREM | U65: =VLOOKUP($H65,'Engage Ltg Fixture Table'!$B$8:$HK$770,U$4,FALSE) -> Electronic | V65: =VLOOKUP($H65,'Engage Ltg Fixture Table'!$B$8:$HK$770,V$4,FALSE) -> 1 | W65: =VLOOKUP($H65,'Engage Ltg Fixture Table'!$B$8:$HK$770,W$4,FALSE) -> 0.078 | X65: =VLOOKUP($F65,'Engage Ltg Fixture Table'!$B$8:$HK$770,X$4,FALSE) -> Linear Fluorescent | Y65: =VLOOKUP($F65,'Engage Ltg Fixture Table'!$B$8:$HK$770,Y$4,FALSE) -> F43SIH | Z65: =VLOOKUP($F65,'Engage Ltg Fixture Table'!$B$8:$HK$770,Z$4,FALSE) -> T12 | AA65: =VLOOKUP($F65,'Engage Ltg Fixture Table'!$B$8:$HK$770,AA$4,FALSE) -> 48 inch | AB65: =VLOOKUP($F65,'Engage Ltg Fixture Table'!$B$8:$HK$770,AB$4,FALSE) -> 3 | AC65: =VLOOKUP($F65,'Engage Ltg Fixture Table'!$B$8:$HK$770,AC$4,FALSE) -> F40T12 | AD65: =VLOOKUP($F65,'Engage Ltg Fixture Table'!$B$8:$HK$770,AD$4,FALSE) -> Mag-Hyb | AE65: =VLOOKUP($F65,'Engage Ltg Fixture Table'!$B$8:$HK$770,AE$4,FALSE) -> 1.5 | AF65: =VLOOKUP($F65,'Engage Ltg Fixture Table'!$B$8:$HK$770,AF$4,FALSE) -> 0.12 | AG65: =IF(G65="na","na",VLOOKUP($G65,'Engage Ltg Fixture Table'!$B$8:$HK$770,AG$4,FALSE)) -> Linear Fluorescent | AH65: =IF(G65="na","na",VLOOKUP($G65,'Engage Ltg Fixture Table'!$B$8:$HK$770,AH$4,FALSE)) -> F43ILL-R (G2) | AI65: =IF(G65="na","na",VLOOKUP($G65,'Engage Ltg Fixture Table'!$B$8:$HK$770,AI$4,FALSE)) -> T8 | AJ65: =IF(G65="na","na",VLOOKUP($G65,'Engage Ltg Fixture Table'!$B$8:$HK$770,AJ$4,FALSE)) -> 48in 2nd Gen | AK65: =IF(G65="na","na",VLOOKUP($G65,'Engage Ltg Fixture Table'!$B$8:$HK$770,AK$4,FALSE)) -> 3 | AL65: =IF(G65="na","na",VLOOKUP($G65,'Engage Ltg Fixture Table'!$B$8:$HK$770,AL$4,FALSE)) -> F32T8-PREM | AM65: =IF(G65="na","na",VLOOKUP($G65,'Engage Ltg Fixture Table'!$B$8:$HK$770,AM$4,FALSE)) -> Electronic | AN65: =IF(G65="na","na",VLOOKUP($G65,'Engage Ltg Fixture Table'!$B$8:$HK$770,AN$4,FALSE)) -> 1 | AO65: =IF(G65="na","na",VLOOKUP($G65,'Engage Ltg Fixture Table'!$B$8:$HK$770,AO$4,FALSE)) -> 0.078 | AP65: added from DEER2008.3.02 measure list | AQ65: ="ID: "&TEXT(B65,"000")&"; "&VLOOKUP($F65,'Engage Ltg Fixture Table'!$B$8:$HK$770,7,FALSE)&" ==> "&VLOOKUP($H65,'Engage Ltg Fixture Table'!$B$8:$HK$770,7,FALSE) -> ID: 054; FL, (3) 48in, STD IS lamp, Hyb Mag, W/fixt=120 ==> FL, (3) 48in, T8 lamp, IS EB, W/fixt=78 | AS65: 10076-10321
B66: 55 | C66: Com-ILtg-PrimLF-LF-ca10077-cd10262-ms10321 | D66: Linear Fluorescent | E66: Linear Fluorescent (Primary Schedule) | F66: 10077 | G66: 10262 | H66: 10321 | I66: No | J66: No | K66: Yes | L66: Yes | M66: 55 | N66: 15 | O66: =VLOOKUP($H66,'Engage Ltg Fixture Table'!$B$8:$HK$770,O$4,FALSE) -> Linear Fluorescent | P66: =VLOOKUP($H66,'Engage Ltg Fixture Table'!$B$8:$HK$770,P$4,FALSE) -> F43ILL-R (G2) | Q66: =VLOOKUP($H66,'Engage Ltg Fixture Table'!$B$8:$HK$770,Q$4,FALSE) -> T8 | R66: =VLOOKUP($H66,'Engage Ltg Fixture Table'!$B$8:$HK$770,R$4,FALSE) -> 48in 2nd Gen | S66: =VLOOKUP($H66,'Engage Ltg Fixture Table'!$B$8:$HK$770,S$4,FALSE) -> 3 | T66: =VLOOKUP($H66,'Engage Ltg Fixture Table'!$B$8:$HK$770,T$4,FALSE) -> F32T8-PREM | U66: =VLOOKUP($H66,'Engage Ltg Fixture Table'!$B$8:$HK$770,U$4,FALSE) -> Electronic | V66: =VLOOKUP($H66,'Engage Ltg Fixture Table'!$B$8:$HK$770,V$4,FALSE) -> 1 | W66: =VLOOKUP($H66,'Engage Ltg Fixture Table'!$B$8:$HK$770,W$4,FALSE) -> 0.078 | X66: =VLOOKUP($F66,'Engage Ltg Fixture Table'!$B$8:$HK$770,X$4,FALSE) -> Linear Fluorescent | Y66: =VLOOKUP($F66,'Engage Ltg Fixture Table'!$B$8:$HK$770,Y$4,FALSE) -> F43EIS | Z66: =VLOOKUP($F66,'Engage Ltg Fixture Table'!$B$8:$HK$770,Z$4,FALSE) -> T12 | AA66: =VLOOKUP($F66,'Engage Ltg Fixture Table'!$B$8:$HK$770,AA$4,FALSE) -> 48 inch | AB66: =VLOOKUP($F66,'Engage Ltg Fixture Table'!$B$8:$HK$770,AB$4,FALSE) -> 3 | AC66: =VLOOKUP($F66,'Engage Ltg Fixture Table'!$B$8:$HK$770,AC$4,FALSE) -> F48T12/ES | AD66: =VLOOKUP($F66,'Engage Ltg Fixture Table'!$B$8:$HK$770,AD$4,FALSE) -> Mag-STD | AE66: =VLOOKUP($F66,'Engage Ltg Fixture Table'!$B$8:$HK$770,AE$4,FALSE) -> 1 | AF66: =VLOOKUP($F66,'Engage Ltg Fixture Table'!$B$8:$HK$770,AF$4,FALSE) -> 0.133 | AG66: =IF(G66="na","na",VLOOKUP($G66,'Engage Ltg Fixture Table'!$B$8:$HK$770,AG$4,FALSE)) -> Linear Fluorescent | AH66: =IF(G66="na","na",VLOOKUP($G66,'Engage Ltg Fixture Table'!$B$8:$HK$770,AH$4,FALSE)) -> F43LL (G1) | AI66: =IF(G66="na","na",VLOOKUP($G66,'Engage Ltg Fixture Table'!$B$8:$HK$770,AI$4,FALSE)) -> T8 | AJ66: =IF(G66="na","na",VLOOKUP($G66,'Engage Ltg Fixture Table'!$B$8:$HK$770,AJ$4,FALSE)) -> 48in 1st Gen | AK66: =IF(G66="na","na",VLOOKUP($G66,'Engage Ltg Fixture Table'!$B$8:$HK$770,AK$4,FALSE)) -> 3 | AL66: =IF(G66="na","na",VLOOKUP($G66,'Engage Ltg Fixture Table'!$B$8:$HK$770,AL$4,FALSE)) -> F32T8-STD | AM66: =IF(G66="na","na",VLOOKUP($G66,'Engage Ltg Fixture Table'!$B$8:$HK$770,AM$4,FALSE)) -> Electronic | AN66: =IF(G66="na","na",VLOOKUP($G66,'Engage Ltg Fixture Table'!$B$8:$HK$770,AN$4,FALSE)) -> 1 | AO66: =IF(G66="na","na",VLOOKUP($G66,'Engage Ltg Fixture Table'!$B$8:$HK$770,AO$4,FALSE)) -> 0.093 | AP66: added from DEER2008.3.02 measure list | AQ66: ="ID: "&TEXT(B66,"000")&"; "&VLOOKUP($F66,'Engage Ltg Fixture Table'!$B$8:$HK$770,7,FALSE)&" ==> "&VLOOKUP($H66,'Engage Ltg Fixture Table'!$B$8:$HK$770,7,FALSE) -> ID: 055; FL, (3) 48in, ES IS lamp, Mag, W/fixt=133 ==> FL, (3) 48in, T8 lamp, IS EB, W/fixt=78 | AS66: 10077-10321
B67: 56 | C67: Com-ILtg-PrimLF-LF-ca10077-cd10321-ms10321 | D67: Linear Fluorescent | E67: Linear Fluorescent (Primary Schedule) | F67: 10077 | G67: 10321 | H67: 10321 | I67: Yes | J67: Yes | K67: No | L67: No | M67: 55 | N67: 0 | O67: =VLOOKUP($H67,'Engage Ltg Fixture Table'!$B$8:$HK$770,O$4,FALSE) -> Linear Fluorescent | P67: =VLOOKUP($H67,'Engage Ltg Fixture Table'!$B$8:$HK$770,P$4,FALSE) -> F43ILL-R (G2) | Q67: =VLOOKUP($H67,'Engage Ltg Fixture Table'!$B$8:$HK$770,Q$4,FALSE) -> T8 | R67: =VLOOKUP($H67,'Engage Ltg Fixture Table'!$B$8:$HK$770,R$4,FALSE) -> 48in 2nd Gen | S67: =VLOOKUP($H67,'Engage Ltg Fixture Table'!$B$8:$HK$770,S$4,FALSE) -> 3 | T67: =VLOOKUP($H67,'Engage Ltg Fixture Table'!$B$8:$HK$770,T$4,FALSE) -> F32T8-PREM | U67: =VLOOKUP($H67,'Engage Ltg Fixture Table'!$B$8:$HK$770,U$4,FALSE) -> Electronic | V67: =VLOOKUP($H67,'Engage Ltg Fixture Table'!$B$8:$HK$770,V$4,FALSE) -> 1 | W67: =VLOOKUP($H67,'Engage Ltg Fixture Table'!$B$8:$HK$770,W$4,FALSE) -> 0.078 | X67: =VLOOKUP($F67,'Engage Ltg Fixture Table'!$B$8:$HK$770,X$4,FALSE) -> Linear Fluorescent | Y67: =VLOOKUP($F67,'Engage Ltg Fixture Table'!$B$8:$HK$770,Y$4,FALSE) -> F43EIS | Z67: =VLOOKUP($F67,'Engage Ltg Fixture Table'!$B$8:$HK$770,Z$4,FALSE) -> T12 | AA67: =VLOOKUP($F67,'Engage Ltg Fixture Table'!$B$8:$HK$770,AA$4,FALSE) -> 48 inch | AB67: =VLOOKUP($F67,'Engage Ltg Fixture Table'!$B$8:$HK$770,AB$4,FALSE) -> 3 | AC67: =VLOOKUP($F67,'Engage Ltg Fixture Table'!$B$8:$HK$770,AC$4,FALSE) -> F48T12/ES | AD67: =VLOOKUP($F67,'Engage Ltg Fixture Table'!$B$8:$HK$770,AD$4,FALSE) -> Mag-STD | AE67: =VLOOKUP($F67,'Engage Ltg Fixture Table'!$B$8:$HK$770,AE$4,FALSE) -> 1 | AF67: =VLOOKUP($F67,'Engage Ltg Fixture Table'!$B$8:$HK$770,AF$4,FALSE) -> 0.133 | AG67: =IF(G67="na","na",VLOOKUP($G67,'Engage Ltg Fixture Table'!$B$8:$HK$770,AG$4,FALSE)) -> Linear Fluorescent | AH67: =IF(G67="na","na",VLOOKUP($G67,'Engage Ltg Fixture Table'!$B$8:$HK$770,AH$4,FALSE)) -> F43ILL-R (G2) | AI67: =IF(G67="na","na",VLOOKUP($G67,'Engage Ltg Fixture Table'!$B$8:$HK$770,AI$4,FALSE)) -> T8 | AJ67: =IF(G67="na","na",VLOOKUP($G67,'Engage Ltg Fixture Table'!$B$8:$HK$770,AJ$4,FALSE)) -> 48in 2nd Gen | AK67: =IF(G67="na","na",VLOOKUP($G67,'Engage Ltg Fixture Table'!$B$8:$HK$770,AK$4,FALSE)) -> 3 | AL67: =IF(G67="na","na",VLOOKUP($G67,'Engage Ltg Fixture Table'!$B$8:$HK$770,AL$4,FALSE)) -> F32T8-PREM | AM67: =IF(G67="na","na",VLOOKUP($G67,'Engage Ltg Fixture Table'!$B$8:$HK$770,AM$4,FALSE)) -> Electronic | AN67: =IF(G67="na","na",VLOOKUP($G67,'Engage Ltg Fixture Table'!$B$8:$HK$770,AN$4,FALSE)) -> 1 | AO67: =IF(G67="na","na",VLOOKUP($G67,'Engage Ltg Fixture Table'!$B$8:$HK$770,AO$4,FALSE)) -> 0.078 | AP67: added from DEER2008.3.02 measure list | AQ67: ="ID: "&TEXT(B67,"000")&"; "&VLOOKUP($F67,'Engage Ltg Fixture Table'!$B$8:$HK$770,7,FALSE)&" ==> "&VLOOKUP($H67,'Engage Ltg Fixture Table'!$B$8:$HK$770,7,FALSE) -> ID: 056; FL, (3) 48in, ES IS lamp, Mag, W/fixt=133 ==> FL, (3) 48in, T8 lamp, IS EB, W/fixt=78 | AS67: 10077-10321
B68: 57 | C68: Com-ILtg-PrimLF-LF-ca10078-cd10262-ms10321 | D68: Linear Fluorescent | E68: Linear Fluorescent (Primary Schedule) | F68: 10078 | G68: 10262 | H68: 10321 | I68: No | J68: No | K68: Yes | L68: Yes | M68: 58 | N68: 15 | O68: =VLOOKUP($H68,'Engage Ltg Fixture Table'!$B$8:$HK$770,O$4,FALSE) -> Linear Fluorescent | P68: =VLOOKUP($H68,'Engage Ltg Fixture Table'!$B$8:$HK$770,P$4,FALSE) -> F43ILL-R (G2) | Q68: =VLOOKUP($H68,'Engage Ltg Fixture Table'!$B$8:$HK$770,Q$4,FALSE) -> T8 | R68: =VLOOKUP($H68,'Engage Ltg Fixture Table'!$B$8:$HK$770,R$4,FALSE) -> 48in 2nd Gen | S68: =VLOOKUP($H68,'Engage Ltg Fixture Table'!$B$8:$HK$770,S$4,FALSE) -> 3 | T68: =VLOOKUP($H68,'Engage Ltg Fixture Table'!$B$8:$HK$770,T$4,FALSE) -> F32T8-PREM | U68: =VLOOKUP($H68,'Engage Ltg Fixture Table'!$B$8:$HK$770,U$4,FALSE) -> Electronic | V68: =VLOOKUP($H68,'Engage Ltg Fixture Table'!$B$8:$HK$770,V$4,FALSE) -> 1 | W68: =VLOOKUP($H68,'Engage Ltg Fixture Table'!$B$8:$HK$770,W$4,FALSE) -> 0.078 | X68: =VLOOKUP($F68,'Engage Ltg Fixture Table'!$B$8:$HK$770,X$4,FALSE) -> Linear Fluorescent | Y68: =VLOOKUP($F68,'Engage Ltg Fixture Table'!$B$8:$HK$770,Y$4,FALSE) -> F43SIS | Z68: =VLOOKUP($F68,'Engage Ltg Fixture Table'!$B$8:$HK$770,Z$4,FALSE) -> T12 | AA68: =VLOOKUP($F68,'Engage Ltg Fixture Table'!$B$8:$HK$770,AA$4,FALSE) -> 48 inch | AB68: =VLOOKUP($F68,'Engage Ltg Fixture Table'!$B$8:$HK$770,AB$4,FALSE) -> 3 | AC68: =VLOOKUP($F68,'Engage Ltg Fixture Table'!$B$8:$HK$770,AC$4,FALSE) -> F40T12 | AD68: =VLOOKUP($F68,'Engage Ltg Fixture Table'!$B$8:$HK$770,AD$4,FALSE) -> Mag-STD | AE68: =VLOOKUP($F68,'Engage Ltg Fixture Table'!$B$8:$HK$770,AE$4,FALSE) -> 1 | AF68: =VLOOKUP($F68,'Engage Ltg Fixture Table'!$B$8:$HK$770,AF$4,FALSE) -> 0.136 | AG68: =IF(G68="na","na",VLOOKUP($G68,'Engage Ltg Fixture Table'!$B$8:$HK$770,AG$4,FALSE)) -> Linear Fluorescent | AH68: =IF(G68="na","na",VLOOKUP($G68,'Engage Ltg Fixture Table'!$B$8:$HK$770,AH$4,FALSE)) -> F43LL (G1) | AI68: =IF(G68="na","na",VLOOKUP($G68,'Engage Ltg Fixture Table'!$B$8:$HK$770,AI$4,FALSE)) -> T8 | AJ68: =IF(G68="na","na",VLOOKUP($G68,'Engage Ltg Fixture Table'!$B$8:$HK$770,AJ$4,FALSE)) -> 48in 1st Gen | AK68: =IF(G68="na","na",VLOOKUP($G68,'Engage Ltg Fixture Table'!$B$8:$HK$770,AK$4,FALSE)) -> 3 | AL68: =IF(G68="na","na",VLOOKUP($G68,'Engage Ltg Fixture Table'!$B$8:$HK$770,AL$4,FALSE)) -> F32T8-STD | AM68: =IF(G68="na","na",VLOOKUP($G68,'Engage Ltg Fixture Table'!$B$8:$HK$770,AM$4,FALSE)) -> Electronic | AN68: =IF(G68="na","na",VLOOKUP($G68,'Engage Ltg Fixture Table'!$B$8:$HK$770,AN$4,FALSE)) -> 1 | AO68: =IF(G68="na","na",VLOOKUP($G68,'Engage Ltg Fixture Table'!$B$8:$HK$770,AO$4,FALSE)) -> 0.093 | AP68: added from DEER2008.3.02 measure list | AQ68: ="ID: "&TEXT(B68,"000")&"; "&VLOOKUP($F68,'Engage Ltg Fixture Table'!$B$8:$HK$770,7,FALSE)&" ==> "&VLOOKUP($H68,'Engage Ltg Fixture Table'!$B$8:$HK$770,7,FALSE) -> ID: 057; FL, (3) 48in, STD IS lamp, Mag, W/fixt=136 ==> FL, (3) 48in, T8 lamp, IS EB, W/fixt=78 | AS68: 10078-10321
B69: 58 | C69: Com-ILtg-PrimLF-LF-ca10078-cd10321-ms10321 | D69: Linear Fluorescent | E69: Linear Fluorescent (Primary Schedule) | F69: 10078 | G69: 10321 | H69: 10321 | I69: Yes | J69: Yes | K69: No | L69: No | M69: 58 | N69: 0 | O69: =VLOOKUP($H69,'Engage Ltg Fixture Table'!$B$8:$HK$770,O$4,FALSE) -> Linear Fluorescent | P69: =VLOOKUP($H69,'Engage Ltg Fixture Table'!$B$8:$HK$770,P$4,FALSE) -> F43ILL-R (G2) | Q69: =VLOOKUP($H69,'Engage Ltg Fixture Table'!$B$8:$HK$770,Q$4,FALSE) -> T8 | R69: =VLOOKUP($H69,'Engage Ltg Fixture Table'!$B$8:$HK$770,R$4,FALSE) -> 48in 2nd Gen | S69: =VLOOKUP($H69,'Engage Ltg Fixture Table'!$B$8:$HK$770,S$4,FALSE) -> 3 | T69: =VLOOKUP($H69,'Engage Ltg Fixture Table'!$B$8:$HK$770,T$4,FALSE) -> F32T8-PREM | U69: =VLOOKUP($H69,'Engage Ltg Fixture Table'!$B$8:$HK$770,U$4,FALSE) -> Electronic | V69: =VLOOKUP($H69,'Engage Ltg Fixture Table'!$B$8:$HK$770,V$4,FALSE) -> 1 | W69: =VLOOKUP($H69,'Engage Ltg Fixture Table'!$B$8:$HK$770,W$4,FALSE) -> 0.078 | X69: =VLOOKUP($F69,'Engage Ltg Fixture Table'!$B$8:$HK$770,X$4,FALSE) -> Linear Fluorescent | Y69: =VLOOKUP($F69,'Engage Ltg Fixture Table'!$B$8:$HK$770,Y$4,FALSE) -> F43SIS | Z69: =VLOOKUP($F69,'Engage Ltg Fixture Table'!$B$8:$HK$770,Z$4,FALSE) -> T12 | AA69: =VLOOKUP($F69,'Engage Ltg Fixture Table'!$B$8:$HK$770,AA$4,FALSE) -> 48 inch | AB69: =VLOOKUP($F69,'Engage Ltg Fixture Table'!$B$8:$HK$770,AB$4,FALSE) -> 3 | AC69: =VLOOKUP($F69,'Engage Ltg Fixture Table'!$B$8:$HK$770,AC$4,FALSE) -> F40T12 | AD69: =VLOOKUP($F69,'Engage Ltg Fixture Table'!$B$8:$HK$770,AD$4,FALSE) -> Mag-STD | AE69: =VLOOKUP($F69,'Engage Ltg Fixture Table'!$B$8:$HK$770,AE$4,FALSE) -> 1 | AF69: =VLOOKUP($F69,'Engage Ltg Fixture Table'!$B$8:$HK$770,AF$4,FALSE) -> 0.136 | AG69: =IF(G69="na","na",VLOOKUP($G69,'Engage Ltg Fixture Table'!$B$8:$HK$770,AG$4,FALSE)) -> Linear Fluorescent | AH69: =IF(G69="na","na",VLOOKUP($G69,'Engage Ltg Fixture Table'!$B$8:$HK$770,AH$4,FALSE)) -> F43ILL-R (G2) | AI69: =IF(G69="na","na",VLOOKUP($G69,'Engage Ltg Fixture Table'!$B$8:$HK$770,AI$4,FALSE)) -> T8 | AJ69: =IF(G69="na","na",VLOOKUP($G69,'Engage Ltg Fixture Table'!$B$8:$HK$770,AJ$4,FALSE)) -> 48in 2nd Gen | AK69: =IF(G69="na","na",VLOOKUP($G69,'Engage Ltg Fixture Table'!$B$8:$HK$770,AK$4,FALSE)) -> 3 | AL69: =IF(G69="na","na",VLOOKUP($G69,'Engage Ltg Fixture Table'!$B$8:$HK$770,AL$4,FALSE)) -> F32T8-PREM | AM69: =IF(G69="na","na",VLOOKUP($G69,'Engage Ltg Fixture Table'!$B$8:$HK$770,AM$4,FALSE)) -> Electronic | AN69: =IF(G69="na","na",VLOOKUP($G69,'Engage Ltg Fixture Table'!$B$8:$HK$770,AN$4,FALSE)) -> 1 | AO69: =IF(G69="na","na",VLOOKUP($G69,'Engage Ltg Fixture Table'!$B$8:$HK$770,AO$4,FALSE)) -> 0.078 | AP69: added from DEER2008.3.02 measure list | AQ69: ="ID: "&TEXT(B69,"000")&"; "&VLOOKUP($F69,'Engage Ltg Fixture Table'!$B$8:$HK$770,7,FALSE)&" ==> "&VLOOKUP($H69,'Engage Ltg Fixture Table'!$B$8:$HK$770,7,FALSE) -> ID: 058; FL, (3) 48in, STD IS lamp, Mag, W/fixt=136 ==> FL, (3) 48in, T8 lamp, IS EB, W/fixt=78 | AS69: 10078-10321
B70: 59 | C70: Com-ILtg-PrimLF-LF-ca10081-cd10270-ms10329 | D70: Linear Fluorescent | E70: Linear Fluorescent (Primary Schedule) | F70: 10081 | G70: 10270 | H70: 10329 | I70: No | J70: No | K70: Yes | L70: Yes | M70: 34 | N70: 16 | O70: =VLOOKUP($H70,'Engage Ltg Fixture Table'!$B$8:$HK$770,O$4,FALSE) -> Linear Fluorescent | P70: =VLOOKUP($H70,'Engage Ltg Fixture Table'!$B$8:$HK$770,P$4,FALSE) -> F44ILL-R (G2) | Q70: =VLOOKUP($H70,'Engage Ltg Fixture Table'!$B$8:$HK$770,Q$4,FALSE) -> T8 | R70: =VLOOKUP($H70,'Engage Ltg Fixture Table'!$B$8:$HK$770,R$4,FALSE) -> 48in 2nd Gen | S70: =VLOOKUP($H70,'Engage Ltg Fixture Table'!$B$8:$HK$770,S$4,FALSE) -> 4 | T70: =VLOOKUP($H70,'Engage Ltg Fixture Table'!$B$8:$HK$770,T$4,FALSE) -> F32T8-PREM | U70: =VLOOKUP($H70,'Engage Ltg Fixture Table'!$B$8:$HK$770,U$4,FALSE) -> Electronic | V70: =VLOOKUP($H70,'Engage Ltg Fixture Table'!$B$8:$HK$770,V$4,FALSE) -> 1 | W70: =VLOOKUP($H70,'Engage Ltg Fixture Table'!$B$8:$HK$770,W$4,FALSE) -> 0.102 | X70: =VLOOKUP($F70,'Engage Ltg Fixture Table'!$B$8:$HK$770,X$4,FALSE) -> Linear Fluorescent | Y70: =VLOOKUP($F70,'Engage Ltg Fixture Table'!$B$8:$HK$770,Y$4,FALSE) -> F44EH | Z70: =VLOOKUP($F70,'Engage Ltg Fixture Table'!$B$8:$HK$770,Z$4,FALSE) -> T12 | AA70: =VLOOKUP($F70,'Engage Ltg Fixture Table'!$B$8:$HK$770,AA$4,FALSE) -> 48 inch | AB70: =VLOOKUP($F70,'Engage Ltg Fixture Table'!$B$8:$HK$770,AB$4,FALSE) -> 4 | AC70: =VLOOKUP($F70,'Engage Ltg Fixture Table'!$B$8:$HK$770,AC$4,FALSE) -> F40T12/ES | AD70: =VLOOKUP($F70,'Engage Ltg Fixture Table'!$B$8:$HK$770,AD$4,FALSE) -> Mag-Hyb | AE70: =VLOOKUP($F70,'Engage Ltg Fixture Table'!$B$8:$HK$770,AE$4,FALSE) -> 2 | AF70: =VLOOKUP($F70,'Engage Ltg Fixture Table'!$B$8:$HK$770,AF$4,FALSE) -> 0.136 | AG70: =IF(G70="na","na",VLOOKUP($G70,'Engage Ltg Fixture Table'!$B$8:$HK$770,AG$4,FALSE)) -> Linear Fluorescent | AH70: =IF(G70="na","na",VLOOKUP($G70,'Engage Ltg Fixture Table'!$B$8:$HK$770,AH$4,FALSE)) -> F44LL (G1) | AI70: =IF(G70="na","na",VLOOKUP($G70,'Engage Ltg Fixture Table'!$B$8:$HK$770,AI$4,FALSE)) -> T8 | AJ70: =IF(G70="na","na",VLOOKUP($G70,'Engage Ltg Fixture Table'!$B$8:$HK$770,AJ$4,FALSE)) -> 48in 1st Gen | AK70: =IF(G70="na","na",VLOOKUP($G70,'Engage Ltg Fixture Table'!$B$8:$HK$770,AK$4,FALSE)) -> 4 | AL70: =IF(G70="na","na",VLOOKUP($G70,'Engage Ltg Fixture Table'!$B$8:$HK$770,AL$4,FALSE)) -> F32T8-STD | AM70: =IF(G70="na","na",VLOOKUP($G70,'Engage Ltg Fixture Table'!$B$8:$HK$770,AM$4,FALSE)) -> Electronic | AN70: =IF(G70="na","na",VLOOKUP($G70,'Engage Ltg Fixture Table'!$B$8:$HK$770,AN$4,FALSE)) -> 1 | AO70: =IF(G70="na","na",VLOOKUP($G70,'Engage Ltg Fixture Table'!$B$8:$HK$770,AO$4,FALSE)) -> 0.118 | AP70: added from DEER2008.3.02 measure list | AQ70: ="ID: "&TEXT(B70,"000")&"; "&VLOOKUP($F70,'Engage Ltg Fixture Table'!$B$8:$HK$770,7,FALSE)&" ==> "&VLOOKUP($H70,'Engage Ltg Fixture Table'!$B$8:$HK$770,7,FALSE) -> ID: 059; FL, (4) 48in, ES lamp, Hyb Mag, W/fixt=136 ==> FL, (4) 48in, T8 lamp, IS EB, W/fixt=102 | AS70: 10081-10329
B71: 60 | C71: Com-ILtg-PrimLF-LF-ca10081-cd10329-ms10329 | D71: Linear Fluorescent | E71: Linear Fluorescent (Primary Schedule) | F71: 10081 | G71: 10329 | H71: 10329 | I71: Yes | J71: Yes | K71: No | L71: No | M71: 34 | N71: 0 | O71: =VLOOKUP($H71,'Engage Ltg Fixture Table'!$B$8:$HK$770,O$4,FALSE) -> Linear Fluorescent | P71: =VLOOKUP($H71,'Engage Ltg Fixture Table'!$B$8:$HK$770,P$4,FALSE) -> F44ILL-R (G2) | Q71: =VLOOKUP($H71,'Engage Ltg Fixture Table'!$B$8:$HK$770,Q$4,FALSE) -> T8 | R71: =VLOOKUP($H71,'Engage Ltg Fixture Table'!$B$8:$HK$770,R$4,FALSE) -> 48in 2nd Gen | S71: =VLOOKUP($H71,'Engage Ltg Fixture Table'!$B$8:$HK$770,S$4,FALSE) -> 4 | T71: =VLOOKUP($H71,'Engage Ltg Fixture Table'!$B$8:$HK$770,T$4,FALSE) -> F32T8-PREM | U71: =VLOOKUP($H71,'Engage Ltg Fixture Table'!$B$8:$HK$770,U$4,FALSE) -> Electronic | V71: =VLOOKUP($H71,'Engage Ltg Fixture Table'!$B$8:$HK$770,V$4,FALSE) -> 1 | W71: =VLOOKUP($H71,'Engage Ltg Fixture Table'!$B$8:$HK$770,W$4,FALSE) -> 0.102 | X71: =VLOOKUP($F71,'Engage Ltg Fixture Table'!$B$8:$HK$770,X$4,FALSE) -> Linear Fluorescent | Y71: =VLOOKUP($F71,'Engage Ltg Fixture Table'!$B$8:$HK$770,Y$4,FALSE) -> F44EH | Z71: =VLOOKUP($F71,'Engage Ltg Fixture Table'!$B$8:$HK$770,Z$4,FALSE) -> T12 | AA71: =VLOOKUP($F71,'Engage Ltg Fixture Table'!$B$8:$HK$770,AA$4,FALSE) -> 48 inch | AB71: =VLOOKUP($F71,'Engage Ltg Fixture Table'!$B$8:$HK$770,AB$4,FALSE) -> 4 | AC71: =VLOOKUP($F71,'Engage Ltg Fixture Table'!$B$8:$HK$770,AC$4,FALSE) -> F40T12/ES | AD71: =VLOOKUP($F71,'Engage Ltg Fixture Table'!$B$8:$HK$770,AD$4,FALSE) -> Mag-Hyb | AE71: =VLOOKUP($F71,'Engage Ltg Fixture Table'!$B$8:$HK$770,AE$4,FALSE) -> 2 | AF71: =VLOOKUP($F71,'Engage Ltg Fixture Table'!$B$8:$HK$770,AF$4,FALSE) -> 0.136 | AG71: =IF(G71="na","na",VLOOKUP($G71,'Engage Ltg Fixture Table'!$B$8:$HK$770,AG$4,FALSE)) -> Linear Fluorescent | AH71: =IF(G71="na","na",VLOOKUP($G71,'Engage Ltg Fixture Table'!$B$8:$HK$770,AH$4,FALSE)) -> F44ILL-R (G2) | AI71: =IF(G71="na","na",VLOOKUP($G71,'Engage Ltg Fixture Table'!$B$8:$HK$770,AI$4,FALSE)) -> T8 | AJ71: =IF(G71="na","na",VLOOKUP($G71,'Engage Ltg Fixture Table'!$B$8:$HK$770,AJ$4,FALSE)) -> 48in 2nd Gen | AK71: =IF(G71="na","na",VLOOKUP($G71,'Engage Ltg Fixture Table'!$B$8:$HK$770,AK$4,FALSE)) -> 4 | AL71: =IF(G71="na","na",VLOOKUP($G71,'Engage Ltg Fixture Table'!$B$8:$HK$770,AL$4,FALSE)) -> F32T8-PREM | AM71: =IF(G71="na","na",VLOOKUP($G71,'Engage Ltg Fixture Table'!$B$8:$HK$770,AM$4,FALSE)) -> Electronic | AN71: =IF(G71="na","na",VLOOKUP($G71,'Engage Ltg Fixture Table'!$B$8:$HK$770,AN$4,FALSE)) -> 1 | AO71: =IF(G71="na","na",VLOOKUP($G71,'Engage Ltg Fixture Table'!$B$8:$HK$770,AO$4,FALSE)) -> 0.102 | AP71: added from DEER2008.3.02 measure list | AQ71: ="ID: "&TEXT(B71,"000")&"; "&VLOOKUP($F71,'Engage Ltg Fixture Table'!$B$8:$HK$770,7,FALSE)&" ==> "&VLOOKUP($H71,'Engage Ltg Fixture Table'!$B$8:$HK$770,7,FALSE) -> ID: 060; FL, (4) 48in, ES lamp, Hyb Mag, W/fixt=136 ==> FL, (4) 48in, T8 lamp, IS EB, W/fixt=102 | AS71: 10081-10329
B72: 61 | C72: Com-ILtg-PrimLF-LF-ca10082-cd10262-ms10318 | D72: Linear Fluorescent | E72: Linear Fluorescent (Primary Schedule) | F72: 10082 | G72: 10262 | H72: 10318 | I72: No | J72: No | K72: Yes | L72: Yes | M72: 65 | N72: 14 | O72: =VLOOKUP($H72,'Engage Ltg Fixture Table'!$B$8:$HK$770,O$4,FALSE) -> Linear Fluorescent | P72: =VLOOKUP($H72,'Engage Ltg Fixture Table'!$B$8:$HK$770,P$4,FALSE) -> F42ILL-V (G2) | Q72: =VLOOKUP($H72,'Engage Ltg Fixture Table'!$B$8:$HK$770,Q$4,FALSE) -> T8 | R72: =VLOOKUP($H72,'Engage Ltg Fixture Table'!$B$8:$HK$770,R$4,FALSE) -> 48in 2nd Gen | S72: =VLOOKUP($H72,'Engage Ltg Fixture Table'!$B$8:$HK$770,S$4,FALSE) -> 2 | T72: =VLOOKUP($H72,'Engage Ltg Fixture Table'!$B$8:$HK$770,T$4,FALSE) -> F32T8-PREM | U72: =VLOOKUP($H72,'Engage Ltg Fixture Table'!$B$8:$HK$770,U$4,FALSE) -> Electronic | V72: =VLOOKUP($H72,'Engage Ltg Fixture Table'!$B$8:$HK$770,V$4,FALSE) -> 1 | W72: =VLOOKUP($H72,'Engage Ltg Fixture Table'!$B$8:$HK$770,W$4,FALSE) -> 0.079 | X72: =VLOOKUP($F72,'Engage Ltg Fixture Table'!$B$8:$HK$770,X$4,FALSE) -> Linear Fluorescent | Y72: =VLOOKUP($F72,'Engage Ltg Fixture Table'!$B$8:$HK$770,Y$4,FALSE) -> F44EE | Z72: =VLOOKUP($F72,'Engage Ltg Fixture Table'!$B$8:$HK$770,Z$4,FALSE) -> T12 | AA72: =VLOOKUP($F72,'Engage Ltg Fixture Table'!$B$8:$HK$770,AA$4,FALSE) -> 48 inch | AB72: =VLOOKUP($F72,'Engage Ltg Fixture Table'!$B$8:$HK$770,AB$4,FALSE) -> 4 | AC72: =VLOOKUP($F72,'Engage Ltg Fixture Table'!$B$8:$HK$770,AC$4,FALSE) -> F40T12/ES | AD72: =VLOOKUP($F72,'Engage Ltg Fixture Table'!$B$8:$HK$770,AD$4,FALSE) -> Mag-ES | AE72: =VLOOKUP($F72,'Engage Ltg Fixture Table'!$B$8:$HK$770,AE$4,FALSE) -> 2 | AF72: =VLOOKUP($F72,'Engage Ltg Fixture Table'!$B$8:$HK$770,AF$4,FALSE) -> 0.144 | AG72: =IF(G72="na","na",VLOOKUP($G72,'Engage Ltg Fixture Table'!$B$8:$HK$770,AG$4,FALSE)) -> Linear Fluorescent | AH72: =IF(G72="na","na",VLOOKUP($G72,'Engage Ltg Fixture Table'!$B$8:$HK$770,AH$4,FALSE)) -> F43LL (G1) | AI72: =IF(G72="na","na",VLOOKUP($G72,'Engage Ltg Fixture Table'!$B$8:$HK$770,AI$4,FALSE)) -> T8 | AJ72: =IF(G72="na","na",VLOOKUP($G72,'Engage Ltg Fixture Table'!$B$8:$HK$770,AJ$4,FALSE)) -> 48in 1st Gen | AK72: =IF(G72="na","na",VLOOKUP($G72,'Engage Ltg Fixture Table'!$B$8:$HK$770,AK$4,FALSE)) -> 3 | AL72: =IF(G72="na","na",VLOOKUP($G72,'Engage Ltg Fixture Table'!$B$8:$HK$770,AL$4,FALSE)) -> F32T8-STD | AM72: =IF(G72="na","na",VLOOKUP($G72,'Engage Ltg Fixture Table'!$B$8:$HK$770,AM$4,FALSE)) -> Electronic | AN72: =IF(G72="na","na",VLOOKUP($G72,'Engage Ltg Fixture Table'!$B$8:$HK$770,AN$4,FALSE)) -> 1 | AO72: =IF(G72="na","na",VLOOKUP($G72,'Engage Ltg Fixture Table'!$B$8:$HK$770,AO$4,FALSE)) -> 0.093 | AP72: added from DEER2008.3.02 measure list | AQ72: ="ID: "&TEXT(B72,"000")&"; "&VLOOKUP($F72,'Engage Ltg Fixture Table'!$B$8:$HK$770,7,FALSE)&" ==> "&VLOOKUP($H72,'Engage Ltg Fixture Table'!$B$8:$HK$770,7,FALSE) -> ID: 061; FL, (4) 48in, ES lamp, ES Mag, W/fixt=144 ==> FL, (2) 48in, T8 lamp, IS EB, W/fixt=79 | AS72: 10082-10318
B73: 62 | C73: Com-ILtg-PrimLF-LF-ca10082-cd10270-ms10329 | D73: Linear Fluorescent | E73: Linear Fluorescent (Primary Schedule) | F73: 10082 | G73: 10270 | H73: 10329 | I73: No | J73: No | K73: Yes | L73: Yes | M73: 42 | N73: 16 | O73: =VLOOKUP($H73,'Engage Ltg Fixture Table'!$B$8:$HK$770,O$4,FALSE) -> Linear Fluorescent | P73: =VLOOKUP($H73,'Engage Ltg Fixture Table'!$B$8:$HK$770,P$4,FALSE) -> F44ILL-R (G2) | Q73: =VLOOKUP($H73,'Engage Ltg Fixture Table'!$B$8:$HK$770,Q$4,FALSE) -> T8 | R73: =VLOOKUP($H73,'Engage Ltg Fixture Table'!$B$8:$HK$770,R$4,FALSE) -> 48in 2nd Gen | S73: =VLOOKUP($H73,'Engage Ltg Fixture Table'!$B$8:$HK$770,S$4,FALSE) -> 4 | T73: =VLOOKUP($H73,'Engage Ltg Fixture Table'!$B$8:$HK$770,T$4,FALSE) -> F32T8-PREM | U73: =VLOOKUP($H73,'Engage Ltg Fixture Table'!$B$8:$HK$770,U$4,FALSE) -> Electronic | V73: =VLOOKUP($H73,'Engage Ltg Fixture Table'!$B$8:$HK$770,V$4,FALSE) -> 1 | W73: =VLOOKUP($H73,'Engage Ltg Fixture Table'!$B$8:$HK$770,W$4,FALSE) -> 0.102 | X73: =VLOOKUP($F73,'Engage Ltg Fixture Table'!$B$8:$HK$770,X$4,FALSE) -> Linear Fluorescent | Y73: =VLOOKUP($F73,'Engage Ltg Fixture Table'!$B$8:$HK$770,Y$4,FALSE) -> F44EE | Z73: =VLOOKUP($F73,'Engage Ltg Fixture Table'!$B$8:$HK$770,Z$4,FALSE) -> T12 | AA73: =VLOOKUP($F73,'Engage Ltg Fixture Table'!$B$8:$HK$770,AA$4,FALSE) -> 48 inch | AB73: =VLOOKUP($F73,'Engage Ltg Fixture Table'!$B$8:$HK$770,AB$4,FALSE) -> 4 | AC73: =VLOOKUP($F73,'Engage Ltg Fixture Table'!$B$8:$HK$770,AC$4,FALSE) -> F40T12/ES | AD73: =VLOOKUP($F73,'Engage Ltg Fixture Table'!$B$8:$HK$770,AD$4,FALSE) -> Mag-ES | AE73: =VLOOKUP($F73,'Engage Ltg Fixture Table'!$B$8:$HK$770,AE$4,FALSE) -> 2 | AF73: =VLOOKUP($F73,'Engage Ltg Fixture Table'!$B$8:$HK$770,AF$4,FALSE) -> 0.144 | AG73: =IF(G73="na","na",VLOOKUP($G73,'Engage Ltg Fixture Table'!$B$8:$HK$770,AG$4,FALSE)) -> Linear Fluorescent | AH73: =IF(G73="na","na",VLOOKUP($G73,'Engage Ltg Fixture Table'!$B$8:$HK$770,AH$4,FALSE)) -> F44LL (G1) | AI73: =IF(G73="na","na",VLOOKUP($G73,'Engage Ltg Fixture Table'!$B$8:$HK$770,AI$4,FALSE)) -> T8 | AJ73: =IF(G73="na","na",VLOOKUP($G73,'Engage Ltg Fixture Table'!$B$8:$HK$770,AJ$4,FALSE)) -> 48in 1st Gen | AK73: =IF(G73="na","na",VLOOKUP($G73,'Engage Ltg Fixture Table'!$B$8:$HK$770,AK$4,FALSE)) -> 4 | AL73: =IF(G73="na","na",VLOOKUP($G73,'Engage Ltg Fixture Table'!$B$8:$HK$770,AL$4,FALSE)) -> F32T8-STD | AM73: =IF(G73="na","na",VLOOKUP($G73,'Engage Ltg Fixture Table'!$B$8:$HK$770,AM$4,FALSE)) -> Electronic | AN73: =IF(G73="na","na",VLOOKUP($G73,'Engage Ltg Fixture Table'!$B$8:$HK$770,AN$4,FALSE)) -> 1 | AO73: =IF(G73="na","na",VLOOKUP($G73,'Engage Ltg Fixture Table'!$B$8:$HK$770,AO$4,FALSE)) -> 0.118 | AP73: added from DEER2008.3.02 measure list | AQ73: ="ID: "&TEXT(B73,"000")&"; "&VLOOKUP($F73,'Engage Ltg Fixture Table'!$B$8:$HK$770,7,FALSE)&" ==> "&VLOOKUP($H73,'Engage Ltg Fixture Table'!$B$8:$HK$770,7,FALSE) -> ID: 062; FL, (4) 48in, ES lamp, ES Mag, W/fixt=144 ==> FL, (4) 48in, T8 lamp, IS EB, W/fixt=102 | AS73: 10082-10329
B74: 63 | C74: Com-ILtg-PrimLF-LF-ca10082-cd10318-ms10318 | D74: Linear Fluorescent | E74: Linear Fluorescent (Primary Schedule) | F74: 10082 | G74: 10318 | H74: 10318 | I74: Yes | J74: Yes | K74: No | L74: No | M74: 65 | N74: 0 | O74: =VLOOKUP($H74,'Engage Ltg Fixture Table'!$B$8:$HK$770,O$4,FALSE) -> Linear Fluorescent | P74: =VLOOKUP($H74,'Engage Ltg Fixture Table'!$B$8:$HK$770,P$4,FALSE) -> F42ILL-V (G2) | Q74: =VLOOKUP($H74,'Engage Ltg Fixture Table'!$B$8:$HK$770,Q$4,FALSE) -> T8 | R74: =VLOOKUP($H74,'Engage Ltg Fixture Table'!$B$8:$HK$770,R$4,FALSE) -> 48in 2nd Gen | S74: =VLOOKUP($H74,'Engage Ltg Fixture Table'!$B$8:$HK$770,S$4,FALSE) -> 2 | T74: =VLOOKUP($H74,'Engage Ltg Fixture Table'!$B$8:$HK$770,T$4,FALSE) -> F32T8-PREM | U74: =VLOOKUP($H74,'Engage Ltg Fixture Table'!$B$8:$HK$770,U$4,FALSE) -> Electronic | V74: =VLOOKUP($H74,'Engage Ltg Fixture Table'!$B$8:$HK$770,V$4,FALSE) -> 1 | W74: =VLOOKUP($H74,'Engage Ltg Fixture Table'!$B$8:$HK$770,W$4,FALSE) -> 0.079 | X74: =VLOOKUP($F74,'Engage Ltg Fixture Table'!$B$8:$HK$770,X$4,FALSE) -> Linear Fluorescent | Y74: =VLOOKUP($F74,'Engage Ltg Fixture Table'!$B$8:$HK$770,Y$4,FALSE) -> F44EE | Z74: =VLOOKUP($F74,'Engage Ltg Fixture Table'!$B$8:$HK$770,Z$4,FALSE) -> T12 | AA74: =VLOOKUP($F74,'Engage Ltg Fixture Table'!$B$8:$HK$770,AA$4,FALSE) -> 48 inch | AB74: =VLOOKUP($F74,'Engage Ltg Fixture Table'!$B$8:$HK$770,AB$4,FALSE) -> 4 | AC74: =VLOOKUP($F74,'Engage Ltg Fixture Table'!$B$8:$HK$770,AC$4,FALSE) -> F40T12/ES | AD74: =VLOOKUP($F74,'Engage Ltg Fixture Table'!$B$8:$HK$770,AD$4,FALSE) -> Mag-ES | AE74: =VLOOKUP($F74,'Engage Ltg Fixture Table'!$B$8:$HK$770,AE$4,FALSE) -> 2 | AF74: =VLOOKUP($F74,'Engage Ltg Fixture Table'!$B$8:$HK$770,AF$4,FALSE) -> 0.144 | AG74: =IF(G74="na","na",VLOOKUP($G74,'Engage Ltg Fixture Table'!$B$8:$HK$770,AG$4,FALSE)) -> Linear Fluorescent | AH74: =IF(G74="na","na",VLOOKUP($G74,'Engage Ltg Fixture Table'!$B$8:$HK$770,AH$4,FALSE)) -> F42ILL-V (G2) | AI74: =IF(G74="na","na",VLOOKUP($G74,'Engage Ltg Fixture Table'!$B$8:$HK$770,AI$4,FALSE)) -> T8 | AJ74: =IF(G74="na","na",VLOOKUP($G74,'Engage Ltg Fixture Table'!$B$8:$HK$770,AJ$4,FALSE)) -> 48in 2nd Gen | AK74: =IF(G74="na","na",VLOOKUP($G74,'Engage Ltg Fixture Table'!$B$8:$HK$770,AK$4,FALSE)) -> 2 | AL74: =IF(G74="na","na",VLOOKUP($G74,'Engage Ltg Fixture Table'!$B$8:$HK$770,AL$4,FALSE)) -> F32T8-PREM | AM74: =IF(G74="na","na",VLOOKUP($G74,'Engage Ltg Fixture Table'!$B$8:$HK$770,AM$4,FALSE)) -> Electronic | AN74: =IF(G74="na","na",VLOOKUP($G74,'Engage Ltg Fixture Table'!$B$8:$HK$770,AN$4,FALSE)) -> 1 | AO74: =IF(G74="na","na",VLOOKUP($G74,'Engage Ltg Fixture Table'!$B$8:$HK$770,AO$4,FALSE)) -> 0.079 | AP74: added from DEER2008.3.02 measure list | AQ74: ="ID: "&TEXT(B74,"000")&"; "&VLOOKUP($F74,'Engage Ltg Fixture Table'!$B$8:$HK$770,7,FALSE)&" ==> "&VLOOKUP($H74,'Engage Ltg Fixture Table'!$B$8:$HK$770,7,FALSE) -> ID: 063; FL, (4) 48in, ES lamp, ES Mag, W/fixt=144 ==> FL, (2) 48in, T8 lamp, IS EB, W/fixt=79 | AS74: 10082-10318
B75: 64 | C75: Com-ILtg-PrimLF-LF-ca10082-cd10329-ms10329 | D75: Linear Fluorescent | E75: Linear Fluorescent (Primary Schedule) | F75: 10082 | G75: 10329 | H75: 10329 | I75: Yes | J75: Yes | K75: No | L75: No | M75: 42 | N75: 0 | O75: =VLOOKUP($H75,'Engage Ltg Fixture Table'!$B$8:$HK$770,O$4,FALSE) -> Linear Fluorescent | P75: =VLOOKUP($H75,'Engage Ltg Fixture Table'!$B$8:$HK$770,P$4,FALSE) -> F44ILL-R (G2) | Q75: =VLOOKUP($H75,'Engage Ltg Fixture Table'!$B$8:$HK$770,Q$4,FALSE) -> T8 | R75: =VLOOKUP($H75,'Engage Ltg Fixture Table'!$B$8:$HK$770,R$4,FALSE) -> 48in 2nd Gen | S75: =VLOOKUP($H75,'Engage Ltg Fixture Table'!$B$8:$HK$770,S$4,FALSE) -> 4 | T75: =VLOOKUP($H75,'Engage Ltg Fixture Table'!$B$8:$HK$770,T$4,FALSE) -> F32T8-PREM | U75: =VLOOKUP($H75,'Engage Ltg Fixture Table'!$B$8:$HK$770,U$4,FALSE) -> Electronic | V75: =VLOOKUP($H75,'Engage Ltg Fixture Table'!$B$8:$HK$770,V$4,FALSE) -> 1 | W75: =VLOOKUP($H75,'Engage Ltg Fixture Table'!$B$8:$HK$770,W$4,FALSE) -> 0.102 | X75: =VLOOKUP($F75,'Engage Ltg Fixture Table'!$B$8:$HK$770,X$4,FALSE) -> Linear Fluorescent | Y75: =VLOOKUP($F75,'Engage Ltg Fixture Table'!$B$8:$HK$770,Y$4,FALSE) -> F44EE | Z75: =VLOOKUP($F75,'Engage Ltg Fixture Table'!$B$8:$HK$770,Z$4,FALSE) -> T12 | AA75: =VLOOKUP($F75,'Engage Ltg Fixture Table'!$B$8:$HK$770,AA$4,FALSE) -> 48 inch | AB75: =VLOOKUP($F75,'Engage Ltg Fixture Table'!$B$8:$HK$770,AB$4,FALSE) -> 4 | AC75: =VLOOKUP($F75,'Engage Ltg Fixture Table'!$B$8:$HK$770,AC$4,FALSE) -> F40T12/ES | AD75: =VLOOKUP($F75,'Engage Ltg Fixture Table'!$B$8:$HK$770,AD$4,FALSE) -> Mag-ES | AE75: =VLOOKUP($F75,'Engage Ltg Fixture Table'!$B$8:$HK$770,AE$4,FALSE) -> 2 | AF75: =VLOOKUP($F75,'Engage Ltg Fixture Table'!$B$8:$HK$770,AF$4,FALSE) -> 0.144 | AG75: =IF(G75="na","na",VLOOKUP($G75,'Engage Ltg Fixture Table'!$B$8:$HK$770,AG$4,FALSE)) -> Linear Fluorescent | AH75: =IF(G75="na","na",VLOOKUP($G75,'Engage Ltg Fixture Table'!$B$8:$HK$770,AH$4,FALSE)) -> F44ILL-R (G2) | AI75: =IF(G75="na","na",VLOOKUP($G75,'Engage Ltg Fixture Table'!$B$8:$HK$770,AI$4,FALSE)) -> T8 | AJ75: =IF(G75="na","na",VLOOKUP($G75,'Engage Ltg Fixture Table'!$B$8:$HK$770,AJ$4,FALSE)) -> 48in 2nd Gen | AK75: =IF(G75="na","na",VLOOKUP($G75,'Engage Ltg Fixture Table'!$B$8:$HK$770,AK$4,FALSE)) -> 4 | AL75: =IF(G75="na","na",VLOOKUP($G75,'Engage Ltg Fixture Table'!$B$8:$HK$770,AL$4,FALSE)) -> F32T8-PREM | AM75: =IF(G75="na","na",VLOOKUP($G75,'Engage Ltg Fixture Table'!$B$8:$HK$770,AM$4,FALSE)) -> Electronic | AN75: =IF(G75="na","na",VLOOKUP($G75,'Engage Ltg Fixture Table'!$B$8:$HK$770,AN$4,FALSE)) -> 1 | AO75: =IF(G75="na","na",VLOOKUP($G75,'Engage Ltg Fixture Table'!$B$8:$HK$770,AO$4,FALSE)) -> 0.102 | AP75: added from DEER2008.3.02 measure list | AQ75: ="ID: "&TEXT(B75,"000")&"; "&VLOOKUP($F75,'Engage Ltg Fixture Table'!$B$8:$HK$770,7,FALSE)&" ==> "&VLOOKUP($H75,'Engage Ltg Fixture Table'!$B$8:$HK$770,7,FALSE) -> ID: 064; FL, (4) 48in, ES lamp, ES Mag, W/fixt=144 ==> FL, (4) 48in, T8 lamp, IS EB, W/fixt=102 | AS75: 10082-10329
B76: 65 | C76: Com-ILtg-PrimLF-LF-ca10084-cd10270-ms10329 | D76: Linear Fluorescent | E76: Linear Fluorescent (Primary Schedule) | F76: 10084 | G76: 10270 | H76: 10329 | I76: No | J76: No | K76: Yes | L76: Yes | M76: 58 | N76: 16 | O76: =VLOOKUP($H76,'Engage Ltg Fixture Table'!$B$8:$HK$770,O$4,FALSE) -> Linear Fluorescent | P76: =VLOOKUP($H76,'Engage Ltg Fixture Table'!$B$8:$HK$770,P$4,FALSE) -> F44ILL-R (G2) | Q76: =VLOOKUP($H76,'Engage Ltg Fixture Table'!$B$8:$HK$770,Q$4,FALSE) -> T8 | R76: =VLOOKUP($H76,'Engage Ltg Fixture Table'!$B$8:$HK$770,R$4,FALSE) -> 48in 2nd Gen | S76: =VLOOKUP($H76,'Engage Ltg Fixture Table'!$B$8:$HK$770,S$4,FALSE) -> 4 | T76: =VLOOKUP($H76,'Engage Ltg Fixture Table'!$B$8:$HK$770,T$4,FALSE) -> F32T8-PREM | U76: =VLOOKUP($H76,'Engage Ltg Fixture Table'!$B$8:$HK$770,U$4,FALSE) -> Electronic | V76: =VLOOKUP($H76,'Engage Ltg Fixture Table'!$B$8:$HK$770,V$4,FALSE) -> 1 | W76: =VLOOKUP($H76,'Engage Ltg Fixture Table'!$B$8:$HK$770,W$4,FALSE) -> 0.102 | X76: =VLOOKUP($F76,'Engage Ltg Fixture Table'!$B$8:$HK$770,X$4,FALSE) -> Linear Fluorescent | Y76: =VLOOKUP($F76,'Engage Ltg Fixture Table'!$B$8:$HK$770,Y$4,FALSE) -> F44SIH | Z76: =VLOOKUP($F76,'Engage Ltg Fixture Table'!$B$8:$HK$770,Z$4,FALSE) -> T12 | AA76: =VLOOKUP($F76,'Engage Ltg Fixture Table'!$B$8:$HK$770,AA$4,FALSE) -> 48 inch | AB76: =VLOOKUP($F76,'Engage Ltg Fixture Table'!$B$8:$HK$770,AB$4,FALSE) -> 4 | AC76: =VLOOKUP($F76,'Engage Ltg Fixture Table'!$B$8:$HK$770,AC$4,FALSE) -> F40T12 | AD76: =VLOOKUP($F76,'Engage Ltg Fixture Table'!$B$8:$HK$770,AD$4,FALSE) -> Mag-Hyb | AE76: =VLOOKUP($F76,'Engage Ltg Fixture Table'!$B$8:$HK$770,AE$4,FALSE) -> 2 | AF76: =VLOOKUP($F76,'Engage Ltg Fixture Table'!$B$8:$HK$770,AF$4,FALSE) -> 0.16 | AG76: =IF(G76="na","na",VLOOKUP($G76,'Engage Ltg Fixture Table'!$B$8:$HK$770,AG$4,FALSE)) -> Linear Fluorescent | AH76: =IF(G76="na","na",VLOOKUP($G76,'Engage Ltg Fixture Table'!$B$8:$HK$770,AH$4,FALSE)) -> F44LL (G1) | AI76: =IF(G76="na","na",VLOOKUP($G76,'Engage Ltg Fixture Table'!$B$8:$HK$770,AI$4,FALSE)) -> T8 | AJ76: =IF(G76="na","na",VLOOKUP($G76,'Engage Ltg Fixture Table'!$B$8:$HK$770,AJ$4,FALSE)) -> 48in 1st Gen | AK76: =IF(G76="na","na",VLOOKUP($G76,'Engage Ltg Fixture Table'!$B$8:$HK$770,AK$4,FALSE)) -> 4 | AL76: =IF(G76="na","na",VLOOKUP($G76,'Engage Ltg Fixture Table'!$B$8:$HK$770,AL$4,FALSE)) -> F32T8-STD | AM76: =IF(G76="na","na",VLOOKUP($G76,'Engage Ltg Fixture Table'!$B$8:$HK$770,AM$4,FALSE)) -> Electronic | AN76: =IF(G76="na","na",VLOOKUP($G76,'Engage Ltg Fixture Table'!$B$8:$HK$770,AN$4,FALSE)) -> 1 | AO76: =IF(G76="na","na",VLOOKUP($G76,'Engage Ltg Fixture Table'!$B$8:$HK$770,AO$4,FALSE)) -> 0.118 | AP76: added from DEER2008.3.02 measure list | AQ76: ="ID: "&TEXT(B76,"000")&"; "&VLOOKUP($F76,'Engage Ltg Fixture Table'!$B$8:$HK$770,7,FALSE)&" ==> "&VLOOKUP($H76,'Engage Ltg Fixture Table'!$B$8:$HK$770,7,FALSE) -> ID: 065; FL, (4) 48in, STD IS lamp, Hyb Mag, W/fixt=160 ==> FL, (4) 48in, T8 lamp, IS EB, W/fixt=102 | AS76: 10084-10329
B77: 66 | C77: Com-ILtg-PrimLF-LF-ca10084-cd10329-ms10329 | D77: Linear Fluorescent | E77: Linear Fluorescent (Primary Schedule) | F77: 10084 | G77: 10329 | H77: 10329 | I77: Yes | J77: Yes | K77: No | L77: No | M77: =(AF77-W77)*1000 -> 58 | N77: =IF(G77<>"na",(AO77-W77)*1000,"na") -> 0 | O77: =VLOOKUP($H77,'Engage Ltg Fixture Table'!$B$8:$HK$770,O$4,FALSE) -> Linear Fluorescent | P77: =VLOOKUP($H77,'Engage Ltg Fixture Table'!$B$8:$HK$770,P$4,FALSE) -> F44ILL-R (G2) | Q77: =VLOOKUP($H77,'Engage Ltg Fixture Table'!$B$8:$HK$770,Q$4,FALSE) -> T8 | R77: =VLOOKUP($H77,'Engage Ltg Fixture Table'!$B$8:$HK$770,R$4,FALSE) -> 48in 2nd Gen | S77: =VLOOKUP($H77,'Engage Ltg Fixture Table'!$B$8:$HK$770,S$4,FALSE) -> 4 | T77: =VLOOKUP($H77,'Engage Ltg Fixture Table'!$B$8:$HK$770,T$4,FALSE) -> F32T8-PREM | U77: =VLOOKUP($H77,'Engage Ltg Fixture Table'!$B$8:$HK$770,U$4,FALSE) -> Electronic | V77: =VLOOKUP($H77,'Engage Ltg Fixture Table'!$B$8:$HK$770,V$4,FALSE) -> 1 | W77: =VLOOKUP($H77,'Engage Ltg Fixture Table'!$B$8:$HK$770,W$4,FALSE) -> 0.102 | X77: =VLOOKUP($F77,'Engage Ltg Fixture Table'!$B$8:$HK$770,X$4,FALSE) -> Linear Fluorescent | Y77: =VLOOKUP($F77,'Engage Ltg Fixture Table'!$B$8:$HK$770,Y$4,FALSE) -> F44SIH | Z77: =VLOOKUP($F77,'Engage Ltg Fixture Table'!$B$8:$HK$770,Z$4,FALSE) -> T12 | AA77: =VLOOKUP($F77,'Engage Ltg Fixture Table'!$B$8:$HK$770,AA$4,FALSE) -> 48 inch | AB77: =VLOOKUP($F77,'Engage Ltg Fixture Table'!$B$8:$HK$770,AB$4,FALSE) -> 4 | AC77: =VLOOKUP($F77,'Engage Ltg Fixture Table'!$B$8:$HK$770,AC$4,FALSE) -> F40T12 | AD77: =VLOOKUP($F77,'Engage Ltg Fixture Table'!$B$8:$HK$770,AD$4,FALSE) -> Mag-Hyb | AE77: =VLOOKUP($F77,'Engage Ltg Fixture Table'!$B$8:$HK$770,AE$4,FALSE) -> 2 | AF77: =VLOOKUP($F77,'Engage Ltg Fixture Table'!$B$8:$HK$770,AF$4,FALSE) -> 0.16 | AG77: =IF(G77="na","na",VLOOKUP($G77,'Engage Ltg Fixture Table'!$B$8:$HK$770,AG$4,FALSE)) -> Linear Fluorescent | AH77: =IF(G77="na","na",VLOOKUP($G77,'Engage Ltg Fixture Table'!$B$8:$HK$770,AH$4,FALSE)) -> F44ILL-R (G2) | AI77: =IF(G77="na","na",VLOOKUP($G77,'Engage Ltg Fixture Table'!$B$8:$HK$770,AI$4,FALSE)) -> T8 | AJ77: =IF(G77="na","na",VLOOKUP($G77,'Engage Ltg Fixture Table'!$B$8:$HK$770,AJ$4,FALSE)) -> 48in 2nd Gen | AK77: =IF(G77="na","na",VLOOKUP($G77,'Engage Ltg Fixture Table'!$B$8:$HK$770,AK$4,FALSE)) -> 4 | AL77: =IF(G77="na","na",VLOOKUP($G77,'Engage Ltg Fixture Table'!$B$8:$HK$770,AL$4,FALSE)) -> F32T8-PREM | AM77: =IF(G77="na","na",VLOOKUP($G77,'Engage Ltg Fixture Table'!$B$8:$HK$770,AM$4,FALSE)) -> Electronic | AN77: =IF(G77="na","na",VLOOKUP($G77,'Engage Ltg Fixture Table'!$B$8:$HK$770,AN$4,FALSE)) -> 1 | AO77: =IF(G77="na","na",VLOOKUP($G77,'Engage Ltg Fixture Table'!$B$8:$HK$770,AO$4,FALSE)) -> 0.102 | AP77: added from DEER2008.3.02 measure list | AQ77: ="ID: "&TEXT(B77,"000")&"; "&VLOOKUP($F77,'Engage Ltg Fixture Table'!$B$8:$HK$770,7,FALSE)&" ==> "&VLOOKUP($H77,'Engage Ltg Fixture Table'!$B$8:$HK$770,7,FALSE) -> ID: 066; FL, (4) 48in, STD IS lamp, Hyb Mag, W/fixt=160 ==> FL, (4) 48in, T8 lamp, IS EB, W/fixt=102 | AS77: =F77&"-"&H77 -> 10084-10329
B78: =+B77+1 -> 67 | C78: Com-ILtg-PrimLF-LF-ca10086-cd10270-ms10329 | D78: Linear Fluorescent | E78: Linear Fluorescent (Primary Schedule) | F78: 10086 | G78: 10270 | H78: 10329 | I78: No | J78: No | K78: Yes | L78: Yes | M78: 66 | N78: 16 | O78: =VLOOKUP($H78,'Engage Ltg Fixture Table'!$B$8:$HK$770,O$4,FALSE) -> Linear Fluorescent | P78: =VLOOKUP($H78,'Engage Ltg Fixture Table'!$B$8:$HK$770,P$4,FALSE) -> F44ILL-R (G2) | Q78: =VLOOKUP($H78,'Engage Ltg Fixture Table'!$B$8:$HK$770,Q$4,FALSE) -> T8 | R78: =VLOOKUP($H78,'Engage Ltg Fixture Table'!$B$8:$HK$770,R$4,FALSE) -> 48in 2nd Gen | S78: =VLOOKUP($H78,'Engage Ltg Fixture Table'!$B$8:$HK$770,S$4,FALSE) -> 4 | T78: =VLOOKUP($H78,'Engage Ltg Fixture Table'!$B$8:$HK$770,T$4,FALSE) -> F32T8-PREM | U78: =VLOOKUP($H78,'Engage Ltg Fixture Table'!$B$8:$HK$770,U$4,FALSE) -> Electronic | V78: =VLOOKUP($H78,'Engage Ltg Fixture Table'!$B$8:$HK$770,V$4,FALSE) -> 1 | W78: =VLOOKUP($H78,'Engage Ltg Fixture Table'!$B$8:$HK$770,W$4,FALSE) -> 0.102 | X78: =VLOOKUP($F78,'Engage Ltg Fixture Table'!$B$8:$HK$770,X$4,FALSE) -> Linear Fluorescent | Y78: =VLOOKUP($F78,'Engage Ltg Fixture Table'!$B$8:$HK$770,Y$4,FALSE) -> F44SIS | Z78: =VLOOKUP($F78,'Engage Ltg Fixture Table'!$B$8:$HK$770,Z$4,FALSE) -> T12 | AA78: =VLOOKUP($F78,'Engage Ltg Fixture Table'!$B$8:$HK$770,AA$4,FALSE) -> 48 inch | AB78: =VLOOKUP($F78,'Engage Ltg Fixture Table'!$B$8:$HK$770,AB$4,FALSE) -> 4 | AC78: =VLOOKUP($F78,'Engage Ltg Fixture Table'!$B$8:$HK$770,AC$4,FALSE) -> F40T12 | AD78: =VLOOKUP($F78,'Engage Ltg Fixture Table'!$B$8:$HK$770,AD$4,FALSE) -> Mag-STD | AE78: =VLOOKUP($F78,'Engage Ltg Fixture Table'!$B$8:$HK$770,AE$4,FALSE) -> 1 | AF78: =VLOOKUP($F78,'Engage Ltg Fixture Table'!$B$8:$HK$770,AF$4,FALSE) -> 0.168 | AG78: =IF(G78="na","na",VLOOKUP($G78,'Engage Ltg Fixture Table'!$B$8:$HK$770,AG$4,FALSE)) -> Linear Fluorescent | AH78: =IF(G78="na","na",VLOOKUP($G78,'Engage Ltg Fixture Table'!$B$8:$HK$770,AH$4,FALSE)) -> F44LL (G1) | AI78: =IF(G78="na","na",VLOOKUP($G78,'Engage Ltg Fixture Table'!$B$8:$HK$770,AI$4,FALSE)) -> T8 | AJ78: =IF(G78="na","na",VLOOKUP($G78,'Engage Ltg Fixture Table'!$B$8:$HK$770,AJ$4,FALSE)) -> 48in 1st Gen | AK78: =IF(G78="na","na",VLOOKUP($G78,'Engage Ltg Fixture Table'!$B$8:$HK$770,AK$4,FALSE)) -> 4 | AL78: =IF(G78="na","na",VLOOKUP($G78,'Engage Ltg Fixture Table'!$B$8:$HK$770,AL$4,FALSE)) -> F32T8-STD | AM78: =IF(G78="na","na",VLOOKUP($G78,'Engage Ltg Fixture Table'!$B$8:$HK$770,AM$4,FALSE)) -> Electronic | AN78: =IF(G78="na","na",VLOOKUP($G78,'Engage Ltg Fixture Table'!$B$8:$HK$770,AN$4,FALSE)) -> 1 | AO78: =IF(G78="na","na",VLOOKUP($G78,'Engage Ltg Fixture Table'!$B$8:$HK$770,AO$4,FALSE)) -> 0.118 | AP78: added from DEER2008.3.02 measure list | AQ78: ="ID: "&TEXT(B78,"000")&"; "&VLOOKUP($F78,'Engage Ltg Fixture Table'!$B$8:$HK$770,7,FALSE)&" ==> "&VLOOKUP($H78,'Engage Ltg Fixture Table'!$B$8:$HK$770,7,FALSE) -> ID: 067; FL, (4) 48in, STD IS lamp, Mag, W/fixt=168 ==> FL, (4) 48in, T8 lamp, IS EB, W/fixt=102 | AS78: 10086-10329
B79: 68 | C79: Com-ILtg-PrimLF-LF-ca10086-cd10329-ms10329 | D79: Linear Fluorescent | E79: Linear Fluorescent (Primary Schedule) | F79: 10086 | G79: 10329 | H79: 10329 | I79: Yes | J79: Yes | K79: No | L79: No | M79: 66 | N79: 0 | O79: =VLOOKUP($H79,'Engage Ltg Fixture Table'!$B$8:$HK$770,O$4,FALSE) -> Linear Fluorescent | P79: =VLOOKUP($H79,'Engage Ltg Fixture Table'!$B$8:$HK$770,P$4,FALSE) -> F44ILL-R (G2) | Q79: =VLOOKUP($H79,'Engage Ltg Fixture Table'!$B$8:$HK$770,Q$4,FALSE) -> T8 | R79: =VLOOKUP($H79,'Engage Ltg Fixture Table'!$B$8:$HK$770,R$4,FALSE) -> 48in 2nd Gen | S79: =VLOOKUP($H79,'Engage Ltg Fixture Table'!$B$8:$HK$770,S$4,FALSE) -> 4 | T79: =VLOOKUP($H79,'Engage Ltg Fixture Table'!$B$8:$HK$770,T$4,FALSE) -> F32T8-PREM | U79: =VLOOKUP($H79,'Engage Ltg Fixture Table'!$B$8:$HK$770,U$4,FALSE) -> Electronic | V79: =VLOOKUP($H79,'Engage Ltg Fixture Table'!$B$8:$HK$770,V$4,FALSE) -> 1 | W79: =VLOOKUP($H79,'Engage Ltg Fixture Table'!$B$8:$HK$770,W$4,FALSE) -> 0.102 | X79: =VLOOKUP($F79,'Engage Ltg Fixture Table'!$B$8:$HK$770,X$4,FALSE) -> Linear Fluorescent | Y79: =VLOOKUP($F79,'Engage Ltg Fixture Table'!$B$8:$HK$770,Y$4,FALSE) -> F44SIS | Z79: =VLOOKUP($F79,'Engage Ltg Fixture Table'!$B$8:$HK$770,Z$4,FALSE) -> T12 | AA79: =VLOOKUP($F79,'Engage Ltg Fixture Table'!$B$8:$HK$770,AA$4,FALSE) -> 48 inch | AB79: =VLOOKUP($F79,'Engage Ltg Fixture Table'!$B$8:$HK$770,AB$4,FALSE) -> 4 | AC79: =VLOOKUP($F79,'Engage Ltg Fixture Table'!$B$8:$HK$770,AC$4,FALSE) -> F40T12 | AD79: =VLOOKUP($F79,'Engage Ltg Fixture Table'!$B$8:$HK$770,AD$4,FALSE) -> Mag-STD | AE79: =VLOOKUP($F79,'Engage Ltg Fixture Table'!$B$8:$HK$770,AE$4,FALSE) -> 1 | AF79: =VLOOKUP($F79,'Engage Ltg Fixture Table'!$B$8:$HK$770,AF$4,FALSE) -> 0.168 | AG79: =IF(G79="na","na",VLOOKUP($G79,'Engage Ltg Fixture Table'!$B$8:$HK$770,AG$4,FALSE)) -> Linear Fluorescent | AH79: =IF(G79="na","na",VLOOKUP($G79,'Engage Ltg Fixture Table'!$B$8:$HK$770,AH$4,FALSE)) -> F44ILL-R (G2) | AI79: =IF(G79="na","na",VLOOKUP($G79,'Engage Ltg Fixture Table'!$B$8:$HK$770,AI$4,FALSE)) -> T8 | AJ79: =IF(G79="na","na",VLOOKUP($G79,'Engage Ltg Fixture Table'!$B$8:$HK$770,AJ$4,FALSE)) -> 48in 2nd Gen | AK79: =IF(G79="na","na",VLOOKUP($G79,'Engage Ltg Fixture Table'!$B$8:$HK$770,AK$4,FALSE)) -> 4 | AL79: =IF(G79="na","na",VLOOKUP($G79,'Engage Ltg Fixture Table'!$B$8:$HK$770,AL$4,FALSE)) -> F32T8-PREM | AM79: =IF(G79="na","na",VLOOKUP($G79,'Engage Ltg Fixture Table'!$B$8:$HK$770,AM$4,FALSE)) -> Electronic | AN79: =IF(G79="na","na",VLOOKUP($G79,'Engage Ltg Fixture Table'!$B$8:$HK$770,AN$4,FALSE)) -> 1 | AO79: =IF(G79="na","na",VLOOKUP($G79,'Engage Ltg Fixture Table'!$B$8:$HK$770,AO$4,FALSE)) -> 0.102 | AP79: added from DEER2008.3.02 measure list | AQ79: ="ID: "&TEXT(B79,"000")&"; "&VLOOKUP($F79,'Engage Ltg Fixture Table'!$B$8:$HK$770,7,FALSE)&" ==> "&VLOOKUP($H79,'Engage Ltg Fixture Table'!$B$8:$HK$770,7,FALSE) -> ID: 068; FL, (4) 48in, STD IS lamp, Mag, W/fixt=168 ==> FL, (4) 48in, T8 lamp, IS EB, W/fixt=102 | AS79: 10086-10329
B80: 69 | C80: Com-ILtg-PrimLF-LF-ca10124-cd10246-ms10311 | D80: Linear Fluorescent | E80: Linear Fluorescent (Primary Schedule) | F80: 10124 | G80: 10246 | H80: 10311 | I80: No | J80: No | K80: No | L80: No | M80: 8 | N80: 0 | O80: =VLOOKUP($H80,'Engage Ltg Fixture Table'!$B$8:$HK$770,O$4,FALSE) -> Linear Fluorescent | P80: =VLOOKUP($H80,'Engage Ltg Fixture Table'!$B$8:$HK$770,P$4,FALSE) -> F42LL-R (G2) | Q80: =VLOOKUP($H80,'Engage Ltg Fixture Table'!$B$8:$HK$770,Q$4,FALSE) -> T8 | R80: =VLOOKUP($H80,'Engage Ltg Fixture Table'!$B$8:$HK$770,R$4,FALSE) -> 48in 2nd Gen | S80: =VLOOKUP($H80,'Engage Ltg Fixture Table'!$B$8:$HK$770,S$4,FALSE) -> 2 | T80: =VLOOKUP($H80,'Engage Ltg Fixture Table'!$B$8:$HK$770,T$4,FALSE) -> F32T8-PREM | U80: =VLOOKUP($H80,'Engage Ltg Fixture Table'!$B$8:$HK$770,U$4,FALSE) -> Electronic | V80: =VLOOKUP($H80,'Engage Ltg Fixture Table'!$B$8:$HK$770,V$4,FALSE) -> 1 | W80: =VLOOKUP($H80,'Engage Ltg Fixture Table'!$B$8:$HK$770,W$4,FALSE) -> 0.054 | X80: =VLOOKUP($F80,'Engage Ltg Fixture Table'!$B$8:$HK$770,X$4,FALSE) -> Linear Fluorescent | Y80: =VLOOKUP($F80,'Engage Ltg Fixture Table'!$B$8:$HK$770,Y$4,FALSE) -> F81EE/T2 | Z80: =VLOOKUP($F80,'Engage Ltg Fixture Table'!$B$8:$HK$770,Z$4,FALSE) -> T12 | AA80: =VLOOKUP($F80,'Engage Ltg Fixture Table'!$B$8:$HK$770,AA$4,FALSE) -> 96 inch | AB80: =VLOOKUP($F80,'Engage Ltg Fixture Table'!$B$8:$HK$770,AB$4,FALSE) -> 1 | AC80: =VLOOKUP($F80,'Engage Ltg Fixture Table'!$B$8:$HK$770,AC$4,FALSE) -> F96T12/ES | AD80: =VLOOKUP($F80,'Engage Ltg Fixture Table'!$B$8:$HK$770,AD$4,FALSE) -> Mag-ES | AE80: =VLOOKUP($F80,'Engage Ltg Fixture Table'!$B$8:$HK$770,AE$4,FALSE) -> 0.5 | AF80: =VLOOKUP($F80,'Engage Ltg Fixture Table'!$B$8:$HK$770,AF$4,FALSE) -> 0.062 | AG80: =IF(G80="na","na",VLOOKUP($G80,'Engage Ltg Fixture Table'!$B$8:$HK$770,AG$4,FALSE)) -> Linear Fluorescent | AH80: =IF(G80="na","na",VLOOKUP($G80,'Engage Ltg Fixture Table'!$B$8:$HK$770,AH$4,FALSE)) -> F42LL-R (G1) | AI80: =IF(G80="na","na",VLOOKUP($G80,'Engage Ltg Fixture Table'!$B$8:$HK$770,AI$4,FALSE)) -> T8 | AJ80: =IF(G80="na","na",VLOOKUP($G80,'Engage Ltg Fixture Table'!$B$8:$HK$770,AJ$4,FALSE)) -> 48in 1st Gen | AK80: =IF(G80="na","na",VLOOKUP($G80,'Engage Ltg Fixture Table'!$B$8:$HK$770,AK$4,FALSE)) -> 2 | AL80: =IF(G80="na","na",VLOOKUP($G80,'Engage Ltg Fixture Table'!$B$8:$HK$770,AL$4,FALSE)) -> F32T8-STD | AM80: =IF(G80="na","na",VLOOKUP($G80,'Engage Ltg Fixture Table'!$B$8:$HK$770,AM$4,FALSE)) -> Electronic | AN80: =IF(G80="na","na",VLOOKUP($G80,'Engage Ltg Fixture Table'!$B$8:$HK$770,AN$4,FALSE)) -> 1 | AO80: =IF(G80="na","na",VLOOKUP($G80,'Engage Ltg Fixture Table'!$B$8:$HK$770,AO$4,FALSE)) -> 0.054 | AP80: added from DEER2008.3.02 measure list | AQ80: ="ID: "&TEXT(B80,"000")&"; "&VLOOKUP($F80,'Engage Ltg Fixture Table'!$B$8:$HK$770,7,FALSE)&" ==> "&VLOOKUP($H80,'Engage Ltg Fixture Table'!$B$8:$HK$770,7,FALSE) -> ID: 069; FL, (1) 96in, ES lamp, W/fixt=62 ==> FL, (2) 48in, T8 lamp, RS EB, W/fixt=54 | AS80: 10124-10311
B81: 70 | C81: Com-ILtg-PrimLF-LF-ca10124-cd10311-ms10311 | D81: Linear Fluorescent | E81: Linear Fluorescent (Primary Schedule) | F81: 10124 | G81: 10311 | H81: 10311 | I81: Yes | J81: Yes | K81: No | L81: No | M81: 8 | N81: 0 | O81: =VLOOKUP($H81,'Engage Ltg Fixture Table'!$B$8:$HK$770,O$4,FALSE) -> Linear Fluorescent | P81: =VLOOKUP($H81,'Engage Ltg Fixture Table'!$B$8:$HK$770,P$4,FALSE) -> F42LL-R (G2) | Q81: =VLOOKUP($H81,'Engage Ltg Fixture Table'!$B$8:$HK$770,Q$4,FALSE) -> T8 | R81: =VLOOKUP($H81,'Engage Ltg Fixture Table'!$B$8:$HK$770,R$4,FALSE) -> 48in 2nd Gen | S81: =VLOOKUP($H81,'Engage Ltg Fixture Table'!$B$8:$HK$770,S$4,FALSE) -> 2 | T81: =VLOOKUP($H81,'Engage Ltg Fixture Table'!$B$8:$HK$770,T$4,FALSE) -> F32T8-PREM | U81: =VLOOKUP($H81,'Engage Ltg Fixture Table'!$B$8:$HK$770,U$4,FALSE) -> Electronic | V81: =VLOOKUP($H81,'Engage Ltg Fixture Table'!$B$8:$HK$770,V$4,FALSE) -> 1 | W81: =VLOOKUP($H81,'Engage Ltg Fixture Table'!$B$8:$HK$770,W$4,FALSE) -> 0.054 | X81: =VLOOKUP($F81,'Engage Ltg Fixture Table'!$B$8:$HK$770,X$4,FALSE) -> Linear Fluorescent | Y81: =VLOOKUP($F81,'Engage Ltg Fixture Table'!$B$8:$HK$770,Y$4,FALSE) -> F81EE/T2 | Z81: =VLOOKUP($F81,'Engage Ltg Fixture Table'!$B$8:$HK$770,Z$4,FALSE) -> T12 | AA81: =VLOOKUP($F81,'Engage Ltg Fixture Table'!$B$8:$HK$770,AA$4,FALSE) -> 96 inch | AB81: =VLOOKUP($F81,'Engage Ltg Fixture Table'!$B$8:$HK$770,AB$4,FALSE) -> 1 | AC81: =VLOOKUP($F81,'Engage Ltg Fixture Table'!$B$8:$HK$770,AC$4,FALSE) -> F96T12/ES | AD81: =VLOOKUP($F81,'Engage Ltg Fixture Table'!$B$8:$HK$770,AD$4,FALSE) -> Mag-ES | AE81: =VLOOKUP($F81,'Engage Ltg Fixture Table'!$B$8:$HK$770,AE$4,FALSE) -> 0.5 | AF81: =VLOOKUP($F81,'Engage Ltg Fixture Table'!$B$8:$HK$770,AF$4,FALSE) -> 0.062 | AG81: =IF(G81="na","na",VLOOKUP($G81,'Engage Ltg Fixture Table'!$B$8:$HK$770,AG$4,FALSE)) -> Linear Fluorescent | AH81: =IF(G81="na","na",VLOOKUP($G81,'Engage Ltg Fixture Table'!$B$8:$HK$770,AH$4,FALSE)) -> F42LL-R (G2) | AI81: =IF(G81="na","na",VLOOKUP($G81,'Engage Ltg Fixture Table'!$B$8:$HK$770,AI$4,FALSE)) -> T8 | AJ81: =IF(G81="na","na",VLOOKUP($G81,'Engage Ltg Fixture Table'!$B$8:$HK$770,AJ$4,FALSE)) -> 48in 2nd Gen | AK81: =IF(G81="na","na",VLOOKUP($G81,'Engage Ltg Fixture Table'!$B$8:$HK$770,AK$4,FALSE)) -> 2 | AL81: =IF(G81="na","na",VLOOKUP($G81,'Engage Ltg Fixture Table'!$B$8:$HK$770,AL$4,FALSE)) -> F32T8-PREM | AM81: =IF(G81="na","na",VLOOKUP($G81,'Engage Ltg Fixture Table'!$B$8:$HK$770,AM$4,FALSE)) -> Electronic | AN81: =IF(G81="na","na",VLOOKUP($G81,'Engage Ltg Fixture Table'!$B$8:$HK$770,AN$4,FALSE)) -> 1 | AO81: =IF(G81="na","na",VLOOKUP($G81,'Engage Ltg Fixture Table'!$B$8:$HK$770,AO$4,FALSE)) -> 0.054 | AP81: added from DEER2008.3.02 measure list | AQ81: ="ID: "&TEXT(B81,"000")&"; "&VLOOKUP($F81,'Engage Ltg Fixture Table'!$B$8:$HK$770,7,FALSE)&" ==> "&VLOOKUP($H81,'Engage Ltg Fixture Table'!$B$8:$HK$770,7,FALSE) -> ID: 070; FL, (1) 96in, ES lamp, W/fixt=62 ==> FL, (2) 48in, T8 lamp, RS EB, W/fixt=54 | AS81: 10124-10311
B82: 71 | C82: Com-ILtg-PrimLF-LF-ca10134-cd10270-ms10329 | D82: Linear Fluorescent | E82: Linear Fluorescent (Primary Schedule) | F82: 10134 | G82: 10270 | H82: 10329 | I82: No | J82: No | K82: Yes | L82: Yes | M82: 21 | N82: 16 | O82: =VLOOKUP($H82,'Engage Ltg Fixture Table'!$B$8:$HK$770,O$4,FALSE) -> Linear Fluorescent | P82: =VLOOKUP($H82,'Engage Ltg Fixture Table'!$B$8:$HK$770,P$4,FALSE) -> F44ILL-R (G2) | Q82: =VLOOKUP($H82,'Engage Ltg Fixture Table'!$B$8:$HK$770,Q$4,FALSE) -> T8 | R82: =VLOOKUP($H82,'Engage Ltg Fixture Table'!$B$8:$HK$770,R$4,FALSE) -> 48in 2nd Gen | S82: =VLOOKUP($H82,'Engage Ltg Fixture Table'!$B$8:$HK$770,S$4,FALSE) -> 4 | T82: =VLOOKUP($H82,'Engage Ltg Fixture Table'!$B$8:$HK$770,T$4,FALSE) -> F32T8-PREM | U82: =VLOOKUP($H82,'Engage Ltg Fixture Table'!$B$8:$HK$770,U$4,FALSE) -> Electronic | V82: =VLOOKUP($H82,'Engage Ltg Fixture Table'!$B$8:$HK$770,V$4,FALSE) -> 1 | W82: =VLOOKUP($H82,'Engage Ltg Fixture Table'!$B$8:$HK$770,W$4,FALSE) -> 0.102 | X82: =VLOOKUP($F82,'Engage Ltg Fixture Table'!$B$8:$HK$770,X$4,FALSE) -> Linear Fluorescent | Y82: =VLOOKUP($F82,'Engage Ltg Fixture Table'!$B$8:$HK$770,Y$4,FALSE) -> F82EE | Z82: =VLOOKUP($F82,'Engage Ltg Fixture Table'!$B$8:$HK$770,Z$4,FALSE) -> T12 | AA82: =VLOOKUP($F82,'Engage Ltg Fixture Table'!$B$8:$HK$770,AA$4,FALSE) -> 96 inch | AB82: =VLOOKUP($F82,'Engage Ltg Fixture Table'!$B$8:$HK$770,AB$4,FALSE) -> 2 | AC82: =VLOOKUP($F82,'Engage Ltg Fixture Table'!$B$8:$HK$770,AC$4,FALSE) -> F96T12/ES | AD82: =VLOOKUP($F82,'Engage Ltg Fixture Table'!$B$8:$HK$770,AD$4,FALSE) -> Mag-ES | AE82: =VLOOKUP($F82,'Engage Ltg Fixture Table'!$B$8:$HK$770,AE$4,FALSE) -> 1 | AF82: =VLOOKUP($F82,'Engage Ltg Fixture Table'!$B$8:$HK$770,AF$4,FALSE) -> 0.123 | AG82: =IF(G82="na","na",VLOOKUP($G82,'Engage Ltg Fixture Table'!$B$8:$HK$770,AG$4,FALSE)) -> Linear Fluorescent | AH82: =IF(G82="na","na",VLOOKUP($G82,'Engage Ltg Fixture Table'!$B$8:$HK$770,AH$4,FALSE)) -> F44LL (G1) | AI82: =IF(G82="na","na",VLOOKUP($G82,'Engage Ltg Fixture Table'!$B$8:$HK$770,AI$4,FALSE)) -> T8 | AJ82: =IF(G82="na","na",VLOOKUP($G82,'Engage Ltg Fixture Table'!$B$8:$HK$770,AJ$4,FALSE)) -> 48in 1st Gen | AK82: =IF(G82="na","na",VLOOKUP($G82,'Engage Ltg Fixture Table'!$B$8:$HK$770,AK$4,FALSE)) -> 4 | AL82: =IF(G82="na","na",VLOOKUP($G82,'Engage Ltg Fixture Table'!$B$8:$HK$770,AL$4,FALSE)) -> F32T8-STD | AM82: =IF(G82="na","na",VLOOKUP($G82,'Engage Ltg Fixture Table'!$B$8:$HK$770,AM$4,FALSE)) -> Electronic | AN82: =IF(G82="na","na",VLOOKUP($G82,'Engage Ltg Fixture Table'!$B$8:$HK$770,AN$4,FALSE)) -> 1 | AO82: =IF(G82="na","na",VLOOKUP($G82,'Engage Ltg Fixture Table'!$B$8:$HK$770,AO$4,FALSE)) -> 0.118 | AP82: added from DEER2008.3.02 measure list | AQ82: ="ID: "&TEXT(B82,"000")&"; "&VLOOKUP($F82,'Engage Ltg Fixture Table'!$B$8:$HK$770,7,FALSE)&" ==> "&VLOOKUP($H82,'Engage Ltg Fixture Table'!$B$8:$HK$770,7,FALSE) -> ID: 071; FL, (2) 96in, ES lamp, ES Mag, W/fixt=123 ==> FL, (4) 48in, T8 lamp, IS EB, W/fixt=102 | AS82: 10134-10329
B83: 72 | C83: Com-ILtg-PrimLF-LF-ca10134-cd10329-ms10329 | D83: Linear Fluorescent | E83: Linear Fluorescent (Primary Schedule) | F83: 10134 | G83: 10329 | H83: 10329 | I83: Yes | J83: Yes | K83: No | L83: No | M83: 21 | N83: 0 | O83: =VLOOKUP($H83,'Engage Ltg Fixture Table'!$B$8:$HK$770,O$4,FALSE) -> Linear Fluorescent | P83: =VLOOKUP($H83,'Engage Ltg Fixture Table'!$B$8:$HK$770,P$4,FALSE) -> F44ILL-R (G2) | Q83: =VLOOKUP($H83,'Engage Ltg Fixture Table'!$B$8:$HK$770,Q$4,FALSE) -> T8 | R83: =VLOOKUP($H83,'Engage Ltg Fixture Table'!$B$8:$HK$770,R$4,FALSE) -> 48in 2nd Gen | S83: =VLOOKUP($H83,'Engage Ltg Fixture Table'!$B$8:$HK$770,S$4,FALSE) -> 4 | T83: =VLOOKUP($H83,'Engage Ltg Fixture Table'!$B$8:$HK$770,T$4,FALSE) -> F32T8-PREM | U83: =VLOOKUP($H83,'Engage Ltg Fixture Table'!$B$8:$HK$770,U$4,FALSE) -> Electronic | V83: =VLOOKUP($H83,'Engage Ltg Fixture Table'!$B$8:$HK$770,V$4,FALSE) -> 1 | W83: =VLOOKUP($H83,'Engage Ltg Fixture Table'!$B$8:$HK$770,W$4,FALSE) -> 0.102 | X83: =VLOOKUP($F83,'Engage Ltg Fixture Table'!$B$8:$HK$770,X$4,FALSE) -> Linear Fluorescent | Y83: =VLOOKUP($F83,'Engage Ltg Fixture Table'!$B$8:$HK$770,Y$4,FALSE) -> F82EE | Z83: =VLOOKUP($F83,'Engage Ltg Fixture Table'!$B$8:$HK$770,Z$4,FALSE) -> T12 | AA83: =VLOOKUP($F83,'Engage Ltg Fixture Table'!$B$8:$HK$770,AA$4,FALSE) -> 96 inch | AB83: =VLOOKUP($F83,'Engage Ltg Fixture Table'!$B$8:$HK$770,AB$4,FALSE) -> 2 | AC83: =VLOOKUP($F83,'Engage Ltg Fixture Table'!$B$8:$HK$770,AC$4,FALSE) -> F96T12/ES | AD83: =VLOOKUP($F83,'Engage Ltg Fixture Table'!$B$8:$HK$770,AD$4,FALSE) -> Mag-ES | AE83: =VLOOKUP($F83,'Engage Ltg Fixture Table'!$B$8:$HK$770,AE$4,FALSE) -> 1 | AF83: =VLOOKUP($F83,'Engage Ltg Fixture Table'!$B$8:$HK$770,AF$4,FALSE) -> 0.123 | AG83: =IF(G83="na","na",VLOOKUP($G83,'Engage Ltg Fixture Table'!$B$8:$HK$770,AG$4,FALSE)) -> Linear Fluorescent | AH83: =IF(G83="na","na",VLOOKUP($G83,'Engage Ltg Fixture Table'!$B$8:$HK$770,AH$4,FALSE)) -> F44ILL-R (G2) | AI83: =IF(G83="na","na",VLOOKUP($G83,'Engage Ltg Fixture Table'!$B$8:$HK$770,AI$4,FALSE)) -> T8 | AJ83: =IF(G83="na","na",VLOOKUP($G83,'Engage Ltg Fixture Table'!$B$8:$HK$770,AJ$4,FALSE)) -> 48in 2nd Gen | AK83: =IF(G83="na","na",VLOOKUP($G83,'Engage Ltg Fixture Table'!$B$8:$HK$770,AK$4,FALSE)) -> 4 | AL83: =IF(G83="na","na",VLOOKUP($G83,'Engage Ltg Fixture Table'!$B$8:$HK$770,AL$4,FALSE)) -> F32T8-PREM | AM83: =IF(G83="na","na",VLOOKUP($G83,'Engage Ltg Fixture Table'!$B$8:$HK$770,AM$4,FALSE)) -> Electronic | AN83: =IF(G83="na","na",VLOOKUP($G83,'Engage Ltg Fixture Table'!$B$8:$HK$770,AN$4,FALSE)) -> 1 | AO83: =IF(G83="na","na",VLOOKUP($G83,'Engage Ltg Fixture Table'!$B$8:$HK$770,AO$4,FALSE)) -> 0.102 | AP83: added from DEER2008.3.02 measure list | AQ83: ="ID: "&TEXT(B83,"000")&"; "&VLOOKUP($F83,'Engage Ltg Fixture Table'!$B$8:$HK$770,7,FALSE)&" ==> "&VLOOKUP($H83,'Engage Ltg Fixture Table'!$B$8:$HK$770,7,FALSE) -> ID: 072; FL, (2) 96in, ES lamp, ES Mag, W/fixt=123 ==> FL, (4) 48in, T8 lamp, IS EB, W/fixt=102 | AS83: 10134-10329
B84: 73 | C84: Com-ILtg-PrimLF-LF-ca10140-cd10279-ms10339 | D84: Linear Fluorescent | E84: Linear Fluorescent (Primary Schedule) | F84: 10140 | G84: 10279 | H84: 10339 | I84: No | J84: No | K84: Yes | L84: Yes | M84: 54 | N84: 26 | O84: =VLOOKUP($H84,'Engage Ltg Fixture Table'!$B$8:$HK$770,O$4,FALSE) -> Linear Fluorescent | P84: =VLOOKUP($H84,'Engage Ltg Fixture Table'!$B$8:$HK$770,P$4,FALSE) -> F46ILL-R (G2) | Q84: =VLOOKUP($H84,'Engage Ltg Fixture Table'!$B$8:$HK$770,Q$4,FALSE) -> T8 | R84: =VLOOKUP($H84,'Engage Ltg Fixture Table'!$B$8:$HK$770,R$4,FALSE) -> 48in 2nd Gen | S84: =VLOOKUP($H84,'Engage Ltg Fixture Table'!$B$8:$HK$770,S$4,FALSE) -> 6 | T84: =VLOOKUP($H84,'Engage Ltg Fixture Table'!$B$8:$HK$770,T$4,FALSE) -> F32T8-PREM | U84: =VLOOKUP($H84,'Engage Ltg Fixture Table'!$B$8:$HK$770,U$4,FALSE) -> Electronic | V84: =VLOOKUP($H84,'Engage Ltg Fixture Table'!$B$8:$HK$770,V$4,FALSE) -> 2 | W84: =VLOOKUP($H84,'Engage Ltg Fixture Table'!$B$8:$HK$770,W$4,FALSE) -> 0.156 | X84: =VLOOKUP($F84,'Engage Ltg Fixture Table'!$B$8:$HK$770,X$4,FALSE) -> Linear Fluorescent | Y84: =VLOOKUP($F84,'Engage Ltg Fixture Table'!$B$8:$HK$770,Y$4,FALSE) -> F83EE | Z84: =VLOOKUP($F84,'Engage Ltg Fixture Table'!$B$8:$HK$770,Z$4,FALSE) -> T12 | AA84: =VLOOKUP($F84,'Engage Ltg Fixture Table'!$B$8:$HK$770,AA$4,FALSE) -> 96 inch | AB84: =VLOOKUP($F84,'Engage Ltg Fixture Table'!$B$8:$HK$770,AB$4,FALSE) -> 3 | AC84: =VLOOKUP($F84,'Engage Ltg Fixture Table'!$B$8:$HK$770,AC$4,FALSE) -> F96T12/ES | AD84: =VLOOKUP($F84,'Engage Ltg Fixture Table'!$B$8:$HK$770,AD$4,FALSE) -> Mag-ES | AE84: =VLOOKUP($F84,'Engage Ltg Fixture Table'!$B$8:$HK$770,AE$4,FALSE) -> 2 | AF84: =VLOOKUP($F84,'Engage Ltg Fixture Table'!$B$8:$HK$770,AF$4,FALSE) -> 0.21 | AG84: =IF(G84="na","na",VLOOKUP($G84,'Engage Ltg Fixture Table'!$B$8:$HK$770,AG$4,FALSE)) -> Linear Fluorescent | AH84: =IF(G84="na","na",VLOOKUP($G84,'Engage Ltg Fixture Table'!$B$8:$HK$770,AH$4,FALSE)) -> F46LL (G1) | AI84: =IF(G84="na","na",VLOOKUP($G84,'Engage Ltg Fixture Table'!$B$8:$HK$770,AI$4,FALSE)) -> T8 | AJ84: =IF(G84="na","na",VLOOKUP($G84,'Engage Ltg Fixture Table'!$B$8:$HK$770,AJ$4,FALSE)) -> 48in 1st Gen | AK84: =IF(G84="na","na",VLOOKUP($G84,'Engage Ltg Fixture Table'!$B$8:$HK$770,AK$4,FALSE)) -> 6 | AL84: =IF(G84="na","na",VLOOKUP($G84,'Engage Ltg Fixture Table'!$B$8:$HK$770,AL$4,FALSE)) -> F32T8-STD | AM84: =IF(G84="na","na",VLOOKUP($G84,'Engage Ltg Fixture Table'!$B$8:$HK$770,AM$4,FALSE)) -> Electronic | AN84: =IF(G84="na","na",VLOOKUP($G84,'Engage Ltg Fixture Table'!$B$8:$HK$770,AN$4,FALSE)) -> 2 | AO84: =IF(G84="na","na",VLOOKUP($G84,'Engage Ltg Fixture Table'!$B$8:$HK$770,AO$4,FALSE)) -> 0.182 | AP84: added from DEER2008.3.02 measure list | AQ84: ="ID: "&TEXT(B84,"000")&"; "&VLOOKUP($F84,'Engage Ltg Fixture Table'!$B$8:$HK$770,7,FALSE)&" ==> "&VLOOKUP($H84,'Engage Ltg Fixture Table'!$B$8:$HK$770,7,FALSE) -> ID: 073; FL, (3) 96in, ES lamp, ES Mag, W/fixt=210 ==> FL, (6) 48in, T8 lamp, IS EB, W/fixt=156 | AS84: 10140-10339
B85: 74 | C85: Com-ILtg-PrimLF-LF-ca10140-cd10339-ms10339 | D85: Linear Fluorescent | E85: Linear Fluorescent (Primary Schedule) | F85: 10140 | G85: 10339 | H85: 10339 | I85: Yes | J85: Yes | K85: No | L85: No | M85: 54 | N85: 0 | O85: =VLOOKUP($H85,'Engage Ltg Fixture Table'!$B$8:$HK$770,O$4,FALSE) -> Linear Fluorescent | P85: =VLOOKUP($H85,'Engage Ltg Fixture Table'!$B$8:$HK$770,P$4,FALSE) -> F46ILL-R (G2) | Q85: =VLOOKUP($H85,'Engage Ltg Fixture Table'!$B$8:$HK$770,Q$4,FALSE) -> T8 | R85: =VLOOKUP($H85,'Engage Ltg Fixture Table'!$B$8:$HK$770,R$4,FALSE) -> 48in 2nd Gen | S85: =VLOOKUP($H85,'Engage Ltg Fixture Table'!$B$8:$HK$770,S$4,FALSE) -> 6 | T85: =VLOOKUP($H85,'Engage Ltg Fixture Table'!$B$8:$HK$770,T$4,FALSE) -> F32T8-PREM | U85: =VLOOKUP($H85,'Engage Ltg Fixture Table'!$B$8:$HK$770,U$4,FALSE) -> Electronic | V85: =VLOOKUP($H85,'Engage Ltg Fixture Table'!$B$8:$HK$770,V$4,FALSE) -> 2 | W85: =VLOOKUP($H85,'Engage Ltg Fixture Table'!$B$8:$HK$770,W$4,FALSE) -> 0.156 | X85: =VLOOKUP($F85,'Engage Ltg Fixture Table'!$B$8:$HK$770,X$4,FALSE) -> Linear Fluorescent | Y85: =VLOOKUP($F85,'Engage Ltg Fixture Table'!$B$8:$HK$770,Y$4,FALSE) -> F83EE | Z85: =VLOOKUP($F85,'Engage Ltg Fixture Table'!$B$8:$HK$770,Z$4,FALSE) -> T12 | AA85: =VLOOKUP($F85,'Engage Ltg Fixture Table'!$B$8:$HK$770,AA$4,FALSE) -> 96 inch | AB85: =VLOOKUP($F85,'Engage Ltg Fixture Table'!$B$8:$HK$770,AB$4,FALSE) -> 3 | AC85: =VLOOKUP($F85,'Engage Ltg Fixture Table'!$B$8:$HK$770,AC$4,FALSE) -> F96T12/ES | AD85: =VLOOKUP($F85,'Engage Ltg Fixture Table'!$B$8:$HK$770,AD$4,FALSE) -> Mag-ES | AE85: =VLOOKUP($F85,'Engage Ltg Fixture Table'!$B$8:$HK$770,AE$4,FALSE) -> 2 | AF85: =VLOOKUP($F85,'Engage Ltg Fixture Table'!$B$8:$HK$770,AF$4,FALSE) -> 0.21 | AG85: =IF(G85="na","na",VLOOKUP($G85,'Engage Ltg Fixture Table'!$B$8:$HK$770,AG$4,FALSE)) -> Linear Fluorescent | AH85: =IF(G85="na","na",VLOOKUP($G85,'Engage Ltg Fixture Table'!$B$8:$HK$770,AH$4,FALSE)) -> F46ILL-R (G2) | AI85: =IF(G85="na","na",VLOOKUP($G85,'Engage Ltg Fixture Table'!$B$8:$HK$770,AI$4,FALSE)) -> T8 | AJ85: =IF(G85="na","na",VLOOKUP($G85,'Engage Ltg Fixture Table'!$B$8:$HK$770,AJ$4,FALSE)) -> 48in 2nd Gen | AK85: =IF(G85="na","na",VLOOKUP($G85,'Engage Ltg Fixture Table'!$B$8:$HK$770,AK$4,FALSE)) -> 6 | AL85: =IF(G85="na","na",VLOOKUP($G85,'Engage Ltg Fixture Table'!$B$8:$HK$770,AL$4,FALSE)) -> F32T8-PREM | AM85: =IF(G85="na","na",VLOOKUP($G85,'Engage Ltg Fixture Table'!$B$8:$HK$770,AM$4,FALSE)) -> Electronic | AN85: =IF(G85="na","na",VLOOKUP($G85,'Engage Ltg Fixture Table'!$B$8:$HK$770,AN$4,FALSE)) -> 2 | AO85: =IF(G85="na","na",VLOOKUP($G85,'Engage Ltg Fixture Table'!$B$8:$HK$770,AO$4,FALSE)) -> 0.156 | AP85: added from DEER2008.3.02 measure list | AQ85: ="ID: "&TEXT(B85,"000")&"; "&VLOOKUP($F85,'Engage Ltg Fixture Table'!$B$8:$HK$770,7,FALSE)&" ==> "&VLOOKUP($H85,'Engage Ltg Fixture Table'!$B$8:$HK$770,7,FALSE) -> ID: 074; FL, (3) 96in, ES lamp, ES Mag, W/fixt=210 ==> FL, (6) 48in, T8 lamp, IS EB, W/fixt=156 | AS85: 10140-10339
B86: 75 | C86: Com-ILtg-PrimLF-LF-ca10144-cd10340-ms10340 | D86: Linear Fluorescent | E86: Linear Fluorescent (Primary Schedule) | F86: 10144 | G86: 10340 | H86: 10340 | I86: Yes | J86: Yes | K86: Yes | L86: Yes | M86: 71 | N86: 0 | O86: =VLOOKUP($H86,'Engage Ltg Fixture Table'!$B$8:$HK$770,O$4,FALSE) -> Linear Fluorescent | P86: =VLOOKUP($H86,'Engage Ltg Fixture Table'!$B$8:$HK$770,P$4,FALSE) -> F46ILL (G2) | Q86: =VLOOKUP($H86,'Engage Ltg Fixture Table'!$B$8:$HK$770,Q$4,FALSE) -> T8 | R86: =VLOOKUP($H86,'Engage Ltg Fixture Table'!$B$8:$HK$770,R$4,FALSE) -> 48in 2nd Gen | S86: =VLOOKUP($H86,'Engage Ltg Fixture Table'!$B$8:$HK$770,S$4,FALSE) -> 6 | T86: =VLOOKUP($H86,'Engage Ltg Fixture Table'!$B$8:$HK$770,T$4,FALSE) -> F32T8-PREM | U86: =VLOOKUP($H86,'Engage Ltg Fixture Table'!$B$8:$HK$770,U$4,FALSE) -> Electronic | V86: =VLOOKUP($H86,'Engage Ltg Fixture Table'!$B$8:$HK$770,V$4,FALSE) -> 2 | W86: =VLOOKUP($H86,'Engage Ltg Fixture Table'!$B$8:$HK$770,W$4,FALSE) -> 0.175 | X86: =VLOOKUP($F86,'Engage Ltg Fixture Table'!$B$8:$HK$770,X$4,FALSE) -> Linear Fluorescent | Y86: =VLOOKUP($F86,'Engage Ltg Fixture Table'!$B$8:$HK$770,Y$4,FALSE) -> F84EE | Z86: =VLOOKUP($F86,'Engage Ltg Fixture Table'!$B$8:$HK$770,Z$4,FALSE) -> T12 | AA86: =VLOOKUP($F86,'Engage Ltg Fixture Table'!$B$8:$HK$770,AA$4,FALSE) -> 96 inch | AB86: =VLOOKUP($F86,'Engage Ltg Fixture Table'!$B$8:$HK$770,AB$4,FALSE) -> 4 | AC86: =VLOOKUP($F86,'Engage Ltg Fixture Table'!$B$8:$HK$770,AC$4,FALSE) -> F96T12/ES | AD86: =VLOOKUP($F86,'Engage Ltg Fixture Table'!$B$8:$HK$770,AD$4,FALSE) -> Mag-ES | AE86: =VLOOKUP($F86,'Engage Ltg Fixture Table'!$B$8:$HK$770,AE$4,FALSE) -> 2 | AF86: =VLOOKUP($F86,'Engage Ltg Fixture Table'!$B$8:$HK$770,AF$4,FALSE) -> 0.246 | AG86: =IF(G86="na","na",VLOOKUP($G86,'Engage Ltg Fixture Table'!$B$8:$HK$770,AG$4,FALSE)) -> Linear Fluorescent | AH86: =IF(G86="na","na",VLOOKUP($G86,'Engage Ltg Fixture Table'!$B$8:$HK$770,AH$4,FALSE)) -> F46ILL (G2) | AI86: =IF(G86="na","na",VLOOKUP($G86,'Engage Ltg Fixture Table'!$B$8:$HK$770,AI$4,FALSE)) -> T8 | AJ86: =IF(G86="na","na",VLOOKUP($G86,'Engage Ltg Fixture Table'!$B$8:$HK$770,AJ$4,FALSE)) -> 48in 2nd Gen | AK86: =IF(G86="na","na",VLOOKUP($G86,'Engage Ltg Fixture Table'!$B$8:$HK$770,AK$4,FALSE)) -> 6 | AL86: =IF(G86="na","na",VLOOKUP($G86,'Engage Ltg Fixture Table'!$B$8:$HK$770,AL$4,FALSE)) -> F32T8-PREM | AM86: =IF(G86="na","na",VLOOKUP($G86,'Engage Ltg Fixture Table'!$B$8:$HK$770,AM$4,FALSE)) -> Electronic | AN86: =IF(G86="na","na",VLOOKUP($G86,'Engage Ltg Fixture Table'!$B$8:$HK$770,AN$4,FALSE)) -> 2 | AO86: =IF(G86="na","na",VLOOKUP($G86,'Engage Ltg Fixture Table'!$B$8:$HK$770,AO$4,FALSE)) -> 0.175 | AP86: added from DEER2008.3.02 measure list | AQ86: ="ID: "&TEXT(B86,"000")&"; "&VLOOKUP($F86,'Engage Ltg Fixture Table'!$B$8:$HK$770,7,FALSE)&" ==> "&VLOOKUP($H86,'Engage Ltg Fixture Table'!$B$8:$HK$770,7,FALSE) -> ID: 075; FL, (4) 96in, ES lamp, ES Mag, W/fixt=246 ==> FL, (6) 48in, T8 lamp, IS EB, W/fixt=175 | AS86: 10144-10340
B87: 76 | C87: Com-ILtg-PrimLF-LF-ca10309-ms10307 | D87: Linear Fluorescent | E87: Linear Fluorescent (Primary Schedule) | F87: 10309 | G87: na | H87: 10307 | I87: No | J87: No | K87: No | L87: No | M87: =(AF87-W87)*1000 -> 11 | N87: =IF(G87<>"na",(AO87-W87)*1000,"na") -> na | O87: =VLOOKUP($H87,'Engage Ltg Fixture Table'!$B$8:$HK$770,O$4,FALSE) -> Linear Fluorescent | P87: =VLOOKUP($H87,'Engage Ltg Fixture Table'!$B$8:$HK$770,P$4,FALSE) -> F41ILL-V (G2) | Q87: =VLOOKUP($H87,'Engage Ltg Fixture Table'!$B$8:$HK$770,Q$4,FALSE) -> T8 | R87: =VLOOKUP($H87,'Engage Ltg Fixture Table'!$B$8:$HK$770,R$4,FALSE) -> 48in 2nd Gen | S87: =VLOOKUP($H87,'Engage Ltg Fixture Table'!$B$8:$HK$770,S$4,FALSE) -> 1 | T87: =VLOOKUP($H87,'Engage Ltg Fixture Table'!$B$8:$HK$770,T$4,FALSE) -> F32T8-PREM | U87: =VLOOKUP($H87,'Engage Ltg Fixture Table'!$B$8:$HK$770,U$4,FALSE) -> Electronic | V87: =VLOOKUP($H87,'Engage Ltg Fixture Table'!$B$8:$HK$770,V$4,FALSE) -> 1 | W87: =VLOOKUP($H87,'Engage Ltg Fixture Table'!$B$8:$HK$770,W$4,FALSE) -> 0.041 | X87: =VLOOKUP($F87,'Engage Ltg Fixture Table'!$B$8:$HK$770,X$4,FALSE) -> Linear Fluorescent | Y87: =VLOOKUP($F87,'Engage Ltg Fixture Table'!$B$8:$HK$770,Y$4,FALSE) -> F42ILL-R (G2) | Z87: =VLOOKUP($F87,'Engage Ltg Fixture Table'!$B$8:$HK$770,Z$4,FALSE) -> T8 | AA87: =VLOOKUP($F87,'Engage Ltg Fixture Table'!$B$8:$HK$770,AA$4,FALSE) -> 48in 2nd Gen | AB87: =VLOOKUP($F87,'Engage Ltg Fixture Table'!$B$8:$HK$770,AB$4,FALSE) -> 2 | AC87: =VLOOKUP($F87,'Engage Ltg Fixture Table'!$B$8:$HK$770,AC$4,FALSE) -> F32T8-PREM | AD87: =VLOOKUP($F87,'Engage Ltg Fixture Table'!$B$8:$HK$770,AD$4,FALSE) -> Electronic | AE87: =VLOOKUP($F87,'Engage Ltg Fixture Table'!$B$8:$HK$770,AE$4,FALSE) -> 1 | AF87: =VLOOKUP($F87,'Engage Ltg Fixture Table'!$B$8:$HK$770,AF$4,FALSE) -> 0.052 | AG87: =IF(G87="na","na",VLOOKUP($G87,'Engage Ltg Fixture Table'!$B$8:$HK$770,AG$4,FALSE)) -> na | AH87: =IF(G87="na","na",VLOOKUP($G87,'Engage Ltg Fixture Table'!$B$8:$HK$770,AH$4,FALSE)) -> na | AI87: =IF(G87="na","na",VLOOKUP($G87,'Engage Ltg Fixture Table'!$B$8:$HK$770,AI$4,FALSE)) -> na | AJ87: =IF(G87="na","na",VLOOKUP($G87,'Engage Ltg Fixture Table'!$B$8:$HK$770,AJ$4,FALSE)) -> na | AK87: =IF(G87="na","na",VLOOKUP($G87,'Engage Ltg Fixture Table'!$B$8:$HK$770,AK$4,FALSE)) -> na | AL87: =IF(G87="na","na",VLOOKUP($G87,'Engage Ltg Fixture Table'!$B$8:$HK$770,AL$4,FALSE)) -> na | AM87: =IF(G87="na","na",VLOOKUP($G87,'Engage Ltg Fixture Table'!$B$8:$HK$770,AM$4,FALSE)) -> na | AN87: =IF(G87="na","na",VLOOKUP($G87,'Engage Ltg Fixture Table'!$B$8:$HK$770,AN$4,FALSE)) -> na | AO87: =IF(G87="na","na",VLOOKUP($G87,'Engage Ltg Fixture Table'!$B$8:$HK$770,AO$4,FALSE)) -> na | AP87: added from DEER2008.3.02 measure list | AQ87: ="ID: "&TEXT(B87,"000")&"; "&VLOOKUP($F87,'Engage Ltg Fixture Table'!$B$8:$HK$770,7,FALSE)&" ==> "&VLOOKUP($H87,'Engage Ltg Fixture Table'!$B$8:$HK$770,7,FALSE) -> ID: 076; FL, (2) 48in, T8 lamp, IS EB, W/fixt=52 ==> FL, (1) 48in, T8 lamp, IS EB, W/fixt=41 | AS87: 10309-10307
B88: 77 | C88: Com-ILtg-PrimLF-LF-ca10043-cd10223-ms10345 | D88: Linear Fluorescent | E88: Linear Fluorescent (Primary Schedule) | F88: 10043 | G88: 10223 | H88: 10345 | I88: No | J88: No | K88: Yes | L88: Yes | M88: 12 | N88: 3 | O88: =VLOOKUP($H88,'Engage Ltg Fixture Table'!$B$8:$HK$770,O$4,FALSE) -> Linear Fluorescent | P88: =VLOOKUP($H88,'Engage Ltg Fixture Table'!$B$8:$HK$770,P$4,FALSE) -> F41WLL-R (G3) | Q88: =VLOOKUP($H88,'Engage Ltg Fixture Table'!$B$8:$HK$770,Q$4,FALSE) -> T8 | R88: =VLOOKUP($H88,'Engage Ltg Fixture Table'!$B$8:$HK$770,R$4,FALSE) -> 48in 3rd Gen | S88: =VLOOKUP($H88,'Engage Ltg Fixture Table'!$B$8:$HK$770,S$4,FALSE) -> 1 | T88: =VLOOKUP($H88,'Engage Ltg Fixture Table'!$B$8:$HK$770,T$4,FALSE) -> F32T8-PREM-ES | U88: =VLOOKUP($H88,'Engage Ltg Fixture Table'!$B$8:$HK$770,U$4,FALSE) -> Elec-Prem | V88: =VLOOKUP($H88,'Engage Ltg Fixture Table'!$B$8:$HK$770,V$4,FALSE) -> 1 | W88: =VLOOKUP($H88,'Engage Ltg Fixture Table'!$B$8:$HK$770,W$4,FALSE) -> 0.024 | X88: =VLOOKUP($F88,'Engage Ltg Fixture Table'!$B$8:$HK$770,X$4,FALSE) -> Linear Fluorescent | Y88: =VLOOKUP($F88,'Engage Ltg Fixture Table'!$B$8:$HK$770,Y$4,FALSE) -> F41EH | Z88: =VLOOKUP($F88,'Engage Ltg Fixture Table'!$B$8:$HK$770,Z$4,FALSE) -> T12 | AA88: =VLOOKUP($F88,'Engage Ltg Fixture Table'!$B$8:$HK$770,AA$4,FALSE) -> 48 inch | AB88: =VLOOKUP($F88,'Engage Ltg Fixture Table'!$B$8:$HK$770,AB$4,FALSE) -> 1 | AC88: =VLOOKUP($F88,'Engage Ltg Fixture Table'!$B$8:$HK$770,AC$4,FALSE) -> F40T12/ES | AD88: =VLOOKUP($F88,'Engage Ltg Fixture Table'!$B$8:$HK$770,AD$4,FALSE) -> Mag-Hyb | AE88: =VLOOKUP($F88,'Engage Ltg Fixture Table'!$B$8:$HK$770,AE$4,FALSE) -> 1 | AF88: =VLOOKUP($F88,'Engage Ltg Fixture Table'!$B$8:$HK$770,AF$4,FALSE) -> 0.036 | AG88: =IF(G88="na","na",VLOOKUP($G88,'Engage Ltg Fixture Table'!$B$8:$HK$770,AG$4,FALSE)) -> Linear Fluorescent | AH88: =IF(G88="na","na",VLOOKUP($G88,'Engage Ltg Fixture Table'!$B$8:$HK$770,AH$4,FALSE)) -> F41LL-R (G1) | AI88: =IF(G88="na","na",VLOOKUP($G88,'Engage Ltg Fixture Table'!$B$8:$HK$770,AI$4,FALSE)) -> T8 | AJ88: =IF(G88="na","na",VLOOKUP($G88,'Engage Ltg Fixture Table'!$B$8:$HK$770,AJ$4,FALSE)) -> 48in 1st Gen | AK88: =IF(G88="na","na",VLOOKUP($G88,'Engage Ltg Fixture Table'!$B$8:$HK$770,AK$4,FALSE)) -> 1 | AL88: =IF(G88="na","na",VLOOKUP($G88,'Engage Ltg Fixture Table'!$B$8:$HK$770,AL$4,FALSE)) -> F32T8-STD | AM88: =IF(G88="na","na",VLOOKUP($G88,'Engage Ltg Fixture Table'!$B$8:$HK$770,AM$4,FALSE)) -> Electronic | AN88: =IF(G88="na","na",VLOOKUP($G88,'Engage Ltg Fixture Table'!$B$8:$HK$770,AN$4,FALSE)) -> 1 | AO88: =IF(G88="na","na",VLOOKUP($G88,'Engage Ltg Fixture Table'!$B$8:$HK$770,AO$4,FALSE)) -> 0.027 | AP88: added from DEER2008.3.02 measure list | AQ88: ="ID: "&TEXT(B88,"000")&"; "&VLOOKUP($F88,'Engage Ltg Fixture Table'!$B$8:$HK$770,7,FALSE)&" ==> "&VLOOKUP($H88,'Engage Ltg Fixture Table'!$B$8:$HK$770,7,FALSE) -> ID: 077; FL, (1) 48in, ES lamp, Hyb Mag, W/fixt=36 ==> FL, (1) 48in, ES T8, Prem IS Bal, W/fixt=24 | AS88: 10043-10345
B89: 78 | C89: Com-ILtg-PrimLF-LF-ca10043-cd10223-ms10346 | D89: Linear Fluorescent | E89: Linear Fluorescent (Primary Schedule) | F89: 10043 | G89: 10223 | H89: 10346 | I89: No | J89: No | K89: Yes | L89: Yes | M89: 11 | N89: 2 | O89: =VLOOKUP($H89,'Engage Ltg Fixture Table'!$B$8:$HK$770,O$4,FALSE) -> Linear Fluorescent | P89: =VLOOKUP($H89,'Engage Ltg Fixture Table'!$B$8:$HK$770,P$4,FALSE) -> F41ILL-R (G3) | Q89: =VLOOKUP($H89,'Engage Ltg Fixture Table'!$B$8:$HK$770,Q$4,FALSE) -> T8 | R89: =VLOOKUP($H89,'Engage Ltg Fixture Table'!$B$8:$HK$770,R$4,FALSE) -> 48in 3rd Gen | S89: =VLOOKUP($H89,'Engage Ltg Fixture Table'!$B$8:$HK$770,S$4,FALSE) -> 1 | T89: =VLOOKUP($H89,'Engage Ltg Fixture Table'!$B$8:$HK$770,T$4,FALSE) -> F32T8-PREM | U89: =VLOOKUP($H89,'Engage Ltg Fixture Table'!$B$8:$HK$770,U$4,FALSE) -> Elec-Prem | V89: =VLOOKUP($H89,'Engage Ltg Fixture Table'!$B$8:$HK$770,V$4,FALSE) -> 1 | W89: =VLOOKUP($H89,'Engage Ltg Fixture Table'!$B$8:$HK$770,W$4,FALSE) -> 0.025 | X89: =VLOOKUP($F89,'Engage Ltg Fixture Table'!$B$8:$HK$770,X$4,FALSE) -> Linear Fluorescent | Y89: =VLOOKUP($F89,'Engage Ltg Fixture Table'!$B$8:$HK$770,Y$4,FALSE) -> F41EH | Z89: =VLOOKUP($F89,'Engage Ltg Fixture Table'!$B$8:$HK$770,Z$4,FALSE) -> T12 | AA89: =VLOOKUP($F89,'Engage Ltg Fixture Table'!$B$8:$HK$770,AA$4,FALSE) -> 48 inch | AB89: =VLOOKUP($F89,'Engage Ltg Fixture Table'!$B$8:$HK$770,AB$4,FALSE) -> 1 | AC89: =VLOOKUP($F89,'Engage Ltg Fixture Table'!$B$8:$HK$770,AC$4,FALSE) -> F40T12/ES | AD89: =VLOOKUP($F89,'Engage Ltg Fixture Table'!$B$8:$HK$770,AD$4,FALSE) -> Mag-Hyb | AE89: =VLOOKUP($F89,'Engage Ltg Fixture Table'!$B$8:$HK$770,AE$4,FALSE) -> 1 | AF89: =VLOOKUP($F89,'Engage Ltg Fixture Table'!$B$8:$HK$770,AF$4,FALSE) -> 0.036 | AG89: =IF(G89="na","na",VLOOKUP($G89,'Engage Ltg Fixture Table'!$B$8:$HK$770,AG$4,FALSE)) -> Linear Fluorescent | AH89: =IF(G89="na","na",VLOOKUP($G89,'Engage Ltg Fixture Table'!$B$8:$HK$770,AH$4,FALSE)) -> F41LL-R (G1) | AI89: =IF(G89="na","na",VLOOKUP($G89,'Engage Ltg Fixture Table'!$B$8:$HK$770,AI$4,FALSE)) -> T8 | AJ89: =IF(G89="na","na",VLOOKUP($G89,'Engage Ltg Fixture Table'!$B$8:$HK$770,AJ$4,FALSE)) -> 48in 1st Gen | AK89: =IF(G89="na","na",VLOOKUP($G89,'Engage Ltg Fixture Table'!$B$8:$HK$770,AK$4,FALSE)) -> 1 | AL89: =IF(G89="na","na",VLOOKUP($G89,'Engage Ltg Fixture Table'!$B$8:$HK$770,AL$4,FALSE)) -> F32T8-STD | AM89: =IF(G89="na","na",VLOOKUP($G89,'Engage Ltg Fixture Table'!$B$8:$HK$770,AM$4,FALSE)) -> Electronic | AN89: =IF(G89="na","na",VLOOKUP($G89,'Engage Ltg Fixture Table'!$B$8:$HK$770,AN$4,FALSE)) -> 1 | AO89: =IF(G89="na","na",VLOOKUP($G89,'Engage Ltg Fixture Table'!$B$8:$HK$770,AO$4,FALSE)) -> 0.027 | AP89: added from DEER2008.3.02 measure list | AQ89: ="ID: "&TEXT(B89,"000")&"; "&VLOOKUP($F89,'Engage Ltg Fixture Table'!$B$8:$HK$770,7,FALSE)&" ==> "&VLOOKUP($H89,'Engage Ltg Fixture Table'!$B$8:$HK$770,7,FALSE) -> ID: 078; FL, (1) 48in, ES lamp, Hyb Mag, W/fixt=36 ==> FL, (1) 48in, T8, Prem IS EB, W/fixt=25 | AS89: 10043-10346
B90: 79 | C90: Com-ILtg-PrimLF-LF-ca10043-cd10232-ms10347 | D90: Linear Fluorescent | E90: Linear Fluorescent (Primary Schedule) | F90: 10043 | G90: 10232 | H90: 10347 | I90: No | J90: No | K90: Yes | L90: Yes | M90: 9 | N90: 5 | O90: =VLOOKUP($H90,'Engage Ltg Fixture Table'!$B$8:$HK$770,O$4,FALSE) -> Linear Fluorescent | P90: =VLOOKUP($H90,'Engage Ltg Fixture Table'!$B$8:$HK$770,P$4,FALSE) -> F41WLL (G3) | Q90: =VLOOKUP($H90,'Engage Ltg Fixture Table'!$B$8:$HK$770,Q$4,FALSE) -> T8 | R90: =VLOOKUP($H90,'Engage Ltg Fixture Table'!$B$8:$HK$770,R$4,FALSE) -> 48in 3rd Gen | S90: =VLOOKUP($H90,'Engage Ltg Fixture Table'!$B$8:$HK$770,S$4,FALSE) -> 1 | T90: =VLOOKUP($H90,'Engage Ltg Fixture Table'!$B$8:$HK$770,T$4,FALSE) -> F32T8-PREM-ES | U90: =VLOOKUP($H90,'Engage Ltg Fixture Table'!$B$8:$HK$770,U$4,FALSE) -> Elec-Prem | V90: =VLOOKUP($H90,'Engage Ltg Fixture Table'!$B$8:$HK$770,V$4,FALSE) -> 1 | W90: =VLOOKUP($H90,'Engage Ltg Fixture Table'!$B$8:$HK$770,W$4,FALSE) -> 0.027 | X90: =VLOOKUP($F90,'Engage Ltg Fixture Table'!$B$8:$HK$770,X$4,FALSE) -> Linear Fluorescent | Y90: =VLOOKUP($F90,'Engage Ltg Fixture Table'!$B$8:$HK$770,Y$4,FALSE) -> F41EH | Z90: =VLOOKUP($F90,'Engage Ltg Fixture Table'!$B$8:$HK$770,Z$4,FALSE) -> T12 | AA90: =VLOOKUP($F90,'Engage Ltg Fixture Table'!$B$8:$HK$770,AA$4,FALSE) -> 48 inch | AB90: =VLOOKUP($F90,'Engage Ltg Fixture Table'!$B$8:$HK$770,AB$4,FALSE) -> 1 | AC90: =VLOOKUP($F90,'Engage Ltg Fixture Table'!$B$8:$HK$770,AC$4,FALSE) -> F40T12/ES | AD90: =VLOOKUP($F90,'Engage Ltg Fixture Table'!$B$8:$HK$770,AD$4,FALSE) -> Mag-Hyb | AE90: =VLOOKUP($F90,'Engage Ltg Fixture Table'!$B$8:$HK$770,AE$4,FALSE) -> 1 | AF90: =VLOOKUP($F90,'Engage Ltg Fixture Table'!$B$8:$HK$770,AF$4,FALSE) -> 0.036 | AG90: =IF(G90="na","na",VLOOKUP($G90,'Engage Ltg Fixture Table'!$B$8:$HK$770,AG$4,FALSE)) -> Linear Fluorescent | AH90: =IF(G90="na","na",VLOOKUP($G90,'Engage Ltg Fixture Table'!$B$8:$HK$770,AH$4,FALSE)) -> F41LL (G1) | AI90: =IF(G90="na","na",VLOOKUP($G90,'Engage Ltg Fixture Table'!$B$8:$HK$770,AI$4,FALSE)) -> T8 | AJ90: =IF(G90="na","na",VLOOKUP($G90,'Engage Ltg Fixture Table'!$B$8:$HK$770,AJ$4,FALSE)) -> 48in 1st Gen | AK90: =IF(G90="na","na",VLOOKUP($G90,'Engage Ltg Fixture Table'!$B$8:$HK$770,AK$4,FALSE)) -> 1 | AL90: =IF(G90="na","na",VLOOKUP($G90,'Engage Ltg Fixture Table'!$B$8:$HK$770,AL$4,FALSE)) -> F32T8-STD | AM90: =IF(G90="na","na",VLOOKUP($G90,'Engage Ltg Fixture Table'!$B$8:$HK$770,AM$4,FALSE)) -> Electronic | AN90: =IF(G90="na","na",VLOOKUP($G90,'Engage Ltg Fixture Table'!$B$8:$HK$770,AN$4,FALSE)) -> 1 | AO90: =IF(G90="na","na",VLOOKUP($G90,'Engage Ltg Fixture Table'!$B$8:$HK$770,AO$4,FALSE)) -> 0.032 | AP90: added from DEER2008.3.02 measure list | AQ90: ="ID: "&TEXT(B90,"000")&"; "&VLOOKUP($F90,'Engage Ltg Fixture Table'!$B$8:$HK$770,7,FALSE)&" ==> "&VLOOKUP($H90,'Engage Ltg Fixture Table'!$B$8:$HK$770,7,FALSE) -> ID: 079; FL, (1) 48in, ES lamp, Hyb Mag, W/fixt=36 ==> FL, (1) 48in, ES T8, Prem IS Bal, W/fixt=27 | AS90: 10043-10347
B91: 80 | C91: Com-ILtg-PrimLF-LF-ca10043-cd10232-ms10348 | D91: Linear Fluorescent | E91: Linear Fluorescent (Primary Schedule) | F91: 10043 | G91: 10232 | H91: 10348 | I91: No | J91: No | K91: Yes | L91: Yes | M91: 8 | N91: 4 | O91: =VLOOKUP($H91,'Engage Ltg Fixture Table'!$B$8:$HK$770,O$4,FALSE) -> Linear Fluorescent | P91: =VLOOKUP($H91,'Engage Ltg Fixture Table'!$B$8:$HK$770,P$4,FALSE) -> F41ILL (G3) | Q91: =VLOOKUP($H91,'Engage Ltg Fixture Table'!$B$8:$HK$770,Q$4,FALSE) -> T8 | R91: =VLOOKUP($H91,'Engage Ltg Fixture Table'!$B$8:$HK$770,R$4,FALSE) -> 48in 3rd Gen | S91: =VLOOKUP($H91,'Engage Ltg Fixture Table'!$B$8:$HK$770,S$4,FALSE) -> 1 | T91: =VLOOKUP($H91,'Engage Ltg Fixture Table'!$B$8:$HK$770,T$4,FALSE) -> F32T8-PREM | U91: =VLOOKUP($H91,'Engage Ltg Fixture Table'!$B$8:$HK$770,U$4,FALSE) -> Elec-Prem | V91: =VLOOKUP($H91,'Engage Ltg Fixture Table'!$B$8:$HK$770,V$4,FALSE) -> 1 | W91: =VLOOKUP($H91,'Engage Ltg Fixture Table'!$B$8:$HK$770,W$4,FALSE) -> 0.028 | X91: =VLOOKUP($F91,'Engage Ltg Fixture Table'!$B$8:$HK$770,X$4,FALSE) -> Linear Fluorescent | Y91: =VLOOKUP($F91,'Engage Ltg Fixture Table'!$B$8:$HK$770,Y$4,FALSE) -> F41EH | Z91: =VLOOKUP($F91,'Engage Ltg Fixture Table'!$B$8:$HK$770,Z$4,FALSE) -> T12 | AA91: =VLOOKUP($F91,'Engage Ltg Fixture Table'!$B$8:$HK$770,AA$4,FALSE) -> 48 inch | AB91: =VLOOKUP($F91,'Engage Ltg Fixture Table'!$B$8:$HK$770,AB$4,FALSE) -> 1 | AC91: =VLOOKUP($F91,'Engage Ltg Fixture Table'!$B$8:$HK$770,AC$4,FALSE) -> F40T12/ES | AD91: =VLOOKUP($F91,'Engage Ltg Fixture Table'!$B$8:$HK$770,AD$4,FALSE) -> Mag-Hyb | AE91: =VLOOKUP($F91,'Engage Ltg Fixture Table'!$B$8:$HK$770,AE$4,FALSE) -> 1 | AF91: =VLOOKUP($F91,'Engage Ltg Fixture Table'!$B$8:$HK$770,AF$4,FALSE) -> 0.036 | AG91: =IF(G91="na","na",VLOOKUP($G91,'Engage Ltg Fixture Table'!$B$8:$HK$770,AG$4,FALSE)) -> Linear Fluorescent | AH91: =IF(G91="na","na",VLOOKUP($G91,'Engage Ltg Fixture Table'!$B$8:$HK$770,AH$4,FALSE)) -> F41LL (G1) | AI91: =IF(G91="na","na",VLOOKUP($G91,'Engage Ltg Fixture Table'!$B$8:$HK$770,AI$4,FALSE)) -> T8 | AJ91: =IF(G91="na","na",VLOOKUP($G91,'Engage Ltg Fixture Table'!$B$8:$HK$770,AJ$4,FALSE)) -> 48in 1st Gen | AK91: =IF(G91="na","na",VLOOKUP($G91,'Engage Ltg Fixture Table'!$B$8:$HK$770,AK$4,FALSE)) -> 1 | AL91: =IF(G91="na","na",VLOOKUP($G91,'Engage Ltg Fixture Table'!$B$8:$HK$770,AL$4,FALSE)) -> F32T8-STD | AM91: =IF(G91="na","na",VLOOKUP($G91,'Engage Ltg Fixture Table'!$B$8:$HK$770,AM$4,FALSE)) -> Electronic | AN91: =IF(G91="na","na",VLOOKUP($G91,'Engage Ltg Fixture Table'!$B$8:$HK$770,AN$4,FALSE)) -> 1 | AO91: =IF(G91="na","na",VLOOKUP($G91,'Engage Ltg Fixture Table'!$B$8:$HK$770,AO$4,FALSE)) -> 0.032 | AP91: added from DEER2008.3.02 measure list | AQ91: ="ID: "&TEXT(B91,"000")&"; "&VLOOKUP($F91,'Engage Ltg Fixture Table'!$B$8:$HK$770,7,FALSE)&" ==> "&VLOOKUP($H91,'Engage Ltg Fixture Table'!$B$8:$HK$770,7,FALSE) -> ID: 080; FL, (1) 48in, ES lamp, Hyb Mag, W/fixt=36 ==> FL, (1) 48in, T8, Prem IS EB, W/fixt=28 | AS91: 10043-10348
B92: 81 | C92: Com-ILtg-PrimLF-LF-ca10043-cd10289-ms10345 | D92: Linear Fluorescent | E92: Linear Fluorescent (Primary Schedule) | F92: 10043 | G92: 10289 | H92: 10345 | I92: Yes | J92: Yes | K92: No | L92: No | M92: 12 | N92: 3 | O92: =VLOOKUP($H92,'Engage Ltg Fixture Table'!$B$8:$HK$770,O$4,FALSE) -> Linear Fluorescent | P92: =VLOOKUP($H92,'Engage Ltg Fixture Table'!$B$8:$HK$770,P$4,FALSE) -> F41WLL-R (G3) | Q92: =VLOOKUP($H92,'Engage Ltg Fixture Table'!$B$8:$HK$770,Q$4,FALSE) -> T8 | R92: =VLOOKUP($H92,'Engage Ltg Fixture Table'!$B$8:$HK$770,R$4,FALSE) -> 48in 3rd Gen | S92: =VLOOKUP($H92,'Engage Ltg Fixture Table'!$B$8:$HK$770,S$4,FALSE) -> 1 | T92: =VLOOKUP($H92,'Engage Ltg Fixture Table'!$B$8:$HK$770,T$4,FALSE) -> F32T8-PREM-ES | U92: =VLOOKUP($H92,'Engage Ltg Fixture Table'!$B$8:$HK$770,U$4,FALSE) -> Elec-Prem | V92: =VLOOKUP($H92,'Engage Ltg Fixture Table'!$B$8:$HK$770,V$4,FALSE) -> 1 | W92: =VLOOKUP($H92,'Engage Ltg Fixture Table'!$B$8:$HK$770,W$4,FALSE) -> 0.024 | X92: =VLOOKUP($F92,'Engage Ltg Fixture Table'!$B$8:$HK$770,X$4,FALSE) -> Linear Fluorescent | Y92: =VLOOKUP($F92,'Engage Ltg Fixture Table'!$B$8:$HK$770,Y$4,FALSE) -> F41EH | Z92: =VLOOKUP($F92,'Engage Ltg Fixture Table'!$B$8:$HK$770,Z$4,FALSE) -> T12 | AA92: =VLOOKUP($F92,'Engage Ltg Fixture Table'!$B$8:$HK$770,AA$4,FALSE) -> 48 inch | AB92: =VLOOKUP($F92,'Engage Ltg Fixture Table'!$B$8:$HK$770,AB$4,FALSE) -> 1 | AC92: =VLOOKUP($F92,'Engage Ltg Fixture Table'!$B$8:$HK$770,AC$4,FALSE) -> F40T12/ES | AD92: =VLOOKUP($F92,'Engage Ltg Fixture Table'!$B$8:$HK$770,AD$4,FALSE) -> Mag-Hyb | AE92: =VLOOKUP($F92,'Engage Ltg Fixture Table'!$B$8:$HK$770,AE$4,FALSE) -> 1 | AF92: =VLOOKUP($F92,'Engage Ltg Fixture Table'!$B$8:$HK$770,AF$4,FALSE) -> 0.036 | AG92: =IF(G92="na","na",VLOOKUP($G92,'Engage Ltg Fixture Table'!$B$8:$HK$770,AG$4,FALSE)) -> Linear Fluorescent | AH92: =IF(G92="na","na",VLOOKUP($G92,'Engage Ltg Fixture Table'!$B$8:$HK$770,AH$4,FALSE)) -> F41LL-R (G2) | AI92: =IF(G92="na","na",VLOOKUP($G92,'Engage Ltg Fixture Table'!$B$8:$HK$770,AI$4,FALSE)) -> T8 | AJ92: =IF(G92="na","na",VLOOKUP($G92,'Engage Ltg Fixture Table'!$B$8:$HK$770,AJ$4,FALSE)) -> 48in 2nd Gen | AK92: =IF(G92="na","na",VLOOKUP($G92,'Engage Ltg Fixture Table'!$B$8:$HK$770,AK$4,FALSE)) -> 1 | AL92: =IF(G92="na","na",VLOOKUP($G92,'Engage Ltg Fixture Table'!$B$8:$HK$770,AL$4,FALSE)) -> F32T8-PREM | AM92: =IF(G92="na","na",VLOOKUP($G92,'Engage Ltg Fixture Table'!$B$8:$HK$770,AM$4,FALSE)) -> Electronic | AN92: =IF(G92="na","na",VLOOKUP($G92,'Engage Ltg Fixture Table'!$B$8:$HK$770,AN$4,FALSE)) -> 1 | AO92: =IF(G92="na","na",VLOOKUP($G92,'Engage Ltg Fixture Table'!$B$8:$HK$770,AO$4,FALSE)) -> 0.027 | AP92: added from DEER2008.3.02 measure list | AQ92: ="ID: "&TEXT(B92,"000")&"; "&VLOOKUP($F92,'Engage Ltg Fixture Table'!$B$8:$HK$770,7,FALSE)&" ==> "&VLOOKUP($H92,'Engage Ltg Fixture Table'!$B$8:$HK$770,7,FALSE) -> ID: 081; FL, (1) 48in, ES lamp, Hyb Mag, W/fixt=36 ==> FL, (1) 48in, ES T8, Prem IS Bal, W/fixt=24 | AS92: 10043-10345
B93: 82 | C93: Com-ILtg-PrimLF-LF-ca10043-cd10289-ms10346 | D93: Linear Fluorescent | E93: Linear Fluorescent (Primary Schedule) | F93: 10043 | G93: 10289 | H93: 10346 | I93: Yes | J93: Yes | K93: No | L93: No | M93: 11 | N93: 2 | O93: =VLOOKUP($H93,'Engage Ltg Fixture Table'!$B$8:$HK$770,O$4,FALSE) -> Linear Fluorescent | P93: =VLOOKUP($H93,'Engage Ltg Fixture Table'!$B$8:$HK$770,P$4,FALSE) -> F41ILL-R (G3) | Q93: =VLOOKUP($H93,'Engage Ltg Fixture Table'!$B$8:$HK$770,Q$4,FALSE) -> T8 | R93: =VLOOKUP($H93,'Engage Ltg Fixture Table'!$B$8:$HK$770,R$4,FALSE) -> 48in 3rd Gen | S93: =VLOOKUP($H93,'Engage Ltg Fixture Table'!$B$8:$HK$770,S$4,FALSE) -> 1 | T93: =VLOOKUP($H93,'Engage Ltg Fixture Table'!$B$8:$HK$770,T$4,FALSE) -> F32T8-PREM | U93: =VLOOKUP($H93,'Engage Ltg Fixture Table'!$B$8:$HK$770,U$4,FALSE) -> Elec-Prem | V93: =VLOOKUP($H93,'Engage Ltg Fixture Table'!$B$8:$HK$770,V$4,FALSE) -> 1 | W93: =VLOOKUP($H93,'Engage Ltg Fixture Table'!$B$8:$HK$770,W$4,FALSE) -> 0.025 | X93: =VLOOKUP($F93,'Engage Ltg Fixture Table'!$B$8:$HK$770,X$4,FALSE) -> Linear Fluorescent | Y93: =VLOOKUP($F93,'Engage Ltg Fixture Table'!$B$8:$HK$770,Y$4,FALSE) -> F41EH | Z93: =VLOOKUP($F93,'Engage Ltg Fixture Table'!$B$8:$HK$770,Z$4,FALSE) -> T12 | AA93: =VLOOKUP($F93,'Engage Ltg Fixture Table'!$B$8:$HK$770,AA$4,FALSE) -> 48 inch | AB93: =VLOOKUP($F93,'Engage Ltg Fixture Table'!$B$8:$HK$770,AB$4,FALSE) -> 1 | AC93: =VLOOKUP($F93,'Engage Ltg Fixture Table'!$B$8:$HK$770,AC$4,FALSE) -> F40T12/ES | AD93: =VLOOKUP($F93,'Engage Ltg Fixture Table'!$B$8:$HK$770,AD$4,FALSE) -> Mag-Hyb | AE93: =VLOOKUP($F93,'Engage Ltg Fixture Table'!$B$8:$HK$770,AE$4,FALSE) -> 1 | AF93: =VLOOKUP($F93,'Engage Ltg Fixture Table'!$B$8:$HK$770,AF$4,FALSE) -> 0.036 | AG93: =IF(G93="na","na",VLOOKUP($G93,'Engage Ltg Fixture Table'!$B$8:$HK$770,AG$4,FALSE)) -> Linear Fluorescent | AH93: =IF(G93="na","na",VLOOKUP($G93,'Engage Ltg Fixture Table'!$B$8:$HK$770,AH$4,FALSE)) -> F41LL-R (G2) | AI93: =IF(G93="na","na",VLOOKUP($G93,'Engage Ltg Fixture Table'!$B$8:$HK$770,AI$4,FALSE)) -> T8 | AJ93: =IF(G93="na","na",VLOOKUP($G93,'Engage Ltg Fixture Table'!$B$8:$HK$770,AJ$4,FALSE)) -> 48in 2nd Gen | AK93: =IF(G93="na","na",VLOOKUP($G93,'Engage Ltg Fixture Table'!$B$8:$HK$770,AK$4,FALSE)) -> 1 | AL93: =IF(G93="na","na",VLOOKUP($G93,'Engage Ltg Fixture Table'!$B$8:$HK$770,AL$4,FALSE)) -> F32T8-PREM | AM93: =IF(G93="na","na",VLOOKUP($G93,'Engage Ltg Fixture Table'!$B$8:$HK$770,AM$4,FALSE)) -> Electronic | AN93: =IF(G93="na","na",VLOOKUP($G93,'Engage Ltg Fixture Table'!$B$8:$HK$770,AN$4,FALSE)) -> 1 | AO93: =IF(G93="na","na",VLOOKUP($G93,'Engage Ltg Fixture Table'!$B$8:$HK$770,AO$4,FALSE)) -> 0.027 | AP93: added from DEER2008.3.02 measure list | AQ93: ="ID: "&TEXT(B93,"000")&"; "&VLOOKUP($F93,'Engage Ltg Fixture Table'!$B$8:$HK$770,7,FALSE)&" ==> "&VLOOKUP($H93,'Engage Ltg Fixture Table'!$B$8:$HK$770,7,FALSE) -> ID: 082; FL, (1) 48in, ES lamp, Hyb Mag, W/fixt=36 ==> FL, (1) 48in, T8, Prem IS EB, W/fixt=25 | AS93: 10043-10346
B94: 83 | C94: Com-ILtg-PrimLF-LF-ca10043-cd10295-ms10347 | D94: Linear Fluorescent | E94: Linear Fluorescent (Primary Schedule) | F94: 10043 | G94: 10295 | H94: 10347 | I94: Yes | J94: Yes | K94: No | L94: No | M94: 9 | N94: 4 | O94: =VLOOKUP($H94,'Engage Ltg Fixture Table'!$B$8:$HK$770,O$4,FALSE) -> Linear Fluorescent | P94: =VLOOKUP($H94,'Engage Ltg Fixture Table'!$B$8:$HK$770,P$4,FALSE) -> F41WLL (G3) | Q94: =VLOOKUP($H94,'Engage Ltg Fixture Table'!$B$8:$HK$770,Q$4,FALSE) -> T8 | R94: =VLOOKUP($H94,'Engage Ltg Fixture Table'!$B$8:$HK$770,R$4,FALSE) -> 48in 3rd Gen | S94: =VLOOKUP($H94,'Engage Ltg Fixture Table'!$B$8:$HK$770,S$4,FALSE) -> 1 | T94: =VLOOKUP($H94,'Engage Ltg Fixture Table'!$B$8:$HK$770,T$4,FALSE) -> F32T8-PREM-ES | U94: =VLOOKUP($H94,'Engage Ltg Fixture Table'!$B$8:$HK$770,U$4,FALSE) -> Elec-Prem | V94: =VLOOKUP($H94,'Engage Ltg Fixture Table'!$B$8:$HK$770,V$4,FALSE) -> 1 | W94: =VLOOKUP($H94,'Engage Ltg Fixture Table'!$B$8:$HK$770,W$4,FALSE) -> 0.027 | X94: =VLOOKUP($F94,'Engage Ltg Fixture Table'!$B$8:$HK$770,X$4,FALSE) -> Linear Fluorescent | Y94: =VLOOKUP($F94,'Engage Ltg Fixture Table'!$B$8:$HK$770,Y$4,FALSE) -> F41EH | Z94: =VLOOKUP($F94,'Engage Ltg Fixture Table'!$B$8:$HK$770,Z$4,FALSE) -> T12 | AA94: =VLOOKUP($F94,'Engage Ltg Fixture Table'!$B$8:$HK$770,AA$4,FALSE) -> 48 inch | AB94: =VLOOKUP($F94,'Engage Ltg Fixture Table'!$B$8:$HK$770,AB$4,FALSE) -> 1 | AC94: =VLOOKUP($F94,'Engage Ltg Fixture Table'!$B$8:$HK$770,AC$4,FALSE) -> F40T12/ES | AD94: =VLOOKUP($F94,'Engage Ltg Fixture Table'!$B$8:$HK$770,AD$4,FALSE) -> Mag-Hyb | AE94: =VLOOKUP($F94,'Engage Ltg Fixture Table'!$B$8:$HK$770,AE$4,FALSE) -> 1 | AF94: =VLOOKUP($F94,'Engage Ltg Fixture Table'!$B$8:$HK$770,AF$4,FALSE) -> 0.036 | AG94: =IF(G94="na","na",VLOOKUP($G94,'Engage Ltg Fixture Table'!$B$8:$HK$770,AG$4,FALSE)) -> Linear Fluorescent | AH94: =IF(G94="na","na",VLOOKUP($G94,'Engage Ltg Fixture Table'!$B$8:$HK$770,AH$4,FALSE)) -> F41ILL (G2) | AI94: =IF(G94="na","na",VLOOKUP($G94,'Engage Ltg Fixture Table'!$B$8:$HK$770,AI$4,FALSE)) -> T8 | AJ94: =IF(G94="na","na",VLOOKUP($G94,'Engage Ltg Fixture Table'!$B$8:$HK$770,AJ$4,FALSE)) -> 48in 2nd Gen | AK94: =IF(G94="na","na",VLOOKUP($G94,'Engage Ltg Fixture Table'!$B$8:$HK$770,AK$4,FALSE)) -> 1 | AL94: =IF(G94="na","na",VLOOKUP($G94,'Engage Ltg Fixture Table'!$B$8:$HK$770,AL$4,FALSE)) -> F32T8-PREM | AM94: =IF(G94="na","na",VLOOKUP($G94,'Engage Ltg Fixture Table'!$B$8:$HK$770,AM$4,FALSE)) -> Electronic | AN94: =IF(G94="na","na",VLOOKUP($G94,'Engage Ltg Fixture Table'!$B$8:$HK$770,AN$4,FALSE)) -> 1 | AO94: =IF(G94="na","na",VLOOKUP($G94,'Engage Ltg Fixture Table'!$B$8:$HK$770,AO$4,FALSE)) -> 0.031 | AP94: added from DEER2008.3.02 measure list | AQ94: ="ID: "&TEXT(B94,"000")&"; "&VLOOKUP($F94,'Engage Ltg Fixture Table'!$B$8:$HK$770,7,FALSE)&" ==> "&VLOOKUP($H94,'Engage Ltg Fixture Table'!$B$8:$HK$770,7,FALSE) -> ID: 083; FL, (1) 48in, ES lamp, Hyb Mag, W/fixt=36 ==> FL, (1) 48in, ES T8, Prem IS Bal, W/fixt=27 | AS94: 10043-10347
B95: 84 | C95: Com-ILtg-PrimLF-LF-ca10043-cd10295-ms10348 | D95: Linear Fluorescent | E95: Linear Fluorescent (Primary Schedule) | F95: 10043 | G95: 10295 | H95: 10348 | I95: Yes | J95: Yes | K95: No | L95: No | M95: 8 | N95: 3 | O95: =VLOOKUP($H95,'Engage Ltg Fixture Table'!$B$8:$HK$770,O$4,FALSE) -> Linear Fluorescent | P95: =VLOOKUP($H95,'Engage Ltg Fixture Table'!$B$8:$HK$770,P$4,FALSE) -> F41ILL (G3) | Q95: =VLOOKUP($H95,'Engage Ltg Fixture Table'!$B$8:$HK$770,Q$4,FALSE) -> T8 | R95: =VLOOKUP($H95,'Engage Ltg Fixture Table'!$B$8:$HK$770,R$4,FALSE) -> 48in 3rd Gen | S95: =VLOOKUP($H95,'Engage Ltg Fixture Table'!$B$8:$HK$770,S$4,FALSE) -> 1 | T95: =VLOOKUP($H95,'Engage Ltg Fixture Table'!$B$8:$HK$770,T$4,FALSE) -> F32T8-PREM | U95: =VLOOKUP($H95,'Engage Ltg Fixture Table'!$B$8:$HK$770,U$4,FALSE) -> Elec-Prem | V95: =VLOOKUP($H95,'Engage Ltg Fixture Table'!$B$8:$HK$770,V$4,FALSE) -> 1 | W95: =VLOOKUP($H95,'Engage Ltg Fixture Table'!$B$8:$HK$770,W$4,FALSE) -> 0.028 | X95: =VLOOKUP($F95,'Engage Ltg Fixture Table'!$B$8:$HK$770,X$4,FALSE) -> Linear Fluorescent | Y95: =VLOOKUP($F95,'Engage Ltg Fixture Table'!$B$8:$HK$770,Y$4,FALSE) -> F41EH | Z95: =VLOOKUP($F95,'Engage Ltg Fixture Table'!$B$8:$HK$770,Z$4,FALSE) -> T12 | AA95: =VLOOKUP($F95,'Engage Ltg Fixture Table'!$B$8:$HK$770,AA$4,FALSE) -> 48 inch | AB95: =VLOOKUP($F95,'Engage Ltg Fixture Table'!$B$8:$HK$770,AB$4,FALSE) -> 1 | AC95: =VLOOKUP($F95,'Engage Ltg Fixture Table'!$B$8:$HK$770,AC$4,FALSE) -> F40T12/ES | AD95: =VLOOKUP($F95,'Engage Ltg Fixture Table'!$B$8:$HK$770,AD$4,FALSE) -> Mag-Hyb | AE95: =VLOOKUP($F95,'Engage Ltg Fixture Table'!$B$8:$HK$770,AE$4,FALSE) -> 1 | AF95: =VLOOKUP($F95,'Engage Ltg Fixture Table'!$B$8:$HK$770,AF$4,FALSE) -> 0.036 | AG95: =IF(G95="na","na",VLOOKUP($G95,'Engage Ltg Fixture Table'!$B$8:$HK$770,AG$4,FALSE)) -> Linear Fluorescent | AH95: =IF(G95="na","na",VLOOKUP($G95,'Engage Ltg Fixture Table'!$B$8:$HK$770,AH$4,FALSE)) -> F41ILL (G2) | AI95: =IF(G95="na","na",VLOOKUP($G95,'Engage Ltg Fixture Table'!$B$8:$HK$770,AI$4,FALSE)) -> T8 | AJ95: =IF(G95="na","na",VLOOKUP($G95,'Engage Ltg Fixture Table'!$B$8:$HK$770,AJ$4,FALSE)) -> 48in 2nd Gen | AK95: =IF(G95="na","na",VLOOKUP($G95,'Engage Ltg Fixture Table'!$B$8:$HK$770,AK$4,FALSE)) -> 1 | AL95: =IF(G95="na","na",VLOOKUP($G95,'Engage Ltg Fixture Table'!$B$8:$HK$770,AL$4,FALSE)) -> F32T8-PREM | AM95: =IF(G95="na","na",VLOOKUP($G95,'Engage Ltg Fixture Table'!$B$8:$HK$770,AM$4,FALSE)) -> Electronic | AN95: =IF(G95="na","na",VLOOKUP($G95,'Engage Ltg Fixture Table'!$B$8:$HK$770,AN$4,FALSE)) -> 1 | AO95: =IF(G95="na","na",VLOOKUP($G95,'Engage Ltg Fixture Table'!$B$8:$HK$770,AO$4,FALSE)) -> 0.031 | AP95: added from DEER2008.3.02 measure list | AQ95: ="ID: "&TEXT(B95,"000")&"; "&VLOOKUP($F95,'Engage Ltg Fixture Table'!$B$8:$HK$770,7,FALSE)&" ==> "&VLOOKUP($H95,'Engage Ltg Fixture Table'!$B$8:$HK$770,7,FALSE) -> ID: 084; FL, (1) 48in, ES lamp, Hyb Mag, W/fixt=36 ==> FL, (1) 48in, T8, Prem IS EB, W/fixt=28 | AS95: 10043-10348
B96: 85 | C96: Com-ILtg-PrimLF-LF-ca10044-cd10223-ms10345 | D96: Linear Fluorescent | E96: Linear Fluorescent (Primary Schedule) | F96: 10044 | G96: 10223 | H96: 10345 | I96: No | J96: No | K96: Yes | L96: Yes | M96: 17 | N96: 3 | O96: =VLOOKUP($H96,'Engage Ltg Fixture Table'!$B$8:$HK$770,O$4,FALSE) -> Linear Fluorescent | P96: =VLOOKUP($H96,'Engage Ltg Fixture Table'!$B$8:$HK$770,P$4,FALSE) -> F41WLL-R (G3) | Q96: =VLOOKUP($H96,'Engage Ltg Fixture Table'!$B$8:$HK$770,Q$4,FALSE) -> T8 | R96: =VLOOKUP($H96,'Engage Ltg Fixture Table'!$B$8:$HK$770,R$4,FALSE) -> 48in 3rd Gen | S96: =VLOOKUP($H96,'Engage Ltg Fixture Table'!$B$8:$HK$770,S$4,FALSE) -> 1 | T96: =VLOOKUP($H96,'Engage Ltg Fixture Table'!$B$8:$HK$770,T$4,FALSE) -> F32T8-PREM-ES | U96: =VLOOKUP($H96,'Engage Ltg Fixture Table'!$B$8:$HK$770,U$4,FALSE) -> Elec-Prem | V96: =VLOOKUP($H96,'Engage Ltg Fixture Table'!$B$8:$HK$770,V$4,FALSE) -> 1 | W96: =VLOOKUP($H96,'Engage Ltg Fixture Table'!$B$8:$HK$770,W$4,FALSE) -> 0.024 | X96: =VLOOKUP($F96,'Engage Ltg Fixture Table'!$B$8:$HK$770,X$4,FALSE) -> Linear Fluorescent | Y96: =VLOOKUP($F96,'Engage Ltg Fixture Table'!$B$8:$HK$770,Y$4,FALSE) -> F41SIH | Z96: =VLOOKUP($F96,'Engage Ltg Fixture Table'!$B$8:$HK$770,Z$4,FALSE) -> T12 | AA96: =VLOOKUP($F96,'Engage Ltg Fixture Table'!$B$8:$HK$770,AA$4,FALSE) -> 48 inch | AB96: =VLOOKUP($F96,'Engage Ltg Fixture Table'!$B$8:$HK$770,AB$4,FALSE) -> 1 | AC96: =VLOOKUP($F96,'Engage Ltg Fixture Table'!$B$8:$HK$770,AC$4,FALSE) -> F40T12 | AD96: =VLOOKUP($F96,'Engage Ltg Fixture Table'!$B$8:$HK$770,AD$4,FALSE) -> Mag-Hyb | AE96: =VLOOKUP($F96,'Engage Ltg Fixture Table'!$B$8:$HK$770,AE$4,FALSE) -> 1 | AF96: =VLOOKUP($F96,'Engage Ltg Fixture Table'!$B$8:$HK$770,AF$4,FALSE) -> 0.041 | AG96: =IF(G96="na","na",VLOOKUP($G96,'Engage Ltg Fixture Table'!$B$8:$HK$770,AG$4,FALSE)) -> Linear Fluorescent | AH96: =IF(G96="na","na",VLOOKUP($G96,'Engage Ltg Fixture Table'!$B$8:$HK$770,AH$4,FALSE)) -> F41LL-R (G1) | AI96: =IF(G96="na","na",VLOOKUP($G96,'Engage Ltg Fixture Table'!$B$8:$HK$770,AI$4,FALSE)) -> T8 | AJ96: =IF(G96="na","na",VLOOKUP($G96,'Engage Ltg Fixture Table'!$B$8:$HK$770,AJ$4,FALSE)) -> 48in 1st Gen | AK96: =IF(G96="na","na",VLOOKUP($G96,'Engage Ltg Fixture Table'!$B$8:$HK$770,AK$4,FALSE)) -> 1 | AL96: =IF(G96="na","na",VLOOKUP($G96,'Engage Ltg Fixture Table'!$B$8:$HK$770,AL$4,FALSE)) -> F32T8-STD | AM96: =IF(G96="na","na",VLOOKUP($G96,'Engage Ltg Fixture Table'!$B$8:$HK$770,AM$4,FALSE)) -> Electronic | AN96: =IF(G96="na","na",VLOOKUP($G96,'Engage Ltg Fixture Table'!$B$8:$HK$770,AN$4,FALSE)) -> 1 | AO96: =IF(G96="na","na",VLOOKUP($G96,'Engage Ltg Fixture Table'!$B$8:$HK$770,AO$4,FALSE)) -> 0.027 | AP96: added from DEER2008.3.02 measure list | AQ96: ="ID: "&TEXT(B96,"000")&"; "&VLOOKUP($F96,'Engage Ltg Fixture Table'!$B$8:$HK$770,7,FALSE)&" ==> "&VLOOKUP($H96,'Engage Ltg Fixture Table'!$B$8:$HK$770,7,FALSE) -> ID: 085; FL, (1) 48in, STD IS lamp, Hyb Mag, W/fixt=41 ==> FL, (1) 48in, ES T8, Prem IS Bal, W/fixt=24 | AS96: 10044-10345
B97: 86 | C97: Com-ILtg-PrimLF-LF-ca10044-cd10223-ms10346 | D97: Linear Fluorescent | E97: Linear Fluorescent (Primary Schedule) | F97: 10044 | G97: 10223 | H97: 10346 | I97: No | J97: No | K97: Yes | L97: Yes | M97: 16 | N97: 2 | O97: =VLOOKUP($H97,'Engage Ltg Fixture Table'!$B$8:$HK$770,O$4,FALSE) -> Linear Fluorescent | P97: =VLOOKUP($H97,'Engage Ltg Fixture Table'!$B$8:$HK$770,P$4,FALSE) -> F41ILL-R (G3) | Q97: =VLOOKUP($H97,'Engage Ltg Fixture Table'!$B$8:$HK$770,Q$4,FALSE) -> T8 | R97: =VLOOKUP($H97,'Engage Ltg Fixture Table'!$B$8:$HK$770,R$4,FALSE) -> 48in 3rd Gen | S97: =VLOOKUP($H97,'Engage Ltg Fixture Table'!$B$8:$HK$770,S$4,FALSE) -> 1 | T97: =VLOOKUP($H97,'Engage Ltg Fixture Table'!$B$8:$HK$770,T$4,FALSE) -> F32T8-PREM | U97: =VLOOKUP($H97,'Engage Ltg Fixture Table'!$B$8:$HK$770,U$4,FALSE) -> Elec-Prem | V97: =VLOOKUP($H97,'Engage Ltg Fixture Table'!$B$8:$HK$770,V$4,FALSE) -> 1 | W97: =VLOOKUP($H97,'Engage Ltg Fixture Table'!$B$8:$HK$770,W$4,FALSE) -> 0.025 | X97: =VLOOKUP($F97,'Engage Ltg Fixture Table'!$B$8:$HK$770,X$4,FALSE) -> Linear Fluorescent | Y97: =VLOOKUP($F97,'Engage Ltg Fixture Table'!$B$8:$HK$770,Y$4,FALSE) -> F41SIH | Z97: =VLOOKUP($F97,'Engage Ltg Fixture Table'!$B$8:$HK$770,Z$4,FALSE) -> T12 | AA97: =VLOOKUP($F97,'Engage Ltg Fixture Table'!$B$8:$HK$770,AA$4,FALSE) -> 48 inch | AB97: =VLOOKUP($F97,'Engage Ltg Fixture Table'!$B$8:$HK$770,AB$4,FALSE) -> 1 | AC97: =VLOOKUP($F97,'Engage Ltg Fixture Table'!$B$8:$HK$770,AC$4,FALSE) -> F40T12 | AD97: =VLOOKUP($F97,'Engage Ltg Fixture Table'!$B$8:$HK$770,AD$4,FALSE) -> Mag-Hyb | AE97: =VLOOKUP($F97,'Engage Ltg Fixture Table'!$B$8:$HK$770,AE$4,FALSE) -> 1 | AF97: =VLOOKUP($F97,'Engage Ltg Fixture Table'!$B$8:$HK$770,AF$4,FALSE) -> 0.041 | AG97: =IF(G97="na","na",VLOOKUP($G97,'Engage Ltg Fixture Table'!$B$8:$HK$770,AG$4,FALSE)) -> Linear Fluorescent | AH97: =IF(G97="na","na",VLOOKUP($G97,'Engage Ltg Fixture Table'!$B$8:$HK$770,AH$4,FALSE)) -> F41LL-R (G1) | AI97: =IF(G97="na","na",VLOOKUP($G97,'Engage Ltg Fixture Table'!$B$8:$HK$770,AI$4,FALSE)) -> T8 | AJ97: =IF(G97="na","na",VLOOKUP($G97,'Engage Ltg Fixture Table'!$B$8:$HK$770,AJ$4,FALSE)) -> 48in 1st Gen | AK97: =IF(G97="na","na",VLOOKUP($G97,'Engage Ltg Fixture Table'!$B$8:$HK$770,AK$4,FALSE)) -> 1 | AL97: =IF(G97="na","na",VLOOKUP($G97,'Engage Ltg Fixture Table'!$B$8:$HK$770,AL$4,FALSE)) -> F32T8-STD | AM97: =IF(G97="na","na",VLOOKUP($G97,'Engage Ltg Fixture Table'!$B$8:$HK$770,AM$4,FALSE)) -> Electronic | AN97: =IF(G97="na","na",VLOOKUP($G97,'Engage Ltg Fixture Table'!$B$8:$HK$770,AN$4,FALSE)) -> 1 | AO97: =IF(G97="na","na",VLOOKUP($G97,'Engage Ltg Fixture Table'!$B$8:$HK$770,AO$4,FALSE)) -> 0.027 | AP97: added from DEER2008.3.02 measure list | AQ97: ="ID: "&TEXT(B97,"000")&"; "&VLOOKUP($F97,'Engage Ltg Fixture Table'!$B$8:$HK$770,7,FALSE)&" ==> "&VLOOKUP($H97,'Engage Ltg Fixture Table'!$B$8:$HK$770,7,FALSE) -> ID: 086; FL, (1) 48in, STD IS lamp, Hyb Mag, W/fixt=41 ==> FL, (1) 48in, T8, Prem IS EB, W/fixt=25 | AS97: 10044-10346
B98: 87 | C98: Com-ILtg-PrimLF-LF-ca10044-cd10232-ms10347 | D98: Linear Fluorescent | E98: Linear Fluorescent (Primary Schedule) | F98: 10044 | G98: 10232 | H98: 10347 | I98: No | J98: No | K98: Yes | L98: Yes | M98: 14 | N98: 5 | O98: =VLOOKUP($H98,'Engage Ltg Fixture Table'!$B$8:$HK$770,O$4,FALSE) -> Linear Fluorescent | P98: =VLOOKUP($H98,'Engage Ltg Fixture Table'!$B$8:$HK$770,P$4,FALSE) -> F41WLL (G3) | Q98: =VLOOKUP($H98,'Engage Ltg Fixture Table'!$B$8:$HK$770,Q$4,FALSE) -> T8 | R98: =VLOOKUP($H98,'Engage Ltg Fixture Table'!$B$8:$HK$770,R$4,FALSE) -> 48in 3rd Gen | S98: =VLOOKUP($H98,'Engage Ltg Fixture Table'!$B$8:$HK$770,S$4,FALSE) -> 1 | T98: =VLOOKUP($H98,'Engage Ltg Fixture Table'!$B$8:$HK$770,T$4,FALSE) -> F32T8-PREM-ES | U98: =VLOOKUP($H98,'Engage Ltg Fixture Table'!$B$8:$HK$770,U$4,FALSE) -> Elec-Prem | V98: =VLOOKUP($H98,'Engage Ltg Fixture Table'!$B$8:$HK$770,V$4,FALSE) -> 1 | W98: =VLOOKUP($H98,'Engage Ltg Fixture Table'!$B$8:$HK$770,W$4,FALSE) -> 0.027 | X98: =VLOOKUP($F98,'Engage Ltg Fixture Table'!$B$8:$HK$770,X$4,FALSE) -> Linear Fluorescent | Y98: =VLOOKUP($F98,'Engage Ltg Fixture Table'!$B$8:$HK$770,Y$4,FALSE) -> F41SIH | Z98: =VLOOKUP($F98,'Engage Ltg Fixture Table'!$B$8:$HK$770,Z$4,FALSE) -> T12 | AA98: =VLOOKUP($F98,'Engage Ltg Fixture Table'!$B$8:$HK$770,AA$4,FALSE) -> 48 inch | AB98: =VLOOKUP($F98,'Engage Ltg Fixture Table'!$B$8:$HK$770,AB$4,FALSE) -> 1 | AC98: =VLOOKUP($F98,'Engage Ltg Fixture Table'!$B$8:$HK$770,AC$4,FALSE) -> F40T12 | AD98: =VLOOKUP($F98,'Engage Ltg Fixture Table'!$B$8:$HK$770,AD$4,FALSE) -> Mag-Hyb | AE98: =VLOOKUP($F98,'Engage Ltg Fixture Table'!$B$8:$HK$770,AE$4,FALSE) -> 1 | AF98: =VLOOKUP($F98,'Engage Ltg Fixture Table'!$B$8:$HK$770,AF$4,FALSE) -> 0.041 | AG98: =IF(G98="na","na",VLOOKUP($G98,'Engage Ltg Fixture Table'!$B$8:$HK$770,AG$4,FALSE)) -> Linear Fluorescent | AH98: =IF(G98="na","na",VLOOKUP($G98,'Engage Ltg Fixture Table'!$B$8:$HK$770,AH$4,FALSE)) -> F41LL (G1) | AI98: =IF(G98="na","na",VLOOKUP($G98,'Engage Ltg Fixture Table'!$B$8:$HK$770,AI$4,FALSE)) -> T8 | AJ98: =IF(G98="na","na",VLOOKUP($G98,'Engage Ltg Fixture Table'!$B$8:$HK$770,AJ$4,FALSE)) -> 48in 1st Gen | AK98: =IF(G98="na","na",VLOOKUP($G98,'Engage Ltg Fixture Table'!$B$8:$HK$770,AK$4,FALSE)) -> 1 | AL98: =IF(G98="na","na",VLOOKUP($G98,'Engage Ltg Fixture Table'!$B$8:$HK$770,AL$4,FALSE)) -> F32T8-STD | AM98: =IF(G98="na","na",VLOOKUP($G98,'Engage Ltg Fixture Table'!$B$8:$HK$770,AM$4,FALSE)) -> Electronic | AN98: =IF(G98="na","na",VLOOKUP($G98,'Engage Ltg Fixture Table'!$B$8:$HK$770,AN$4,FALSE)) -> 1 | AO98: =IF(G98="na","na",VLOOKUP($G98,'Engage Ltg Fixture Table'!$B$8:$HK$770,AO$4,FALSE)) -> 0.032 | AP98: added from DEER2008.3.02 measure list | AQ98: ="ID: "&TEXT(B98,"000")&"; "&VLOOKUP($F98,'Engage Ltg Fixture Table'!$B$8:$HK$770,7,FALSE)&" ==> "&VLOOKUP($H98,'Engage Ltg Fixture Table'!$B$8:$HK$770,7,FALSE) -> ID: 087; FL, (1) 48in, STD IS lamp, Hyb Mag, W/fixt=41 ==> FL, (1) 48in, ES T8, Prem IS Bal, W/fixt=27 | AS98: 10044-10347
B99: 88 | C99: Com-ILtg-PrimLF-LF-ca10044-cd10232-ms10348 | D99: Linear Fluorescent | E99: Linear Fluorescent (Primary Schedule) | F99: 10044 | G99: 10232 | H99: 10348 | I99: No | J99: No | K99: Yes | L99: Yes | M99: 13 | N99: 4 | O99: =VLOOKUP($H99,'Engage Ltg Fixture Table'!$B$8:$HK$770,O$4,FALSE) -> Linear Fluorescent | P99: =VLOOKUP($H99,'Engage Ltg Fixture Table'!$B$8:$HK$770,P$4,FALSE) -> F41ILL (G3) | Q99: =VLOOKUP($H99,'Engage Ltg Fixture Table'!$B$8:$HK$770,Q$4,FALSE) -> T8 | R99: =VLOOKUP($H99,'Engage Ltg Fixture Table'!$B$8:$HK$770,R$4,FALSE) -> 48in 3rd Gen | S99: =VLOOKUP($H99,'Engage Ltg Fixture Table'!$B$8:$HK$770,S$4,FALSE) -> 1 | T99: =VLOOKUP($H99,'Engage Ltg Fixture Table'!$B$8:$HK$770,T$4,FALSE) -> F32T8-PREM | U99: =VLOOKUP($H99,'Engage Ltg Fixture Table'!$B$8:$HK$770,U$4,FALSE) -> Elec-Prem | V99: =VLOOKUP($H99,'Engage Ltg Fixture Table'!$B$8:$HK$770,V$4,FALSE) -> 1 | W99: =VLOOKUP($H99,'Engage Ltg Fixture Table'!$B$8:$HK$770,W$4,FALSE) -> 0.028 | X99: =VLOOKUP($F99,'Engage Ltg Fixture Table'!$B$8:$HK$770,X$4,FALSE) -> Linear Fluorescent | Y99: =VLOOKUP($F99,'Engage Ltg Fixture Table'!$B$8:$HK$770,Y$4,FALSE) -> F41SIH | Z99: =VLOOKUP($F99,'Engage Ltg Fixture Table'!$B$8:$HK$770,Z$4,FALSE) -> T12 | AA99: =VLOOKUP($F99,'Engage Ltg Fixture Table'!$B$8:$HK$770,AA$4,FALSE) -> 48 inch | AB99: =VLOOKUP($F99,'Engage Ltg Fixture Table'!$B$8:$HK$770,AB$4,FALSE) -> 1 | AC99: =VLOOKUP($F99,'Engage Ltg Fixture Table'!$B$8:$HK$770,AC$4,FALSE) -> F40T12 | AD99: =VLOOKUP($F99,'Engage Ltg Fixture Table'!$B$8:$HK$770,AD$4,FALSE) -> Mag-Hyb | AE99: =VLOOKUP($F99,'Engage Ltg Fixture Table'!$B$8:$HK$770,AE$4,FALSE) -> 1 | AF99: =VLOOKUP($F99,'Engage Ltg Fixture Table'!$B$8:$HK$770,AF$4,FALSE) -> 0.041 | AG99: =IF(G99="na","na",VLOOKUP($G99,'Engage Ltg Fixture Table'!$B$8:$HK$770,AG$4,FALSE)) -> Linear Fluorescent | AH99: =IF(G99="na","na",VLOOKUP($G99,'Engage Ltg Fixture Table'!$B$8:$HK$770,AH$4,FALSE)) -> F41LL (G1) | AI99: =IF(G99="na","na",VLOOKUP($G99,'Engage Ltg Fixture Table'!$B$8:$HK$770,AI$4,FALSE)) -> T8 | AJ99: =IF(G99="na","na",VLOOKUP($G99,'Engage Ltg Fixture Table'!$B$8:$HK$770,AJ$4,FALSE)) -> 48in 1st Gen | AK99: =IF(G99="na","na",VLOOKUP($G99,'Engage Ltg Fixture Table'!$B$8:$HK$770,AK$4,FALSE)) -> 1 | AL99: =IF(G99="na","na",VLOOKUP($G99,'Engage Ltg Fixture Table'!$B$8:$HK$770,AL$4,FALSE)) -> F32T8-STD | AM99: =IF(G99="na","na",VLOOKUP($G99,'Engage Ltg Fixture Table'!$B$8:$HK$770,AM$4,FALSE)) -> Electronic | AN99: =IF(G99="na","na",VLOOKUP($G99,'Engage Ltg Fixture Table'!$B$8:$HK$770,AN$4,FALSE)) -> 1 | AO99: =IF(G99="na","na",VLOOKUP($G99,'Engage Ltg Fixture Table'!$B$8:$HK$770,AO$4,FALSE)) -> 0.032 | AP99: added from DEER2008.3.02 measure list | AQ99: ="ID: "&TEXT(B99,"000")&"; "&VLOOKUP($F99,'Engage Ltg Fixture Table'!$B$8:$HK$770,7,FALSE)&" ==> "&VLOOKUP($H99,'Engage Ltg Fixture Table'!$B$8:$HK$770,7,FALSE) -> ID: 088; FL, (1) 48in, STD IS lamp, Hyb Mag, W/fixt=41 ==> FL, (1) 48in, T8, Prem IS EB, W/fixt=28 | AS99: 10044-10348
B100: 89 | C100: Com-ILtg-PrimLF-LF-ca10044-cd10289-ms10345 | D100: Linear Fluorescent | E100: Linear Fluorescent (Primary Schedule) | F100: 10044 | G100: 10289 | H100: 10345 | I100: Yes | J100: Yes | K100: No | L100: No | M100: 17 | N100: 3 | O100: =VLOOKUP($H100,'Engage Ltg Fixture Table'!$B$8:$HK$770,O$4,FALSE) -> Linear Fluorescent | P100: =VLOOKUP($H100,'Engage Ltg Fixture Table'!$B$8:$HK$770,P$4,FALSE) -> F41WLL-R (G3) | Q100: =VLOOKUP($H100,'Engage Ltg Fixture Table'!$B$8:$HK$770,Q$4,FALSE) -> T8 | R100: =VLOOKUP($H100,'Engage Ltg Fixture Table'!$B$8:$HK$770,R$4,FALSE) -> 48in 3rd Gen | S100: =VLOOKUP($H100,'Engage Ltg Fixture Table'!$B$8:$HK$770,S$4,FALSE) -> 1 | T100: =VLOOKUP($H100,'Engage Ltg Fixture Table'!$B$8:$HK$770,T$4,FALSE) -> F32T8-PREM-ES | U100: =VLOOKUP($H100,'Engage Ltg Fixture Table'!$B$8:$HK$770,U$4,FALSE) -> Elec-Prem | V100: =VLOOKUP($H100,'Engage Ltg Fixture Table'!$B$8:$HK$770,V$4,FALSE) -> 1 | W100: =VLOOKUP($H100,'Engage Ltg Fixture Table'!$B$8:$HK$770,W$4,FALSE) -> 0.024 | X100: =VLOOKUP($F100,'Engage Ltg Fixture Table'!$B$8:$HK$770,X$4,FALSE) -> Linear Fluorescent | Y100: =VLOOKUP($F100,'Engage Ltg Fixture Table'!$B$8:$HK$770,Y$4,FALSE) -> F41SIH | Z100: =VLOOKUP($F100,'Engage Ltg Fixture Table'!$B$8:$HK$770,Z$4,FALSE) -> T12 | AA100: =VLOOKUP($F100,'Engage Ltg Fixture Table'!$B$8:$HK$770,AA$4,FALSE) -> 48 inch | AB100: =VLOOKUP($F100,'Engage Ltg Fixture Table'!$B$8:$HK$770,AB$4,FALSE) -> 1 | AC100: =VLOOKUP($F100,'Engage Ltg Fixture Table'!$B$8:$HK$770,AC$4,FALSE) -> F40T12 | AD100: =VLOOKUP($F100,'Engage Ltg Fixture Table'!$B$8:$HK$770,AD$4,FALSE) -> Mag-Hyb | AE100: =VLOOKUP($F100,'Engage Ltg Fixture Table'!$B$8:$HK$770,AE$4,FALSE) -> 1 | AF100: =VLOOKUP($F100,'Engage Ltg Fixture Table'!$B$8:$HK$770,AF$4,FALSE) -> 0.041 | AG100: =IF(G100="na","na",VLOOKUP($G100,'Engage Ltg Fixture Table'!$B$8:$HK$770,AG$4,FALSE)) -> Linear Fluorescent | AH100: =IF(G100="na","na",VLOOKUP($G100,'Engage Ltg Fixture Table'!$B$8:$HK$770,AH$4,FALSE)) -> F41LL-R (G2) | AI100: =IF(G100="na","na",VLOOKUP($G100,'Engage Ltg Fixture Table'!$B$8:$HK$770,AI$4,FALSE)) -> T8 | AJ100: =IF(G100="na","na",VLOOKUP($G100,'Engage Ltg Fixture Table'!$B$8:$HK$770,AJ$4,FALSE)) -> 48in 2nd Gen | AK100: =IF(G100="na","na",VLOOKUP($G100,'Engage Ltg Fixture Table'!$B$8:$HK$770,AK$4,FALSE)) -> 1 | AL100: =IF(G100="na","na",VLOOKUP($G100,'Engage Ltg Fixture Table'!$B$8:$HK$770,AL$4,FALSE)) -> F32T8-PREM | AM100: =IF(G100="na","na",VLOOKUP($G100,'Engage Ltg Fixture Table'!$B$8:$HK$770,AM$4,FALSE)) -> Electronic | AN100: =IF(G100="na","na",VLOOKUP($G100,'Engage Ltg Fixture Table'!$B$8:$HK$770,AN$4,FALSE)) -> 1 | AO100: =IF(G100="na","na",VLOOKUP($G100,'Engage Ltg Fixture Table'!$B$8:$HK$770,AO$4,FALSE)) -> 0.027 | AP100: added from DEER2008.3.02 measure list | AQ100: ="ID: "&TEXT(B100,"000")&"; "&VLOOKUP($F100,'Engage Ltg Fixture Table'!$B$8:$HK$770,7,FALSE)&" ==> "&VLOOKUP($H100,'Engage Ltg Fixture Table'!$B$8:$HK$770,7,FALSE) -> ID: 089; FL, (1) 48in, STD IS lamp, Hyb Mag, W/fixt=41 ==> FL, (1) 48in, ES T8, Prem IS Bal, W/fixt=24 | AS100: 10044-10345
B101: 90 | C101: Com-ILtg-PrimLF-LF-ca10044-cd10289-ms10346 | D101: Linear Fluorescent | E101: Linear Fluorescent (Primary Schedule) | F101: 10044 | G101: 10289 | H101: 10346 | I101: Yes | J101: Yes | K101: No | L101: No | M101: 16 | N101: 2 | O101: =VLOOKUP($H101,'Engage Ltg Fixture Table'!$B$8:$HK$770,O$4,FALSE) -> Linear Fluorescent | P101: =VLOOKUP($H101,'Engage Ltg Fixture Table'!$B$8:$HK$770,P$4,FALSE) -> F41ILL-R (G3) | Q101: =VLOOKUP($H101,'Engage Ltg Fixture Table'!$B$8:$HK$770,Q$4,FALSE) -> T8 | R101: =VLOOKUP($H101,'Engage Ltg Fixture Table'!$B$8:$HK$770,R$4,FALSE) -> 48in 3rd Gen | S101: =VLOOKUP($H101,'Engage Ltg Fixture Table'!$B$8:$HK$770,S$4,FALSE) -> 1 | T101: =VLOOKUP($H101,'Engage Ltg Fixture Table'!$B$8:$HK$770,T$4,FALSE) -> F32T8-PREM | U101: =VLOOKUP($H101,'Engage Ltg Fixture Table'!$B$8:$HK$770,U$4,FALSE) -> Elec-Prem | V101: =VLOOKUP($H101,'Engage Ltg Fixture Table'!$B$8:$HK$770,V$4,FALSE) -> 1 | W101: =VLOOKUP($H101,'Engage Ltg Fixture Table'!$B$8:$HK$770,W$4,FALSE) -> 0.025 | X101: =VLOOKUP($F101,'Engage Ltg Fixture Table'!$B$8:$HK$770,X$4,FALSE) -> Linear Fluorescent | Y101: =VLOOKUP($F101,'Engage Ltg Fixture Table'!$B$8:$HK$770,Y$4,FALSE) -> F41SIH | Z101: =VLOOKUP($F101,'Engage Ltg Fixture Table'!$B$8:$HK$770,Z$4,FALSE) -> T12 | AA101: =VLOOKUP($F101,'Engage Ltg Fixture Table'!$B$8:$HK$770,AA$4,FALSE) -> 48 inch | AB101: =VLOOKUP($F101,'Engage Ltg Fixture Table'!$B$8:$HK$770,AB$4,FALSE) -> 1 | AC101: =VLOOKUP($F101,'Engage Ltg Fixture Table'!$B$8:$HK$770,AC$4,FALSE) -> F40T12 | AD101: =VLOOKUP($F101,'Engage Ltg Fixture Table'!$B$8:$HK$770,AD$4,FALSE) -> Mag-Hyb | AE101: =VLOOKUP($F101,'Engage Ltg Fixture Table'!$B$8:$HK$770,AE$4,FALSE) -> 1 | AF101: =VLOOKUP($F101,'Engage Ltg Fixture Table'!$B$8:$HK$770,AF$4,FALSE) -> 0.041 | AG101: =IF(G101="na","na",VLOOKUP($G101,'Engage Ltg Fixture Table'!$B$8:$HK$770,AG$4,FALSE)) -> Linear Fluorescent | AH101: =IF(G101="na","na",VLOOKUP($G101,'Engage Ltg Fixture Table'!$B$8:$HK$770,AH$4,FALSE)) -> F41LL-R (G2) | AI101: =IF(G101="na","na",VLOOKUP($G101,'Engage Ltg Fixture Table'!$B$8:$HK$770,AI$4,FALSE)) -> T8 | AJ101: =IF(G101="na","na",VLOOKUP($G101,'Engage Ltg Fixture Table'!$B$8:$HK$770,AJ$4,FALSE)) -> 48in 2nd Gen | AK101: =IF(G101="na","na",VLOOKUP($G101,'Engage Ltg Fixture Table'!$B$8:$HK$770,AK$4,FALSE)) -> 1 | AL101: =IF(G101="na","na",VLOOKUP($G101,'Engage Ltg Fixture Table'!$B$8:$HK$770,AL$4,FALSE)) -> F32T8-PREM | AM101: =IF(G101="na","na",VLOOKUP($G101,'Engage Ltg Fixture Table'!$B$8:$HK$770,AM$4,FALSE)) -> Electronic | AN101: =IF(G101="na","na",VLOOKUP($G101,'Engage Ltg Fixture Table'!$B$8:$HK$770,AN$4,FALSE)) -> 1 | AO101: =IF(G101="na","na",VLOOKUP($G101,'Engage Ltg Fixture Table'!$B$8:$HK$770,AO$4,FALSE)) -> 0.027 | AP101: added from DEER2008.3.02 measure list | AQ101: ="ID: "&TEXT(B101,"000")&"; "&VLOOKUP($F101,'Engage Ltg Fixture Table'!$B$8:$HK$770,7,FALSE)&" ==> "&VLOOKUP($H101,'Engage Ltg Fixture Table'!$B$8:$HK$770,7,FALSE) -> ID: 090; FL, (1) 48in, STD IS lamp, Hyb Mag, W/fixt=41 ==> FL, (1) 48in, T8, Prem IS EB, W/fixt=25 | AS101: 10044-10346
B102: 91 | C102: Com-ILtg-PrimLF-LF-ca10044-cd10295-ms10347 | D102: Linear Fluorescent | E102: Linear Fluorescent (Primary Schedule) | F102: 10044 | G102: 10295 | H102: 10347 | I102: Yes | J102: Yes | K102: No | L102: No | M102: 14 | N102: 4 | O102: =VLOOKUP($H102,'Engage Ltg Fixture Table'!$B$8:$HK$770,O$4,FALSE) -> Linear Fluorescent | P102: =VLOOKUP($H102,'Engage Ltg Fixture Table'!$B$8:$HK$770,P$4,FALSE) -> F41WLL (G3) | Q102: =VLOOKUP($H102,'Engage Ltg Fixture Table'!$B$8:$HK$770,Q$4,FALSE) -> T8 | R102: =VLOOKUP($H102,'Engage Ltg Fixture Table'!$B$8:$HK$770,R$4,FALSE) -> 48in 3rd Gen | S102: =VLOOKUP($H102,'Engage Ltg Fixture Table'!$B$8:$HK$770,S$4,FALSE) -> 1 | T102: =VLOOKUP($H102,'Engage Ltg Fixture Table'!$B$8:$HK$770,T$4,FALSE) -> F32T8-PREM-ES | U102: =VLOOKUP($H102,'Engage Ltg Fixture Table'!$B$8:$HK$770,U$4,FALSE) -> Elec-Prem | V102: =VLOOKUP($H102,'Engage Ltg Fixture Table'!$B$8:$HK$770,V$4,FALSE) -> 1 | W102: =VLOOKUP($H102,'Engage Ltg Fixture Table'!$B$8:$HK$770,W$4,FALSE) -> 0.027 | X102: =VLOOKUP($F102,'Engage Ltg Fixture Table'!$B$8:$HK$770,X$4,FALSE) -> Linear Fluorescent | Y102: =VLOOKUP($F102,'Engage Ltg Fixture Table'!$B$8:$HK$770,Y$4,FALSE) -> F41SIH | Z102: =VLOOKUP($F102,'Engage Ltg Fixture Table'!$B$8:$HK$770,Z$4,FALSE) -> T12 | AA102: =VLOOKUP($F102,'Engage Ltg Fixture Table'!$B$8:$HK$770,AA$4,FALSE) -> 48 inch | AB102: =VLOOKUP($F102,'Engage Ltg Fixture Table'!$B$8:$HK$770,AB$4,FALSE) -> 1 | AC102: =VLOOKUP($F102,'Engage Ltg Fixture Table'!$B$8:$HK$770,AC$4,FALSE) -> F40T12 | AD102: =VLOOKUP($F102,'Engage Ltg Fixture Table'!$B$8:$HK$770,AD$4,FALSE) -> Mag-Hyb | AE102: =VLOOKUP($F102,'Engage Ltg Fixture Table'!$B$8:$HK$770,AE$4,FALSE) -> 1 | AF102: =VLOOKUP($F102,'Engage Ltg Fixture Table'!$B$8:$HK$770,AF$4,FALSE) -> 0.041 | AG102: =IF(G102="na","na",VLOOKUP($G102,'Engage Ltg Fixture Table'!$B$8:$HK$770,AG$4,FALSE)) -> Linear Fluorescent | AH102: =IF(G102="na","na",VLOOKUP($G102,'Engage Ltg Fixture Table'!$B$8:$HK$770,AH$4,FALSE)) -> F41ILL (G2) | AI102: =IF(G102="na","na",VLOOKUP($G102,'Engage Ltg Fixture Table'!$B$8:$HK$770,AI$4,FALSE)) -> T8 | AJ102: =IF(G102="na","na",VLOOKUP($G102,'Engage Ltg Fixture Table'!$B$8:$HK$770,AJ$4,FALSE)) -> 48in 2nd Gen | AK102: =IF(G102="na","na",VLOOKUP($G102,'Engage Ltg Fixture Table'!$B$8:$HK$770,AK$4,FALSE)) -> 1 | AL102: =IF(G102="na","na",VLOOKUP($G102,'Engage Ltg Fixture Table'!$B$8:$HK$770,AL$4,FALSE)) -> F32T8-PREM | AM102: =IF(G102="na","na",VLOOKUP($G102,'Engage Ltg Fixture Table'!$B$8:$HK$770,AM$4,FALSE)) -> Electronic | AN102: =IF(G102="na","na",VLOOKUP($G102,'Engage Ltg Fixture Table'!$B$8:$HK$770,AN$4,FALSE)) -> 1 | AO102: =IF(G102="na","na",VLOOKUP($G102,'Engage Ltg Fixture Table'!$B$8:$HK$770,AO$4,FALSE)) -> 0.031 | AP102: added from DEER2008.3.02 measure list | AQ102: ="ID: "&TEXT(B102,"000")&"; "&VLOOKUP($F102,'Engage Ltg Fixture Table'!$B$8:$HK$770,7,FALSE)&" ==> "&VLOOKUP($H102,'Engage Ltg Fixture Table'!$B$8:$HK$770,7,FALSE) -> ID: 091; FL, (1) 48in, STD IS lamp, Hyb Mag, W/fixt=41 ==> FL, (1) 48in, ES T8, Prem IS Bal, W/fixt=27 | AS102: 10044-10347
B103: 92 | C103: Com-ILtg-PrimLF-LF-ca10044-cd10295-ms10348 | D103: Linear Fluorescent | E103: Linear Fluorescent (Primary Schedule) | F103: 10044 | G103: 10295 | H103: 10348 | I103: Yes | J103: Yes | K103: No | L103: No | M103: 13 | N103: 3 | O103: =VLOOKUP($H103,'Engage Ltg Fixture Table'!$B$8:$HK$770,O$4,FALSE) -> Linear Fluorescent | P103: =VLOOKUP($H103,'Engage Ltg Fixture Table'!$B$8:$HK$770,P$4,FALSE) -> F41ILL (G3) | Q103: =VLOOKUP($H103,'Engage Ltg Fixture Table'!$B$8:$HK$770,Q$4,FALSE) -> T8 | R103: =VLOOKUP($H103,'Engage Ltg Fixture Table'!$B$8:$HK$770,R$4,FALSE) -> 48in 3rd Gen | S103: =VLOOKUP($H103,'Engage Ltg Fixture Table'!$B$8:$HK$770,S$4,FALSE) -> 1 | T103: =VLOOKUP($H103,'Engage Ltg Fixture Table'!$B$8:$HK$770,T$4,FALSE) -> F32T8-PREM | U103: =VLOOKUP($H103,'Engage Ltg Fixture Table'!$B$8:$HK$770,U$4,FALSE) -> Elec-Prem | V103: =VLOOKUP($H103,'Engage Ltg Fixture Table'!$B$8:$HK$770,V$4,FALSE) -> 1 | W103: =VLOOKUP($H103,'Engage Ltg Fixture Table'!$B$8:$HK$770,W$4,FALSE) -> 0.028 | X103: =VLOOKUP($F103,'Engage Ltg Fixture Table'!$B$8:$HK$770,X$4,FALSE) -> Linear Fluorescent | Y103: =VLOOKUP($F103,'Engage Ltg Fixture Table'!$B$8:$HK$770,Y$4,FALSE) -> F41SIH | Z103: =VLOOKUP($F103,'Engage Ltg Fixture Table'!$B$8:$HK$770,Z$4,FALSE) -> T12 | AA103: =VLOOKUP($F103,'Engage Ltg Fixture Table'!$B$8:$HK$770,AA$4,FALSE) -> 48 inch | AB103: =VLOOKUP($F103,'Engage Ltg Fixture Table'!$B$8:$HK$770,AB$4,FALSE) -> 1 | AC103: =VLOOKUP($F103,'Engage Ltg Fixture Table'!$B$8:$HK$770,AC$4,FALSE) -> F40T12 | AD103: =VLOOKUP($F103,'Engage Ltg Fixture Table'!$B$8:$HK$770,AD$4,FALSE) -> Mag-Hyb | AE103: =VLOOKUP($F103,'Engage Ltg Fixture Table'!$B$8:$HK$770,AE$4,FALSE) -> 1 | AF103: =VLOOKUP($F103,'Engage Ltg Fixture Table'!$B$8:$HK$770,AF$4,FALSE) -> 0.041 | AG103: =IF(G103="na","na",VLOOKUP($G103,'Engage Ltg Fixture Table'!$B$8:$HK$770,AG$4,FALSE)) -> Linear Fluorescent | AH103: =IF(G103="na","na",VLOOKUP($G103,'Engage Ltg Fixture Table'!$B$8:$HK$770,AH$4,FALSE)) -> F41ILL (G2) | AI103: =IF(G103="na","na",VLOOKUP($G103,'Engage Ltg Fixture Table'!$B$8:$HK$770,AI$4,FALSE)) -> T8 | AJ103: =IF(G103="na","na",VLOOKUP($G103,'Engage Ltg Fixture Table'!$B$8:$HK$770,AJ$4,FALSE)) -> 48in 2nd Gen | AK103: =IF(G103="na","na",VLOOKUP($G103,'Engage Ltg Fixture Table'!$B$8:$HK$770,AK$4,FALSE)) -> 1 | AL103: =IF(G103="na","na",VLOOKUP($G103,'Engage Ltg Fixture Table'!$B$8:$HK$770,AL$4,FALSE)) -> F32T8-PREM | AM103: =IF(G103="na","na",VLOOKUP($G103,'Engage Ltg Fixture Table'!$B$8:$HK$770,AM$4,FALSE)) -> Electronic | AN103: =IF(G103="na","na",VLOOKUP($G103,'Engage Ltg Fixture Table'!$B$8:$HK$770,AN$4,FALSE)) -> 1 | AO103: =IF(G103="na","na",VLOOKUP($G103,'Engage Ltg Fixture Table'!$B$8:$HK$770,AO$4,FALSE)) -> 0.031 | AP103: added from DEER2008.3.02 measure list | AQ103: ="ID: "&TEXT(B103,"000")&"; "&VLOOKUP($F103,'Engage Ltg Fixture Table'!$B$8:$HK$770,7,FALSE)&" ==> "&VLOOKUP($H103,'Engage Ltg Fixture Table'!$B$8:$HK$770,7,FALSE) -> ID: 092; FL, (1) 48in, STD IS lamp, Hyb Mag, W/fixt=41 ==> FL, (1) 48in, T8, Prem IS EB, W/fixt=28 | AS103: 10044-10348
B104: 93 | C104: Com-ILtg-PrimLF-LF-ca10045-cd10223-ms10345 | D104: Linear Fluorescent | E104: Linear Fluorescent (Primary Schedule) | F104: 10045 | G104: 10223 | H104: 10345 | I104: No | J104: No | K104: Yes | L104: Yes | M104: 19 | N104: 3 | O104: =VLOOKUP($H104,'Engage Ltg Fixture Table'!$B$8:$HK$770,O$4,FALSE) -> Linear Fluorescent | P104: =VLOOKUP($H104,'Engage Ltg Fixture Table'!$B$8:$HK$770,P$4,FALSE) -> F41WLL-R (G3) | Q104: =VLOOKUP($H104,'Engage Ltg Fixture Table'!$B$8:$HK$770,Q$4,FALSE) -> T8 | R104: =VLOOKUP($H104,'Engage Ltg Fixture Table'!$B$8:$HK$770,R$4,FALSE) -> 48in 3rd Gen | S104: =VLOOKUP($H104,'Engage Ltg Fixture Table'!$B$8:$HK$770,S$4,FALSE) -> 1 | T104: =VLOOKUP($H104,'Engage Ltg Fixture Table'!$B$8:$HK$770,T$4,FALSE) -> F32T8-PREM-ES | U104: =VLOOKUP($H104,'Engage Ltg Fixture Table'!$B$8:$HK$770,U$4,FALSE) -> Elec-Prem | V104: =VLOOKUP($H104,'Engage Ltg Fixture Table'!$B$8:$HK$770,V$4,FALSE) -> 1 | W104: =VLOOKUP($H104,'Engage Ltg Fixture Table'!$B$8:$HK$770,W$4,FALSE) -> 0.024 | X104: =VLOOKUP($F104,'Engage Ltg Fixture Table'!$B$8:$HK$770,X$4,FALSE) -> Linear Fluorescent | Y104: =VLOOKUP($F104,'Engage Ltg Fixture Table'!$B$8:$HK$770,Y$4,FALSE) -> F41EE | Z104: =VLOOKUP($F104,'Engage Ltg Fixture Table'!$B$8:$HK$770,Z$4,FALSE) -> T12 | AA104: =VLOOKUP($F104,'Engage Ltg Fixture Table'!$B$8:$HK$770,AA$4,FALSE) -> 48 inch | AB104: =VLOOKUP($F104,'Engage Ltg Fixture Table'!$B$8:$HK$770,AB$4,FALSE) -> 1 | AC104: =VLOOKUP($F104,'Engage Ltg Fixture Table'!$B$8:$HK$770,AC$4,FALSE) -> F40T12/ES | AD104: =VLOOKUP($F104,'Engage Ltg Fixture Table'!$B$8:$HK$770,AD$4,FALSE) -> Mag-ES | AE104: =VLOOKUP($F104,'Engage Ltg Fixture Table'!$B$8:$HK$770,AE$4,FALSE) -> 1 | AF104: =VLOOKUP($F104,'Engage Ltg Fixture Table'!$B$8:$HK$770,AF$4,FALSE) -> 0.043 | AG104: =IF(G104="na","na",VLOOKUP($G104,'Engage Ltg Fixture Table'!$B$8:$HK$770,AG$4,FALSE)) -> Linear Fluorescent | AH104: =IF(G104="na","na",VLOOKUP($G104,'Engage Ltg Fixture Table'!$B$8:$HK$770,AH$4,FALSE)) -> F41LL-R (G1) | AI104: =IF(G104="na","na",VLOOKUP($G104,'Engage Ltg Fixture Table'!$B$8:$HK$770,AI$4,FALSE)) -> T8 | AJ104: =IF(G104="na","na",VLOOKUP($G104,'Engage Ltg Fixture Table'!$B$8:$HK$770,AJ$4,FALSE)) -> 48in 1st Gen | AK104: =IF(G104="na","na",VLOOKUP($G104,'Engage Ltg Fixture Table'!$B$8:$HK$770,AK$4,FALSE)) -> 1 | AL104: =IF(G104="na","na",VLOOKUP($G104,'Engage Ltg Fixture Table'!$B$8:$HK$770,AL$4,FALSE)) -> F32T8-STD | AM104: =IF(G104="na","na",VLOOKUP($G104,'Engage Ltg Fixture Table'!$B$8:$HK$770,AM$4,FALSE)) -> Electronic | AN104: =IF(G104="na","na",VLOOKUP($G104,'Engage Ltg Fixture Table'!$B$8:$HK$770,AN$4,FALSE)) -> 1 | AO104: =IF(G104="na","na",VLOOKUP($G104,'Engage Ltg Fixture Table'!$B$8:$HK$770,AO$4,FALSE)) -> 0.027 | AP104: added from DEER2008.3.02 measure list | AQ104: ="ID: "&TEXT(B104,"000")&"; "&VLOOKUP($F104,'Engage Ltg Fixture Table'!$B$8:$HK$770,7,FALSE)&" ==> "&VLOOKUP($H104,'Engage Ltg Fixture Table'!$B$8:$HK$770,7,FALSE) -> ID: 093; FL, (1) 48in, ES lamp, ES Mag, W/fixt=43 ==> FL, (1) 48in, ES T8, Prem IS Bal, W/fixt=24 | AS104: 10045-10345
B105: 94 | C105: Com-ILtg-PrimLF-LF-ca10045-cd10223-ms10346 | D105: Linear Fluorescent | E105: Linear Fluorescent (Primary Schedule) | F105: 10045 | G105: 10223 | H105: 10346 | I105: No | J105: No | K105: Yes | L105: Yes | M105: 18 | N105: 2 | O105: =VLOOKUP($H105,'Engage Ltg Fixture Table'!$B$8:$HK$770,O$4,FALSE) -> Linear Fluorescent | P105: =VLOOKUP($H105,'Engage Ltg Fixture Table'!$B$8:$HK$770,P$4,FALSE) -> F41ILL-R (G3) | Q105: =VLOOKUP($H105,'Engage Ltg Fixture Table'!$B$8:$HK$770,Q$4,FALSE) -> T8 | R105: =VLOOKUP($H105,'Engage Ltg Fixture Table'!$B$8:$HK$770,R$4,FALSE) -> 48in 3rd Gen | S105: =VLOOKUP($H105,'Engage Ltg Fixture Table'!$B$8:$HK$770,S$4,FALSE) -> 1 | T105: =VLOOKUP($H105,'Engage Ltg Fixture Table'!$B$8:$HK$770,T$4,FALSE) -> F32T8-PREM | U105: =VLOOKUP($H105,'Engage Ltg Fixture Table'!$B$8:$HK$770,U$4,FALSE) -> Elec-Prem | V105: =VLOOKUP($H105,'Engage Ltg Fixture Table'!$B$8:$HK$770,V$4,FALSE) -> 1 | W105: =VLOOKUP($H105,'Engage Ltg Fixture Table'!$B$8:$HK$770,W$4,FALSE) -> 0.025 | X105: =VLOOKUP($F105,'Engage Ltg Fixture Table'!$B$8:$HK$770,X$4,FALSE) -> Linear Fluorescent | Y105: =VLOOKUP($F105,'Engage Ltg Fixture Table'!$B$8:$HK$770,Y$4,FALSE) -> F41EE | Z105: =VLOOKUP($F105,'Engage Ltg Fixture Table'!$B$8:$HK$770,Z$4,FALSE) -> T12 | AA105: =VLOOKUP($F105,'Engage Ltg Fixture Table'!$B$8:$HK$770,AA$4,FALSE) -> 48 inch | AB105: =VLOOKUP($F105,'Engage Ltg Fixture Table'!$B$8:$HK$770,AB$4,FALSE) -> 1 | AC105: =VLOOKUP($F105,'Engage Ltg Fixture Table'!$B$8:$HK$770,AC$4,FALSE) -> F40T12/ES | AD105: =VLOOKUP($F105,'Engage Ltg Fixture Table'!$B$8:$HK$770,AD$4,FALSE) -> Mag-ES | AE105: =VLOOKUP($F105,'Engage Ltg Fixture Table'!$B$8:$HK$770,AE$4,FALSE) -> 1 | AF105: =VLOOKUP($F105,'Engage Ltg Fixture Table'!$B$8:$HK$770,AF$4,FALSE) -> 0.043 | AG105: =IF(G105="na","na",VLOOKUP($G105,'Engage Ltg Fixture Table'!$B$8:$HK$770,AG$4,FALSE)) -> Linear Fluorescent | AH105: =IF(G105="na","na",VLOOKUP($G105,'Engage Ltg Fixture Table'!$B$8:$HK$770,AH$4,FALSE)) -> F41LL-R (G1) | AI105: =IF(G105="na","na",VLOOKUP($G105,'Engage Ltg Fixture Table'!$B$8:$HK$770,AI$4,FALSE)) -> T8 | AJ105: =IF(G105="na","na",VLOOKUP($G105,'Engage Ltg Fixture Table'!$B$8:$HK$770,AJ$4,FALSE)) -> 48in 1st Gen | AK105: =IF(G105="na","na",VLOOKUP($G105,'Engage Ltg Fixture Table'!$B$8:$HK$770,AK$4,FALSE)) -> 1 | AL105: =IF(G105="na","na",VLOOKUP($G105,'Engage Ltg Fixture Table'!$B$8:$HK$770,AL$4,FALSE)) -> F32T8-STD | AM105: =IF(G105="na","na",VLOOKUP($G105,'Engage Ltg Fixture Table'!$B$8:$HK$770,AM$4,FALSE)) -> Electronic | AN105: =IF(G105="na","na",VLOOKUP($G105,'Engage Ltg Fixture Table'!$B$8:$HK$770,AN$4,FALSE)) -> 1 | AO105: =IF(G105="na","na",VLOOKUP($G105,'Engage Ltg Fixture Table'!$B$8:$HK$770,AO$4,FALSE)) -> 0.027 | AP105: added from DEER2008.3.02 measure list | AQ105: ="ID: "&TEXT(B105,"000")&"; "&VLOOKUP($F105,'Engage Ltg Fixture Table'!$B$8:$HK$770,7,FALSE)&" ==> "&VLOOKUP($H105,'Engage Ltg Fixture Table'!$B$8:$HK$770,7,FALSE) -> ID: 094; FL, (1) 48in, ES lamp, ES Mag, W/fixt=43 ==> FL, (1) 48in, T8, Prem IS EB, W/fixt=25 | AS105: 10045-10346
B106: 95 | C106: Com-ILtg-PrimLF-LF-ca10045-cd10232-ms10347 | D106: Linear Fluorescent | E106: Linear Fluorescent (Primary Schedule) | F106: 10045 | G106: 10232 | H106: 10347 | I106: No | J106: No | K106: Yes | L106: Yes | M106: 16 | N106: 5 | O106: =VLOOKUP($H106,'Engage Ltg Fixture Table'!$B$8:$HK$770,O$4,FALSE) -> Linear Fluorescent | P106: =VLOOKUP($H106,'Engage Ltg Fixture Table'!$B$8:$HK$770,P$4,FALSE) -> F41WLL (G3) | Q106: =VLOOKUP($H106,'Engage Ltg Fixture Table'!$B$8:$HK$770,Q$4,FALSE) -> T8 | R106: =VLOOKUP($H106,'Engage Ltg Fixture Table'!$B$8:$HK$770,R$4,FALSE) -> 48in 3rd Gen | S106: =VLOOKUP($H106,'Engage Ltg Fixture Table'!$B$8:$HK$770,S$4,FALSE) -> 1 | T106: =VLOOKUP($H106,'Engage Ltg Fixture Table'!$B$8:$HK$770,T$4,FALSE) -> F32T8-PREM-ES | U106: =VLOOKUP($H106,'Engage Ltg Fixture Table'!$B$8:$HK$770,U$4,FALSE) -> Elec-Prem | V106: =VLOOKUP($H106,'Engage Ltg Fixture Table'!$B$8:$HK$770,V$4,FALSE) -> 1 | W106: =VLOOKUP($H106,'Engage Ltg Fixture Table'!$B$8:$HK$770,W$4,FALSE) -> 0.027 | X106: =VLOOKUP($F106,'Engage Ltg Fixture Table'!$B$8:$HK$770,X$4,FALSE) -> Linear Fluorescent | Y106: =VLOOKUP($F106,'Engage Ltg Fixture Table'!$B$8:$HK$770,Y$4,FALSE) -> F41EE | Z106: =VLOOKUP($F106,'Engage Ltg Fixture Table'!$B$8:$HK$770,Z$4,FALSE) -> T12 | AA106: =VLOOKUP($F106,'Engage Ltg Fixture Table'!$B$8:$HK$770,AA$4,FALSE) -> 48 inch | AB106: =VLOOKUP($F106,'Engage Ltg Fixture Table'!$B$8:$HK$770,AB$4,FALSE) -> 1 | AC106: =VLOOKUP($F106,'Engage Ltg Fixture Table'!$B$8:$HK$770,AC$4,FALSE) -> F40T12/ES | AD106: =VLOOKUP($F106,'Engage Ltg Fixture Table'!$B$8:$HK$770,AD$4,FALSE) -> Mag-ES | AE106: =VLOOKUP($F106,'Engage Ltg Fixture Table'!$B$8:$HK$770,AE$4,FALSE) -> 1 | AF106: =VLOOKUP($F106,'Engage Ltg Fixture Table'!$B$8:$HK$770,AF$4,FALSE) -> 0.043 | AG106: =IF(G106="na","na",VLOOKUP($G106,'Engage Ltg Fixture Table'!$B$8:$HK$770,AG$4,FALSE)) -> Linear Fluorescent | AH106: =IF(G106="na","na",VLOOKUP($G106,'Engage Ltg Fixture Table'!$B$8:$HK$770,AH$4,FALSE)) -> F41LL (G1) | AI106: =IF(G106="na","na",VLOOKUP($G106,'Engage Ltg Fixture Table'!$B$8:$HK$770,AI$4,FALSE)) -> T8 | AJ106: =IF(G106="na","na",VLOOKUP($G106,'Engage Ltg Fixture Table'!$B$8:$HK$770,AJ$4,FALSE)) -> 48in 1st Gen | AK106: =IF(G106="na","na",VLOOKUP($G106,'Engage Ltg Fixture Table'!$B$8:$HK$770,AK$4,FALSE)) -> 1 | AL106: =IF(G106="na","na",VLOOKUP($G106,'Engage Ltg Fixture Table'!$B$8:$HK$770,AL$4,FALSE)) -> F32T8-STD | AM106: =IF(G106="na","na",VLOOKUP($G106,'Engage Ltg Fixture Table'!$B$8:$HK$770,AM$4,FALSE)) -> Electronic | AN106: =IF(G106="na","na",VLOOKUP($G106,'Engage Ltg Fixture Table'!$B$8:$HK$770,AN$4,FALSE)) -> 1 | AO106: =IF(G106="na","na",VLOOKUP($G106,'Engage Ltg Fixture Table'!$B$8:$HK$770,AO$4,FALSE)) -> 0.032 | AP106: added from DEER2008.3.02 measure list | AQ106: ="ID: "&TEXT(B106,"000")&"; "&VLOOKUP($F106,'Engage Ltg Fixture Table'!$B$8:$HK$770,7,FALSE)&" ==> "&VLOOKUP($H106,'Engage Ltg Fixture Table'!$B$8:$HK$770,7,FALSE) -> ID: 095; FL, (1) 48in, ES lamp, ES Mag, W/fixt=43 ==> FL, (1) 48in, ES T8, Prem IS Bal, W/fixt=27 | AS106: 10045-10347
B107: 96 | C107: Com-ILtg-PrimLF-LF-ca10045-cd10232-ms10348 | D107: Linear Fluorescent | E107: Linear Fluorescent (Primary Schedule) | F107: 10045 | G107: 10232 | H107: 10348 | I107: No | J107: No | K107: Yes | L107: Yes | M107: 15 | N107: 4 | O107: =VLOOKUP($H107,'Engage Ltg Fixture Table'!$B$8:$HK$770,O$4,FALSE) -> Linear Fluorescent | P107: =VLOOKUP($H107,'Engage Ltg Fixture Table'!$B$8:$HK$770,P$4,FALSE) -> F41ILL (G3) | Q107: =VLOOKUP($H107,'Engage Ltg Fixture Table'!$B$8:$HK$770,Q$4,FALSE) -> T8 | R107: =VLOOKUP($H107,'Engage Ltg Fixture Table'!$B$8:$HK$770,R$4,FALSE) -> 48in 3rd Gen | S107: =VLOOKUP($H107,'Engage Ltg Fixture Table'!$B$8:$HK$770,S$4,FALSE) -> 1 | T107: =VLOOKUP($H107,'Engage Ltg Fixture Table'!$B$8:$HK$770,T$4,FALSE) -> F32T8-PREM | U107: =VLOOKUP($H107,'Engage Ltg Fixture Table'!$B$8:$HK$770,U$4,FALSE) -> Elec-Prem | V107: =VLOOKUP($H107,'Engage Ltg Fixture Table'!$B$8:$HK$770,V$4,FALSE) -> 1 | W107: =VLOOKUP($H107,'Engage Ltg Fixture Table'!$B$8:$HK$770,W$4,FALSE) -> 0.028 | X107: =VLOOKUP($F107,'Engage Ltg Fixture Table'!$B$8:$HK$770,X$4,FALSE) -> Linear Fluorescent | Y107: =VLOOKUP($F107,'Engage Ltg Fixture Table'!$B$8:$HK$770,Y$4,FALSE) -> F41EE | Z107: =VLOOKUP($F107,'Engage Ltg Fixture Table'!$B$8:$HK$770,Z$4,FALSE) -> T12 | AA107: =VLOOKUP($F107,'Engage Ltg Fixture Table'!$B$8:$HK$770,AA$4,FALSE) -> 48 inch | AB107: =VLOOKUP($F107,'Engage Ltg Fixture Table'!$B$8:$HK$770,AB$4,FALSE) -> 1 | AC107: =VLOOKUP($F107,'Engage Ltg Fixture Table'!$B$8:$HK$770,AC$4,FALSE) -> F40T12/ES | AD107: =VLOOKUP($F107,'Engage Ltg Fixture Table'!$B$8:$HK$770,AD$4,FALSE) -> Mag-ES | AE107: =VLOOKUP($F107,'Engage Ltg Fixture Table'!$B$8:$HK$770,AE$4,FALSE) -> 1 | AF107: =VLOOKUP($F107,'Engage Ltg Fixture Table'!$B$8:$HK$770,AF$4,FALSE) -> 0.043 | AG107: =IF(G107="na","na",VLOOKUP($G107,'Engage Ltg Fixture Table'!$B$8:$HK$770,AG$4,FALSE)) -> Linear Fluorescent | AH107: =IF(G107="na","na",VLOOKUP($G107,'Engage Ltg Fixture Table'!$B$8:$HK$770,AH$4,FALSE)) -> F41LL (G1) | AI107: =IF(G107="na","na",VLOOKUP($G107,'Engage Ltg Fixture Table'!$B$8:$HK$770,AI$4,FALSE)) -> T8 | AJ107: =IF(G107="na","na",VLOOKUP($G107,'Engage Ltg Fixture Table'!$B$8:$HK$770,AJ$4,FALSE)) -> 48in 1st Gen | AK107: =IF(G107="na","na",VLOOKUP($G107,'Engage Ltg Fixture Table'!$B$8:$HK$770,AK$4,FALSE)) -> 1 | AL107: =IF(G107="na","na",VLOOKUP($G107,'Engage Ltg Fixture Table'!$B$8:$HK$770,AL$4,FALSE)) -> F32T8-STD | AM107: =IF(G107="na","na",VLOOKUP($G107,'Engage Ltg Fixture Table'!$B$8:$HK$770,AM$4,FALSE)) -> Electronic | AN107: =IF(G107="na","na",VLOOKUP($G107,'Engage Ltg Fixture Table'!$B$8:$HK$770,AN$4,FALSE)) -> 1 | AO107: =IF(G107="na","na",VLOOKUP($G107,'Engage Ltg Fixture Table'!$B$8:$HK$770,AO$4,FALSE)) -> 0.032 | AP107: added from DEER2008.3.02 measure list | AQ107: ="ID: "&TEXT(B107,"000")&"; "&VLOOKUP($F107,'Engage Ltg Fixture Table'!$B$8:$HK$770,7,FALSE)&" ==> "&VLOOKUP($H107,'Engage Ltg Fixture Table'!$B$8:$HK$770,7,FALSE) -> ID: 096; FL, (1) 48in, ES lamp, ES Mag, W/fixt=43 ==> FL, (1) 48in, T8, Prem IS EB, W/fixt=28 | AS107: 10045-10348
B108: 97 | C108: Com-ILtg-PrimLF-LF-ca10045-cd10289-ms10345 | D108: Linear Fluorescent | E108: Linear Fluorescent (Primary Schedule) | F108: 10045 | G108: 10289 | H108: 10345 | I108: Yes | J108: Yes | K108: No | L108: No | M108: 19 | N108: 3 | O108: =VLOOKUP($H108,'Engage Ltg Fixture Table'!$B$8:$HK$770,O$4,FALSE) -> Linear Fluorescent | P108: =VLOOKUP($H108,'Engage Ltg Fixture Table'!$B$8:$HK$770,P$4,FALSE) -> F41WLL-R (G3) | Q108: =VLOOKUP($H108,'Engage Ltg Fixture Table'!$B$8:$HK$770,Q$4,FALSE) -> T8 | R108: =VLOOKUP($H108,'Engage Ltg Fixture Table'!$B$8:$HK$770,R$4,FALSE) -> 48in 3rd Gen | S108: =VLOOKUP($H108,'Engage Ltg Fixture Table'!$B$8:$HK$770,S$4,FALSE) -> 1 | T108: =VLOOKUP($H108,'Engage Ltg Fixture Table'!$B$8:$HK$770,T$4,FALSE) -> F32T8-PREM-ES | U108: =VLOOKUP($H108,'Engage Ltg Fixture Table'!$B$8:$HK$770,U$4,FALSE) -> Elec-Prem | V108: =VLOOKUP($H108,'Engage Ltg Fixture Table'!$B$8:$HK$770,V$4,FALSE) -> 1 | W108: =VLOOKUP($H108,'Engage Ltg Fixture Table'!$B$8:$HK$770,W$4,FALSE) -> 0.024 | X108: =VLOOKUP($F108,'Engage Ltg Fixture Table'!$B$8:$HK$770,X$4,FALSE) -> Linear Fluorescent | Y108: =VLOOKUP($F108,'Engage Ltg Fixture Table'!$B$8:$HK$770,Y$4,FALSE) -> F41EE | Z108: =VLOOKUP($F108,'Engage Ltg Fixture Table'!$B$8:$HK$770,Z$4,FALSE) -> T12 | AA108: =VLOOKUP($F108,'Engage Ltg Fixture Table'!$B$8:$HK$770,AA$4,FALSE) -> 48 inch | AB108: =VLOOKUP($F108,'Engage Ltg Fixture Table'!$B$8:$HK$770,AB$4,FALSE) -> 1 | AC108: =VLOOKUP($F108,'Engage Ltg Fixture Table'!$B$8:$HK$770,AC$4,FALSE) -> F40T12/ES | AD108: =VLOOKUP($F108,'Engage Ltg Fixture Table'!$B$8:$HK$770,AD$4,FALSE) -> Mag-ES | AE108: =VLOOKUP($F108,'Engage Ltg Fixture Table'!$B$8:$HK$770,AE$4,FALSE) -> 1 | AF108: =VLOOKUP($F108,'Engage Ltg Fixture Table'!$B$8:$HK$770,AF$4,FALSE) -> 0.043 | AG108: =IF(G108="na","na",VLOOKUP($G108,'Engage Ltg Fixture Table'!$B$8:$HK$770,AG$4,FALSE)) -> Linear Fluorescent | AH108: =IF(G108="na","na",VLOOKUP($G108,'Engage Ltg Fixture Table'!$B$8:$HK$770,AH$4,FALSE)) -> F41LL-R (G2) | AI108: =IF(G108="na","na",VLOOKUP($G108,'Engage Ltg Fixture Table'!$B$8:$HK$770,AI$4,FALSE)) -> T8 | AJ108: =IF(G108="na","na",VLOOKUP($G108,'Engage Ltg Fixture Table'!$B$8:$HK$770,AJ$4,FALSE)) -> 48in 2nd Gen | AK108: =IF(G108="na","na",VLOOKUP($G108,'Engage Ltg Fixture Table'!$B$8:$HK$770,AK$4,FALSE)) -> 1 | AL108: =IF(G108="na","na",VLOOKUP($G108,'Engage Ltg Fixture Table'!$B$8:$HK$770,AL$4,FALSE)) -> F32T8-PREM | AM108: =IF(G108="na","na",VLOOKUP($G108,'Engage Ltg Fixture Table'!$B$8:$HK$770,AM$4,FALSE)) -> Electronic | AN108: =IF(G108="na","na",VLOOKUP($G108,'Engage Ltg Fixture Table'!$B$8:$HK$770,AN$4,FALSE)) -> 1 | AO108: =IF(G108="na","na",VLOOKUP($G108,'Engage Ltg Fixture Table'!$B$8:$HK$770,AO$4,FALSE)) -> 0.027 | AP108: added from DEER2008.3.02 measure list | AQ108: ="ID: "&TEXT(B108,"000")&"; "&VLOOKUP($F108,'Engage Ltg Fixture Table'!$B$8:$HK$770,7,FALSE)&" ==> "&VLOOKUP($H108,'Engage Ltg Fixture Table'!$B$8:$HK$770,7,FALSE) -> ID: 097; FL, (1) 48in, ES lamp, ES Mag, W/fixt=43 ==> FL, (1) 48in, ES T8, Prem IS Bal, W/fixt=24 | AS108: 10045-10345
